Workbook

Sheet Velkomst

Sheet Tabel 1 NJ
A1: ='[1]Tabel 1 NJ DATA'!G1 -> Tabel 1. Forsikrede medlemmer
A3: ='[1]Tabel 1 NJ DATA'!G2 -> Nordjylland
C5: ='[1]Tabel 1 NJ DATA'!I4 -> Mænd | E5: ='[1]Tabel 1 NJ DATA'!K4 -> Kvinder | G5: ='[1]Tabel 1 NJ DATA'!M4 -> I alt
A7: ='[1]Tabel 1 NJ DATA'!G6 -> Civ. ing. | C7: ='[1]Tabel 1 NJ DATA'!I6 -> 2996 | E7: ='[1]Tabel 1 NJ DATA'!K6 -> 908 | G7: ='[1]Tabel 1 NJ DATA'!M6 -> 3904
A8: ='[1]Tabel 1 NJ DATA'!G7 -> Diplom ing. | C8: ='[1]Tabel 1 NJ DATA'!I7 -> 1230 | E8: ='[1]Tabel 1 NJ DATA'!K7 -> 239 | G8: ='[1]Tabel 1 NJ DATA'!M7 -> 1469
A9: ='[1]Tabel 1 NJ DATA'!G8 -> Cand. Scient. Tek. | C9: ='[1]Tabel 1 NJ DATA'!I8 -> 977 | E9: ='[1]Tabel 1 NJ DATA'!K8 -> 513 | G9: ='[1]Tabel 1 NJ DATA'!M8 -> 1490
A10: ='[1]Tabel 1 NJ DATA'!G9 -> MA. Hum. | C10: ='[1]Tabel 1 NJ DATA'!I9 -> 990 | E10: ='[1]Tabel 1 NJ DATA'!K9 -> 2043 | G10: ='[1]Tabel 1 NJ DATA'!M9 -> 3033
A11: ='[1]Tabel 1 NJ DATA'!G10 -> MA. Nat. | C11: ='[1]Tabel 1 NJ DATA'!I10 -> 386 | E11: ='[1]Tabel 1 NJ DATA'!K10 -> 308 | G11: ='[1]Tabel 1 NJ DATA'!M10 -> 694
A12: ='[1]Tabel 1 NJ DATA'!G11 -> MA. Ph.d. | C12: ='[1]Tabel 1 NJ DATA'!I11 -> 58 | E12: ='[1]Tabel 1 NJ DATA'!K11 -> 39 | G12: ='[1]Tabel 1 NJ DATA'!M11 -> 97
A13: ='[1]Tabel 1 NJ DATA'!G12 -> MA. Samf. | C13: ='[1]Tabel 1 NJ DATA'!I12 -> 76 | E13: ='[1]Tabel 1 NJ DATA'!K12 -> 267 | G13: ='[1]Tabel 1 NJ DATA'!M12 -> 343
A14: ='[1]Tabel 1 NJ DATA'!G13 -> Øvrige Mag. | C14: ='[1]Tabel 1 NJ DATA'!I13 -> 70 | E14: ='[1]Tabel 1 NJ DATA'!K13 -> 136 | G14: ='[1]Tabel 1 NJ DATA'!M13 -> 206
A15: ='[1]Tabel 1 NJ DATA'!G14 -> Agronom | C15: ='[1]Tabel 1 NJ DATA'!I14 -> 71 | E15: ='[1]Tabel 1 NJ DATA'!K14 -> 59 | G15: ='[1]Tabel 1 NJ DATA'!M14 -> 130
A16: ='[1]Tabel 1 NJ DATA'!G15 -> Landsk. Arkt. | C16: ='[1]Tabel 1 NJ DATA'!I15 -> 3 | E16: ='[1]Tabel 1 NJ DATA'!K15 -> 11 | G16: ='[1]Tabel 1 NJ DATA'!M15 -> 14
A17: ='[1]Tabel 1 NJ DATA'!G16 -> Hortonom | C17: ='[1]Tabel 1 NJ DATA'!I16 -> 1 | E17: ='[1]Tabel 1 NJ DATA'!K16 -> 2 | G17: ='[1]Tabel 1 NJ DATA'!M16 -> 3
A18: ='[1]Tabel 1 NJ DATA'!G17 -> Forstkand. | C18: ='[1]Tabel 1 NJ DATA'!I17 -> 14 | E18: ='[1]Tabel 1 NJ DATA'!K17 -> 8 | G18: ='[1]Tabel 1 NJ DATA'!M17 -> 22
A19: ='[1]Tabel 1 NJ DATA'!G18 -> Jordbrugsakad. | C19: ='[1]Tabel 1 NJ DATA'!I18 -> 89 | E19: ='[1]Tabel 1 NJ DATA'!K18 -> 80 | G19: ='[1]Tabel 1 NJ DATA'!M18 -> 169
A20: ='[1]Tabel 1 NJ DATA'!G19 -> Mejeriing. | C20: ='[1]Tabel 1 NJ DATA'!I19 -> 11 | E20: ='[1]Tabel 1 NJ DATA'!K19 -> 9 | G20: ='[1]Tabel 1 NJ DATA'!M19 -> 20
A21: ='[1]Tabel 1 NJ DATA'!G20 -> Levn.m.kand. | C21: ='[1]Tabel 1 NJ DATA'!I20 -> 1 | E21: ='[1]Tabel 1 NJ DATA'!K20 -> 3 | G21: ='[1]Tabel 1 NJ DATA'!M20 -> 4
A22: ='[1]Tabel 1 NJ DATA'!G21 -> Dyrlæge | C22: ='[1]Tabel 1 NJ DATA'!I21 -> 34 | E22: ='[1]Tabel 1 NJ DATA'!K21 -> 162 | G22: ='[1]Tabel 1 NJ DATA'!M21 -> 196
A23: ='[1]Tabel 1 NJ DATA'!G22 -> Farmaceut | C23: ='[1]Tabel 1 NJ DATA'!I22 -> 23 | E23: ='[1]Tabel 1 NJ DATA'!K22 -> 95 | G23: ='[1]Tabel 1 NJ DATA'!M22 -> 118
A24: ='[1]Tabel 1 NJ DATA'!G23 -> Læge | C24: ='[1]Tabel 1 NJ DATA'!I23 -> 259 | E24: ='[1]Tabel 1 NJ DATA'!K23 -> 564 | G24: ='[1]Tabel 1 NJ DATA'!M23 -> 823
A25: ='[1]Tabel 1 NJ DATA'!G24 -> Tandlæge | C25: ='[1]Tabel 1 NJ DATA'!I24 -> 15 | E25: ='[1]Tabel 1 NJ DATA'!K24 -> 110 | G25: ='[1]Tabel 1 NJ DATA'!M24 -> 125
A26: ='[1]Tabel 1 NJ DATA'!G25 -> Arkitekt | C26: ='[1]Tabel 1 NJ DATA'!I25 -> 56 | E26: ='[1]Tabel 1 NJ DATA'!K25 -> 73 | G26: ='[1]Tabel 1 NJ DATA'!M25 -> 129
A27: ='[1]Tabel 1 NJ DATA'!G26 -> Landinspek. | C27: ='[1]Tabel 1 NJ DATA'!I26 -> 159 | E27: ='[1]Tabel 1 NJ DATA'!K26 -> 74 | G27: ='[1]Tabel 1 NJ DATA'!M26 -> 233
A28: ='[1]Tabel 1 NJ DATA'!G27 -> Bibliotekar | C28: ='[1]Tabel 1 NJ DATA'!I27 -> 77 | E28: ='[1]Tabel 1 NJ DATA'!K27 -> 238 | G28: ='[1]Tabel 1 NJ DATA'!M27 -> 315
A29: ='[1]Tabel 1 NJ DATA'!G28 -> Musikudd. | C29: ='[1]Tabel 1 NJ DATA'!I28 -> 46 | E29: ='[1]Tabel 1 NJ DATA'!K28 -> 56 | G29: ='[1]Tabel 1 NJ DATA'!M28 -> 102
A30: ='[1]Tabel 1 NJ DATA'!G29 -> Teolog | C30: ='[1]Tabel 1 NJ DATA'!I29 -> 55 | E30: ='[1]Tabel 1 NJ DATA'!K29 -> 102 | G30: ='[1]Tabel 1 NJ DATA'!M29 -> 157
A31: ='[1]Tabel 1 NJ DATA'!G30 -> Psykolog | C31: ='[1]Tabel 1 NJ DATA'!I30 -> 117 | E31: ='[1]Tabel 1 NJ DATA'!K30 -> 588 | G31: ='[1]Tabel 1 NJ DATA'!M30 -> 705
A32: ='[1]Tabel 1 NJ DATA'!G31 -> Jurist | C32: ='[1]Tabel 1 NJ DATA'!I31 -> 198 | E32: ='[1]Tabel 1 NJ DATA'!K31 -> 450 | G32: ='[1]Tabel 1 NJ DATA'!M31 -> 648
A33: ='[1]Tabel 1 NJ DATA'!G32 -> Økonom | C33: ='[1]Tabel 1 NJ DATA'!I32 -> 261 | E33: ='[1]Tabel 1 NJ DATA'!K32 -> 191 | G33: ='[1]Tabel 1 NJ DATA'!M32 -> 452
A34: ='[1]Tabel 1 NJ DATA'!G33 -> Samf. Adm. | C34: ='[1]Tabel 1 NJ DATA'!I33 -> 579 | E34: ='[1]Tabel 1 NJ DATA'!K33 -> 929 | G34: ='[1]Tabel 1 NJ DATA'!M33 -> 1508
A35: ='[1]Tabel 1 NJ DATA'!G34 -> Cand. Merc. | C35: ='[1]Tabel 1 NJ DATA'!I34 -> 1109 | E35: ='[1]Tabel 1 NJ DATA'!K34 -> 1003 | G35: ='[1]Tabel 1 NJ DATA'!M34 -> 2112
A36: ='[1]Tabel 1 NJ DATA'!G35 -> HA | C36: ='[1]Tabel 1 NJ DATA'!I35 -> 235 | E36: ='[1]Tabel 1 NJ DATA'!K35 -> 192 | G36: ='[1]Tabel 1 NJ DATA'!M35 -> 427
A37: ='[1]Tabel 1 NJ DATA'!G36 -> HD | C37: ='[1]Tabel 1 NJ DATA'!I36 -> 189 | E37: ='[1]Tabel 1 NJ DATA'!K36 -> 141 | G37: ='[1]Tabel 1 NJ DATA'!M36 -> 330
A38: ='[1]Tabel 1 NJ DATA'!G37 -> Komm. og Sprog | C38: ='[1]Tabel 1 NJ DATA'!I37 -> 69 | E38: ='[1]Tabel 1 NJ DATA'!K37 -> 308 | G38: ='[1]Tabel 1 NJ DATA'!M37 -> 377
A39: ='[1]Tabel 1 NJ DATA'!G38 -> Bygningskonst. | C39: ='[1]Tabel 1 NJ DATA'!I38 -> 823 | E39: ='[1]Tabel 1 NJ DATA'!K38 -> 98 | G39: ='[1]Tabel 1 NJ DATA'!M38 -> 921
A40: ='[1]Tabel 1 NJ DATA'!G39 -> Cand. IT. | C40: ='[1]Tabel 1 NJ DATA'!I39 -> 302 | E40: ='[1]Tabel 1 NJ DATA'!K39 -> 235 | G40: ='[1]Tabel 1 NJ DATA'!M39 -> 537
A41: ='[1]Tabel 1 NJ DATA'!G40 -> Bac. Samf. | C41: ='[1]Tabel 1 NJ DATA'!I40 -> 37 | E41: ='[1]Tabel 1 NJ DATA'!K40 -> 30 | G41: ='[1]Tabel 1 NJ DATA'!M40 -> 67
A42: ='[1]Tabel 1 NJ DATA'!G41 -> Bac. Hum. | C42: ='[1]Tabel 1 NJ DATA'!I41 -> 114 | E42: ='[1]Tabel 1 NJ DATA'!K41 -> 164 | G42: ='[1]Tabel 1 NJ DATA'!M41 -> 278
A43: ='[1]Tabel 1 NJ DATA'!G42 -> Bac. Nat. | C43: ='[1]Tabel 1 NJ DATA'!I42 -> 190 | E43: ='[1]Tabel 1 NJ DATA'!K42 -> 82 | G43: ='[1]Tabel 1 NJ DATA'!M42 -> 272
A44: ='[1]Tabel 1 NJ DATA'!G43 -> Andre | C44: ='[1]Tabel 1 NJ DATA'!I43 -> 697 | E44: ='[1]Tabel 1 NJ DATA'!K43 -> 471 | G44: ='[1]Tabel 1 NJ DATA'!M43 -> 1168
A46: ='[1]Tabel 1 NJ DATA'!G45 -> Total | C46: ='[1]Tabel 1 NJ DATA'!I45 -> 12528 | E46: ='[1]Tabel 1 NJ DATA'!K45 -> 10901 | G46: ='[1]Tabel 1 NJ DATA'!M45 -> 23429
A48: ='[1]Tabel 1 NJ DATA'!G47 -> Ingeniører i alt | C48: ='[1]Tabel 1 NJ DATA'!I47 -> 4226 | E48: ='[1]Tabel 1 NJ DATA'!K47 -> 1147 | G48: ='[1]Tabel 1 NJ DATA'!M47 -> 5373
A49: ='[1]Tabel 1 NJ DATA'!G48 -> Magistre i alt | C49: ='[1]Tabel 1 NJ DATA'!I48 -> 1580 | E49: ='[1]Tabel 1 NJ DATA'!K48 -> 2793 | G49: ='[1]Tabel 1 NJ DATA'!M48 -> 4373
A50: ='[1]Tabel 1 NJ DATA'!G49 -> DJØF'ere i alt | C50: ='[1]Tabel 1 NJ DATA'!I49 -> 2382 | E50: ='[1]Tabel 1 NJ DATA'!K49 -> 2765 | G50: ='[1]Tabel 1 NJ DATA'!M49 -> 5147
A57: ='[1]Tabel 1 NJ DATA'!G60 -> Morsø
C59: ='[1]Tabel 1 NJ DATA'!I62 -> Mænd | E59: ='[1]Tabel 1 NJ DATA'!K62 -> Kvinder | G59: ='[1]Tabel 1 NJ DATA'!M62 -> I alt
A61: ='[1]Tabel 1 NJ DATA'!G64 -> Civ. ing. | C61: ='[1]Tabel 1 NJ DATA'!I64 -> 13 | E61: ='[1]Tabel 1 NJ DATA'!K64 -> 9 | G61: ='[1]Tabel 1 NJ DATA'!M64 -> 22
A62: ='[1]Tabel 1 NJ DATA'!G65 -> Diplom ing. | C62: ='[1]Tabel 1 NJ DATA'!I65 -> 19 | E62: ='[1]Tabel 1 NJ DATA'!K65 -> 9 | G62: ='[1]Tabel 1 NJ DATA'!M65 -> 28
A63: ='[1]Tabel 1 NJ DATA'!G66 -> Cand. Scient. Tek. | C63: ='[1]Tabel 1 NJ DATA'!I66 -> 5 | E63: ='[1]Tabel 1 NJ DATA'!K66 -> 2 | G63: ='[1]Tabel 1 NJ DATA'!M66 -> 7
A64: ='[1]Tabel 1 NJ DATA'!G67 -> MA. Hum. | C64: ='[1]Tabel 1 NJ DATA'!I67 -> 12 | E64: ='[1]Tabel 1 NJ DATA'!K67 -> 24 | G64: ='[1]Tabel 1 NJ DATA'!M67 -> 36
A65: ='[1]Tabel 1 NJ DATA'!G68 -> MA. Nat. | C65: ='[1]Tabel 1 NJ DATA'!I68 -> 10 | E65: ='[1]Tabel 1 NJ DATA'!K68 -> 10 | G65: ='[1]Tabel 1 NJ DATA'!M68 -> 20
A66: ='[1]Tabel 1 NJ DATA'!G69 -> MA. Ph.d. | C66: ='[1]Tabel 1 NJ DATA'!I69 -> 2 | E66: ='[1]Tabel 1 NJ DATA'!K69 -> 2 | G66: ='[1]Tabel 1 NJ DATA'!M69 -> 4
A67: ='[1]Tabel 1 NJ DATA'!G70 -> MA. Samf. | C67: ='[1]Tabel 1 NJ DATA'!I70 -> 2 | E67: ='[1]Tabel 1 NJ DATA'!K70 -> 0 | G67: ='[1]Tabel 1 NJ DATA'!M70 -> 2
A68: ='[1]Tabel 1 NJ DATA'!G71 -> Øvrige Mag. | C68: ='[1]Tabel 1 NJ DATA'!I71 -> 2 | E68: ='[1]Tabel 1 NJ DATA'!K71 -> 0 | G68: ='[1]Tabel 1 NJ DATA'!M71 -> 2
A69: ='[1]Tabel 1 NJ DATA'!G72 -> Agronom | C69: ='[1]Tabel 1 NJ DATA'!I72 -> 3 | E69: ='[1]Tabel 1 NJ DATA'!K72 -> 0 | G69: ='[1]Tabel 1 NJ DATA'!M72 -> 3
A70: ='[1]Tabel 1 NJ DATA'!G73 -> Landsk. Arkt. | C70: ='[1]Tabel 1 NJ DATA'!I73 -> 1 | E70: ='[1]Tabel 1 NJ DATA'!K73 -> 1 | G70: ='[1]Tabel 1 NJ DATA'!M73 -> 2
A71: ='[1]Tabel 1 NJ DATA'!G74 -> Hortonom | C71: ='[1]Tabel 1 NJ DATA'!I74 -> 0 | E71: ='[1]Tabel 1 NJ DATA'!K74 -> 0 | G71: ='[1]Tabel 1 NJ DATA'!M74 -> 0
A72: ='[1]Tabel 1 NJ DATA'!G75 -> Forstkand. | C72: ='[1]Tabel 1 NJ DATA'!I75 -> 0 | E72: ='[1]Tabel 1 NJ DATA'!K75 -> 0 | G72: ='[1]Tabel 1 NJ DATA'!M75 -> 0
A73: ='[1]Tabel 1 NJ DATA'!G76 -> Jordbrugsakad. | C73: ='[1]Tabel 1 NJ DATA'!I76 -> 4 | E73: ='[1]Tabel 1 NJ DATA'!K76 -> 1 | G73: ='[1]Tabel 1 NJ DATA'!M76 -> 5
A74: ='[1]Tabel 1 NJ DATA'!G77 -> Mejeriing. | C74: ='[1]Tabel 1 NJ DATA'!I77 -> 0 | E74: ='[1]Tabel 1 NJ DATA'!K77 -> 0 | G74: ='[1]Tabel 1 NJ DATA'!M77 -> 0
A75: ='[1]Tabel 1 NJ DATA'!G78 -> Levn.m.kand. | C75: ='[1]Tabel 1 NJ DATA'!I78 -> 1 | E75: ='[1]Tabel 1 NJ DATA'!K78 -> 0 | G75: ='[1]Tabel 1 NJ DATA'!M78 -> 1
A76: ='[1]Tabel 1 NJ DATA'!G79 -> Dyrlæge | C76: ='[1]Tabel 1 NJ DATA'!I79 -> 0 | E76: ='[1]Tabel 1 NJ DATA'!K79 -> 5 | G76: ='[1]Tabel 1 NJ DATA'!M79 -> 5
A77: ='[1]Tabel 1 NJ DATA'!G80 -> Farmaceut | C77: ='[1]Tabel 1 NJ DATA'!I80 -> 0 | E77: ='[1]Tabel 1 NJ DATA'!K80 -> 0 | G77: ='[1]Tabel 1 NJ DATA'!M80 -> 0
A78: ='[1]Tabel 1 NJ DATA'!G81 -> Læge | C78: ='[1]Tabel 1 NJ DATA'!I81 -> 0 | E78: ='[1]Tabel 1 NJ DATA'!K81 -> 1 | G78: ='[1]Tabel 1 NJ DATA'!M81 -> 1
A79: ='[1]Tabel 1 NJ DATA'!G82 -> Tandlæge | C79: ='[1]Tabel 1 NJ DATA'!I82 -> 0 | E79: ='[1]Tabel 1 NJ DATA'!K82 -> 3 | G79: ='[1]Tabel 1 NJ DATA'!M82 -> 3
A80: ='[1]Tabel 1 NJ DATA'!G83 -> Arkitekt | C80: ='[1]Tabel 1 NJ DATA'!I83 -> 1 | E80: ='[1]Tabel 1 NJ DATA'!K83 -> 3 | G80: ='[1]Tabel 1 NJ DATA'!M83 -> 4
A81: ='[1]Tabel 1 NJ DATA'!G84 -> Landinspek. | C81: ='[1]Tabel 1 NJ DATA'!I84 -> 2 | E81: ='[1]Tabel 1 NJ DATA'!K84 -> 0 | G81: ='[1]Tabel 1 NJ DATA'!M84 -> 2
A82: ='[1]Tabel 1 NJ DATA'!G85 -> Bibliotekar | C82: ='[1]Tabel 1 NJ DATA'!I85 -> 2 | E82: ='[1]Tabel 1 NJ DATA'!K85 -> 6 | G82: ='[1]Tabel 1 NJ DATA'!M85 -> 8
A83: ='[1]Tabel 1 NJ DATA'!G86 -> Musikudd. | C83: ='[1]Tabel 1 NJ DATA'!I86 -> 0 | E83: ='[1]Tabel 1 NJ DATA'!K86 -> 0 | G83: ='[1]Tabel 1 NJ DATA'!M86 -> 0
A84: ='[1]Tabel 1 NJ DATA'!G87 -> Teolog | C84: ='[1]Tabel 1 NJ DATA'!I87 -> 2 | E84: ='[1]Tabel 1 NJ DATA'!K87 -> 2 | G84: ='[1]Tabel 1 NJ DATA'!M87 -> 4
A85: ='[1]Tabel 1 NJ DATA'!G88 -> Psykolog | C85: ='[1]Tabel 1 NJ DATA'!I88 -> 0 | E85: ='[1]Tabel 1 NJ DATA'!K88 -> 2 | G85: ='[1]Tabel 1 NJ DATA'!M88 -> 2
A86: ='[1]Tabel 1 NJ DATA'!G89 -> Jurist | C86: ='[1]Tabel 1 NJ DATA'!I89 -> 0 | E86: ='[1]Tabel 1 NJ DATA'!K89 -> 6 | G86: ='[1]Tabel 1 NJ DATA'!M89 -> 6
A87: ='[1]Tabel 1 NJ DATA'!G90 -> Økonom | C87: ='[1]Tabel 1 NJ DATA'!I90 -> 2 | E87: ='[1]Tabel 1 NJ DATA'!K90 -> 0 | G87: ='[1]Tabel 1 NJ DATA'!M90 -> 2
A88: ='[1]Tabel 1 NJ DATA'!G91 -> Samf. Adm. | C88: ='[1]Tabel 1 NJ DATA'!I91 -> 2 | E88: ='[1]Tabel 1 NJ DATA'!K91 -> 6 | G88: ='[1]Tabel 1 NJ DATA'!M91 -> 8
A89: ='[1]Tabel 1 NJ DATA'!G92 -> Cand. Merc. | C89: ='[1]Tabel 1 NJ DATA'!I92 -> 9 | E89: ='[1]Tabel 1 NJ DATA'!K92 -> 10 | G89: ='[1]Tabel 1 NJ DATA'!M92 -> 19
A90: ='[1]Tabel 1 NJ DATA'!G93 -> HA | C90: ='[1]Tabel 1 NJ DATA'!I93 -> 7 | E90: ='[1]Tabel 1 NJ DATA'!K93 -> 0 | G90: ='[1]Tabel 1 NJ DATA'!M93 -> 7
A91: ='[1]Tabel 1 NJ DATA'!G94 -> HD | C91: ='[1]Tabel 1 NJ DATA'!I94 -> 5 | E91: ='[1]Tabel 1 NJ DATA'!K94 -> 3 | G91: ='[1]Tabel 1 NJ DATA'!M94 -> 8
A92: ='[1]Tabel 1 NJ DATA'!G95 -> Komm. og Sprog | C92: ='[1]Tabel 1 NJ DATA'!I95 -> 2 | E92: ='[1]Tabel 1 NJ DATA'!K95 -> 5 | G92: ='[1]Tabel 1 NJ DATA'!M95 -> 7
A93: ='[1]Tabel 1 NJ DATA'!G96 -> Bygningskonst. | C93: ='[1]Tabel 1 NJ DATA'!I96 -> 14 | E93: ='[1]Tabel 1 NJ DATA'!K96 -> 1 | G93: ='[1]Tabel 1 NJ DATA'!M96 -> 15
A94: ='[1]Tabel 1 NJ DATA'!G97 -> Cand. IT. | C94: ='[1]Tabel 1 NJ DATA'!I97 -> 1 | E94: ='[1]Tabel 1 NJ DATA'!K97 -> 0 | G94: ='[1]Tabel 1 NJ DATA'!M97 -> 1
A95: ='[1]Tabel 1 NJ DATA'!G98 -> Bac. Samf. | C95: ='[1]Tabel 1 NJ DATA'!I98 -> 0 | E95: ='[1]Tabel 1 NJ DATA'!K98 -> 0 | G95: ='[1]Tabel 1 NJ DATA'!M98 -> 0
A96: ='[1]Tabel 1 NJ DATA'!G99 -> Bac. Hum. | C96: ='[1]Tabel 1 NJ DATA'!I99 -> 1 | E96: ='[1]Tabel 1 NJ DATA'!K99 -> 4 | G96: ='[1]Tabel 1 NJ DATA'!M99 -> 5
A97: ='[1]Tabel 1 NJ DATA'!G100 -> Bac. Nat. | C97: ='[1]Tabel 1 NJ DATA'!I100 -> 1 | E97: ='[1]Tabel 1 NJ DATA'!K100 -> 0 | G97: ='[1]Tabel 1 NJ DATA'!M100 -> 1
A98: ='[1]Tabel 1 NJ DATA'!G101 -> Andre | C98: ='[1]Tabel 1 NJ DATA'!I101 -> 8 | E98: ='[1]Tabel 1 NJ DATA'!K101 -> 8 | G98: ='[1]Tabel 1 NJ DATA'!M101 -> 16
A100: ='[1]Tabel 1 NJ DATA'!G103 -> Total | C100: ='[1]Tabel 1 NJ DATA'!I103 -> 129 | E100: ='[1]Tabel 1 NJ DATA'!K103 -> 122 | G100: ='[1]Tabel 1 NJ DATA'!M103 -> 251
A102: ='[1]Tabel 1 NJ DATA'!G105 -> Ingeniører i alt | C102: ='[1]Tabel 1 NJ DATA'!I105 -> 32 | E102: ='[1]Tabel 1 NJ DATA'!K105 -> 18 | G102: ='[1]Tabel 1 NJ DATA'!M105 -> 50
A103: ='[1]Tabel 1 NJ DATA'!G106 -> Magistre i alt | C103: ='[1]Tabel 1 NJ DATA'!I106 -> 28 | E103: ='[1]Tabel 1 NJ DATA'!K106 -> 36 | G103: ='[1]Tabel 1 NJ DATA'!M106 -> 64
A104: ='[1]Tabel 1 NJ DATA'!G107 -> DJØF'ere i alt | C104: ='[1]Tabel 1 NJ DATA'!I107 -> 20 | E104: ='[1]Tabel 1 NJ DATA'!K107 -> 22 | G104: ='[1]Tabel 1 NJ DATA'!M107 -> 42
A111: ='[1]Tabel 1 NJ DATA'!G115 -> Thisted
C113: ='[1]Tabel 1 NJ DATA'!I117 -> Mænd | E113: ='[1]Tabel 1 NJ DATA'!K117 -> Kvinder | G113: ='[1]Tabel 1 NJ DATA'!M117 -> I alt
A115: ='[1]Tabel 1 NJ DATA'!G119 -> Civ. ing. | C115: ='[1]Tabel 1 NJ DATA'!I119 -> 37 | E115: ='[1]Tabel 1 NJ DATA'!K119 -> 11 | G115: ='[1]Tabel 1 NJ DATA'!M119 -> 48
A116: ='[1]Tabel 1 NJ DATA'!G120 -> Diplom ing. | C116: ='[1]Tabel 1 NJ DATA'!I120 -> 52 | E116: ='[1]Tabel 1 NJ DATA'!K120 -> 8 | G116: ='[1]Tabel 1 NJ DATA'!M120 -> 60
A117: ='[1]Tabel 1 NJ DATA'!G121 -> Cand. Scient. Tek. | C117: ='[1]Tabel 1 NJ DATA'!I121 -> 22 | E117: ='[1]Tabel 1 NJ DATA'!K121 -> 16 | G117: ='[1]Tabel 1 NJ DATA'!M121 -> 38
A118: ='[1]Tabel 1 NJ DATA'!G122 -> MA. Hum. | C118: ='[1]Tabel 1 NJ DATA'!I122 -> 42 | E118: ='[1]Tabel 1 NJ DATA'!K122 -> 86 | G118: ='[1]Tabel 1 NJ DATA'!M122 -> 128
A119: ='[1]Tabel 1 NJ DATA'!G123 -> MA. Nat. | C119: ='[1]Tabel 1 NJ DATA'!I123 -> 16 | E119: ='[1]Tabel 1 NJ DATA'!K123 -> 18 | G119: ='[1]Tabel 1 NJ DATA'!M123 -> 34
A120: ='[1]Tabel 1 NJ DATA'!G124 -> MA. Ph.d. | C120: ='[1]Tabel 1 NJ DATA'!I124 -> 1 | E120: ='[1]Tabel 1 NJ DATA'!K124 -> 1 | G120: ='[1]Tabel 1 NJ DATA'!M124 -> 2
A121: ='[1]Tabel 1 NJ DATA'!G125 -> MA. Samf. | C121: ='[1]Tabel 1 NJ DATA'!I125 -> 3 | E121: ='[1]Tabel 1 NJ DATA'!K125 -> 10 | G121: ='[1]Tabel 1 NJ DATA'!M125 -> 13
A122: ='[1]Tabel 1 NJ DATA'!G126 -> Øvrige Mag. | C122: ='[1]Tabel 1 NJ DATA'!I126 -> 5 | E122: ='[1]Tabel 1 NJ DATA'!K126 -> 8 | G122: ='[1]Tabel 1 NJ DATA'!M126 -> 13
A123: ='[1]Tabel 1 NJ DATA'!G127 -> Agronom | C123: ='[1]Tabel 1 NJ DATA'!I127 -> 9 | E123: ='[1]Tabel 1 NJ DATA'!K127 -> 1 | G123: ='[1]Tabel 1 NJ DATA'!M127 -> 10
A124: ='[1]Tabel 1 NJ DATA'!G128 -> Landsk. Arkt. | C124: ='[1]Tabel 1 NJ DATA'!I128 -> 0 | E124: ='[1]Tabel 1 NJ DATA'!K128 -> 1 | G124: ='[1]Tabel 1 NJ DATA'!M128 -> 1
A125: ='[1]Tabel 1 NJ DATA'!G129 -> Hortonom | C125: ='[1]Tabel 1 NJ DATA'!I129 -> 0 | E125: ='[1]Tabel 1 NJ DATA'!K129 -> 0 | G125: ='[1]Tabel 1 NJ DATA'!M129 -> 0
A126: ='[1]Tabel 1 NJ DATA'!G130 -> Forstkand. | C126: ='[1]Tabel 1 NJ DATA'!I130 -> 2 | E126: ='[1]Tabel 1 NJ DATA'!K130 -> 1 | G126: ='[1]Tabel 1 NJ DATA'!M130 -> 3
A127: ='[1]Tabel 1 NJ DATA'!G131 -> Jordbrugsakad. | C127: ='[1]Tabel 1 NJ DATA'!I131 -> 11 | E127: ='[1]Tabel 1 NJ DATA'!K131 -> 3 | G127: ='[1]Tabel 1 NJ DATA'!M131 -> 14
A128: ='[1]Tabel 1 NJ DATA'!G132 -> Mejeriing. | C128: ='[1]Tabel 1 NJ DATA'!I132 -> 2 | E128: ='[1]Tabel 1 NJ DATA'!K132 -> 3 | G128: ='[1]Tabel 1 NJ DATA'!M132 -> 5
A129: ='[1]Tabel 1 NJ DATA'!G133 -> Levn.m.kand. | C129: ='[1]Tabel 1 NJ DATA'!I133 -> 0 | E129: ='[1]Tabel 1 NJ DATA'!K133 -> 0 | G129: ='[1]Tabel 1 NJ DATA'!M133 -> 0
A130: ='[1]Tabel 1 NJ DATA'!G134 -> Dyrlæge | C130: ='[1]Tabel 1 NJ DATA'!I134 -> 2 | E130: ='[1]Tabel 1 NJ DATA'!K134 -> 15 | G130: ='[1]Tabel 1 NJ DATA'!M134 -> 17
A131: ='[1]Tabel 1 NJ DATA'!G135 -> Farmaceut | C131: ='[1]Tabel 1 NJ DATA'!I135 -> 2 | E131: ='[1]Tabel 1 NJ DATA'!K135 -> 5 | G131: ='[1]Tabel 1 NJ DATA'!M135 -> 7
A132: ='[1]Tabel 1 NJ DATA'!G136 -> Læge | C132: ='[1]Tabel 1 NJ DATA'!I136 -> 10 | E132: ='[1]Tabel 1 NJ DATA'!K136 -> 20 | G132: ='[1]Tabel 1 NJ DATA'!M136 -> 30
A133: ='[1]Tabel 1 NJ DATA'!G137 -> Tandlæge | C133: ='[1]Tabel 1 NJ DATA'!I137 -> 2 | E133: ='[1]Tabel 1 NJ DATA'!K137 -> 4 | G133: ='[1]Tabel 1 NJ DATA'!M137 -> 6
A134: ='[1]Tabel 1 NJ DATA'!G138 -> Arkitekt | C134: ='[1]Tabel 1 NJ DATA'!I138 -> 4 | E134: ='[1]Tabel 1 NJ DATA'!K138 -> 8 | G134: ='[1]Tabel 1 NJ DATA'!M138 -> 12
A135: ='[1]Tabel 1 NJ DATA'!G139 -> Landinspek. | C135: ='[1]Tabel 1 NJ DATA'!I139 -> 3 | E135: ='[1]Tabel 1 NJ DATA'!K139 -> 3 | G135: ='[1]Tabel 1 NJ DATA'!M139 -> 6
A136: ='[1]Tabel 1 NJ DATA'!G140 -> Bibliotekar | C136: ='[1]Tabel 1 NJ DATA'!I140 -> 3 | E136: ='[1]Tabel 1 NJ DATA'!K140 -> 9 | G136: ='[1]Tabel 1 NJ DATA'!M140 -> 12
A137: ='[1]Tabel 1 NJ DATA'!G141 -> Musikudd. | C137: ='[1]Tabel 1 NJ DATA'!I141 -> 2 | E137: ='[1]Tabel 1 NJ DATA'!K141 -> 2 | G137: ='[1]Tabel 1 NJ DATA'!M141 -> 4
A138: ='[1]Tabel 1 NJ DATA'!G142 -> Teolog | C138: ='[1]Tabel 1 NJ DATA'!I142 -> 3 | E138: ='[1]Tabel 1 NJ DATA'!K142 -> 11 | G138: ='[1]Tabel 1 NJ DATA'!M142 -> 14
A139: ='[1]Tabel 1 NJ DATA'!G143 -> Psykolog | C139: ='[1]Tabel 1 NJ DATA'!I143 -> 2 | E139: ='[1]Tabel 1 NJ DATA'!K143 -> 15 | G139: ='[1]Tabel 1 NJ DATA'!M143 -> 17
A140: ='[1]Tabel 1 NJ DATA'!G144 -> Jurist | C140: ='[1]Tabel 1 NJ DATA'!I144 -> 6 | E140: ='[1]Tabel 1 NJ DATA'!K144 -> 10 | G140: ='[1]Tabel 1 NJ DATA'!M144 -> 16
A141: ='[1]Tabel 1 NJ DATA'!G145 -> Økonom | C141: ='[1]Tabel 1 NJ DATA'!I145 -> 5 | E141: ='[1]Tabel 1 NJ DATA'!K145 -> 9 | G141: ='[1]Tabel 1 NJ DATA'!M145 -> 14
A142: ='[1]Tabel 1 NJ DATA'!G146 -> Samf. Adm. | C142: ='[1]Tabel 1 NJ DATA'!I146 -> 16 | E142: ='[1]Tabel 1 NJ DATA'!K146 -> 23 | G142: ='[1]Tabel 1 NJ DATA'!M146 -> 39
A143: ='[1]Tabel 1 NJ DATA'!G147 -> Cand. Merc. | C143: ='[1]Tabel 1 NJ DATA'!I147 -> 24 | E143: ='[1]Tabel 1 NJ DATA'!K147 -> 16 | G143: ='[1]Tabel 1 NJ DATA'!M147 -> 40
A144: ='[1]Tabel 1 NJ DATA'!G148 -> HA | C144: ='[1]Tabel 1 NJ DATA'!I148 -> 7 | E144: ='[1]Tabel 1 NJ DATA'!K148 -> 6 | G144: ='[1]Tabel 1 NJ DATA'!M148 -> 13
A145: ='[1]Tabel 1 NJ DATA'!G149 -> HD | C145: ='[1]Tabel 1 NJ DATA'!I149 -> 11 | E145: ='[1]Tabel 1 NJ DATA'!K149 -> 4 | G145: ='[1]Tabel 1 NJ DATA'!M149 -> 15
A146: ='[1]Tabel 1 NJ DATA'!G150 -> Komm. og Sprog | C146: ='[1]Tabel 1 NJ DATA'!I150 -> 1 | E146: ='[1]Tabel 1 NJ DATA'!K150 -> 9 | G146: ='[1]Tabel 1 NJ DATA'!M150 -> 10
A147: ='[1]Tabel 1 NJ DATA'!G151 -> Bygningskonst. | C147: ='[1]Tabel 1 NJ DATA'!I151 -> 35 | E147: ='[1]Tabel 1 NJ DATA'!K151 -> 4 | G147: ='[1]Tabel 1 NJ DATA'!M151 -> 39
A148: ='[1]Tabel 1 NJ DATA'!G152 -> Cand. IT. | C148: ='[1]Tabel 1 NJ DATA'!I152 -> 7 | E148: ='[1]Tabel 1 NJ DATA'!K152 -> 3 | G148: ='[1]Tabel 1 NJ DATA'!M152 -> 10
A149: ='[1]Tabel 1 NJ DATA'!G153 -> Bac. Samf. | C149: ='[1]Tabel 1 NJ DATA'!I153 -> 2 | E149: ='[1]Tabel 1 NJ DATA'!K153 -> 1 | G149: ='[1]Tabel 1 NJ DATA'!M153 -> 3
A150: ='[1]Tabel 1 NJ DATA'!G154 -> Bac. Hum. | C150: ='[1]Tabel 1 NJ DATA'!I154 -> 5 | E150: ='[1]Tabel 1 NJ DATA'!K154 -> 7 | G150: ='[1]Tabel 1 NJ DATA'!M154 -> 12
A151: ='[1]Tabel 1 NJ DATA'!G155 -> Bac. Nat. | C151: ='[1]Tabel 1 NJ DATA'!I155 -> 2 | E151: ='[1]Tabel 1 NJ DATA'!K155 -> 3 | G151: ='[1]Tabel 1 NJ DATA'!M155 -> 5
A152: ='[1]Tabel 1 NJ DATA'!G156 -> Andre | C152: ='[1]Tabel 1 NJ DATA'!I156 -> 19 | E152: ='[1]Tabel 1 NJ DATA'!K156 -> 21 | G152: ='[1]Tabel 1 NJ DATA'!M156 -> 40
A154: ='[1]Tabel 1 NJ DATA'!G158 -> Total | C154: ='[1]Tabel 1 NJ DATA'!I158 -> 364 | E154: ='[1]Tabel 1 NJ DATA'!K158 -> 372 | G154: ='[1]Tabel 1 NJ DATA'!M158 -> 736
A156: ='[1]Tabel 1 NJ DATA'!G160 -> Ingeniører i alt | C156: ='[1]Tabel 1 NJ DATA'!I160 -> 89 | E156: ='[1]Tabel 1 NJ DATA'!K160 -> 19 | G156: ='[1]Tabel 1 NJ DATA'!M160 -> 108
A157: ='[1]Tabel 1 NJ DATA'!G161 -> Magistre i alt | C157: ='[1]Tabel 1 NJ DATA'!I161 -> 67 | E157: ='[1]Tabel 1 NJ DATA'!K161 -> 123 | G157: ='[1]Tabel 1 NJ DATA'!M161 -> 190
A158: ='[1]Tabel 1 NJ DATA'!G162 -> DJØF'ere i alt | C158: ='[1]Tabel 1 NJ DATA'!I162 -> 58 | E158: ='[1]Tabel 1 NJ DATA'!K162 -> 64 | G158: ='[1]Tabel 1 NJ DATA'!M162 -> 122
A165: ='[1]Tabel 1 NJ DATA'!G170 -> Brønderslev
C167: ='[1]Tabel 1 NJ DATA'!I172 -> Mænd | E167: ='[1]Tabel 1 NJ DATA'!K172 -> Kvinder | G167: ='[1]Tabel 1 NJ DATA'!M172 -> I alt
A169: ='[1]Tabel 1 NJ DATA'!G174 -> Civ. ing. | C169: ='[1]Tabel 1 NJ DATA'!I174 -> 112 | E169: ='[1]Tabel 1 NJ DATA'!K174 -> 40 | G169: ='[1]Tabel 1 NJ DATA'!M174 -> 152
A170: ='[1]Tabel 1 NJ DATA'!G175 -> Diplom ing. | C170: ='[1]Tabel 1 NJ DATA'!I175 -> 65 | E170: ='[1]Tabel 1 NJ DATA'!K175 -> 10 | G170: ='[1]Tabel 1 NJ DATA'!M175 -> 75
A171: ='[1]Tabel 1 NJ DATA'!G176 -> Cand. Scient. Tek. | C171: ='[1]Tabel 1 NJ DATA'!I176 -> 35 | E171: ='[1]Tabel 1 NJ DATA'!K176 -> 22 | G171: ='[1]Tabel 1 NJ DATA'!M176 -> 57
A172: ='[1]Tabel 1 NJ DATA'!G177 -> MA. Hum. | C172: ='[1]Tabel 1 NJ DATA'!I177 -> 41 | E172: ='[1]Tabel 1 NJ DATA'!K177 -> 76 | G172: ='[1]Tabel 1 NJ DATA'!M177 -> 117
A173: ='[1]Tabel 1 NJ DATA'!G178 -> MA. Nat. | C173: ='[1]Tabel 1 NJ DATA'!I178 -> 18 | E173: ='[1]Tabel 1 NJ DATA'!K178 -> 13 | G173: ='[1]Tabel 1 NJ DATA'!M178 -> 31
A174: ='[1]Tabel 1 NJ DATA'!G179 -> MA. Ph.d. | C174: ='[1]Tabel 1 NJ DATA'!I179 -> 1 | E174: ='[1]Tabel 1 NJ DATA'!K179 -> 0 | G174: ='[1]Tabel 1 NJ DATA'!M179 -> 1
A175: ='[1]Tabel 1 NJ DATA'!G180 -> MA. Samf. | C175: ='[1]Tabel 1 NJ DATA'!I180 -> 3 | E175: ='[1]Tabel 1 NJ DATA'!K180 -> 6 | G175: ='[1]Tabel 1 NJ DATA'!M180 -> 9
A176: ='[1]Tabel 1 NJ DATA'!G181 -> Øvrige Mag. | C176: ='[1]Tabel 1 NJ DATA'!I181 -> 3 | E176: ='[1]Tabel 1 NJ DATA'!K181 -> 9 | G176: ='[1]Tabel 1 NJ DATA'!M181 -> 12
A177: ='[1]Tabel 1 NJ DATA'!G182 -> Agronom | C177: ='[1]Tabel 1 NJ DATA'!I182 -> 8 | E177: ='[1]Tabel 1 NJ DATA'!K182 -> 2 | G177: ='[1]Tabel 1 NJ DATA'!M182 -> 10
A178: ='[1]Tabel 1 NJ DATA'!G183 -> Landsk. Arkt. | C178: ='[1]Tabel 1 NJ DATA'!I183 -> 0 | E178: ='[1]Tabel 1 NJ DATA'!K183 -> 1 | G178: ='[1]Tabel 1 NJ DATA'!M183 -> 1
A179: ='[1]Tabel 1 NJ DATA'!G184 -> Hortonom | C179: ='[1]Tabel 1 NJ DATA'!I184 -> 0 | E179: ='[1]Tabel 1 NJ DATA'!K184 -> 0 | G179: ='[1]Tabel 1 NJ DATA'!M184 -> 0
A180: ='[1]Tabel 1 NJ DATA'!G185 -> Forstkand. | C180: ='[1]Tabel 1 NJ DATA'!I185 -> 0 | E180: ='[1]Tabel 1 NJ DATA'!K185 -> 1 | G180: ='[1]Tabel 1 NJ DATA'!M185 -> 1
A181: ='[1]Tabel 1 NJ DATA'!G186 -> Jordbrugsakad. | C181: ='[1]Tabel 1 NJ DATA'!I186 -> 8 | E181: ='[1]Tabel 1 NJ DATA'!K186 -> 4 | G181: ='[1]Tabel 1 NJ DATA'!M186 -> 12
A182: ='[1]Tabel 1 NJ DATA'!G187 -> Mejeriing. | C182: ='[1]Tabel 1 NJ DATA'!I187 -> 1 | E182: ='[1]Tabel 1 NJ DATA'!K187 -> 0 | G182: ='[1]Tabel 1 NJ DATA'!M187 -> 1
A183: ='[1]Tabel 1 NJ DATA'!G188 -> Levn.m.kand. | C183: ='[1]Tabel 1 NJ DATA'!I188 -> 0 | E183: ='[1]Tabel 1 NJ DATA'!K188 -> 0 | G183: ='[1]Tabel 1 NJ DATA'!M188 -> 0
A184: ='[1]Tabel 1 NJ DATA'!G189 -> Dyrlæge | C184: ='[1]Tabel 1 NJ DATA'!I189 -> 4 | E184: ='[1]Tabel 1 NJ DATA'!K189 -> 13 | G184: ='[1]Tabel 1 NJ DATA'!M189 -> 17
A185: ='[1]Tabel 1 NJ DATA'!G190 -> Farmaceut | C185: ='[1]Tabel 1 NJ DATA'!I190 -> 1 | E185: ='[1]Tabel 1 NJ DATA'!K190 -> 5 | G185: ='[1]Tabel 1 NJ DATA'!M190 -> 6
A186: ='[1]Tabel 1 NJ DATA'!G191 -> Læge | C186: ='[1]Tabel 1 NJ DATA'!I191 -> 8 | E186: ='[1]Tabel 1 NJ DATA'!K191 -> 14 | G186: ='[1]Tabel 1 NJ DATA'!M191 -> 22
A187: ='[1]Tabel 1 NJ DATA'!G192 -> Tandlæge | C187: ='[1]Tabel 1 NJ DATA'!I192 -> 0 | E187: ='[1]Tabel 1 NJ DATA'!K192 -> 5 | G187: ='[1]Tabel 1 NJ DATA'!M192 -> 5
A188: ='[1]Tabel 1 NJ DATA'!G193 -> Arkitekt | C188: ='[1]Tabel 1 NJ DATA'!I193 -> 1 | E188: ='[1]Tabel 1 NJ DATA'!K193 -> 0 | G188: ='[1]Tabel 1 NJ DATA'!M193 -> 1
A189: ='[1]Tabel 1 NJ DATA'!G194 -> Landinspek. | C189: ='[1]Tabel 1 NJ DATA'!I194 -> 8 | E189: ='[1]Tabel 1 NJ DATA'!K194 -> 3 | G189: ='[1]Tabel 1 NJ DATA'!M194 -> 11
A190: ='[1]Tabel 1 NJ DATA'!G195 -> Bibliotekar | C190: ='[1]Tabel 1 NJ DATA'!I195 -> 4 | E190: ='[1]Tabel 1 NJ DATA'!K195 -> 11 | G190: ='[1]Tabel 1 NJ DATA'!M195 -> 15
A191: ='[1]Tabel 1 NJ DATA'!G196 -> Musikudd. | C191: ='[1]Tabel 1 NJ DATA'!I196 -> 4 | E191: ='[1]Tabel 1 NJ DATA'!K196 -> 2 | G191: ='[1]Tabel 1 NJ DATA'!M196 -> 6
A192: ='[1]Tabel 1 NJ DATA'!G197 -> Teolog | C192: ='[1]Tabel 1 NJ DATA'!I197 -> 4 | E192: ='[1]Tabel 1 NJ DATA'!K197 -> 4 | G192: ='[1]Tabel 1 NJ DATA'!M197 -> 8
A193: ='[1]Tabel 1 NJ DATA'!G198 -> Psykolog | C193: ='[1]Tabel 1 NJ DATA'!I198 -> 2 | E193: ='[1]Tabel 1 NJ DATA'!K198 -> 24 | G193: ='[1]Tabel 1 NJ DATA'!M198 -> 26
A194: ='[1]Tabel 1 NJ DATA'!G199 -> Jurist | C194: ='[1]Tabel 1 NJ DATA'!I199 -> 6 | E194: ='[1]Tabel 1 NJ DATA'!K199 -> 25 | G194: ='[1]Tabel 1 NJ DATA'!M199 -> 31
A195: ='[1]Tabel 1 NJ DATA'!G200 -> Økonom | C195: ='[1]Tabel 1 NJ DATA'!I200 -> 7 | E195: ='[1]Tabel 1 NJ DATA'!K200 -> 8 | G195: ='[1]Tabel 1 NJ DATA'!M200 -> 15
A196: ='[1]Tabel 1 NJ DATA'!G201 -> Samf. Adm. | C196: ='[1]Tabel 1 NJ DATA'!I201 -> 24 | E196: ='[1]Tabel 1 NJ DATA'!K201 -> 20 | G196: ='[1]Tabel 1 NJ DATA'!M201 -> 44
A197: ='[1]Tabel 1 NJ DATA'!G202 -> Cand. Merc. | C197: ='[1]Tabel 1 NJ DATA'!I202 -> 48 | E197: ='[1]Tabel 1 NJ DATA'!K202 -> 50 | G197: ='[1]Tabel 1 NJ DATA'!M202 -> 98
A198: ='[1]Tabel 1 NJ DATA'!G203 -> HA | C198: ='[1]Tabel 1 NJ DATA'!I203 -> 11 | E198: ='[1]Tabel 1 NJ DATA'!K203 -> 5 | G198: ='[1]Tabel 1 NJ DATA'!M203 -> 16
A199: ='[1]Tabel 1 NJ DATA'!G204 -> HD | C199: ='[1]Tabel 1 NJ DATA'!I204 -> 12 | E199: ='[1]Tabel 1 NJ DATA'!K204 -> 7 | G199: ='[1]Tabel 1 NJ DATA'!M204 -> 19
A200: ='[1]Tabel 1 NJ DATA'!G205 -> Komm. og Sprog | C200: ='[1]Tabel 1 NJ DATA'!I205 -> 3 | E200: ='[1]Tabel 1 NJ DATA'!K205 -> 18 | G200: ='[1]Tabel 1 NJ DATA'!M205 -> 21
A201: ='[1]Tabel 1 NJ DATA'!G206 -> Bygningskonst. | C201: ='[1]Tabel 1 NJ DATA'!I206 -> 44 | E201: ='[1]Tabel 1 NJ DATA'!K206 -> 7 | G201: ='[1]Tabel 1 NJ DATA'!M206 -> 51
A202: ='[1]Tabel 1 NJ DATA'!G207 -> Cand. IT. | C202: ='[1]Tabel 1 NJ DATA'!I207 -> 3 | E202: ='[1]Tabel 1 NJ DATA'!K207 -> 7 | G202: ='[1]Tabel 1 NJ DATA'!M207 -> 10
A203: ='[1]Tabel 1 NJ DATA'!G208 -> Bac. Samf. | C203: ='[1]Tabel 1 NJ DATA'!I208 -> 0 | E203: ='[1]Tabel 1 NJ DATA'!K208 -> 1 | G203: ='[1]Tabel 1 NJ DATA'!M208 -> 1
A204: ='[1]Tabel 1 NJ DATA'!G209 -> Bac. Hum. | C204: ='[1]Tabel 1 NJ DATA'!I209 -> 7 | E204: ='[1]Tabel 1 NJ DATA'!K209 -> 9 | G204: ='[1]Tabel 1 NJ DATA'!M209 -> 16
A205: ='[1]Tabel 1 NJ DATA'!G210 -> Bac. Nat. | C205: ='[1]Tabel 1 NJ DATA'!I210 -> 3 | E205: ='[1]Tabel 1 NJ DATA'!K210 -> 0 | G205: ='[1]Tabel 1 NJ DATA'!M210 -> 3
A206: ='[1]Tabel 1 NJ DATA'!G211 -> Andre | C206: ='[1]Tabel 1 NJ DATA'!I211 -> 26 | E206: ='[1]Tabel 1 NJ DATA'!K211 -> 28 | G206: ='[1]Tabel 1 NJ DATA'!M211 -> 54
A208: ='[1]Tabel 1 NJ DATA'!G213 -> Total | C208: ='[1]Tabel 1 NJ DATA'!I213 -> 517 | E208: ='[1]Tabel 1 NJ DATA'!K213 -> 446 | G208: ='[1]Tabel 1 NJ DATA'!M213 -> 963
A210: ='[1]Tabel 1 NJ DATA'!G215 -> Ingeniører i alt | C210: ='[1]Tabel 1 NJ DATA'!I215 -> 177 | E210: ='[1]Tabel 1 NJ DATA'!K215 -> 50 | G210: ='[1]Tabel 1 NJ DATA'!M215 -> 227
A211: ='[1]Tabel 1 NJ DATA'!G216 -> Magistre i alt | C211: ='[1]Tabel 1 NJ DATA'!I216 -> 66 | E211: ='[1]Tabel 1 NJ DATA'!K216 -> 104 | G211: ='[1]Tabel 1 NJ DATA'!M216 -> 170
A212: ='[1]Tabel 1 NJ DATA'!G217 -> DJØF'ere i alt | C212: ='[1]Tabel 1 NJ DATA'!I217 -> 96 | E212: ='[1]Tabel 1 NJ DATA'!K217 -> 108 | G212: ='[1]Tabel 1 NJ DATA'!M217 -> 204
A219: ='[1]Tabel 1 NJ DATA'!G225 -> Frederikshavn
C221: ='[1]Tabel 1 NJ DATA'!I227 -> Mænd | E221: ='[1]Tabel 1 NJ DATA'!K227 -> Kvinder | G221: ='[1]Tabel 1 NJ DATA'!M227 -> I alt
A223: ='[1]Tabel 1 NJ DATA'!G229 -> Civ. ing. | C223: ='[1]Tabel 1 NJ DATA'!I229 -> 64 | E223: ='[1]Tabel 1 NJ DATA'!K229 -> 23 | G223: ='[1]Tabel 1 NJ DATA'!M229 -> 87
A224: ='[1]Tabel 1 NJ DATA'!G230 -> Diplom ing. | C224: ='[1]Tabel 1 NJ DATA'!I230 -> 64 | E224: ='[1]Tabel 1 NJ DATA'!K230 -> 14 | G224: ='[1]Tabel 1 NJ DATA'!M230 -> 78
A225: ='[1]Tabel 1 NJ DATA'!G231 -> Cand. Scient. Tek. | C225: ='[1]Tabel 1 NJ DATA'!I231 -> 12 | E225: ='[1]Tabel 1 NJ DATA'!K231 -> 13 | G225: ='[1]Tabel 1 NJ DATA'!M231 -> 25
A226: ='[1]Tabel 1 NJ DATA'!G232 -> MA. Hum. | C226: ='[1]Tabel 1 NJ DATA'!I232 -> 29 | E226: ='[1]Tabel 1 NJ DATA'!K232 -> 91 | G226: ='[1]Tabel 1 NJ DATA'!M232 -> 120
A227: ='[1]Tabel 1 NJ DATA'!G233 -> MA. Nat. | C227: ='[1]Tabel 1 NJ DATA'!I233 -> 12 | E227: ='[1]Tabel 1 NJ DATA'!K233 -> 4 | G227: ='[1]Tabel 1 NJ DATA'!M233 -> 16
A228: ='[1]Tabel 1 NJ DATA'!G234 -> MA. Ph.d. | C228: ='[1]Tabel 1 NJ DATA'!I234 -> 3 | E228: ='[1]Tabel 1 NJ DATA'!K234 -> 1 | G228: ='[1]Tabel 1 NJ DATA'!M234 -> 4
A229: ='[1]Tabel 1 NJ DATA'!G235 -> MA. Samf. | C229: ='[1]Tabel 1 NJ DATA'!I235 -> 5 | E229: ='[1]Tabel 1 NJ DATA'!K235 -> 4 | G229: ='[1]Tabel 1 NJ DATA'!M235 -> 9
A230: ='[1]Tabel 1 NJ DATA'!G236 -> Øvrige Mag. | C230: ='[1]Tabel 1 NJ DATA'!I236 -> 3 | E230: ='[1]Tabel 1 NJ DATA'!K236 -> 4 | G230: ='[1]Tabel 1 NJ DATA'!M236 -> 7
A231: ='[1]Tabel 1 NJ DATA'!G237 -> Agronom | C231: ='[1]Tabel 1 NJ DATA'!I237 -> 3 | E231: ='[1]Tabel 1 NJ DATA'!K237 -> 4 | G231: ='[1]Tabel 1 NJ DATA'!M237 -> 7
A232: ='[1]Tabel 1 NJ DATA'!G238 -> Landsk. Arkt. | C232: ='[1]Tabel 1 NJ DATA'!I238 -> 1 | E232: ='[1]Tabel 1 NJ DATA'!K238 -> 0 | G232: ='[1]Tabel 1 NJ DATA'!M238 -> 1
A233: ='[1]Tabel 1 NJ DATA'!G239 -> Hortonom | C233: ='[1]Tabel 1 NJ DATA'!I239 -> 0 | E233: ='[1]Tabel 1 NJ DATA'!K239 -> 0 | G233: ='[1]Tabel 1 NJ DATA'!M239 -> 0
A234: ='[1]Tabel 1 NJ DATA'!G240 -> Forstkand. | C234: ='[1]Tabel 1 NJ DATA'!I240 -> 1 | E234: ='[1]Tabel 1 NJ DATA'!K240 -> 2 | G234: ='[1]Tabel 1 NJ DATA'!M240 -> 3
A235: ='[1]Tabel 1 NJ DATA'!G241 -> Jordbrugsakad. | C235: ='[1]Tabel 1 NJ DATA'!I241 -> 5 | E235: ='[1]Tabel 1 NJ DATA'!K241 -> 6 | G235: ='[1]Tabel 1 NJ DATA'!M241 -> 11
A236: ='[1]Tabel 1 NJ DATA'!G242 -> Mejeriing. | C236: ='[1]Tabel 1 NJ DATA'!I242 -> 0 | E236: ='[1]Tabel 1 NJ DATA'!K242 -> 1 | G236: ='[1]Tabel 1 NJ DATA'!M242 -> 1
A237: ='[1]Tabel 1 NJ DATA'!G243 -> Levn.m.kand. | C237: ='[1]Tabel 1 NJ DATA'!I243 -> 0 | E237: ='[1]Tabel 1 NJ DATA'!K243 -> 0 | G237: ='[1]Tabel 1 NJ DATA'!M243 -> 0
A238: ='[1]Tabel 1 NJ DATA'!G244 -> Dyrlæge | C238: ='[1]Tabel 1 NJ DATA'!I244 -> 4 | E238: ='[1]Tabel 1 NJ DATA'!K244 -> 16 | G238: ='[1]Tabel 1 NJ DATA'!M244 -> 20
A239: ='[1]Tabel 1 NJ DATA'!G245 -> Farmaceut | C239: ='[1]Tabel 1 NJ DATA'!I245 -> 2 | E239: ='[1]Tabel 1 NJ DATA'!K245 -> 6 | G239: ='[1]Tabel 1 NJ DATA'!M245 -> 8
A240: ='[1]Tabel 1 NJ DATA'!G246 -> Læge | C240: ='[1]Tabel 1 NJ DATA'!I246 -> 2 | E240: ='[1]Tabel 1 NJ DATA'!K246 -> 14 | G240: ='[1]Tabel 1 NJ DATA'!M246 -> 16
A241: ='[1]Tabel 1 NJ DATA'!G247 -> Tandlæge | C241: ='[1]Tabel 1 NJ DATA'!I247 -> 2 | E241: ='[1]Tabel 1 NJ DATA'!K247 -> 10 | G241: ='[1]Tabel 1 NJ DATA'!M247 -> 12
A242: ='[1]Tabel 1 NJ DATA'!G248 -> Arkitekt | C242: ='[1]Tabel 1 NJ DATA'!I248 -> 2 | E242: ='[1]Tabel 1 NJ DATA'!K248 -> 7 | G242: ='[1]Tabel 1 NJ DATA'!M248 -> 9
A243: ='[1]Tabel 1 NJ DATA'!G249 -> Landinspek. | C243: ='[1]Tabel 1 NJ DATA'!I249 -> 7 | E243: ='[1]Tabel 1 NJ DATA'!K249 -> 5 | G243: ='[1]Tabel 1 NJ DATA'!M249 -> 12
... 330 more rows

Sheet Tabel 2 NJ
A1: ='[1]Tabel 2 NJ DATA'!I1 -> Tabel 2. Antal bruttoledighedsberørte og gennemsnitlig antal ledige brutto
A3: ='[1]Tabel 2 NJ DATA'!I3 -> Nordjylland
C5: ='[1]Tabel 2 NJ DATA'!K5 -> Mænd | F5: ='[1]Tabel 2 NJ DATA'!N5 -> Kvinder | I5: ='[1]Tabel 2 NJ DATA'!Q5 -> I alt
C6: ='[1]Tabel 2 NJ DATA'!K6 -> Ledigheds- berørte | D6: ='[1]Tabel 2 NJ DATA'!L6 -> Gns. brutto- ledighed | F6: ='[1]Tabel 2 NJ DATA'!N6 -> Ledigheds- berørte | G6: ='[1]Tabel 2 NJ DATA'!O6 -> Gns. brutto- ledighed | I6: ='[1]Tabel 2 NJ DATA'!Q6 -> Ledigheds- berørte | J6: ='[1]Tabel 2 NJ DATA'!R6 -> Gns. brutto- ledighed
A9: ='[1]Tabel 2 NJ DATA'!I9 -> Civ. ing. | C9: ='[1]Tabel 2 NJ DATA'!K9 -> 88 | D9: ='[1]Tabel 2 NJ DATA'!L9 -> 80.385455 | F9: ='[1]Tabel 2 NJ DATA'!N9 -> 51 | G9: ='[1]Tabel 2 NJ DATA'!O9 -> 45.3421069 | I9: ='[1]Tabel 2 NJ DATA'!Q9 -> 139 | J9: ='[1]Tabel 2 NJ DATA'!R9 -> 125.7275619
A10: ='[1]Tabel 2 NJ DATA'!I10 -> Diplom ing. | C10: ='[1]Tabel 2 NJ DATA'!K10 -> 54 | D10: ='[1]Tabel 2 NJ DATA'!L10 -> 50.86321961 | F10: ='[1]Tabel 2 NJ DATA'!N10 -> 10 | G10: ='[1]Tabel 2 NJ DATA'!O10 -> 9.423688642 | I10: ='[1]Tabel 2 NJ DATA'!Q10 -> 64 | J10: ='[1]Tabel 2 NJ DATA'!R10 -> 60.28690825
A11: ='[1]Tabel 2 NJ DATA'!I11 -> Cand. Scient. Tek. | C11: ='[1]Tabel 2 NJ DATA'!K11 -> 109 | D11: ='[1]Tabel 2 NJ DATA'!L11 -> 98.94592403 | F11: ='[1]Tabel 2 NJ DATA'!N11 -> 69 | G11: ='[1]Tabel 2 NJ DATA'!O11 -> 61.69899582 | I11: ='[1]Tabel 2 NJ DATA'!Q11 -> 178 | J11: ='[1]Tabel 2 NJ DATA'!R11 -> 160.6449199
A12: ='[1]Tabel 2 NJ DATA'!I12 -> MA. Hum. | C12: ='[1]Tabel 2 NJ DATA'!K12 -> 136 | D12: ='[1]Tabel 2 NJ DATA'!L12 -> 123.2863469 | F12: ='[1]Tabel 2 NJ DATA'!N12 -> 264 | G12: ='[1]Tabel 2 NJ DATA'!O12 -> 232.8098297 | I12: ='[1]Tabel 2 NJ DATA'!Q12 -> 400 | J12: ='[1]Tabel 2 NJ DATA'!R12 -> 356.0961766
A13: ='[1]Tabel 2 NJ DATA'!I13 -> MA. Nat. | C13: ='[1]Tabel 2 NJ DATA'!K13 -> 14 | D13: ='[1]Tabel 2 NJ DATA'!L13 -> 11.64223788 | F13: ='[1]Tabel 2 NJ DATA'!N13 -> 14 | G13: ='[1]Tabel 2 NJ DATA'!O13 -> 12.38320963 | I13: ='[1]Tabel 2 NJ DATA'!Q13 -> 28 | J13: ='[1]Tabel 2 NJ DATA'!R13 -> 24.02544751
A14: ='[1]Tabel 2 NJ DATA'!I14 -> MA. Ph.d. | C14: ='[1]Tabel 2 NJ DATA'!K14 -> 1 | D14: ='[1]Tabel 2 NJ DATA'!L14 -> 0.8376473523 | F14: ='[1]Tabel 2 NJ DATA'!N14 -> 3 | G14: ='[1]Tabel 2 NJ DATA'!O14 -> 2.999438658 | I14: ='[1]Tabel 2 NJ DATA'!Q14 -> 4 | J14: ='[1]Tabel 2 NJ DATA'!R14 -> 3.83708601
A15: ='[1]Tabel 2 NJ DATA'!I15 -> MA. Samf. | C15: ='[1]Tabel 2 NJ DATA'!K15 -> 15 | D15: ='[1]Tabel 2 NJ DATA'!L15 -> 14.03480322 | F15: ='[1]Tabel 2 NJ DATA'!N15 -> 52 | G15: ='[1]Tabel 2 NJ DATA'!O15 -> 45.40697312 | I15: ='[1]Tabel 2 NJ DATA'!Q15 -> 67 | J15: ='[1]Tabel 2 NJ DATA'!R15 -> 59.44177634
A16: ='[1]Tabel 2 NJ DATA'!I16 -> Øvrige Mag. | C16: ='[1]Tabel 2 NJ DATA'!K16 -> 5 | D16: ='[1]Tabel 2 NJ DATA'!L16 -> 4.855610304 | F16: ='[1]Tabel 2 NJ DATA'!N16 -> 12 | G16: ='[1]Tabel 2 NJ DATA'!O16 -> 10.08794362 | I16: ='[1]Tabel 2 NJ DATA'!Q16 -> 17 | J16: ='[1]Tabel 2 NJ DATA'!R16 -> 14.94355392
A17: ='[1]Tabel 2 NJ DATA'!I17 -> Agronom | C17: ='[1]Tabel 2 NJ DATA'!K17 -> 3 | D17: ='[1]Tabel 2 NJ DATA'!L17 -> 2.268446329 | F17: ='[1]Tabel 2 NJ DATA'!N17 -> 2 | G17: ='[1]Tabel 2 NJ DATA'!O17 -> 1.999625772 | I17: ='[1]Tabel 2 NJ DATA'!Q17 -> 5 | J17: ='[1]Tabel 2 NJ DATA'!R17 -> 4.268072101
A18: ='[1]Tabel 2 NJ DATA'!I18 -> Landsk. Arkt. | C18: ='[1]Tabel 2 NJ DATA'!K18 -> 0 | D18: ='[1]Tabel 2 NJ DATA'!L18 -> 0 | F18: ='[1]Tabel 2 NJ DATA'!N18 -> 2 | G18: ='[1]Tabel 2 NJ DATA'!O18 -> 1.953470966 | I18: ='[1]Tabel 2 NJ DATA'!Q18 -> 2 | J18: ='[1]Tabel 2 NJ DATA'!R18 -> 1.953470966
A19: ='[1]Tabel 2 NJ DATA'!I19 -> Hortonom | C19: ='[1]Tabel 2 NJ DATA'!K19 -> 0 | D19: ='[1]Tabel 2 NJ DATA'!L19 -> 0 | F19: ='[1]Tabel 2 NJ DATA'!N19 -> 0 | G19: ='[1]Tabel 2 NJ DATA'!O19 -> 0 | I19: ='[1]Tabel 2 NJ DATA'!Q19 -> 0 | J19: ='[1]Tabel 2 NJ DATA'!R19 -> 0
A20: ='[1]Tabel 2 NJ DATA'!I20 -> Forstkand. | C20: ='[1]Tabel 2 NJ DATA'!K20 -> 0 | D20: ='[1]Tabel 2 NJ DATA'!L20 -> 0 | F20: ='[1]Tabel 2 NJ DATA'!N20 -> 0 | G20: ='[1]Tabel 2 NJ DATA'!O20 -> 0 | I20: ='[1]Tabel 2 NJ DATA'!Q20 -> 0 | J20: ='[1]Tabel 2 NJ DATA'!R20 -> 0
A21: ='[1]Tabel 2 NJ DATA'!I21 -> Jordbrugsakad. | C21: ='[1]Tabel 2 NJ DATA'!K21 -> 3 | D21: ='[1]Tabel 2 NJ DATA'!L21 -> 2.268446329 | F21: ='[1]Tabel 2 NJ DATA'!N21 -> 4 | G21: ='[1]Tabel 2 NJ DATA'!O21 -> 3.953096738 | I21: ='[1]Tabel 2 NJ DATA'!Q21 -> 7 | J21: ='[1]Tabel 2 NJ DATA'!R21 -> 6.221543067
A22: ='[1]Tabel 2 NJ DATA'!I22 -> Mejeriing. | C22: ='[1]Tabel 2 NJ DATA'!K22 -> 0 | D22: ='[1]Tabel 2 NJ DATA'!L22 -> 0 | F22: ='[1]Tabel 2 NJ DATA'!N22 -> 0 | G22: ='[1]Tabel 2 NJ DATA'!O22 -> 0 | I22: ='[1]Tabel 2 NJ DATA'!Q22 -> 0 | J22: ='[1]Tabel 2 NJ DATA'!R22 -> 0
A23: ='[1]Tabel 2 NJ DATA'!I23 -> Levn.m.kand. | C23: ='[1]Tabel 2 NJ DATA'!K23 -> 0 | D23: ='[1]Tabel 2 NJ DATA'!L23 -> 0 | F23: ='[1]Tabel 2 NJ DATA'!N23 -> 0 | G23: ='[1]Tabel 2 NJ DATA'!O23 -> 0 | I23: ='[1]Tabel 2 NJ DATA'!Q23 -> 0 | J23: ='[1]Tabel 2 NJ DATA'!R23 -> 0
A24: ='[1]Tabel 2 NJ DATA'!I24 -> Dyrlæge | C24: ='[1]Tabel 2 NJ DATA'!K24 -> 0 | D24: ='[1]Tabel 2 NJ DATA'!L24 -> 0 | F24: ='[1]Tabel 2 NJ DATA'!N24 -> 2 | G24: ='[1]Tabel 2 NJ DATA'!O24 -> 1.846192229 | I24: ='[1]Tabel 2 NJ DATA'!Q24 -> 2 | J24: ='[1]Tabel 2 NJ DATA'!R24 -> 1.846192229
A25: ='[1]Tabel 2 NJ DATA'!I25 -> Farmaceut | C25: ='[1]Tabel 2 NJ DATA'!K25 -> 0 | D25: ='[1]Tabel 2 NJ DATA'!L25 -> 0 | F25: ='[1]Tabel 2 NJ DATA'!N25 -> 1 | G25: ='[1]Tabel 2 NJ DATA'!O25 -> 0.9998128859 | I25: ='[1]Tabel 2 NJ DATA'!Q25 -> 1 | J25: ='[1]Tabel 2 NJ DATA'!R25 -> 0.9998128859
A26: ='[1]Tabel 2 NJ DATA'!I26 -> Læge | C26: ='[1]Tabel 2 NJ DATA'!K26 -> 5 | D26: ='[1]Tabel 2 NJ DATA'!L26 -> 4.168277927 | F26: ='[1]Tabel 2 NJ DATA'!N26 -> 6 | G26: ='[1]Tabel 2 NJ DATA'!O26 -> 4.858728872 | I26: ='[1]Tabel 2 NJ DATA'!Q26 -> 11 | J26: ='[1]Tabel 2 NJ DATA'!R26 -> 9.027006798
A27: ='[1]Tabel 2 NJ DATA'!I27 -> Tandlæge | C27: ='[1]Tabel 2 NJ DATA'!K27 -> 1 | D27: ='[1]Tabel 2 NJ DATA'!L27 -> 0.9910808957 | F27: ='[1]Tabel 2 NJ DATA'!N27 -> 0 | G27: ='[1]Tabel 2 NJ DATA'!O27 -> 0 | I27: ='[1]Tabel 2 NJ DATA'!Q27 -> 1 | J27: ='[1]Tabel 2 NJ DATA'!R27 -> 0.9910808957
A28: ='[1]Tabel 2 NJ DATA'!I28 -> Arkitekt | C28: ='[1]Tabel 2 NJ DATA'!K28 -> 3 | D28: ='[1]Tabel 2 NJ DATA'!L28 -> 2.974490114 | F28: ='[1]Tabel 2 NJ DATA'!N28 -> 8 | G28: ='[1]Tabel 2 NJ DATA'!O28 -> 7.561903574 | I28: ='[1]Tabel 2 NJ DATA'!Q28 -> 11 | J28: ='[1]Tabel 2 NJ DATA'!R28 -> 10.53639369
A29: ='[1]Tabel 2 NJ DATA'!I29 -> Landinspek. | C29: ='[1]Tabel 2 NJ DATA'!K29 -> 2 | D29: ='[1]Tabel 2 NJ DATA'!L29 -> 1.999625772 | F29: ='[1]Tabel 2 NJ DATA'!N29 -> 1 | G29: ='[1]Tabel 2 NJ DATA'!O29 -> 0.9998128859 | I29: ='[1]Tabel 2 NJ DATA'!Q29 -> 3 | J29: ='[1]Tabel 2 NJ DATA'!R29 -> 2.999438658
A30: ='[1]Tabel 2 NJ DATA'!I30 -> Bibliotekar | C30: ='[1]Tabel 2 NJ DATA'!K30 -> 11 | D30: ='[1]Tabel 2 NJ DATA'!L30 -> 10.36113017 | F30: ='[1]Tabel 2 NJ DATA'!N30 -> 13 | G30: ='[1]Tabel 2 NJ DATA'!O30 -> 12.14931703 | I30: ='[1]Tabel 2 NJ DATA'!Q30 -> 24 | J30: ='[1]Tabel 2 NJ DATA'!R30 -> 22.5104472
A31: ='[1]Tabel 2 NJ DATA'!I31 -> Musikudd. | C31: ='[1]Tabel 2 NJ DATA'!K31 -> 0 | D31: ='[1]Tabel 2 NJ DATA'!L31 -> 0 | F31: ='[1]Tabel 2 NJ DATA'!N31 -> 3 | G31: ='[1]Tabel 2 NJ DATA'!O31 -> 1.655959583 | I31: ='[1]Tabel 2 NJ DATA'!Q31 -> 3 | J31: ='[1]Tabel 2 NJ DATA'!R31 -> 1.655959583
A32: ='[1]Tabel 2 NJ DATA'!I32 -> Teolog | C32: ='[1]Tabel 2 NJ DATA'!K32 -> 1 | D32: ='[1]Tabel 2 NJ DATA'!L32 -> 0.9998128859 | F32: ='[1]Tabel 2 NJ DATA'!N32 -> 2 | G32: ='[1]Tabel 2 NJ DATA'!O32 -> 1.598577933 | I32: ='[1]Tabel 2 NJ DATA'!Q32 -> 3 | J32: ='[1]Tabel 2 NJ DATA'!R32 -> 2.598390819
A33: ='[1]Tabel 2 NJ DATA'!I33 -> Psykolog | C33: ='[1]Tabel 2 NJ DATA'!K33 -> 16 | D33: ='[1]Tabel 2 NJ DATA'!L33 -> 14.85623402 | F33: ='[1]Tabel 2 NJ DATA'!N33 -> 31 | G33: ='[1]Tabel 2 NJ DATA'!O33 -> 25.46435477 | I33: ='[1]Tabel 2 NJ DATA'!Q33 -> 47 | J33: ='[1]Tabel 2 NJ DATA'!R33 -> 40.32058879
A34: ='[1]Tabel 2 NJ DATA'!I34 -> Jurist | C34: ='[1]Tabel 2 NJ DATA'!K34 -> 6 | D34: ='[1]Tabel 2 NJ DATA'!L34 -> 5.860412898 | F34: ='[1]Tabel 2 NJ DATA'!N34 -> 11 | G34: ='[1]Tabel 2 NJ DATA'!O34 -> 8.804341047 | I34: ='[1]Tabel 2 NJ DATA'!Q34 -> 17 | J34: ='[1]Tabel 2 NJ DATA'!R34 -> 14.66475394
A35: ='[1]Tabel 2 NJ DATA'!I35 -> Økonom | C35: ='[1]Tabel 2 NJ DATA'!K35 -> 11 | D35: ='[1]Tabel 2 NJ DATA'!L35 -> 9.293956215 | F35: ='[1]Tabel 2 NJ DATA'!N35 -> 7 | G35: ='[1]Tabel 2 NJ DATA'!O35 -> 6.924468284 | I35: ='[1]Tabel 2 NJ DATA'!Q35 -> 18 | J35: ='[1]Tabel 2 NJ DATA'!R35 -> 16.2184245
A36: ='[1]Tabel 2 NJ DATA'!I36 -> Samf. Adm. | C36: ='[1]Tabel 2 NJ DATA'!K36 -> 51 | D36: ='[1]Tabel 2 NJ DATA'!L36 -> 47.18892285 | F36: ='[1]Tabel 2 NJ DATA'!N36 -> 107 | G36: ='[1]Tabel 2 NJ DATA'!O36 -> 97.62427493 | I36: ='[1]Tabel 2 NJ DATA'!Q36 -> 158 | J36: ='[1]Tabel 2 NJ DATA'!R36 -> 144.8131978
A37: ='[1]Tabel 2 NJ DATA'!I37 -> Cand. Merc. | C37: ='[1]Tabel 2 NJ DATA'!K37 -> 70 | D37: ='[1]Tabel 2 NJ DATA'!L37 -> 63.93251419 | F37: ='[1]Tabel 2 NJ DATA'!N37 -> 65 | G37: ='[1]Tabel 2 NJ DATA'!O37 -> 55.41819996 | I37: ='[1]Tabel 2 NJ DATA'!Q37 -> 135 | J37: ='[1]Tabel 2 NJ DATA'!R37 -> 119.3507142
A38: ='[1]Tabel 2 NJ DATA'!I38 -> HA | C38: ='[1]Tabel 2 NJ DATA'!K38 -> 23 | D38: ='[1]Tabel 2 NJ DATA'!L38 -> 22.14432732 | F38: ='[1]Tabel 2 NJ DATA'!N38 -> 20 | G38: ='[1]Tabel 2 NJ DATA'!O38 -> 15.46622591 | I38: ='[1]Tabel 2 NJ DATA'!Q38 -> 43 | J38: ='[1]Tabel 2 NJ DATA'!R38 -> 37.61055323
A39: ='[1]Tabel 2 NJ DATA'!I39 -> HD | C39: ='[1]Tabel 2 NJ DATA'!K39 -> 14 | D39: ='[1]Tabel 2 NJ DATA'!L39 -> 12.36761679 | F39: ='[1]Tabel 2 NJ DATA'!N39 -> 7 | G39: ='[1]Tabel 2 NJ DATA'!O39 -> 6.219048213 | I39: ='[1]Tabel 2 NJ DATA'!Q39 -> 21 | J39: ='[1]Tabel 2 NJ DATA'!R39 -> 18.586665
A40: ='[1]Tabel 2 NJ DATA'!I40 -> Komm. og Sprog | C40: ='[1]Tabel 2 NJ DATA'!K40 -> 15 | D40: ='[1]Tabel 2 NJ DATA'!L40 -> 13.87263768 | F40: ='[1]Tabel 2 NJ DATA'!N40 -> 36 | G40: ='[1]Tabel 2 NJ DATA'!O40 -> 31.56801597 | I40: ='[1]Tabel 2 NJ DATA'!Q40 -> 51 | J40: ='[1]Tabel 2 NJ DATA'!R40 -> 45.44065365
A41: ='[1]Tabel 2 NJ DATA'!I41 -> Bygningskonst. | C41: ='[1]Tabel 2 NJ DATA'!K41 -> 35 | D41: ='[1]Tabel 2 NJ DATA'!L41 -> 27.81762615 | F41: ='[1]Tabel 2 NJ DATA'!N41 -> 8 | G41: ='[1]Tabel 2 NJ DATA'!O41 -> 7.538451943 | I41: ='[1]Tabel 2 NJ DATA'!Q41 -> 43 | J41: ='[1]Tabel 2 NJ DATA'!R41 -> 35.35607809
A42: ='[1]Tabel 2 NJ DATA'!I42 -> Cand. IT. | C42: ='[1]Tabel 2 NJ DATA'!K42 -> 27 | D42: ='[1]Tabel 2 NJ DATA'!L42 -> 24.1944739 | F42: ='[1]Tabel 2 NJ DATA'!N42 -> 43 | G42: ='[1]Tabel 2 NJ DATA'!O42 -> 33.98740099 | I42: ='[1]Tabel 2 NJ DATA'!Q42 -> 70 | J42: ='[1]Tabel 2 NJ DATA'!R42 -> 58.18187488
A43: ='[1]Tabel 2 NJ DATA'!I43 -> Bac. Samf. | C43: ='[1]Tabel 2 NJ DATA'!K43 -> 4 | D43: ='[1]Tabel 2 NJ DATA'!L43 -> 3.537703487 | F43: ='[1]Tabel 2 NJ DATA'!N43 -> 4 | G43: ='[1]Tabel 2 NJ DATA'!O43 -> 3.293831473 | I43: ='[1]Tabel 2 NJ DATA'!Q43 -> 8 | J43: ='[1]Tabel 2 NJ DATA'!R43 -> 6.831534959
A44: ='[1]Tabel 2 NJ DATA'!I44 -> Bac. Hum. | C44: ='[1]Tabel 2 NJ DATA'!K44 -> 24 | D44: ='[1]Tabel 2 NJ DATA'!L44 -> 21.69587725 | F44: ='[1]Tabel 2 NJ DATA'!N44 -> 39 | G44: ='[1]Tabel 2 NJ DATA'!O44 -> 35.96083079 | I44: ='[1]Tabel 2 NJ DATA'!Q44 -> 63 | J44: ='[1]Tabel 2 NJ DATA'!R44 -> 57.65670804
A45: ='[1]Tabel 2 NJ DATA'!I45 -> Bac. Nat. | C45: ='[1]Tabel 2 NJ DATA'!K45 -> 28 | D45: ='[1]Tabel 2 NJ DATA'!L45 -> 26.17913054 | F45: ='[1]Tabel 2 NJ DATA'!N45 -> 13 | G45: ='[1]Tabel 2 NJ DATA'!O45 -> 10.02494854 | I45: ='[1]Tabel 2 NJ DATA'!Q45 -> 41 | J45: ='[1]Tabel 2 NJ DATA'!R45 -> 36.20407909
A46: ='[1]Tabel 2 NJ DATA'!I46 -> Andre | C46: ='[1]Tabel 2 NJ DATA'!K46 -> 51 | D46: ='[1]Tabel 2 NJ DATA'!L46 -> 44.39156739 | F46: ='[1]Tabel 2 NJ DATA'!N46 -> 54 | G46: ='[1]Tabel 2 NJ DATA'!O46 -> 47.79018275 | I46: ='[1]Tabel 2 NJ DATA'!Q46 -> 105 | J46: ='[1]Tabel 2 NJ DATA'!R46 -> 92.18175014
A48: ='[1]Tabel 2 NJ DATA'!I48 -> Total | C48: ='[1]Tabel 2 NJ DATA'!K48 -> 823 | D48: ='[1]Tabel 2 NJ DATA'!L48 -> 745.9471091 | F48: ='[1]Tabel 2 NJ DATA'!N48 -> 960 | G48: ='[1]Tabel 2 NJ DATA'!O48 -> 841.8601634 | I48: ='[1]Tabel 2 NJ DATA'!Q48 -> 1783 | J48: ='[1]Tabel 2 NJ DATA'!R48 -> 1587.807273
A50: ='[1]Tabel 2 NJ DATA'!I50 -> Ingeniører i alt | C50: ='[1]Tabel 2 NJ DATA'!K50 -> 142 | D50: ='[1]Tabel 2 NJ DATA'!L50 -> 131.2486746 | F50: ='[1]Tabel 2 NJ DATA'!N50 -> 61 | G50: ='[1]Tabel 2 NJ DATA'!O50 -> 54.76579555 | I50: ='[1]Tabel 2 NJ DATA'!Q50 -> 203 | J50: ='[1]Tabel 2 NJ DATA'!R50 -> 186.0144702
A51: ='[1]Tabel 2 NJ DATA'!I51 -> Magistre i alt | C51: ='[1]Tabel 2 NJ DATA'!K51 -> 171 | D51: ='[1]Tabel 2 NJ DATA'!L51 -> 154.6566457 | F51: ='[1]Tabel 2 NJ DATA'!N51 -> 345 | G51: ='[1]Tabel 2 NJ DATA'!O51 -> 303.6873947 | I51: ='[1]Tabel 2 NJ DATA'!Q51 -> 516 | J51: ='[1]Tabel 2 NJ DATA'!R51 -> 458.3440404
A52: ='[1]Tabel 2 NJ DATA'!I52 -> DJØF'ere i alt | C52: ='[1]Tabel 2 NJ DATA'!K52 -> 161 | D52: ='[1]Tabel 2 NJ DATA'!L52 -> 148.4201335 | F52: ='[1]Tabel 2 NJ DATA'!N52 -> 210 | G52: ='[1]Tabel 2 NJ DATA'!O52 -> 184.2375101 | I52: ='[1]Tabel 2 NJ DATA'!Q52 -> 371 | J52: ='[1]Tabel 2 NJ DATA'!R52 -> 332.6576436
A57: ='[1]Tabel 2 NJ DATA'!I54 -> Morsø
C59: ='[1]Tabel 2 NJ DATA'!K56 -> Mænd | F59: ='[1]Tabel 2 NJ DATA'!N56 -> Kvinder | I59: ='[1]Tabel 2 NJ DATA'!Q56 -> I alt
C60: ='[1]Tabel 2 NJ DATA'!K57 -> Ledigheds- berørte | D60: ='[1]Tabel 2 NJ DATA'!L57 -> Gns. brutto- ledighed | F60: ='[1]Tabel 2 NJ DATA'!N57 -> Ledigheds- berørte | G60: ='[1]Tabel 2 NJ DATA'!O57 -> Gns. brutto- ledighed | I60: ='[1]Tabel 2 NJ DATA'!Q57 -> Ledigheds- berørte | J60: ='[1]Tabel 2 NJ DATA'!R57 -> Gns. brutto- ledighed
A63: ='[1]Tabel 2 NJ DATA'!I60 -> Civ. ing. | C63: ='[1]Tabel 2 NJ DATA'!K60 -> 0 | D63: ='[1]Tabel 2 NJ DATA'!L60 -> 0 | F63: ='[1]Tabel 2 NJ DATA'!N60 -> 0 | G63: ='[1]Tabel 2 NJ DATA'!O60 -> 0 | I63: ='[1]Tabel 2 NJ DATA'!Q60 -> 0 | J63: ='[1]Tabel 2 NJ DATA'!R60 -> 0
A64: ='[1]Tabel 2 NJ DATA'!I61 -> Diplom ing. | C64: ='[1]Tabel 2 NJ DATA'!K61 -> 1 | D64: ='[1]Tabel 2 NJ DATA'!L61 -> 0.9998128859 | F64: ='[1]Tabel 2 NJ DATA'!N61 -> 0 | G64: ='[1]Tabel 2 NJ DATA'!O61 -> 0 | I64: ='[1]Tabel 2 NJ DATA'!Q61 -> 1 | J64: ='[1]Tabel 2 NJ DATA'!R61 -> 0.9998128859
A65: ='[1]Tabel 2 NJ DATA'!I62 -> Cand. Scient. Tek. | C65: ='[1]Tabel 2 NJ DATA'!K62 -> 0 | D65: ='[1]Tabel 2 NJ DATA'!L62 -> 0 | F65: ='[1]Tabel 2 NJ DATA'!N62 -> 0 | G65: ='[1]Tabel 2 NJ DATA'!O62 -> 0 | I65: ='[1]Tabel 2 NJ DATA'!Q62 -> 0 | J65: ='[1]Tabel 2 NJ DATA'!R62 -> 0
A66: ='[1]Tabel 2 NJ DATA'!I63 -> MA. Hum. | C66: ='[1]Tabel 2 NJ DATA'!K63 -> 1 | D66: ='[1]Tabel 2 NJ DATA'!L63 -> 0.8151936631 | F66: ='[1]Tabel 2 NJ DATA'!N63 -> 4 | G66: ='[1]Tabel 2 NJ DATA'!O63 -> 3.194037298 | I66: ='[1]Tabel 2 NJ DATA'!Q63 -> 5 | J66: ='[1]Tabel 2 NJ DATA'!R63 -> 4.009230961
A67: ='[1]Tabel 2 NJ DATA'!I64 -> MA. Nat. | C67: ='[1]Tabel 2 NJ DATA'!K64 -> 0 | D67: ='[1]Tabel 2 NJ DATA'!L64 -> 0 | F67: ='[1]Tabel 2 NJ DATA'!N64 -> 0 | G67: ='[1]Tabel 2 NJ DATA'!O64 -> 0 | I67: ='[1]Tabel 2 NJ DATA'!Q64 -> 0 | J67: ='[1]Tabel 2 NJ DATA'!R64 -> 0
A68: ='[1]Tabel 2 NJ DATA'!I65 -> MA. Ph.d. | C68: ='[1]Tabel 2 NJ DATA'!K65 -> 0 | D68: ='[1]Tabel 2 NJ DATA'!L65 -> 0 | F68: ='[1]Tabel 2 NJ DATA'!N65 -> 0 | G68: ='[1]Tabel 2 NJ DATA'!O65 -> 0 | I68: ='[1]Tabel 2 NJ DATA'!Q65 -> 0 | J68: ='[1]Tabel 2 NJ DATA'!R65 -> 0
A69: ='[1]Tabel 2 NJ DATA'!I66 -> MA. Samf. | C69: ='[1]Tabel 2 NJ DATA'!K66 -> 0 | D69: ='[1]Tabel 2 NJ DATA'!L66 -> 0 | F69: ='[1]Tabel 2 NJ DATA'!N66 -> 0 | G69: ='[1]Tabel 2 NJ DATA'!O66 -> 0 | I69: ='[1]Tabel 2 NJ DATA'!Q66 -> 0 | J69: ='[1]Tabel 2 NJ DATA'!R66 -> 0
A70: ='[1]Tabel 2 NJ DATA'!I67 -> Øvrige Mag. | C70: ='[1]Tabel 2 NJ DATA'!K67 -> 0 | D70: ='[1]Tabel 2 NJ DATA'!L67 -> 0 | F70: ='[1]Tabel 2 NJ DATA'!N67 -> 0 | G70: ='[1]Tabel 2 NJ DATA'!O67 -> 0 | I70: ='[1]Tabel 2 NJ DATA'!Q67 -> 0 | J70: ='[1]Tabel 2 NJ DATA'!R67 -> 0
A71: ='[1]Tabel 2 NJ DATA'!I68 -> Agronom | C71: ='[1]Tabel 2 NJ DATA'!K68 -> 0 | D71: ='[1]Tabel 2 NJ DATA'!L68 -> 0 | F71: ='[1]Tabel 2 NJ DATA'!N68 -> 0 | G71: ='[1]Tabel 2 NJ DATA'!O68 -> 0 | I71: ='[1]Tabel 2 NJ DATA'!Q68 -> 0 | J71: ='[1]Tabel 2 NJ DATA'!R68 -> 0
A72: ='[1]Tabel 2 NJ DATA'!I69 -> Landsk. Arkt. | C72: ='[1]Tabel 2 NJ DATA'!K69 -> 0 | D72: ='[1]Tabel 2 NJ DATA'!L69 -> 0 | F72: ='[1]Tabel 2 NJ DATA'!N69 -> 0 | G72: ='[1]Tabel 2 NJ DATA'!O69 -> 0 | I72: ='[1]Tabel 2 NJ DATA'!Q69 -> 0 | J72: ='[1]Tabel 2 NJ DATA'!R69 -> 0
A73: ='[1]Tabel 2 NJ DATA'!I70 -> Hortonom | C73: ='[1]Tabel 2 NJ DATA'!K70 -> 0 | D73: ='[1]Tabel 2 NJ DATA'!L70 -> 0 | F73: ='[1]Tabel 2 NJ DATA'!N70 -> 0 | G73: ='[1]Tabel 2 NJ DATA'!O70 -> 0 | I73: ='[1]Tabel 2 NJ DATA'!Q70 -> 0 | J73: ='[1]Tabel 2 NJ DATA'!R70 -> 0
A74: ='[1]Tabel 2 NJ DATA'!I71 -> Forstkand. | C74: ='[1]Tabel 2 NJ DATA'!K71 -> 0 | D74: ='[1]Tabel 2 NJ DATA'!L71 -> 0 | F74: ='[1]Tabel 2 NJ DATA'!N71 -> 0 | G74: ='[1]Tabel 2 NJ DATA'!O71 -> 0 | I74: ='[1]Tabel 2 NJ DATA'!Q71 -> 0 | J74: ='[1]Tabel 2 NJ DATA'!R71 -> 0
A75: ='[1]Tabel 2 NJ DATA'!I72 -> Jordbrugsakad. | C75: ='[1]Tabel 2 NJ DATA'!K72 -> 0 | D75: ='[1]Tabel 2 NJ DATA'!L72 -> 0 | F75: ='[1]Tabel 2 NJ DATA'!N72 -> 0 | G75: ='[1]Tabel 2 NJ DATA'!O72 -> 0 | I75: ='[1]Tabel 2 NJ DATA'!Q72 -> 0 | J75: ='[1]Tabel 2 NJ DATA'!R72 -> 0
A76: ='[1]Tabel 2 NJ DATA'!I73 -> Mejeriing. | C76: ='[1]Tabel 2 NJ DATA'!K73 -> 0 | D76: ='[1]Tabel 2 NJ DATA'!L73 -> 0 | F76: ='[1]Tabel 2 NJ DATA'!N73 -> 0 | G76: ='[1]Tabel 2 NJ DATA'!O73 -> 0 | I76: ='[1]Tabel 2 NJ DATA'!Q73 -> 0 | J76: ='[1]Tabel 2 NJ DATA'!R73 -> 0
A77: ='[1]Tabel 2 NJ DATA'!I74 -> Levn.m.kand. | C77: ='[1]Tabel 2 NJ DATA'!K74 -> 0 | D77: ='[1]Tabel 2 NJ DATA'!L74 -> 0 | F77: ='[1]Tabel 2 NJ DATA'!N74 -> 0 | G77: ='[1]Tabel 2 NJ DATA'!O74 -> 0 | I77: ='[1]Tabel 2 NJ DATA'!Q74 -> 0 | J77: ='[1]Tabel 2 NJ DATA'!R74 -> 0
A78: ='[1]Tabel 2 NJ DATA'!I75 -> Dyrlæge | C78: ='[1]Tabel 2 NJ DATA'!K75 -> 0 | D78: ='[1]Tabel 2 NJ DATA'!L75 -> 0 | F78: ='[1]Tabel 2 NJ DATA'!N75 -> 0 | G78: ='[1]Tabel 2 NJ DATA'!O75 -> 0 | I78: ='[1]Tabel 2 NJ DATA'!Q75 -> 0 | J78: ='[1]Tabel 2 NJ DATA'!R75 -> 0
A79: ='[1]Tabel 2 NJ DATA'!I76 -> Farmaceut | C79: ='[1]Tabel 2 NJ DATA'!K76 -> 0 | D79: ='[1]Tabel 2 NJ DATA'!L76 -> 0 | F79: ='[1]Tabel 2 NJ DATA'!N76 -> 0 | G79: ='[1]Tabel 2 NJ DATA'!O76 -> 0 | I79: ='[1]Tabel 2 NJ DATA'!Q76 -> 0 | J79: ='[1]Tabel 2 NJ DATA'!R76 -> 0
A80: ='[1]Tabel 2 NJ DATA'!I77 -> Læge | C80: ='[1]Tabel 2 NJ DATA'!K77 -> 0 | D80: ='[1]Tabel 2 NJ DATA'!L77 -> 0 | F80: ='[1]Tabel 2 NJ DATA'!N77 -> 0 | G80: ='[1]Tabel 2 NJ DATA'!O77 -> 0 | I80: ='[1]Tabel 2 NJ DATA'!Q77 -> 0 | J80: ='[1]Tabel 2 NJ DATA'!R77 -> 0
A81: ='[1]Tabel 2 NJ DATA'!I78 -> Tandlæge | C81: ='[1]Tabel 2 NJ DATA'!K78 -> 0 | D81: ='[1]Tabel 2 NJ DATA'!L78 -> 0 | F81: ='[1]Tabel 2 NJ DATA'!N78 -> 0 | G81: ='[1]Tabel 2 NJ DATA'!O78 -> 0 | I81: ='[1]Tabel 2 NJ DATA'!Q78 -> 0 | J81: ='[1]Tabel 2 NJ DATA'!R78 -> 0
A82: ='[1]Tabel 2 NJ DATA'!I79 -> Arkitekt | C82: ='[1]Tabel 2 NJ DATA'!K79 -> 0 | D82: ='[1]Tabel 2 NJ DATA'!L79 -> 0 | F82: ='[1]Tabel 2 NJ DATA'!N79 -> 1 | G82: ='[1]Tabel 2 NJ DATA'!O79 -> 0.9998128859 | I82: ='[1]Tabel 2 NJ DATA'!Q79 -> 1 | J82: ='[1]Tabel 2 NJ DATA'!R79 -> 0.9998128859
A83: ='[1]Tabel 2 NJ DATA'!I80 -> Landinspek. | C83: ='[1]Tabel 2 NJ DATA'!K80 -> 0 | D83: ='[1]Tabel 2 NJ DATA'!L80 -> 0 | F83: ='[1]Tabel 2 NJ DATA'!N80 -> 0 | G83: ='[1]Tabel 2 NJ DATA'!O80 -> 0 | I83: ='[1]Tabel 2 NJ DATA'!Q80 -> 0 | J83: ='[1]Tabel 2 NJ DATA'!R80 -> 0
A84: ='[1]Tabel 2 NJ DATA'!I81 -> Bibliotekar | C84: ='[1]Tabel 2 NJ DATA'!K81 -> 0 | D84: ='[1]Tabel 2 NJ DATA'!L81 -> 0 | F84: ='[1]Tabel 2 NJ DATA'!N81 -> 2 | G84: ='[1]Tabel 2 NJ DATA'!O81 -> 1.90731616 | I84: ='[1]Tabel 2 NJ DATA'!Q81 -> 2 | J84: ='[1]Tabel 2 NJ DATA'!R81 -> 1.90731616
A85: ='[1]Tabel 2 NJ DATA'!I82 -> Musikudd. | C85: ='[1]Tabel 2 NJ DATA'!K82 -> 0 | D85: ='[1]Tabel 2 NJ DATA'!L82 -> 0 | F85: ='[1]Tabel 2 NJ DATA'!N82 -> 0 | G85: ='[1]Tabel 2 NJ DATA'!O82 -> 0 | I85: ='[1]Tabel 2 NJ DATA'!Q82 -> 0 | J85: ='[1]Tabel 2 NJ DATA'!R82 -> 0
A86: ='[1]Tabel 2 NJ DATA'!I83 -> Teolog | C86: ='[1]Tabel 2 NJ DATA'!K83 -> 0 | D86: ='[1]Tabel 2 NJ DATA'!L83 -> 0 | F86: ='[1]Tabel 2 NJ DATA'!N83 -> 0 | G86: ='[1]Tabel 2 NJ DATA'!O83 -> 0 | I86: ='[1]Tabel 2 NJ DATA'!Q83 -> 0 | J86: ='[1]Tabel 2 NJ DATA'!R83 -> 0
A87: ='[1]Tabel 2 NJ DATA'!I84 -> Psykolog | C87: ='[1]Tabel 2 NJ DATA'!K84 -> 0 | D87: ='[1]Tabel 2 NJ DATA'!L84 -> 0 | F87: ='[1]Tabel 2 NJ DATA'!N84 -> 0 | G87: ='[1]Tabel 2 NJ DATA'!O84 -> 0 | I87: ='[1]Tabel 2 NJ DATA'!Q84 -> 0 | J87: ='[1]Tabel 2 NJ DATA'!R84 -> 0
A88: ='[1]Tabel 2 NJ DATA'!I85 -> Jurist | C88: ='[1]Tabel 2 NJ DATA'!K85 -> 0 | D88: ='[1]Tabel 2 NJ DATA'!L85 -> 0 | F88: ='[1]Tabel 2 NJ DATA'!N85 -> 0 | G88: ='[1]Tabel 2 NJ DATA'!O85 -> 0 | I88: ='[1]Tabel 2 NJ DATA'!Q85 -> 0 | J88: ='[1]Tabel 2 NJ DATA'!R85 -> 0
A89: ='[1]Tabel 2 NJ DATA'!I86 -> Økonom | C89: ='[1]Tabel 2 NJ DATA'!K86 -> 0 | D89: ='[1]Tabel 2 NJ DATA'!L86 -> 0 | F89: ='[1]Tabel 2 NJ DATA'!N86 -> 0 | G89: ='[1]Tabel 2 NJ DATA'!O86 -> 0 | I89: ='[1]Tabel 2 NJ DATA'!Q86 -> 0 | J89: ='[1]Tabel 2 NJ DATA'!R86 -> 0
A90: ='[1]Tabel 2 NJ DATA'!I87 -> Samf. Adm. | C90: ='[1]Tabel 2 NJ DATA'!K87 -> 0 | D90: ='[1]Tabel 2 NJ DATA'!L87 -> 0 | F90: ='[1]Tabel 2 NJ DATA'!N87 -> 0 | G90: ='[1]Tabel 2 NJ DATA'!O87 -> 0 | I90: ='[1]Tabel 2 NJ DATA'!Q87 -> 0 | J90: ='[1]Tabel 2 NJ DATA'!R87 -> 0
A91: ='[1]Tabel 2 NJ DATA'!I88 -> Cand. Merc. | C91: ='[1]Tabel 2 NJ DATA'!K88 -> 0 | D91: ='[1]Tabel 2 NJ DATA'!L88 -> 0 | F91: ='[1]Tabel 2 NJ DATA'!N88 -> 0 | G91: ='[1]Tabel 2 NJ DATA'!O88 -> 0 | I91: ='[1]Tabel 2 NJ DATA'!Q88 -> 0 | J91: ='[1]Tabel 2 NJ DATA'!R88 -> 0
A92: ='[1]Tabel 2 NJ DATA'!I89 -> HA | C92: ='[1]Tabel 2 NJ DATA'!K89 -> 0 | D92: ='[1]Tabel 2 NJ DATA'!L89 -> 0 | F92: ='[1]Tabel 2 NJ DATA'!N89 -> 0 | G92: ='[1]Tabel 2 NJ DATA'!O89 -> 0 | I92: ='[1]Tabel 2 NJ DATA'!Q89 -> 0 | J92: ='[1]Tabel 2 NJ DATA'!R89 -> 0
A93: ='[1]Tabel 2 NJ DATA'!I90 -> HD | C93: ='[1]Tabel 2 NJ DATA'!K90 -> 0 | D93: ='[1]Tabel 2 NJ DATA'!L90 -> 0 | F93: ='[1]Tabel 2 NJ DATA'!N90 -> 0 | G93: ='[1]Tabel 2 NJ DATA'!O90 -> 0 | I93: ='[1]Tabel 2 NJ DATA'!Q90 -> 0 | J93: ='[1]Tabel 2 NJ DATA'!R90 -> 0
A94: ='[1]Tabel 2 NJ DATA'!I91 -> Komm. og Sprog | C94: ='[1]Tabel 2 NJ DATA'!K91 -> 0 | D94: ='[1]Tabel 2 NJ DATA'!L91 -> 0 | F94: ='[1]Tabel 2 NJ DATA'!N91 -> 0 | G94: ='[1]Tabel 2 NJ DATA'!O91 -> 0 | I94: ='[1]Tabel 2 NJ DATA'!Q91 -> 0 | J94: ='[1]Tabel 2 NJ DATA'!R91 -> 0
A95: ='[1]Tabel 2 NJ DATA'!I92 -> Bygningskonst. | C95: ='[1]Tabel 2 NJ DATA'!K92 -> 2 | D95: ='[1]Tabel 2 NJ DATA'!L92 -> 1.907690389 | F95: ='[1]Tabel 2 NJ DATA'!N92 -> 0 | G95: ='[1]Tabel 2 NJ DATA'!O92 -> 0 | I95: ='[1]Tabel 2 NJ DATA'!Q92 -> 2 | J95: ='[1]Tabel 2 NJ DATA'!R92 -> 1.907690389
A96: ='[1]Tabel 2 NJ DATA'!I93 -> Cand. IT. | C96: ='[1]Tabel 2 NJ DATA'!K93 -> 0 | D96: ='[1]Tabel 2 NJ DATA'!L93 -> 0 | F96: ='[1]Tabel 2 NJ DATA'!N93 -> 0 | G96: ='[1]Tabel 2 NJ DATA'!O93 -> 0 | I96: ='[1]Tabel 2 NJ DATA'!Q93 -> 0 | J96: ='[1]Tabel 2 NJ DATA'!R93 -> 0
A97: ='[1]Tabel 2 NJ DATA'!I94 -> Bac. Samf. | C97: ='[1]Tabel 2 NJ DATA'!K94 -> 0 | D97: ='[1]Tabel 2 NJ DATA'!L94 -> 0 | F97: ='[1]Tabel 2 NJ DATA'!N94 -> 0 | G97: ='[1]Tabel 2 NJ DATA'!O94 -> 0 | I97: ='[1]Tabel 2 NJ DATA'!Q94 -> 0 | J97: ='[1]Tabel 2 NJ DATA'!R94 -> 0
A98: ='[1]Tabel 2 NJ DATA'!I95 -> Bac. Hum. | C98: ='[1]Tabel 2 NJ DATA'!K95 -> 1 | D98: ='[1]Tabel 2 NJ DATA'!L95 -> 0.9998128859 | F98: ='[1]Tabel 2 NJ DATA'!N95 -> 1 | G98: ='[1]Tabel 2 NJ DATA'!O95 -> 0.9998128859 | I98: ='[1]Tabel 2 NJ DATA'!Q95 -> 2 | J98: ='[1]Tabel 2 NJ DATA'!R95 -> 1.999625772
A99: ='[1]Tabel 2 NJ DATA'!I96 -> Bac. Nat. | C99: ='[1]Tabel 2 NJ DATA'!K96 -> 1 | D99: ='[1]Tabel 2 NJ DATA'!L96 -> 0.9998128859 | F99: ='[1]Tabel 2 NJ DATA'!N96 -> 0 | G99: ='[1]Tabel 2 NJ DATA'!O96 -> 0 | I99: ='[1]Tabel 2 NJ DATA'!Q96 -> 1 | J99: ='[1]Tabel 2 NJ DATA'!R96 -> 0.9998128859
A100: ='[1]Tabel 2 NJ DATA'!I97 -> Andre | C100: ='[1]Tabel 2 NJ DATA'!K97 -> 1 | D100: ='[1]Tabel 2 NJ DATA'!L97 -> 0.8657144639 | F100: ='[1]Tabel 2 NJ DATA'!N97 -> 0 | G100: ='[1]Tabel 2 NJ DATA'!O97 -> 0 | I100: ='[1]Tabel 2 NJ DATA'!Q97 -> 1 | J100: ='[1]Tabel 2 NJ DATA'!R97 -> 0.8657144639
A102: ='[1]Tabel 2 NJ DATA'!I99 -> Total | C102: ='[1]Tabel 2 NJ DATA'!K99 -> 7 | D102: ='[1]Tabel 2 NJ DATA'!L99 -> 6.588037173 | F102: ='[1]Tabel 2 NJ DATA'!N99 -> 8 | G102: ='[1]Tabel 2 NJ DATA'!O99 -> 7.10097923 | I102: ='[1]Tabel 2 NJ DATA'!Q99 -> 15 | J102: ='[1]Tabel 2 NJ DATA'!R99 -> 13.6890164
A104: ='[1]Tabel 2 NJ DATA'!I101 -> Ingeniører i alt | C104: ='[1]Tabel 2 NJ DATA'!K101 -> 1 | D104: ='[1]Tabel 2 NJ DATA'!L101 -> 0.9998128859 | F104: ='[1]Tabel 2 NJ DATA'!N101 -> 0 | G104: ='[1]Tabel 2 NJ DATA'!O101 -> 0 | I104: ='[1]Tabel 2 NJ DATA'!Q101 -> 1 | J104: ='[1]Tabel 2 NJ DATA'!R101 -> 0.9998128859
A105: ='[1]Tabel 2 NJ DATA'!I102 -> Magistre i alt | C105: ='[1]Tabel 2 NJ DATA'!K102 -> 1 | D105: ='[1]Tabel 2 NJ DATA'!L102 -> 0.8151936631 | F105: ='[1]Tabel 2 NJ DATA'!N102 -> 4 | G105: ='[1]Tabel 2 NJ DATA'!O102 -> 3.194037298 | I105: ='[1]Tabel 2 NJ DATA'!Q102 -> 5 | J105: ='[1]Tabel 2 NJ DATA'!R102 -> 4.009230961
A106: ='[1]Tabel 2 NJ DATA'!I103 -> DJØF'ere i alt | C106: ='[1]Tabel 2 NJ DATA'!K103 -> 0 | D106: ='[1]Tabel 2 NJ DATA'!L103 -> 0 | F106: ='[1]Tabel 2 NJ DATA'!N103 -> 0 | G106: ='[1]Tabel 2 NJ DATA'!O103 -> 0 | I106: ='[1]Tabel 2 NJ DATA'!Q103 -> 0 | J106: ='[1]Tabel 2 NJ DATA'!R103 -> 0
A111: ='[1]Tabel 2 NJ DATA'!I106 -> Thisted
C113: ='[1]Tabel 2 NJ DATA'!K108 -> Mænd | F113: ='[1]Tabel 2 NJ DATA'!N108 -> Kvinder | I113: ='[1]Tabel 2 NJ DATA'!Q108 -> I alt
C114: ='[1]Tabel 2 NJ DATA'!K109 -> Ledigheds- berørte | D114: ='[1]Tabel 2 NJ DATA'!L109 -> Gns. brutto- ledighed | F114: ='[1]Tabel 2 NJ DATA'!N109 -> Ledigheds- berørte | G114: ='[1]Tabel 2 NJ DATA'!O109 -> Gns. brutto- ledighed | I114: ='[1]Tabel 2 NJ DATA'!Q109 -> Ledigheds- berørte | J114: ='[1]Tabel 2 NJ DATA'!R109 -> Gns. brutto- ledighed
A117: ='[1]Tabel 2 NJ DATA'!I112 -> Civ. ing. | C117: ='[1]Tabel 2 NJ DATA'!K112 -> 1 | D117: ='[1]Tabel 2 NJ DATA'!L112 -> 0.9998128859 | F117: ='[1]Tabel 2 NJ DATA'!N112 -> 2 | G117: ='[1]Tabel 2 NJ DATA'!O112 -> 1.999625772 | I117: ='[1]Tabel 2 NJ DATA'!Q112 -> 3 | J117: ='[1]Tabel 2 NJ DATA'!R112 -> 2.999438658
A118: ='[1]Tabel 2 NJ DATA'!I113 -> Diplom ing. | C118: ='[1]Tabel 2 NJ DATA'!K113 -> 3 | D118: ='[1]Tabel 2 NJ DATA'!L113 -> 2.999438658 | F118: ='[1]Tabel 2 NJ DATA'!N113 -> 0 | G118: ='[1]Tabel 2 NJ DATA'!O113 -> 0 | I118: ='[1]Tabel 2 NJ DATA'!Q113 -> 3 | J118: ='[1]Tabel 2 NJ DATA'!R113 -> 2.999438658
A119: ='[1]Tabel 2 NJ DATA'!I114 -> Cand. Scient. Tek. | C119: ='[1]Tabel 2 NJ DATA'!K114 -> 1 | D119: ='[1]Tabel 2 NJ DATA'!L114 -> 0.8151936631 | F119: ='[1]Tabel 2 NJ DATA'!N114 -> 4 | G119: ='[1]Tabel 2 NJ DATA'!O114 -> 3.636873947 | I119: ='[1]Tabel 2 NJ DATA'!Q114 -> 5 | J119: ='[1]Tabel 2 NJ DATA'!R114 -> 4.452067611
A120: ='[1]Tabel 2 NJ DATA'!I115 -> MA. Hum. | C120: ='[1]Tabel 2 NJ DATA'!K115 -> 3 | D120: ='[1]Tabel 2 NJ DATA'!L115 -> 2.138090189 | F120: ='[1]Tabel 2 NJ DATA'!N115 -> 7 | G120: ='[1]Tabel 2 NJ DATA'!O115 -> 5.425060812 | I120: ='[1]Tabel 2 NJ DATA'!Q115 -> 10 | J120: ='[1]Tabel 2 NJ DATA'!R115 -> 7.563151001
A121: ='[1]Tabel 2 NJ DATA'!I116 -> MA. Nat. | C121: ='[1]Tabel 2 NJ DATA'!K116 -> 0 | D121: ='[1]Tabel 2 NJ DATA'!L116 -> 0 | F121: ='[1]Tabel 2 NJ DATA'!N116 -> 1 | G121: ='[1]Tabel 2 NJ DATA'!O116 -> 0.8070853864 | I121: ='[1]Tabel 2 NJ DATA'!Q116 -> 1 | J121: ='[1]Tabel 2 NJ DATA'!R116 -> 0.8070853864
A122: ='[1]Tabel 2 NJ DATA'!I117 -> MA. Ph.d. | C122: ='[1]Tabel 2 NJ DATA'!K117 -> 1 | D122: ='[1]Tabel 2 NJ DATA'!L117 -> 0.8376473523 | F122: ='[1]Tabel 2 NJ DATA'!N117 -> 0 | G122: ='[1]Tabel 2 NJ DATA'!O117 -> 0 | I122: ='[1]Tabel 2 NJ DATA'!Q117 -> 1 | J122: ='[1]Tabel 2 NJ DATA'!R117 -> 0.8376473523
A123: ='[1]Tabel 2 NJ DATA'!I118 -> MA. Samf. | C123: ='[1]Tabel 2 NJ DATA'!K118 -> 0 | D123: ='[1]Tabel 2 NJ DATA'!L118 -> 0 | F123: ='[1]Tabel 2 NJ DATA'!N118 -> 0 | G123: ='[1]Tabel 2 NJ DATA'!O118 -> 0 | I123: ='[1]Tabel 2 NJ DATA'!Q118 -> 0 | J123: ='[1]Tabel 2 NJ DATA'!R118 -> 0
A124: ='[1]Tabel 2 NJ DATA'!I119 -> Øvrige Mag. | C124: ='[1]Tabel 2 NJ DATA'!K119 -> 0 | D124: ='[1]Tabel 2 NJ DATA'!L119 -> 0 | F124: ='[1]Tabel 2 NJ DATA'!N119 -> 1 | G124: ='[1]Tabel 2 NJ DATA'!O119 -> 0.9998128859 | I124: ='[1]Tabel 2 NJ DATA'!Q119 -> 1 | J124: ='[1]Tabel 2 NJ DATA'!R119 -> 0.9998128859
A125: ='[1]Tabel 2 NJ DATA'!I120 -> Agronom | C125: ='[1]Tabel 2 NJ DATA'!K120 -> 1 | D125: ='[1]Tabel 2 NJ DATA'!L120 -> 0.9998128859 | F125: ='[1]Tabel 2 NJ DATA'!N120 -> 1 | G125: ='[1]Tabel 2 NJ DATA'!O120 -> 0.9998128859 | I125: ='[1]Tabel 2 NJ DATA'!Q120 -> 2 | J125: ='[1]Tabel 2 NJ DATA'!R120 -> 1.999625772
A126: ='[1]Tabel 2 NJ DATA'!I121 -> Landsk. Arkt. | C126: ='[1]Tabel 2 NJ DATA'!K121 -> 0 | D126: ='[1]Tabel 2 NJ DATA'!L121 -> 0 | F126: ='[1]Tabel 2 NJ DATA'!N121 -> 0 | G126: ='[1]Tabel 2 NJ DATA'!O121 -> 0 | I126: ='[1]Tabel 2 NJ DATA'!Q121 -> 0 | J126: ='[1]Tabel 2 NJ DATA'!R121 -> 0
A127: ='[1]Tabel 2 NJ DATA'!I122 -> Hortonom | C127: ='[1]Tabel 2 NJ DATA'!K122 -> 0 | D127: ='[1]Tabel 2 NJ DATA'!L122 -> 0 | F127: ='[1]Tabel 2 NJ DATA'!N122 -> 0 | G127: ='[1]Tabel 2 NJ DATA'!O122 -> 0 | I127: ='[1]Tabel 2 NJ DATA'!Q122 -> 0 | J127: ='[1]Tabel 2 NJ DATA'!R122 -> 0
A128: ='[1]Tabel 2 NJ DATA'!I123 -> Forstkand. | C128: ='[1]Tabel 2 NJ DATA'!K123 -> 0 | D128: ='[1]Tabel 2 NJ DATA'!L123 -> 0 | F128: ='[1]Tabel 2 NJ DATA'!N123 -> 0 | G128: ='[1]Tabel 2 NJ DATA'!O123 -> 0 | I128: ='[1]Tabel 2 NJ DATA'!Q123 -> 0 | J128: ='[1]Tabel 2 NJ DATA'!R123 -> 0
A129: ='[1]Tabel 2 NJ DATA'!I124 -> Jordbrugsakad. | C129: ='[1]Tabel 2 NJ DATA'!K124 -> 1 | D129: ='[1]Tabel 2 NJ DATA'!L124 -> 0.9998128859 | F129: ='[1]Tabel 2 NJ DATA'!N124 -> 1 | G129: ='[1]Tabel 2 NJ DATA'!O124 -> 0.9998128859 | I129: ='[1]Tabel 2 NJ DATA'!Q124 -> 2 | J129: ='[1]Tabel 2 NJ DATA'!R124 -> 1.999625772
A130: ='[1]Tabel 2 NJ DATA'!I125 -> Mejeriing. | C130: ='[1]Tabel 2 NJ DATA'!K125 -> 0 | D130: ='[1]Tabel 2 NJ DATA'!L125 -> 0 | F130: ='[1]Tabel 2 NJ DATA'!N125 -> 0 | G130: ='[1]Tabel 2 NJ DATA'!O125 -> 0 | I130: ='[1]Tabel 2 NJ DATA'!Q125 -> 0 | J130: ='[1]Tabel 2 NJ DATA'!R125 -> 0
A131: ='[1]Tabel 2 NJ DATA'!I126 -> Levn.m.kand. | C131: ='[1]Tabel 2 NJ DATA'!K126 -> 0 | D131: ='[1]Tabel 2 NJ DATA'!L126 -> 0 | F131: ='[1]Tabel 2 NJ DATA'!N126 -> 0 | G131: ='[1]Tabel 2 NJ DATA'!O126 -> 0 | I131: ='[1]Tabel 2 NJ DATA'!Q126 -> 0 | J131: ='[1]Tabel 2 NJ DATA'!R126 -> 0
A132: ='[1]Tabel 2 NJ DATA'!I127 -> Dyrlæge | C132: ='[1]Tabel 2 NJ DATA'!K127 -> 0 | D132: ='[1]Tabel 2 NJ DATA'!L127 -> 0 | F132: ='[1]Tabel 2 NJ DATA'!N127 -> 0 | G132: ='[1]Tabel 2 NJ DATA'!O127 -> 0 | I132: ='[1]Tabel 2 NJ DATA'!Q127 -> 0 | J132: ='[1]Tabel 2 NJ DATA'!R127 -> 0
A133: ='[1]Tabel 2 NJ DATA'!I128 -> Farmaceut | C133: ='[1]Tabel 2 NJ DATA'!K128 -> 0 | D133: ='[1]Tabel 2 NJ DATA'!L128 -> 0 | F133: ='[1]Tabel 2 NJ DATA'!N128 -> 0 | G133: ='[1]Tabel 2 NJ DATA'!O128 -> 0 | I133: ='[1]Tabel 2 NJ DATA'!Q128 -> 0 | J133: ='[1]Tabel 2 NJ DATA'!R128 -> 0
A134: ='[1]Tabel 2 NJ DATA'!I129 -> Læge | C134: ='[1]Tabel 2 NJ DATA'!K129 -> 0 | D134: ='[1]Tabel 2 NJ DATA'!L129 -> 0 | F134: ='[1]Tabel 2 NJ DATA'!N129 -> 0 | G134: ='[1]Tabel 2 NJ DATA'!O129 -> 0 | I134: ='[1]Tabel 2 NJ DATA'!Q129 -> 0 | J134: ='[1]Tabel 2 NJ DATA'!R129 -> 0
A135: ='[1]Tabel 2 NJ DATA'!I130 -> Tandlæge | C135: ='[1]Tabel 2 NJ DATA'!K130 -> 0 | D135: ='[1]Tabel 2 NJ DATA'!L130 -> 0 | F135: ='[1]Tabel 2 NJ DATA'!N130 -> 0 | G135: ='[1]Tabel 2 NJ DATA'!O130 -> 0 | I135: ='[1]Tabel 2 NJ DATA'!Q130 -> 0 | J135: ='[1]Tabel 2 NJ DATA'!R130 -> 0
A136: ='[1]Tabel 2 NJ DATA'!I131 -> Arkitekt | C136: ='[1]Tabel 2 NJ DATA'!K131 -> 1 | D136: ='[1]Tabel 2 NJ DATA'!L131 -> 0.9998128859 | F136: ='[1]Tabel 2 NJ DATA'!N131 -> 0 | G136: ='[1]Tabel 2 NJ DATA'!O131 -> 0 | I136: ='[1]Tabel 2 NJ DATA'!Q131 -> 1 | J136: ='[1]Tabel 2 NJ DATA'!R131 -> 0.9998128859
A137: ='[1]Tabel 2 NJ DATA'!I132 -> Landinspek. | C137: ='[1]Tabel 2 NJ DATA'!K132 -> 0 | D137: ='[1]Tabel 2 NJ DATA'!L132 -> 0 | F137: ='[1]Tabel 2 NJ DATA'!N132 -> 0 | G137: ='[1]Tabel 2 NJ DATA'!O132 -> 0 | I137: ='[1]Tabel 2 NJ DATA'!Q132 -> 0 | J137: ='[1]Tabel 2 NJ DATA'!R132 -> 0
A138: ='[1]Tabel 2 NJ DATA'!I133 -> Bibliotekar | C138: ='[1]Tabel 2 NJ DATA'!K133 -> 1 | D138: ='[1]Tabel 2 NJ DATA'!L133 -> 0.6442961392 | F138: ='[1]Tabel 2 NJ DATA'!N133 -> 1 | G138: ='[1]Tabel 2 NJ DATA'!O133 -> 0.9998128859 | I138: ='[1]Tabel 2 NJ DATA'!Q133 -> 2 | J138: ='[1]Tabel 2 NJ DATA'!R133 -> 1.644109025
A139: ='[1]Tabel 2 NJ DATA'!I134 -> Musikudd. | C139: ='[1]Tabel 2 NJ DATA'!K134 -> 0 | D139: ='[1]Tabel 2 NJ DATA'!L134 -> 0 | F139: ='[1]Tabel 2 NJ DATA'!N134 -> 0 | G139: ='[1]Tabel 2 NJ DATA'!O134 -> 0 | I139: ='[1]Tabel 2 NJ DATA'!Q134 -> 0 | J139: ='[1]Tabel 2 NJ DATA'!R134 -> 0
A140: ='[1]Tabel 2 NJ DATA'!I135 -> Teolog | C140: ='[1]Tabel 2 NJ DATA'!K135 -> 0 | D140: ='[1]Tabel 2 NJ DATA'!L135 -> 0 | F140: ='[1]Tabel 2 NJ DATA'!N135 -> 0 | G140: ='[1]Tabel 2 NJ DATA'!O135 -> 0 | I140: ='[1]Tabel 2 NJ DATA'!Q135 -> 0 | J140: ='[1]Tabel 2 NJ DATA'!R135 -> 0
A141: ='[1]Tabel 2 NJ DATA'!I136 -> Psykolog | C141: ='[1]Tabel 2 NJ DATA'!K136 -> 0 | D141: ='[1]Tabel 2 NJ DATA'!L136 -> 0 | F141: ='[1]Tabel 2 NJ DATA'!N136 -> 1 | G141: ='[1]Tabel 2 NJ DATA'!O136 -> 0.3998004117 | I141: ='[1]Tabel 2 NJ DATA'!Q136 -> 1 | J141: ='[1]Tabel 2 NJ DATA'!R136 -> 0.3998004117
A142: ='[1]Tabel 2 NJ DATA'!I137 -> Jurist | C142: ='[1]Tabel 2 NJ DATA'!K137 -> 0 | D142: ='[1]Tabel 2 NJ DATA'!L137 -> 0 | F142: ='[1]Tabel 2 NJ DATA'!N137 -> 0 | G142: ='[1]Tabel 2 NJ DATA'!O137 -> 0 | I142: ='[1]Tabel 2 NJ DATA'!Q137 -> 0 | J142: ='[1]Tabel 2 NJ DATA'!R137 -> 0
A143: ='[1]Tabel 2 NJ DATA'!I138 -> Økonom | C143: ='[1]Tabel 2 NJ DATA'!K138 -> 1 | D143: ='[1]Tabel 2 NJ DATA'!L138 -> 0.6305744402 | F143: ='[1]Tabel 2 NJ DATA'!N138 -> 0 | G143: ='[1]Tabel 2 NJ DATA'!O138 -> 0 | I143: ='[1]Tabel 2 NJ DATA'!Q138 -> 1 | J143: ='[1]Tabel 2 NJ DATA'!R138 -> 0.6305744402
A144: ='[1]Tabel 2 NJ DATA'!I139 -> Samf. Adm. | C144: ='[1]Tabel 2 NJ DATA'!K139 -> 0 | D144: ='[1]Tabel 2 NJ DATA'!L139 -> 0 | F144: ='[1]Tabel 2 NJ DATA'!N139 -> 4 | G144: ='[1]Tabel 2 NJ DATA'!O139 -> 3.999251544 | I144: ='[1]Tabel 2 NJ DATA'!Q139 -> 4 | J144: ='[1]Tabel 2 NJ DATA'!R139 -> 3.999251544
A145: ='[1]Tabel 2 NJ DATA'!I140 -> Cand. Merc. | C145: ='[1]Tabel 2 NJ DATA'!K140 -> 1 | D145: ='[1]Tabel 2 NJ DATA'!L140 -> 0.9998128859 | F145: ='[1]Tabel 2 NJ DATA'!N140 -> 1 | G145: ='[1]Tabel 2 NJ DATA'!O140 -> 0.9998128859 | I145: ='[1]Tabel 2 NJ DATA'!Q140 -> 2 | J145: ='[1]Tabel 2 NJ DATA'!R140 -> 1.999625772
A146: ='[1]Tabel 2 NJ DATA'!I141 -> HA | C146: ='[1]Tabel 2 NJ DATA'!K141 -> 0 | D146: ='[1]Tabel 2 NJ DATA'!L141 -> 0 | F146: ='[1]Tabel 2 NJ DATA'!N141 -> 0 | G146: ='[1]Tabel 2 NJ DATA'!O141 -> 0 | I146: ='[1]Tabel 2 NJ DATA'!Q141 -> 0 | J146: ='[1]Tabel 2 NJ DATA'!R141 -> 0
A147: ='[1]Tabel 2 NJ DATA'!I142 -> HD | C147: ='[1]Tabel 2 NJ DATA'!K142 -> 0 | D147: ='[1]Tabel 2 NJ DATA'!L142 -> 0 | F147: ='[1]Tabel 2 NJ DATA'!N142 -> 0 | G147: ='[1]Tabel 2 NJ DATA'!O142 -> 0 | I147: ='[1]Tabel 2 NJ DATA'!Q142 -> 0 | J147: ='[1]Tabel 2 NJ DATA'!R142 -> 0
A148: ='[1]Tabel 2 NJ DATA'!I143 -> Komm. og Sprog | C148: ='[1]Tabel 2 NJ DATA'!K143 -> 0 | D148: ='[1]Tabel 2 NJ DATA'!L143 -> 0 | F148: ='[1]Tabel 2 NJ DATA'!N143 -> 1 | G148: ='[1]Tabel 2 NJ DATA'!O143 -> 0.9998128859 | I148: ='[1]Tabel 2 NJ DATA'!Q143 -> 1 | J148: ='[1]Tabel 2 NJ DATA'!R143 -> 0.9998128859
A149: ='[1]Tabel 2 NJ DATA'!I144 -> Bygningskonst. | C149: ='[1]Tabel 2 NJ DATA'!K144 -> 0 | D149: ='[1]Tabel 2 NJ DATA'!L144 -> 0 | F149: ='[1]Tabel 2 NJ DATA'!N144 -> 0 | G149: ='[1]Tabel 2 NJ DATA'!O144 -> 0 | I149: ='[1]Tabel 2 NJ DATA'!Q144 -> 0 | J149: ='[1]Tabel 2 NJ DATA'!R144 -> 0
A150: ='[1]Tabel 2 NJ DATA'!I145 -> Cand. IT. | C150: ='[1]Tabel 2 NJ DATA'!K145 -> 0 | D150: ='[1]Tabel 2 NJ DATA'!L145 -> 0 | F150: ='[1]Tabel 2 NJ DATA'!N145 -> 2 | G150: ='[1]Tabel 2 NJ DATA'!O145 -> 1.90731616 | I150: ='[1]Tabel 2 NJ DATA'!Q145 -> 2 | J150: ='[1]Tabel 2 NJ DATA'!R145 -> 1.90731616
A151: ='[1]Tabel 2 NJ DATA'!I146 -> Bac. Samf. | C151: ='[1]Tabel 2 NJ DATA'!K146 -> 0 | D151: ='[1]Tabel 2 NJ DATA'!L146 -> 0 | F151: ='[1]Tabel 2 NJ DATA'!N146 -> 0 | G151: ='[1]Tabel 2 NJ DATA'!O146 -> 0 | I151: ='[1]Tabel 2 NJ DATA'!Q146 -> 0 | J151: ='[1]Tabel 2 NJ DATA'!R146 -> 0
A152: ='[1]Tabel 2 NJ DATA'!I147 -> Bac. Hum. | C152: ='[1]Tabel 2 NJ DATA'!K147 -> 1 | D152: ='[1]Tabel 2 NJ DATA'!L147 -> 0.9374415269 | F152: ='[1]Tabel 2 NJ DATA'!N147 -> 1 | G152: ='[1]Tabel 2 NJ DATA'!O147 -> 0.9998128859 | I152: ='[1]Tabel 2 NJ DATA'!Q147 -> 2 | J152: ='[1]Tabel 2 NJ DATA'!R147 -> 1.937254413
A153: ='[1]Tabel 2 NJ DATA'!I148 -> Bac. Nat. | C153: ='[1]Tabel 2 NJ DATA'!K148 -> 0 | D153: ='[1]Tabel 2 NJ DATA'!L148 -> 0 | F153: ='[1]Tabel 2 NJ DATA'!N148 -> 0 | G153: ='[1]Tabel 2 NJ DATA'!O148 -> 0 | I153: ='[1]Tabel 2 NJ DATA'!Q148 -> 0 | J153: ='[1]Tabel 2 NJ DATA'!R148 -> 0
A154: ='[1]Tabel 2 NJ DATA'!I149 -> Andre | C154: ='[1]Tabel 2 NJ DATA'!K149 -> 0 | D154: ='[1]Tabel 2 NJ DATA'!L149 -> 0 | F154: ='[1]Tabel 2 NJ DATA'!N149 -> 2 | G154: ='[1]Tabel 2 NJ DATA'!O149 -> 1.906068733 | I154: ='[1]Tabel 2 NJ DATA'!Q149 -> 2 | J154: ='[1]Tabel 2 NJ DATA'!R149 -> 1.906068733
A156: ='[1]Tabel 2 NJ DATA'!I151 -> Total | C156: ='[1]Tabel 2 NJ DATA'!K151 -> 15 | D156: ='[1]Tabel 2 NJ DATA'!L151 -> 13.00193351 | F156: ='[1]Tabel 2 NJ DATA'!N151 -> 29 | G156: ='[1]Tabel 2 NJ DATA'!O151 -> 26.07996008 | I156: ='[1]Tabel 2 NJ DATA'!Q151 -> 44 | J156: ='[1]Tabel 2 NJ DATA'!R151 -> 39.08189359
A158: ='[1]Tabel 2 NJ DATA'!I153 -> Ingeniører i alt | C158: ='[1]Tabel 2 NJ DATA'!K153 -> 4 | D158: ='[1]Tabel 2 NJ DATA'!L153 -> 3.999251544 | F158: ='[1]Tabel 2 NJ DATA'!N153 -> 2 | G158: ='[1]Tabel 2 NJ DATA'!O153 -> 1.999625772 | I158: ='[1]Tabel 2 NJ DATA'!Q153 -> 6 | J158: ='[1]Tabel 2 NJ DATA'!R153 -> 5.998877316
A159: ='[1]Tabel 2 NJ DATA'!I154 -> Magistre i alt | C159: ='[1]Tabel 2 NJ DATA'!K154 -> 4 | D159: ='[1]Tabel 2 NJ DATA'!L154 -> 2.975737541 | F159: ='[1]Tabel 2 NJ DATA'!N154 -> 9 | G159: ='[1]Tabel 2 NJ DATA'!O154 -> 7.231959084 | I159: ='[1]Tabel 2 NJ DATA'!Q154 -> 13 | J159: ='[1]Tabel 2 NJ DATA'!R154 -> 10.20769663
A160: ='[1]Tabel 2 NJ DATA'!I155 -> DJØF'ere i alt | C160: ='[1]Tabel 2 NJ DATA'!K155 -> 2 | D160: ='[1]Tabel 2 NJ DATA'!L155 -> 1.630387326 | F160: ='[1]Tabel 2 NJ DATA'!N155 -> 5 | G160: ='[1]Tabel 2 NJ DATA'!O155 -> 4.99906443 | I160: ='[1]Tabel 2 NJ DATA'!Q155 -> 7 | J160: ='[1]Tabel 2 NJ DATA'!R155 -> 6.629451756
A165: ='[1]Tabel 2 NJ DATA'!I158 -> Brønderslev
C167: ='[1]Tabel 2 NJ DATA'!K160 -> Mænd | F167: ='[1]Tabel 2 NJ DATA'!N160 -> Kvinder | I167: ='[1]Tabel 2 NJ DATA'!Q160 -> I alt
C168: ='[1]Tabel 2 NJ DATA'!K161 -> Ledigheds- berørte | D168: ='[1]Tabel 2 NJ DATA'!L161 -> Gns. brutto- ledighed | F168: ='[1]Tabel 2 NJ DATA'!N161 -> Ledigheds- berørte | G168: ='[1]Tabel 2 NJ DATA'!O161 -> Gns. brutto- ledighed | I168: ='[1]Tabel 2 NJ DATA'!Q161 -> Ledigheds- berørte | J168: ='[1]Tabel 2 NJ DATA'!R161 -> Gns. brutto- ledighed
A171: ='[1]Tabel 2 NJ DATA'!I164 -> Civ. ing. | C171: ='[1]Tabel 2 NJ DATA'!K164 -> 3 | D171: ='[1]Tabel 2 NJ DATA'!L164 -> 2.523545188 | F171: ='[1]Tabel 2 NJ DATA'!N164 -> 1 | G171: ='[1]Tabel 2 NJ DATA'!O164 -> 0.9998128859 | I171: ='[1]Tabel 2 NJ DATA'!Q164 -> 4 | J171: ='[1]Tabel 2 NJ DATA'!R164 -> 3.523358074
A172: ='[1]Tabel 2 NJ DATA'!I165 -> Diplom ing. | C172: ='[1]Tabel 2 NJ DATA'!K165 -> 2 | D172: ='[1]Tabel 2 NJ DATA'!L165 -> 1.90731616 | F172: ='[1]Tabel 2 NJ DATA'!N165 -> 0 | G172: ='[1]Tabel 2 NJ DATA'!O165 -> 0 | I172: ='[1]Tabel 2 NJ DATA'!Q165 -> 2 | J172: ='[1]Tabel 2 NJ DATA'!R165 -> 1.90731616
A173: ='[1]Tabel 2 NJ DATA'!I166 -> Cand. Scient. Tek. | C173: ='[1]Tabel 2 NJ DATA'!K166 -> 0 | D173: ='[1]Tabel 2 NJ DATA'!L166 -> 0 | F173: ='[1]Tabel 2 NJ DATA'!N166 -> 2 | G173: ='[1]Tabel 2 NJ DATA'!O166 -> 1.768851743 | I173: ='[1]Tabel 2 NJ DATA'!Q166 -> 2 | J173: ='[1]Tabel 2 NJ DATA'!R166 -> 1.768851743
A174: ='[1]Tabel 2 NJ DATA'!I167 -> MA. Hum. | C174: ='[1]Tabel 2 NJ DATA'!K167 -> 6 | D174: ='[1]Tabel 2 NJ DATA'!L167 -> 5.493045593 | F174: ='[1]Tabel 2 NJ DATA'!N167 -> 5 | G174: ='[1]Tabel 2 NJ DATA'!O167 -> 3.688018462 | I174: ='[1]Tabel 2 NJ DATA'!Q167 -> 11 | J174: ='[1]Tabel 2 NJ DATA'!R167 -> 9.181064055
A175: ='[1]Tabel 2 NJ DATA'!I168 -> MA. Nat. | C175: ='[1]Tabel 2 NJ DATA'!K168 -> 0 | D175: ='[1]Tabel 2 NJ DATA'!L168 -> 0 | F175: ='[1]Tabel 2 NJ DATA'!N168 -> 0 | G175: ='[1]Tabel 2 NJ DATA'!O168 -> 0 | I175: ='[1]Tabel 2 NJ DATA'!Q168 -> 0 | J175: ='[1]Tabel 2 NJ DATA'!R168 -> 0
A176: ='[1]Tabel 2 NJ DATA'!I169 -> MA. Ph.d. | C176: ='[1]Tabel 2 NJ DATA'!K169 -> 0 | D176: ='[1]Tabel 2 NJ DATA'!L169 -> 0 | F176: ='[1]Tabel 2 NJ DATA'!N169 -> 0 | G176: ='[1]Tabel 2 NJ DATA'!O169 -> 0 | I176: ='[1]Tabel 2 NJ DATA'!Q169 -> 0 | J176: ='[1]Tabel 2 NJ DATA'!R169 -> 0
A177: ='[1]Tabel 2 NJ DATA'!I170 -> MA. Samf. | C177: ='[1]Tabel 2 NJ DATA'!K170 -> 1 | D177: ='[1]Tabel 2 NJ DATA'!L170 -> 0.9998128859 | F177: ='[1]Tabel 2 NJ DATA'!N170 -> 1 | G177: ='[1]Tabel 2 NJ DATA'!O170 -> 0.9998128859 | I177: ='[1]Tabel 2 NJ DATA'!Q170 -> 2 | J177: ='[1]Tabel 2 NJ DATA'!R170 -> 1.999625772
A178: ='[1]Tabel 2 NJ DATA'!I171 -> Øvrige Mag. | C178: ='[1]Tabel 2 NJ DATA'!K171 -> 0 | D178: ='[1]Tabel 2 NJ DATA'!L171 -> 0 | F178: ='[1]Tabel 2 NJ DATA'!N171 -> 2 | G178: ='[1]Tabel 2 NJ DATA'!O171 -> 1.999625772 | I178: ='[1]Tabel 2 NJ DATA'!Q171 -> 2 | J178: ='[1]Tabel 2 NJ DATA'!R171 -> 1.999625772
A179: ='[1]Tabel 2 NJ DATA'!I172 -> Agronom | C179: ='[1]Tabel 2 NJ DATA'!K172 -> 0 | D179: ='[1]Tabel 2 NJ DATA'!L172 -> 0 | F179: ='[1]Tabel 2 NJ DATA'!N172 -> 0 | G179: ='[1]Tabel 2 NJ DATA'!O172 -> 0 | I179: ='[1]Tabel 2 NJ DATA'!Q172 -> 0 | J179: ='[1]Tabel 2 NJ DATA'!R172 -> 0
A180: ='[1]Tabel 2 NJ DATA'!I173 -> Landsk. Arkt. | C180: ='[1]Tabel 2 NJ DATA'!K173 -> 0 | D180: ='[1]Tabel 2 NJ DATA'!L173 -> 0 | F180: ='[1]Tabel 2 NJ DATA'!N173 -> 0 | G180: ='[1]Tabel 2 NJ DATA'!O173 -> 0 | I180: ='[1]Tabel 2 NJ DATA'!Q173 -> 0 | J180: ='[1]Tabel 2 NJ DATA'!R173 -> 0
A181: ='[1]Tabel 2 NJ DATA'!I174 -> Hortonom | C181: ='[1]Tabel 2 NJ DATA'!K174 -> 0 | D181: ='[1]Tabel 2 NJ DATA'!L174 -> 0 | F181: ='[1]Tabel 2 NJ DATA'!N174 -> 0 | G181: ='[1]Tabel 2 NJ DATA'!O174 -> 0 | I181: ='[1]Tabel 2 NJ DATA'!Q174 -> 0 | J181: ='[1]Tabel 2 NJ DATA'!R174 -> 0
A182: ='[1]Tabel 2 NJ DATA'!I175 -> Forstkand. | C182: ='[1]Tabel 2 NJ DATA'!K175 -> 0 | D182: ='[1]Tabel 2 NJ DATA'!L175 -> 0 | F182: ='[1]Tabel 2 NJ DATA'!N175 -> 0 | G182: ='[1]Tabel 2 NJ DATA'!O175 -> 0 | I182: ='[1]Tabel 2 NJ DATA'!Q175 -> 0 | J182: ='[1]Tabel 2 NJ DATA'!R175 -> 0
A183: ='[1]Tabel 2 NJ DATA'!I176 -> Jordbrugsakad. | C183: ='[1]Tabel 2 NJ DATA'!K176 -> 0 | D183: ='[1]Tabel 2 NJ DATA'!L176 -> 0 | F183: ='[1]Tabel 2 NJ DATA'!N176 -> 0 | G183: ='[1]Tabel 2 NJ DATA'!O176 -> 0 | I183: ='[1]Tabel 2 NJ DATA'!Q176 -> 0 | J183: ='[1]Tabel 2 NJ DATA'!R176 -> 0
A184: ='[1]Tabel 2 NJ DATA'!I177 -> Mejeriing. | C184: ='[1]Tabel 2 NJ DATA'!K177 -> 0 | D184: ='[1]Tabel 2 NJ DATA'!L177 -> 0 | F184: ='[1]Tabel 2 NJ DATA'!N177 -> 0 | G184: ='[1]Tabel 2 NJ DATA'!O177 -> 0 | I184: ='[1]Tabel 2 NJ DATA'!Q177 -> 0 | J184: ='[1]Tabel 2 NJ DATA'!R177 -> 0
A185: ='[1]Tabel 2 NJ DATA'!I178 -> Levn.m.kand. | C185: ='[1]Tabel 2 NJ DATA'!K178 -> 0 | D185: ='[1]Tabel 2 NJ DATA'!L178 -> 0 | F185: ='[1]Tabel 2 NJ DATA'!N178 -> 0 | G185: ='[1]Tabel 2 NJ DATA'!O178 -> 0 | I185: ='[1]Tabel 2 NJ DATA'!Q178 -> 0 | J185: ='[1]Tabel 2 NJ DATA'!R178 -> 0
A186: ='[1]Tabel 2 NJ DATA'!I179 -> Dyrlæge | C186: ='[1]Tabel 2 NJ DATA'!K179 -> 0 | D186: ='[1]Tabel 2 NJ DATA'!L179 -> 0 | F186: ='[1]Tabel 2 NJ DATA'!N179 -> 1 | G186: ='[1]Tabel 2 NJ DATA'!O179 -> 0.8463793426 | I186: ='[1]Tabel 2 NJ DATA'!Q179 -> 1 | J186: ='[1]Tabel 2 NJ DATA'!R179 -> 0.8463793426
A187: ='[1]Tabel 2 NJ DATA'!I180 -> Farmaceut | C187: ='[1]Tabel 2 NJ DATA'!K180 -> 0 | D187: ='[1]Tabel 2 NJ DATA'!L180 -> 0 | F187: ='[1]Tabel 2 NJ DATA'!N180 -> 0 | G187: ='[1]Tabel 2 NJ DATA'!O180 -> 0 | I187: ='[1]Tabel 2 NJ DATA'!Q180 -> 0 | J187: ='[1]Tabel 2 NJ DATA'!R180 -> 0
A188: ='[1]Tabel 2 NJ DATA'!I181 -> Læge | C188: ='[1]Tabel 2 NJ DATA'!K181 -> 0 | D188: ='[1]Tabel 2 NJ DATA'!L181 -> 0 | F188: ='[1]Tabel 2 NJ DATA'!N181 -> 0 | G188: ='[1]Tabel 2 NJ DATA'!O181 -> 0 | I188: ='[1]Tabel 2 NJ DATA'!Q181 -> 0 | J188: ='[1]Tabel 2 NJ DATA'!R181 -> 0
A189: ='[1]Tabel 2 NJ DATA'!I182 -> Tandlæge | C189: ='[1]Tabel 2 NJ DATA'!K182 -> 0 | D189: ='[1]Tabel 2 NJ DATA'!L182 -> 0 | F189: ='[1]Tabel 2 NJ DATA'!N182 -> 0 | G189: ='[1]Tabel 2 NJ DATA'!O182 -> 0 | I189: ='[1]Tabel 2 NJ DATA'!Q182 -> 0 | J189: ='[1]Tabel 2 NJ DATA'!R182 -> 0
A190: ='[1]Tabel 2 NJ DATA'!I183 -> Arkitekt | C190: ='[1]Tabel 2 NJ DATA'!K183 -> 0 | D190: ='[1]Tabel 2 NJ DATA'!L183 -> 0 | F190: ='[1]Tabel 2 NJ DATA'!N183 -> 0 | G190: ='[1]Tabel 2 NJ DATA'!O183 -> 0 | I190: ='[1]Tabel 2 NJ DATA'!Q183 -> 0 | J190: ='[1]Tabel 2 NJ DATA'!R183 -> 0
A191: ='[1]Tabel 2 NJ DATA'!I184 -> Landinspek. | C191: ='[1]Tabel 2 NJ DATA'!K184 -> 0 | D191: ='[1]Tabel 2 NJ DATA'!L184 -> 0 | F191: ='[1]Tabel 2 NJ DATA'!N184 -> 0 | G191: ='[1]Tabel 2 NJ DATA'!O184 -> 0 | I191: ='[1]Tabel 2 NJ DATA'!Q184 -> 0 | J191: ='[1]Tabel 2 NJ DATA'!R184 -> 0
A192: ='[1]Tabel 2 NJ DATA'!I185 -> Bibliotekar | C192: ='[1]Tabel 2 NJ DATA'!K185 -> 0 | D192: ='[1]Tabel 2 NJ DATA'!L185 -> 0 | F192: ='[1]Tabel 2 NJ DATA'!N185 -> 0 | G192: ='[1]Tabel 2 NJ DATA'!O185 -> 0 | I192: ='[1]Tabel 2 NJ DATA'!Q185 -> 0 | J192: ='[1]Tabel 2 NJ DATA'!R185 -> 0
A193: ='[1]Tabel 2 NJ DATA'!I186 -> Musikudd. | C193: ='[1]Tabel 2 NJ DATA'!K186 -> 0 | D193: ='[1]Tabel 2 NJ DATA'!L186 -> 0 | F193: ='[1]Tabel 2 NJ DATA'!N186 -> 0 | G193: ='[1]Tabel 2 NJ DATA'!O186 -> 0 | I193: ='[1]Tabel 2 NJ DATA'!Q186 -> 0 | J193: ='[1]Tabel 2 NJ DATA'!R186 -> 0
A194: ='[1]Tabel 2 NJ DATA'!I187 -> Teolog | C194: ='[1]Tabel 2 NJ DATA'!K187 -> 1 | D194: ='[1]Tabel 2 NJ DATA'!L187 -> 0.9998128859 | F194: ='[1]Tabel 2 NJ DATA'!N187 -> 0 | G194: ='[1]Tabel 2 NJ DATA'!O187 -> 0 | I194: ='[1]Tabel 2 NJ DATA'!Q187 -> 1 | J194: ='[1]Tabel 2 NJ DATA'!R187 -> 0.9998128859
A195: ='[1]Tabel 2 NJ DATA'!I188 -> Psykolog | C195: ='[1]Tabel 2 NJ DATA'!K188 -> 0 | D195: ='[1]Tabel 2 NJ DATA'!L188 -> 0 | F195: ='[1]Tabel 2 NJ DATA'!N188 -> 1 | G195: ='[1]Tabel 2 NJ DATA'!O188 -> 0.9998128859 | I195: ='[1]Tabel 2 NJ DATA'!Q188 -> 1 | J195: ='[1]Tabel 2 NJ DATA'!R188 -> 0.9998128859
A196: ='[1]Tabel 2 NJ DATA'!I189 -> Jurist | C196: ='[1]Tabel 2 NJ DATA'!K189 -> 0 | D196: ='[1]Tabel 2 NJ DATA'!L189 -> 0 | F196: ='[1]Tabel 2 NJ DATA'!N189 -> 1 | G196: ='[1]Tabel 2 NJ DATA'!O189 -> 0.9536580802 | I196: ='[1]Tabel 2 NJ DATA'!Q189 -> 1 | J196: ='[1]Tabel 2 NJ DATA'!R189 -> 0.9536580802
A197: ='[1]Tabel 2 NJ DATA'!I190 -> Økonom | C197: ='[1]Tabel 2 NJ DATA'!K190 -> 0 | D197: ='[1]Tabel 2 NJ DATA'!L190 -> 0 | F197: ='[1]Tabel 2 NJ DATA'!N190 -> 0 | G197: ='[1]Tabel 2 NJ DATA'!O190 -> 0 | I197: ='[1]Tabel 2 NJ DATA'!Q190 -> 0 | J197: ='[1]Tabel 2 NJ DATA'!R190 -> 0
A198: ='[1]Tabel 2 NJ DATA'!I191 -> Samf. Adm. | C198: ='[1]Tabel 2 NJ DATA'!K191 -> 2 | D198: ='[1]Tabel 2 NJ DATA'!L191 -> 1.999625772 | F198: ='[1]Tabel 2 NJ DATA'!N191 -> 3 | G198: ='[1]Tabel 2 NJ DATA'!O191 -> 2.687581862 | I198: ='[1]Tabel 2 NJ DATA'!Q191 -> 5 | J198: ='[1]Tabel 2 NJ DATA'!R191 -> 4.687207634
A199: ='[1]Tabel 2 NJ DATA'!I192 -> Cand. Merc. | C199: ='[1]Tabel 2 NJ DATA'!K192 -> 3 | D199: ='[1]Tabel 2 NJ DATA'!L192 -> 2.999438658 | F199: ='[1]Tabel 2 NJ DATA'!N192 -> 3 | G199: ='[1]Tabel 2 NJ DATA'!O192 -> 2.999438658 | I199: ='[1]Tabel 2 NJ DATA'!Q192 -> 6 | J199: ='[1]Tabel 2 NJ DATA'!R192 -> 5.998877316
A200: ='[1]Tabel 2 NJ DATA'!I193 -> HA | C200: ='[1]Tabel 2 NJ DATA'!K193 -> 1 | D200: ='[1]Tabel 2 NJ DATA'!L193 -> 0.9998128859 | F200: ='[1]Tabel 2 NJ DATA'!N193 -> 0 | G200: ='[1]Tabel 2 NJ DATA'!O193 -> 0 | I200: ='[1]Tabel 2 NJ DATA'!Q193 -> 1 | J200: ='[1]Tabel 2 NJ DATA'!R193 -> 0.9998128859
A201: ='[1]Tabel 2 NJ DATA'!I194 -> HD | C201: ='[1]Tabel 2 NJ DATA'!K194 -> 0 | D201: ='[1]Tabel 2 NJ DATA'!L194 -> 0 | F201: ='[1]Tabel 2 NJ DATA'!N194 -> 0 | G201: ='[1]Tabel 2 NJ DATA'!O194 -> 0 | I201: ='[1]Tabel 2 NJ DATA'!Q194 -> 0 | J201: ='[1]Tabel 2 NJ DATA'!R194 -> 0
A202: ='[1]Tabel 2 NJ DATA'!I195 -> Komm. og Sprog | C202: ='[1]Tabel 2 NJ DATA'!K195 -> 1 | D202: ='[1]Tabel 2 NJ DATA'!L195 -> 0.9998128859 | F202: ='[1]Tabel 2 NJ DATA'!N195 -> 0 | G202: ='[1]Tabel 2 NJ DATA'!O195 -> 0 | I202: ='[1]Tabel 2 NJ DATA'!Q195 -> 1 | J202: ='[1]Tabel 2 NJ DATA'!R195 -> 0.9998128859
A203: ='[1]Tabel 2 NJ DATA'!I196 -> Bygningskonst. | C203: ='[1]Tabel 2 NJ DATA'!K196 -> 1 | D203: ='[1]Tabel 2 NJ DATA'!L196 -> 1 | F203: ='[1]Tabel 2 NJ DATA'!N196 -> 0 | G203: ='[1]Tabel 2 NJ DATA'!O196 -> 0 | I203: ='[1]Tabel 2 NJ DATA'!Q196 -> 1 | J203: ='[1]Tabel 2 NJ DATA'!R196 -> 1
A204: ='[1]Tabel 2 NJ DATA'!I197 -> Cand. IT. | C204: ='[1]Tabel 2 NJ DATA'!K197 -> 0 | D204: ='[1]Tabel 2 NJ DATA'!L197 -> 0 | F204: ='[1]Tabel 2 NJ DATA'!N197 -> 2 | G204: ='[1]Tabel 2 NJ DATA'!O197 -> 0.7952348282 | I204: ='[1]Tabel 2 NJ DATA'!Q197 -> 2 | J204: ='[1]Tabel 2 NJ DATA'!R197 -> 0.7952348282
A205: ='[1]Tabel 2 NJ DATA'!I198 -> Bac. Samf. | C205: ='[1]Tabel 2 NJ DATA'!K198 -> 0 | D205: ='[1]Tabel 2 NJ DATA'!L198 -> 0 | F205: ='[1]Tabel 2 NJ DATA'!N198 -> 0 | G205: ='[1]Tabel 2 NJ DATA'!O198 -> 0 | I205: ='[1]Tabel 2 NJ DATA'!Q198 -> 0 | J205: ='[1]Tabel 2 NJ DATA'!R198 -> 0
A206: ='[1]Tabel 2 NJ DATA'!I199 -> Bac. Hum. | C206: ='[1]Tabel 2 NJ DATA'!K199 -> 1 | D206: ='[1]Tabel 2 NJ DATA'!L199 -> 0.9998128859 | F206: ='[1]Tabel 2 NJ DATA'!N199 -> 1 | G206: ='[1]Tabel 2 NJ DATA'!O199 -> 0.9998128859 | I206: ='[1]Tabel 2 NJ DATA'!Q199 -> 2 | J206: ='[1]Tabel 2 NJ DATA'!R199 -> 1.999625772
A207: ='[1]Tabel 2 NJ DATA'!I200 -> Bac. Nat. | C207: ='[1]Tabel 2 NJ DATA'!K200 -> 0 | D207: ='[1]Tabel 2 NJ DATA'!L200 -> 0 | F207: ='[1]Tabel 2 NJ DATA'!N200 -> 0 | G207: ='[1]Tabel 2 NJ DATA'!O200 -> 0 | I207: ='[1]Tabel 2 NJ DATA'!Q200 -> 0 | J207: ='[1]Tabel 2 NJ DATA'!R200 -> 0
A208: ='[1]Tabel 2 NJ DATA'!I201 -> Andre | C208: ='[1]Tabel 2 NJ DATA'!K201 -> 0 | D208: ='[1]Tabel 2 NJ DATA'!L201 -> 0 | F208: ='[1]Tabel 2 NJ DATA'!N201 -> 3 | G208: ='[1]Tabel 2 NJ DATA'!O201 -> 1.858042787 | I208: ='[1]Tabel 2 NJ DATA'!Q201 -> 3 | J208: ='[1]Tabel 2 NJ DATA'!R201 -> 1.858042787
A210: ='[1]Tabel 2 NJ DATA'!I203 -> Total | C210: ='[1]Tabel 2 NJ DATA'!K203 -> 22 | D210: ='[1]Tabel 2 NJ DATA'!L203 -> 20.9220358 | F210: ='[1]Tabel 2 NJ DATA'!N203 -> 26 | G210: ='[1]Tabel 2 NJ DATA'!O203 -> 21.59608308 | I210: ='[1]Tabel 2 NJ DATA'!Q203 -> 48 | J210: ='[1]Tabel 2 NJ DATA'!R203 -> 42.51811888
A212: ='[1]Tabel 2 NJ DATA'!I205 -> Ingeniører i alt | C212: ='[1]Tabel 2 NJ DATA'!K205 -> 5 | D212: ='[1]Tabel 2 NJ DATA'!L205 -> 4.430861348 | F212: ='[1]Tabel 2 NJ DATA'!N205 -> 1 | G212: ='[1]Tabel 2 NJ DATA'!O205 -> 0.9998128859 | I212: ='[1]Tabel 2 NJ DATA'!Q205 -> 6 | J212: ='[1]Tabel 2 NJ DATA'!R205 -> 5.430674234
A213: ='[1]Tabel 2 NJ DATA'!I206 -> Magistre i alt | C213: ='[1]Tabel 2 NJ DATA'!K206 -> 7 | D213: ='[1]Tabel 2 NJ DATA'!L206 -> 6.492858479 | F213: ='[1]Tabel 2 NJ DATA'!N206 -> 8 | G213: ='[1]Tabel 2 NJ DATA'!O206 -> 6.68745712 | I213: ='[1]Tabel 2 NJ DATA'!Q206 -> 15 | J213: ='[1]Tabel 2 NJ DATA'!R206 -> 13.1803156
A214: ='[1]Tabel 2 NJ DATA'!I207 -> DJØF'ere i alt | C214: ='[1]Tabel 2 NJ DATA'!K207 -> 6 | D214: ='[1]Tabel 2 NJ DATA'!L207 -> 5.998877316 | F214: ='[1]Tabel 2 NJ DATA'!N207 -> 7 | G214: ='[1]Tabel 2 NJ DATA'!O207 -> 6.6406786 | I214: ='[1]Tabel 2 NJ DATA'!Q207 -> 13 | J214: ='[1]Tabel 2 NJ DATA'!R207 -> 12.63955592
A219: ='[1]Tabel 2 NJ DATA'!I210 -> Frederikshavn
C221: ='[1]Tabel 2 NJ DATA'!K212 -> Mænd | F221: ='[1]Tabel 2 NJ DATA'!N212 -> Kvinder | I221: ='[1]Tabel 2 NJ DATA'!Q212 -> I alt
C222: ='[1]Tabel 2 NJ DATA'!K213 -> Ledigheds- berørte | D222: ='[1]Tabel 2 NJ DATA'!L213 -> Gns. brutto- ledighed | F222: ='[1]Tabel 2 NJ DATA'!N213 -> Ledigheds- berørte | G222: ='[1]Tabel 2 NJ DATA'!O213 -> Gns. brutto- ledighed | I222: ='[1]Tabel 2 NJ DATA'!Q213 -> Ledigheds- berørte | J222: ='[1]Tabel 2 NJ DATA'!R213 -> Gns. brutto- ledighed
A225: ='[1]Tabel 2 NJ DATA'!I216 -> Civ. ing. | C225: ='[1]Tabel 2 NJ DATA'!K216 -> 0 | D225: ='[1]Tabel 2 NJ DATA'!L216 -> 0 | F225: ='[1]Tabel 2 NJ DATA'!N216 -> 0 | G225: ='[1]Tabel 2 NJ DATA'!O216 -> 0 | I225: ='[1]Tabel 2 NJ DATA'!Q216 -> 0 | J225: ='[1]Tabel 2 NJ DATA'!R216 -> 0
A226: ='[1]Tabel 2 NJ DATA'!I217 -> Diplom ing. | C226: ='[1]Tabel 2 NJ DATA'!K217 -> 3 | D226: ='[1]Tabel 2 NJ DATA'!L217 -> 2.999438658 | F226: ='[1]Tabel 2 NJ DATA'!N217 -> 0 | G226: ='[1]Tabel 2 NJ DATA'!O217 -> 0 | I226: ='[1]Tabel 2 NJ DATA'!Q217 -> 3 | J226: ='[1]Tabel 2 NJ DATA'!R217 -> 2.999438658
A227: ='[1]Tabel 2 NJ DATA'!I218 -> Cand. Scient. Tek. | C227: ='[1]Tabel 2 NJ DATA'!K218 -> 1 | D227: ='[1]Tabel 2 NJ DATA'!L218 -> 0.9998128859 | F227: ='[1]Tabel 2 NJ DATA'!N218 -> 1 | G227: ='[1]Tabel 2 NJ DATA'!O218 -> 0.9998128859 | I227: ='[1]Tabel 2 NJ DATA'!Q218 -> 2 | J227: ='[1]Tabel 2 NJ DATA'!R218 -> 1.999625772
A228: ='[1]Tabel 2 NJ DATA'!I219 -> MA. Hum. | C228: ='[1]Tabel 2 NJ DATA'!K219 -> 5 | D228: ='[1]Tabel 2 NJ DATA'!L219 -> 4.123370548 | F228: ='[1]Tabel 2 NJ DATA'!N219 -> 12 | G228: ='[1]Tabel 2 NJ DATA'!O219 -> 10.70916235 | I228: ='[1]Tabel 2 NJ DATA'!Q219 -> 17 | J228: ='[1]Tabel 2 NJ DATA'!R219 -> 14.8325329
A229: ='[1]Tabel 2 NJ DATA'!I220 -> MA. Nat. | C229: ='[1]Tabel 2 NJ DATA'!K220 -> 1 | D229: ='[1]Tabel 2 NJ DATA'!L220 -> 0.9998128859 | F229: ='[1]Tabel 2 NJ DATA'!N220 -> 0 | G229: ='[1]Tabel 2 NJ DATA'!O220 -> 0 | I229: ='[1]Tabel 2 NJ DATA'!Q220 -> 1 | J229: ='[1]Tabel 2 NJ DATA'!R220 -> 0.9998128859
A230: ='[1]Tabel 2 NJ DATA'!I221 -> MA. Ph.d. | C230: ='[1]Tabel 2 NJ DATA'!K221 -> 0 | D230: ='[1]Tabel 2 NJ DATA'!L221 -> 0 | F230: ='[1]Tabel 2 NJ DATA'!N221 -> 0 | G230: ='[1]Tabel 2 NJ DATA'!O221 -> 0 | I230: ='[1]Tabel 2 NJ DATA'!Q221 -> 0 | J230: ='[1]Tabel 2 NJ DATA'!R221 -> 0
A231: ='[1]Tabel 2 NJ DATA'!I222 -> MA. Samf. | C231: ='[1]Tabel 2 NJ DATA'!K222 -> 0 | D231: ='[1]Tabel 2 NJ DATA'!L222 -> 0 | F231: ='[1]Tabel 2 NJ DATA'!N222 -> 1 | G231: ='[1]Tabel 2 NJ DATA'!O222 -> 0.9998128859 | I231: ='[1]Tabel 2 NJ DATA'!Q222 -> 1 | J231: ='[1]Tabel 2 NJ DATA'!R222 -> 0.9998128859
A232: ='[1]Tabel 2 NJ DATA'!I223 -> Øvrige Mag. | C232: ='[1]Tabel 2 NJ DATA'!K223 -> 0 | D232: ='[1]Tabel 2 NJ DATA'!L223 -> 0 | F232: ='[1]Tabel 2 NJ DATA'!N223 -> 0 | G232: ='[1]Tabel 2 NJ DATA'!O223 -> 0 | I232: ='[1]Tabel 2 NJ DATA'!Q223 -> 0 | J232: ='[1]Tabel 2 NJ DATA'!R223 -> 0
A233: ='[1]Tabel 2 NJ DATA'!I224 -> Agronom | C233: ='[1]Tabel 2 NJ DATA'!K224 -> 0 | D233: ='[1]Tabel 2 NJ DATA'!L224 -> 0 | F233: ='[1]Tabel 2 NJ DATA'!N224 -> 0 | G233: ='[1]Tabel 2 NJ DATA'!O224 -> 0 | I233: ='[1]Tabel 2 NJ DATA'!Q224 -> 0 | J233: ='[1]Tabel 2 NJ DATA'!R224 -> 0
A234: ='[1]Tabel 2 NJ DATA'!I225 -> Landsk. Arkt. | C234: ='[1]Tabel 2 NJ DATA'!K225 -> 0 | D234: ='[1]Tabel 2 NJ DATA'!L225 -> 0 | F234: ='[1]Tabel 2 NJ DATA'!N225 -> 0 | G234: ='[1]Tabel 2 NJ DATA'!O225 -> 0 | I234: ='[1]Tabel 2 NJ DATA'!Q225 -> 0 | J234: ='[1]Tabel 2 NJ DATA'!R225 -> 0
A235: ='[1]Tabel 2 NJ DATA'!I226 -> Hortonom | C235: ='[1]Tabel 2 NJ DATA'!K226 -> 0 | D235: ='[1]Tabel 2 NJ DATA'!L226 -> 0 | F235: ='[1]Tabel 2 NJ DATA'!N226 -> 0 | G235: ='[1]Tabel 2 NJ DATA'!O226 -> 0 | I235: ='[1]Tabel 2 NJ DATA'!Q226 -> 0 | J235: ='[1]Tabel 2 NJ DATA'!R226 -> 0
A236: ='[1]Tabel 2 NJ DATA'!I227 -> Forstkand. | C236: ='[1]Tabel 2 NJ DATA'!K227 -> 0 | D236: ='[1]Tabel 2 NJ DATA'!L227 -> 0 | F236: ='[1]Tabel 2 NJ DATA'!N227 -> 0 | G236: ='[1]Tabel 2 NJ DATA'!O227 -> 0 | I236: ='[1]Tabel 2 NJ DATA'!Q227 -> 0 | J236: ='[1]Tabel 2 NJ DATA'!R227 -> 0
A237: ='[1]Tabel 2 NJ DATA'!I228 -> Jordbrugsakad. | C237: ='[1]Tabel 2 NJ DATA'!K228 -> 0 | D237: ='[1]Tabel 2 NJ DATA'!L228 -> 0 | F237: ='[1]Tabel 2 NJ DATA'!N228 -> 0 | G237: ='[1]Tabel 2 NJ DATA'!O228 -> 0 | I237: ='[1]Tabel 2 NJ DATA'!Q228 -> 0 | J237: ='[1]Tabel 2 NJ DATA'!R228 -> 0
A238: ='[1]Tabel 2 NJ DATA'!I229 -> Mejeriing. | C238: ='[1]Tabel 2 NJ DATA'!K229 -> 0 | D238: ='[1]Tabel 2 NJ DATA'!L229 -> 0 | F238: ='[1]Tabel 2 NJ DATA'!N229 -> 0 | G238: ='[1]Tabel 2 NJ DATA'!O229 -> 0 | I238: ='[1]Tabel 2 NJ DATA'!Q229 -> 0 | J238: ='[1]Tabel 2 NJ DATA'!R229 -> 0
A239: ='[1]Tabel 2 NJ DATA'!I230 -> Levn.m.kand. | C239: ='[1]Tabel 2 NJ DATA'!K230 -> 0 | D239: ='[1]Tabel 2 NJ DATA'!L230 -> 0 | F239: ='[1]Tabel 2 NJ DATA'!N230 -> 0 | G239: ='[1]Tabel 2 NJ DATA'!O230 -> 0 | I239: ='[1]Tabel 2 NJ DATA'!Q230 -> 0 | J239: ='[1]Tabel 2 NJ DATA'!R230 -> 0
A240: ='[1]Tabel 2 NJ DATA'!I231 -> Dyrlæge | C240: ='[1]Tabel 2 NJ DATA'!K231 -> 0 | D240: ='[1]Tabel 2 NJ DATA'!L231 -> 0 | F240: ='[1]Tabel 2 NJ DATA'!N231 -> 1 | G240: ='[1]Tabel 2 NJ DATA'!O231 -> 0.9998128859 | I240: ='[1]Tabel 2 NJ DATA'!Q231 -> 1 | J240: ='[1]Tabel 2 NJ DATA'!R231 -> 0.9998128859
... 341 more rows

Sheet Tabel 3 NJ
A1: Tabel 3. Ledige i procent af forsikrede
A3: Nordjylland
C5: Mænd | F5: Kvinder | I5: I alt
C6: Ledigheds- berørte | D6: Gns. brutto- ledighed | F6: Ledigheds- berørte | G6: Gns. brutto- ledighed | I6: Ledigheds- berørte | J6: Gns. brutto- ledighed
A9: Civ. ing. | C9: =IF(OR('Tabel 1 NJ'!C7<5,'Tabel 2 NJ'!C9<0.5),"-",IFERROR('Tabel 2 NJ'!C9/'Tabel 1 NJ'!C7*100,"-")) -> 2.937249666 | D9: =IF(OR('Tabel 1 NJ'!C7<5,'Tabel 2 NJ'!D9<0.5),"-",IFERROR('Tabel 2 NJ'!D9/'Tabel 1 NJ'!C7*100,"-")) -> 2.683092623 | F9: =IF(OR('Tabel 1 NJ'!E7<5,'Tabel 2 NJ'!F9<0.5),"-",IFERROR('Tabel 2 NJ'!F9/'Tabel 1 NJ'!E7*100,"-")) -> 5.616740088 | G9: =IF(OR('Tabel 1 NJ'!E7<5,'Tabel 2 NJ'!G9<0.5),"-",IFERROR('Tabel 2 NJ'!G9/'Tabel 1 NJ'!E7*100,"-")) -> 4.993624108 | I9: =IF(OR('Tabel 1 NJ'!G7<5,'Tabel 2 NJ'!I9<0.5),"-",IFERROR('Tabel 2 NJ'!I9/'Tabel 1 NJ'!G7*100,"-")) -> 3.56045082 | J9: =IF(OR('Tabel 1 NJ'!G7<5,'Tabel 2 NJ'!J9<0.5),"-",IFERROR('Tabel 2 NJ'!J9/'Tabel 1 NJ'!G7*100,"-")) -> 3.220480582
A10: Diplom ing. | C10: =IF(OR('Tabel 1 NJ'!C8<5,'Tabel 2 NJ'!C10<0.5),"-",IFERROR('Tabel 2 NJ'!C10/'Tabel 1 NJ'!C8*100,"-")) -> 4.390243902 | D10: =IF(OR('Tabel 1 NJ'!C8<5,'Tabel 2 NJ'!D10<0.5),"-",IFERROR('Tabel 2 NJ'!D10/'Tabel 1 NJ'!C8*100,"-")) -> 4.135221106 | F10: =IF(OR('Tabel 1 NJ'!E8<5,'Tabel 2 NJ'!F10<0.5),"-",IFERROR('Tabel 2 NJ'!F10/'Tabel 1 NJ'!E8*100,"-")) -> 4.184100418 | G10: =IF(OR('Tabel 1 NJ'!E8<5,'Tabel 2 NJ'!G10<0.5),"-",IFERROR('Tabel 2 NJ'!G10/'Tabel 1 NJ'!E8*100,"-")) -> 3.942965959 | I10: =IF(OR('Tabel 1 NJ'!G8<5,'Tabel 2 NJ'!I10<0.5),"-",IFERROR('Tabel 2 NJ'!I10/'Tabel 1 NJ'!G8*100,"-")) -> 4.356705242 | J10: =IF(OR('Tabel 1 NJ'!G8<5,'Tabel 2 NJ'!J10<0.5),"-",IFERROR('Tabel 2 NJ'!J10/'Tabel 1 NJ'!G8*100,"-")) -> 4.103942018
A11: Cand. Scient. Tek. | C11: =IF(OR('Tabel 1 NJ'!C9<5,'Tabel 2 NJ'!C11<0.5),"-",IFERROR('Tabel 2 NJ'!C11/'Tabel 1 NJ'!C9*100,"-")) -> 11.15660184 | D11: =IF(OR('Tabel 1 NJ'!C9<5,'Tabel 2 NJ'!D11<0.5),"-",IFERROR('Tabel 2 NJ'!D11/'Tabel 1 NJ'!C9*100,"-")) -> 10.12752549 | F11: =IF(OR('Tabel 1 NJ'!E9<5,'Tabel 2 NJ'!F11<0.5),"-",IFERROR('Tabel 2 NJ'!F11/'Tabel 1 NJ'!E9*100,"-")) -> 13.4502924 | G11: =IF(OR('Tabel 1 NJ'!E9<5,'Tabel 2 NJ'!G11<0.5),"-",IFERROR('Tabel 2 NJ'!G11/'Tabel 1 NJ'!E9*100,"-")) -> 12.0270947 | I11: =IF(OR('Tabel 1 NJ'!G9<5,'Tabel 2 NJ'!I11<0.5),"-",IFERROR('Tabel 2 NJ'!I11/'Tabel 1 NJ'!G9*100,"-")) -> 11.94630872 | J11: =IF(OR('Tabel 1 NJ'!G9<5,'Tabel 2 NJ'!J11<0.5),"-",IFERROR('Tabel 2 NJ'!J11/'Tabel 1 NJ'!G9*100,"-")) -> 10.78153825
A12: MA. Hum. | C12: =IF(OR('Tabel 1 NJ'!C10<5,'Tabel 2 NJ'!C12<0.5),"-",IFERROR('Tabel 2 NJ'!C12/'Tabel 1 NJ'!C10*100,"-")) -> 13.73737374 | D12: =IF(OR('Tabel 1 NJ'!C10<5,'Tabel 2 NJ'!D12<0.5),"-",IFERROR('Tabel 2 NJ'!D12/'Tabel 1 NJ'!C10*100,"-")) -> 12.45316635 | F12: =IF(OR('Tabel 1 NJ'!E10<5,'Tabel 2 NJ'!F12<0.5),"-",IFERROR('Tabel 2 NJ'!F12/'Tabel 1 NJ'!E10*100,"-")) -> 12.92217327 | G12: =IF(OR('Tabel 1 NJ'!E10<5,'Tabel 2 NJ'!G12<0.5),"-",IFERROR('Tabel 2 NJ'!G12/'Tabel 1 NJ'!E10*100,"-")) -> 11.39548848 | I12: =IF(OR('Tabel 1 NJ'!G10<5,'Tabel 2 NJ'!I12<0.5),"-",IFERROR('Tabel 2 NJ'!I12/'Tabel 1 NJ'!G10*100,"-")) -> 13.18826245 | J12: =IF(OR('Tabel 1 NJ'!G10<5,'Tabel 2 NJ'!J12<0.5),"-",IFERROR('Tabel 2 NJ'!J12/'Tabel 1 NJ'!G10*100,"-")) -> 11.74072458
A13: MA. Nat. | C13: =IF(OR('Tabel 1 NJ'!C11<5,'Tabel 2 NJ'!C13<0.5),"-",IFERROR('Tabel 2 NJ'!C13/'Tabel 1 NJ'!C11*100,"-")) -> 3.626943005 | D13: =IF(OR('Tabel 1 NJ'!C11<5,'Tabel 2 NJ'!D13<0.5),"-",IFERROR('Tabel 2 NJ'!D13/'Tabel 1 NJ'!C11*100,"-")) -> 3.016123804 | F13: =IF(OR('Tabel 1 NJ'!E11<5,'Tabel 2 NJ'!F13<0.5),"-",IFERROR('Tabel 2 NJ'!F13/'Tabel 1 NJ'!E11*100,"-")) -> 4.545454545 | G13: =IF(OR('Tabel 1 NJ'!E11<5,'Tabel 2 NJ'!G13<0.5),"-",IFERROR('Tabel 2 NJ'!G13/'Tabel 1 NJ'!E11*100,"-")) -> 4.020522607 | I13: =IF(OR('Tabel 1 NJ'!G11<5,'Tabel 2 NJ'!I13<0.5),"-",IFERROR('Tabel 2 NJ'!I13/'Tabel 1 NJ'!G11*100,"-")) -> 4.034582133 | J13: =IF(OR('Tabel 1 NJ'!G11<5,'Tabel 2 NJ'!J13<0.5),"-",IFERROR('Tabel 2 NJ'!J13/'Tabel 1 NJ'!G11*100,"-")) -> 3.461880045
A14: MA. Ph.d. | C14: =IF(OR('Tabel 1 NJ'!C12<5,'Tabel 2 NJ'!C14<0.5),"-",IFERROR('Tabel 2 NJ'!C14/'Tabel 1 NJ'!C12*100,"-")) -> 1.724137931 | D14: =IF(OR('Tabel 1 NJ'!C12<5,'Tabel 2 NJ'!D14<0.5),"-",IFERROR('Tabel 2 NJ'!D14/'Tabel 1 NJ'!C12*100,"-")) -> 1.444219573 | F14: =IF(OR('Tabel 1 NJ'!E12<5,'Tabel 2 NJ'!F14<0.5),"-",IFERROR('Tabel 2 NJ'!F14/'Tabel 1 NJ'!E12*100,"-")) -> 7.692307692 | G14: =IF(OR('Tabel 1 NJ'!E12<5,'Tabel 2 NJ'!G14<0.5),"-",IFERROR('Tabel 2 NJ'!G14/'Tabel 1 NJ'!E12*100,"-")) -> 7.690868353 | I14: =IF(OR('Tabel 1 NJ'!G12<5,'Tabel 2 NJ'!I14<0.5),"-",IFERROR('Tabel 2 NJ'!I14/'Tabel 1 NJ'!G12*100,"-")) -> 4.12371134 | J14: =IF(OR('Tabel 1 NJ'!G12<5,'Tabel 2 NJ'!J14<0.5),"-",IFERROR('Tabel 2 NJ'!J14/'Tabel 1 NJ'!G12*100,"-")) -> 3.955758773
A15: MA. Samf. | C15: =IF(OR('Tabel 1 NJ'!C13<5,'Tabel 2 NJ'!C15<0.5),"-",IFERROR('Tabel 2 NJ'!C15/'Tabel 1 NJ'!C13*100,"-")) -> 19.73684211 | D15: =IF(OR('Tabel 1 NJ'!C13<5,'Tabel 2 NJ'!D15<0.5),"-",IFERROR('Tabel 2 NJ'!D15/'Tabel 1 NJ'!C13*100,"-")) -> 18.46684634 | F15: =IF(OR('Tabel 1 NJ'!E13<5,'Tabel 2 NJ'!F15<0.5),"-",IFERROR('Tabel 2 NJ'!F15/'Tabel 1 NJ'!E13*100,"-")) -> 19.47565543 | G15: =IF(OR('Tabel 1 NJ'!E13<5,'Tabel 2 NJ'!G15<0.5),"-",IFERROR('Tabel 2 NJ'!G15/'Tabel 1 NJ'!E13*100,"-")) -> 17.00635697 | I15: =IF(OR('Tabel 1 NJ'!G13<5,'Tabel 2 NJ'!I15<0.5),"-",IFERROR('Tabel 2 NJ'!I15/'Tabel 1 NJ'!G13*100,"-")) -> 19.5335277 | J15: =IF(OR('Tabel 1 NJ'!G13<5,'Tabel 2 NJ'!J15<0.5),"-",IFERROR('Tabel 2 NJ'!J15/'Tabel 1 NJ'!G13*100,"-")) -> 17.32996395
A16: Øvrige Mag. | C16: =IF(OR('Tabel 1 NJ'!C14<5,'Tabel 2 NJ'!C16<0.5),"-",IFERROR('Tabel 2 NJ'!C16/'Tabel 1 NJ'!C14*100,"-")) -> 7.142857143 | D16: =IF(OR('Tabel 1 NJ'!C14<5,'Tabel 2 NJ'!D16<0.5),"-",IFERROR('Tabel 2 NJ'!D16/'Tabel 1 NJ'!C14*100,"-")) -> 6.936586148 | F16: =IF(OR('Tabel 1 NJ'!E14<5,'Tabel 2 NJ'!F16<0.5),"-",IFERROR('Tabel 2 NJ'!F16/'Tabel 1 NJ'!E14*100,"-")) -> 8.823529412 | G16: =IF(OR('Tabel 1 NJ'!E14<5,'Tabel 2 NJ'!G16<0.5),"-",IFERROR('Tabel 2 NJ'!G16/'Tabel 1 NJ'!E14*100,"-")) -> 7.4176056 | I16: =IF(OR('Tabel 1 NJ'!G14<5,'Tabel 2 NJ'!I16<0.5),"-",IFERROR('Tabel 2 NJ'!I16/'Tabel 1 NJ'!G14*100,"-")) -> 8.252427184 | J16: =IF(OR('Tabel 1 NJ'!G14<5,'Tabel 2 NJ'!J16<0.5),"-",IFERROR('Tabel 2 NJ'!J16/'Tabel 1 NJ'!G14*100,"-")) -> 7.254152388
A17: Agronom | C17: =IF(OR('Tabel 1 NJ'!C15<5,'Tabel 2 NJ'!C17<0.5),"-",IFERROR('Tabel 2 NJ'!C17/'Tabel 1 NJ'!C15*100,"-")) -> 4.225352113 | D17: =IF(OR('Tabel 1 NJ'!C15<5,'Tabel 2 NJ'!D17<0.5),"-",IFERROR('Tabel 2 NJ'!D17/'Tabel 1 NJ'!C15*100,"-")) -> 3.19499483 | F17: =IF(OR('Tabel 1 NJ'!E15<5,'Tabel 2 NJ'!F17<0.5),"-",IFERROR('Tabel 2 NJ'!F17/'Tabel 1 NJ'!E15*100,"-")) -> 3.389830508 | G17: =IF(OR('Tabel 1 NJ'!E15<5,'Tabel 2 NJ'!G17<0.5),"-",IFERROR('Tabel 2 NJ'!G17/'Tabel 1 NJ'!E15*100,"-")) -> 3.389196223 | I17: =IF(OR('Tabel 1 NJ'!G15<5,'Tabel 2 NJ'!I17<0.5),"-",IFERROR('Tabel 2 NJ'!I17/'Tabel 1 NJ'!G15*100,"-")) -> 3.846153846 | J17: =IF(OR('Tabel 1 NJ'!G15<5,'Tabel 2 NJ'!J17<0.5),"-",IFERROR('Tabel 2 NJ'!J17/'Tabel 1 NJ'!G15*100,"-")) -> 3.283132386
A18: Landsk. Arkt. | C18: =IF(OR('Tabel 1 NJ'!C16<5,'Tabel 2 NJ'!C18<0.5),"-",IFERROR('Tabel 2 NJ'!C18/'Tabel 1 NJ'!C16*100,"-")) -> - | D18: =IF(OR('Tabel 1 NJ'!C16<5,'Tabel 2 NJ'!D18<0.5),"-",IFERROR('Tabel 2 NJ'!D18/'Tabel 1 NJ'!C16*100,"-")) -> - | F18: =IF(OR('Tabel 1 NJ'!E16<5,'Tabel 2 NJ'!F18<0.5),"-",IFERROR('Tabel 2 NJ'!F18/'Tabel 1 NJ'!E16*100,"-")) -> 18.18181818 | G18: =IF(OR('Tabel 1 NJ'!E16<5,'Tabel 2 NJ'!G18<0.5),"-",IFERROR('Tabel 2 NJ'!G18/'Tabel 1 NJ'!E16*100,"-")) -> 17.75882696 | I18: =IF(OR('Tabel 1 NJ'!G16<5,'Tabel 2 NJ'!I18<0.5),"-",IFERROR('Tabel 2 NJ'!I18/'Tabel 1 NJ'!G16*100,"-")) -> 14.28571429 | J18: =IF(OR('Tabel 1 NJ'!G16<5,'Tabel 2 NJ'!J18<0.5),"-",IFERROR('Tabel 2 NJ'!J18/'Tabel 1 NJ'!G16*100,"-")) -> 13.95336404
A19: Hortonom | C19: =IF(OR('Tabel 1 NJ'!C17<5,'Tabel 2 NJ'!C19<0.5),"-",IFERROR('Tabel 2 NJ'!C19/'Tabel 1 NJ'!C17*100,"-")) -> - | D19: =IF(OR('Tabel 1 NJ'!C17<5,'Tabel 2 NJ'!D19<0.5),"-",IFERROR('Tabel 2 NJ'!D19/'Tabel 1 NJ'!C17*100,"-")) -> - | F19: =IF(OR('Tabel 1 NJ'!E17<5,'Tabel 2 NJ'!F19<0.5),"-",IFERROR('Tabel 2 NJ'!F19/'Tabel 1 NJ'!E17*100,"-")) -> - | G19: =IF(OR('Tabel 1 NJ'!E17<5,'Tabel 2 NJ'!G19<0.5),"-",IFERROR('Tabel 2 NJ'!G19/'Tabel 1 NJ'!E17*100,"-")) -> - | I19: =IF(OR('Tabel 1 NJ'!G17<5,'Tabel 2 NJ'!I19<0.5),"-",IFERROR('Tabel 2 NJ'!I19/'Tabel 1 NJ'!G17*100,"-")) -> - | J19: =IF(OR('Tabel 1 NJ'!G17<5,'Tabel 2 NJ'!J19<0.5),"-",IFERROR('Tabel 2 NJ'!J19/'Tabel 1 NJ'!G17*100,"-")) -> -
A20: Forstkand. | C20: =IF(OR('Tabel 1 NJ'!C18<5,'Tabel 2 NJ'!C20<0.5),"-",IFERROR('Tabel 2 NJ'!C20/'Tabel 1 NJ'!C18*100,"-")) -> - | D20: =IF(OR('Tabel 1 NJ'!C18<5,'Tabel 2 NJ'!D20<0.5),"-",IFERROR('Tabel 2 NJ'!D20/'Tabel 1 NJ'!C18*100,"-")) -> - | F20: =IF(OR('Tabel 1 NJ'!E18<5,'Tabel 2 NJ'!F20<0.5),"-",IFERROR('Tabel 2 NJ'!F20/'Tabel 1 NJ'!E18*100,"-")) -> - | G20: =IF(OR('Tabel 1 NJ'!E18<5,'Tabel 2 NJ'!G20<0.5),"-",IFERROR('Tabel 2 NJ'!G20/'Tabel 1 NJ'!E18*100,"-")) -> - | I20: =IF(OR('Tabel 1 NJ'!G18<5,'Tabel 2 NJ'!I20<0.5),"-",IFERROR('Tabel 2 NJ'!I20/'Tabel 1 NJ'!G18*100,"-")) -> - | J20: =IF(OR('Tabel 1 NJ'!G18<5,'Tabel 2 NJ'!J20<0.5),"-",IFERROR('Tabel 2 NJ'!J20/'Tabel 1 NJ'!G18*100,"-")) -> -
A21: Jordbrugsakad. | C21: =IF(OR('Tabel 1 NJ'!C19<5,'Tabel 2 NJ'!C21<0.5),"-",IFERROR('Tabel 2 NJ'!C21/'Tabel 1 NJ'!C19*100,"-")) -> 3.370786517 | D21: =IF(OR('Tabel 1 NJ'!C19<5,'Tabel 2 NJ'!D21<0.5),"-",IFERROR('Tabel 2 NJ'!D21/'Tabel 1 NJ'!C19*100,"-")) -> 2.548816101 | F21: =IF(OR('Tabel 1 NJ'!E19<5,'Tabel 2 NJ'!F21<0.5),"-",IFERROR('Tabel 2 NJ'!F21/'Tabel 1 NJ'!E19*100,"-")) -> 5 | G21: =IF(OR('Tabel 1 NJ'!E19<5,'Tabel 2 NJ'!G21<0.5),"-",IFERROR('Tabel 2 NJ'!G21/'Tabel 1 NJ'!E19*100,"-")) -> 4.941370922 | I21: =IF(OR('Tabel 1 NJ'!G19<5,'Tabel 2 NJ'!I21<0.5),"-",IFERROR('Tabel 2 NJ'!I21/'Tabel 1 NJ'!G19*100,"-")) -> 4.142011834 | J21: =IF(OR('Tabel 1 NJ'!G19<5,'Tabel 2 NJ'!J21<0.5),"-",IFERROR('Tabel 2 NJ'!J21/'Tabel 1 NJ'!G19*100,"-")) -> 3.68138643
A22: Mejeriing. | C22: =IF(OR('Tabel 1 NJ'!C20<5,'Tabel 2 NJ'!C22<0.5),"-",IFERROR('Tabel 2 NJ'!C22/'Tabel 1 NJ'!C20*100,"-")) -> - | D22: =IF(OR('Tabel 1 NJ'!C20<5,'Tabel 2 NJ'!D22<0.5),"-",IFERROR('Tabel 2 NJ'!D22/'Tabel 1 NJ'!C20*100,"-")) -> - | F22: =IF(OR('Tabel 1 NJ'!E20<5,'Tabel 2 NJ'!F22<0.5),"-",IFERROR('Tabel 2 NJ'!F22/'Tabel 1 NJ'!E20*100,"-")) -> - | G22: =IF(OR('Tabel 1 NJ'!E20<5,'Tabel 2 NJ'!G22<0.5),"-",IFERROR('Tabel 2 NJ'!G22/'Tabel 1 NJ'!E20*100,"-")) -> - | I22: =IF(OR('Tabel 1 NJ'!G20<5,'Tabel 2 NJ'!I22<0.5),"-",IFERROR('Tabel 2 NJ'!I22/'Tabel 1 NJ'!G20*100,"-")) -> - | J22: =IF(OR('Tabel 1 NJ'!G20<5,'Tabel 2 NJ'!J22<0.5),"-",IFERROR('Tabel 2 NJ'!J22/'Tabel 1 NJ'!G20*100,"-")) -> -
A23: Levn.m.kand. | C23: =IF(OR('Tabel 1 NJ'!C21<5,'Tabel 2 NJ'!C23<0.5),"-",IFERROR('Tabel 2 NJ'!C23/'Tabel 1 NJ'!C21*100,"-")) -> - | D23: =IF(OR('Tabel 1 NJ'!C21<5,'Tabel 2 NJ'!D23<0.5),"-",IFERROR('Tabel 2 NJ'!D23/'Tabel 1 NJ'!C21*100,"-")) -> - | F23: =IF(OR('Tabel 1 NJ'!E21<5,'Tabel 2 NJ'!F23<0.5),"-",IFERROR('Tabel 2 NJ'!F23/'Tabel 1 NJ'!E21*100,"-")) -> - | G23: =IF(OR('Tabel 1 NJ'!E21<5,'Tabel 2 NJ'!G23<0.5),"-",IFERROR('Tabel 2 NJ'!G23/'Tabel 1 NJ'!E21*100,"-")) -> - | I23: =IF(OR('Tabel 1 NJ'!G21<5,'Tabel 2 NJ'!I23<0.5),"-",IFERROR('Tabel 2 NJ'!I23/'Tabel 1 NJ'!G21*100,"-")) -> - | J23: =IF(OR('Tabel 1 NJ'!G21<5,'Tabel 2 NJ'!J23<0.5),"-",IFERROR('Tabel 2 NJ'!J23/'Tabel 1 NJ'!G21*100,"-")) -> -
A24: Dyrlæge | C24: =IF(OR('Tabel 1 NJ'!C22<5,'Tabel 2 NJ'!C24<0.5),"-",IFERROR('Tabel 2 NJ'!C24/'Tabel 1 NJ'!C22*100,"-")) -> - | D24: =IF(OR('Tabel 1 NJ'!C22<5,'Tabel 2 NJ'!D24<0.5),"-",IFERROR('Tabel 2 NJ'!D24/'Tabel 1 NJ'!C22*100,"-")) -> - | F24: =IF(OR('Tabel 1 NJ'!E22<5,'Tabel 2 NJ'!F24<0.5),"-",IFERROR('Tabel 2 NJ'!F24/'Tabel 1 NJ'!E22*100,"-")) -> 1.234567901 | G24: =IF(OR('Tabel 1 NJ'!E22<5,'Tabel 2 NJ'!G24<0.5),"-",IFERROR('Tabel 2 NJ'!G24/'Tabel 1 NJ'!E22*100,"-")) -> 1.139624832 | I24: =IF(OR('Tabel 1 NJ'!G22<5,'Tabel 2 NJ'!I24<0.5),"-",IFERROR('Tabel 2 NJ'!I24/'Tabel 1 NJ'!G22*100,"-")) -> 1.020408163 | J24: =IF(OR('Tabel 1 NJ'!G22<5,'Tabel 2 NJ'!J24<0.5),"-",IFERROR('Tabel 2 NJ'!J24/'Tabel 1 NJ'!G22*100,"-")) -> 0.9419348105
A25: Farmaceut | C25: =IF(OR('Tabel 1 NJ'!C23<5,'Tabel 2 NJ'!C25<0.5),"-",IFERROR('Tabel 2 NJ'!C25/'Tabel 1 NJ'!C23*100,"-")) -> - | D25: =IF(OR('Tabel 1 NJ'!C23<5,'Tabel 2 NJ'!D25<0.5),"-",IFERROR('Tabel 2 NJ'!D25/'Tabel 1 NJ'!C23*100,"-")) -> - | F25: =IF(OR('Tabel 1 NJ'!E23<5,'Tabel 2 NJ'!F25<0.5),"-",IFERROR('Tabel 2 NJ'!F25/'Tabel 1 NJ'!E23*100,"-")) -> 1.052631579 | G25: =IF(OR('Tabel 1 NJ'!E23<5,'Tabel 2 NJ'!G25<0.5),"-",IFERROR('Tabel 2 NJ'!G25/'Tabel 1 NJ'!E23*100,"-")) -> 1.052434617 | I25: =IF(OR('Tabel 1 NJ'!G23<5,'Tabel 2 NJ'!I25<0.5),"-",IFERROR('Tabel 2 NJ'!I25/'Tabel 1 NJ'!G23*100,"-")) -> 0.8474576271 | J25: =IF(OR('Tabel 1 NJ'!G23<5,'Tabel 2 NJ'!J25<0.5),"-",IFERROR('Tabel 2 NJ'!J25/'Tabel 1 NJ'!G23*100,"-")) -> 0.8472990559
A26: Læge | C26: =IF(OR('Tabel 1 NJ'!C24<5,'Tabel 2 NJ'!C26<0.5),"-",IFERROR('Tabel 2 NJ'!C26/'Tabel 1 NJ'!C24*100,"-")) -> 1.930501931 | D26: =IF(OR('Tabel 1 NJ'!C24<5,'Tabel 2 NJ'!D26<0.5),"-",IFERROR('Tabel 2 NJ'!D26/'Tabel 1 NJ'!C24*100,"-")) -> 1.609373717 | F26: =IF(OR('Tabel 1 NJ'!E24<5,'Tabel 2 NJ'!F26<0.5),"-",IFERROR('Tabel 2 NJ'!F26/'Tabel 1 NJ'!E24*100,"-")) -> 1.063829787 | G26: =IF(OR('Tabel 1 NJ'!E24<5,'Tabel 2 NJ'!G26<0.5),"-",IFERROR('Tabel 2 NJ'!G26/'Tabel 1 NJ'!E24*100,"-")) -> 0.8614767503 | I26: =IF(OR('Tabel 1 NJ'!G24<5,'Tabel 2 NJ'!I26<0.5),"-",IFERROR('Tabel 2 NJ'!I26/'Tabel 1 NJ'!G24*100,"-")) -> 1.336573512 | J26: =IF(OR('Tabel 1 NJ'!G24<5,'Tabel 2 NJ'!J26<0.5),"-",IFERROR('Tabel 2 NJ'!J26/'Tabel 1 NJ'!G24*100,"-")) -> 1.096841652
A27: Tandlæge | C27: =IF(OR('Tabel 1 NJ'!C25<5,'Tabel 2 NJ'!C27<0.5),"-",IFERROR('Tabel 2 NJ'!C27/'Tabel 1 NJ'!C25*100,"-")) -> 6.666666667 | D27: =IF(OR('Tabel 1 NJ'!C25<5,'Tabel 2 NJ'!D27<0.5),"-",IFERROR('Tabel 2 NJ'!D27/'Tabel 1 NJ'!C25*100,"-")) -> 6.607205971 | F27: =IF(OR('Tabel 1 NJ'!E25<5,'Tabel 2 NJ'!F27<0.5),"-",IFERROR('Tabel 2 NJ'!F27/'Tabel 1 NJ'!E25*100,"-")) -> - | G27: =IF(OR('Tabel 1 NJ'!E25<5,'Tabel 2 NJ'!G27<0.5),"-",IFERROR('Tabel 2 NJ'!G27/'Tabel 1 NJ'!E25*100,"-")) -> - | I27: =IF(OR('Tabel 1 NJ'!G25<5,'Tabel 2 NJ'!I27<0.5),"-",IFERROR('Tabel 2 NJ'!I27/'Tabel 1 NJ'!G25*100,"-")) -> 0.8 | J27: =IF(OR('Tabel 1 NJ'!G25<5,'Tabel 2 NJ'!J27<0.5),"-",IFERROR('Tabel 2 NJ'!J27/'Tabel 1 NJ'!G25*100,"-")) -> 0.7928647165
A28: Arkitekt | C28: =IF(OR('Tabel 1 NJ'!C26<5,'Tabel 2 NJ'!C28<0.5),"-",IFERROR('Tabel 2 NJ'!C28/'Tabel 1 NJ'!C26*100,"-")) -> 5.357142857 | D28: =IF(OR('Tabel 1 NJ'!C26<5,'Tabel 2 NJ'!D28<0.5),"-",IFERROR('Tabel 2 NJ'!D28/'Tabel 1 NJ'!C26*100,"-")) -> 5.31158949 | F28: =IF(OR('Tabel 1 NJ'!E26<5,'Tabel 2 NJ'!F28<0.5),"-",IFERROR('Tabel 2 NJ'!F28/'Tabel 1 NJ'!E26*100,"-")) -> 10.95890411 | G28: =IF(OR('Tabel 1 NJ'!E26<5,'Tabel 2 NJ'!G28<0.5),"-",IFERROR('Tabel 2 NJ'!G28/'Tabel 1 NJ'!E26*100,"-")) -> 10.35877202 | I28: =IF(OR('Tabel 1 NJ'!G26<5,'Tabel 2 NJ'!I28<0.5),"-",IFERROR('Tabel 2 NJ'!I28/'Tabel 1 NJ'!G26*100,"-")) -> 8.527131783 | J28: =IF(OR('Tabel 1 NJ'!G26<5,'Tabel 2 NJ'!J28<0.5),"-",IFERROR('Tabel 2 NJ'!J28/'Tabel 1 NJ'!G26*100,"-")) -> 8.167747045
A29: Landinspek. | C29: =IF(OR('Tabel 1 NJ'!C27<5,'Tabel 2 NJ'!C29<0.5),"-",IFERROR('Tabel 2 NJ'!C29/'Tabel 1 NJ'!C27*100,"-")) -> 1.257861635 | D29: =IF(OR('Tabel 1 NJ'!C27<5,'Tabel 2 NJ'!D29<0.5),"-",IFERROR('Tabel 2 NJ'!D29/'Tabel 1 NJ'!C27*100,"-")) -> 1.257626272 | F29: =IF(OR('Tabel 1 NJ'!E27<5,'Tabel 2 NJ'!F29<0.5),"-",IFERROR('Tabel 2 NJ'!F29/'Tabel 1 NJ'!E27*100,"-")) -> 1.351351351 | G29: =IF(OR('Tabel 1 NJ'!E27<5,'Tabel 2 NJ'!G29<0.5),"-",IFERROR('Tabel 2 NJ'!G29/'Tabel 1 NJ'!E27*100,"-")) -> 1.351098494 | I29: =IF(OR('Tabel 1 NJ'!G27<5,'Tabel 2 NJ'!I29<0.5),"-",IFERROR('Tabel 2 NJ'!I29/'Tabel 1 NJ'!G27*100,"-")) -> 1.287553648 | J29: =IF(OR('Tabel 1 NJ'!G27<5,'Tabel 2 NJ'!J29<0.5),"-",IFERROR('Tabel 2 NJ'!J29/'Tabel 1 NJ'!G27*100,"-")) -> 1.287312729
A30: Bibliotekar | C30: =IF(OR('Tabel 1 NJ'!C28<5,'Tabel 2 NJ'!C30<0.5),"-",IFERROR('Tabel 2 NJ'!C30/'Tabel 1 NJ'!C28*100,"-")) -> 14.28571429 | D30: =IF(OR('Tabel 1 NJ'!C28<5,'Tabel 2 NJ'!D30<0.5),"-",IFERROR('Tabel 2 NJ'!D30/'Tabel 1 NJ'!C28*100,"-")) -> 13.45601321 | F30: =IF(OR('Tabel 1 NJ'!E28<5,'Tabel 2 NJ'!F30<0.5),"-",IFERROR('Tabel 2 NJ'!F30/'Tabel 1 NJ'!E28*100,"-")) -> 5.462184874 | G30: =IF(OR('Tabel 1 NJ'!E28<5,'Tabel 2 NJ'!G30<0.5),"-",IFERROR('Tabel 2 NJ'!G30/'Tabel 1 NJ'!E28*100,"-")) -> 5.104755056 | I30: =IF(OR('Tabel 1 NJ'!G28<5,'Tabel 2 NJ'!I30<0.5),"-",IFERROR('Tabel 2 NJ'!I30/'Tabel 1 NJ'!G28*100,"-")) -> 7.619047619 | J30: =IF(OR('Tabel 1 NJ'!G28<5,'Tabel 2 NJ'!J30<0.5),"-",IFERROR('Tabel 2 NJ'!J30/'Tabel 1 NJ'!G28*100,"-")) -> 7.146173715
A31: Musikudd. | C31: =IF(OR('Tabel 1 NJ'!C29<5,'Tabel 2 NJ'!C31<0.5),"-",IFERROR('Tabel 2 NJ'!C31/'Tabel 1 NJ'!C29*100,"-")) -> - | D31: =IF(OR('Tabel 1 NJ'!C29<5,'Tabel 2 NJ'!D31<0.5),"-",IFERROR('Tabel 2 NJ'!D31/'Tabel 1 NJ'!C29*100,"-")) -> - | F31: =IF(OR('Tabel 1 NJ'!E29<5,'Tabel 2 NJ'!F31<0.5),"-",IFERROR('Tabel 2 NJ'!F31/'Tabel 1 NJ'!E29*100,"-")) -> 5.357142857 | G31: =IF(OR('Tabel 1 NJ'!E29<5,'Tabel 2 NJ'!G31<0.5),"-",IFERROR('Tabel 2 NJ'!G31/'Tabel 1 NJ'!E29*100,"-")) -> 2.957070685 | I31: =IF(OR('Tabel 1 NJ'!G29<5,'Tabel 2 NJ'!I31<0.5),"-",IFERROR('Tabel 2 NJ'!I31/'Tabel 1 NJ'!G29*100,"-")) -> 2.941176471 | J31: =IF(OR('Tabel 1 NJ'!G29<5,'Tabel 2 NJ'!J31<0.5),"-",IFERROR('Tabel 2 NJ'!J31/'Tabel 1 NJ'!G29*100,"-")) -> 1.623489788
A32: Teolog | C32: =IF(OR('Tabel 1 NJ'!C30<5,'Tabel 2 NJ'!C32<0.5),"-",IFERROR('Tabel 2 NJ'!C32/'Tabel 1 NJ'!C30*100,"-")) -> 1.818181818 | D32: =IF(OR('Tabel 1 NJ'!C30<5,'Tabel 2 NJ'!D32<0.5),"-",IFERROR('Tabel 2 NJ'!D32/'Tabel 1 NJ'!C30*100,"-")) -> 1.817841611 | F32: =IF(OR('Tabel 1 NJ'!E30<5,'Tabel 2 NJ'!F32<0.5),"-",IFERROR('Tabel 2 NJ'!F32/'Tabel 1 NJ'!E30*100,"-")) -> 1.960784314 | G32: =IF(OR('Tabel 1 NJ'!E30<5,'Tabel 2 NJ'!G32<0.5),"-",IFERROR('Tabel 2 NJ'!G32/'Tabel 1 NJ'!E30*100,"-")) -> 1.567233268 | I32: =IF(OR('Tabel 1 NJ'!G30<5,'Tabel 2 NJ'!I32<0.5),"-",IFERROR('Tabel 2 NJ'!I32/'Tabel 1 NJ'!G30*100,"-")) -> 1.910828025 | J32: =IF(OR('Tabel 1 NJ'!G30<5,'Tabel 2 NJ'!J32<0.5),"-",IFERROR('Tabel 2 NJ'!J32/'Tabel 1 NJ'!G30*100,"-")) -> 1.655025999
A33: Psykolog | C33: =IF(OR('Tabel 1 NJ'!C31<5,'Tabel 2 NJ'!C33<0.5),"-",IFERROR('Tabel 2 NJ'!C33/'Tabel 1 NJ'!C31*100,"-")) -> 13.67521368 | D33: =IF(OR('Tabel 1 NJ'!C31<5,'Tabel 2 NJ'!D33<0.5),"-",IFERROR('Tabel 2 NJ'!D33/'Tabel 1 NJ'!C31*100,"-")) -> 12.69763591 | F33: =IF(OR('Tabel 1 NJ'!E31<5,'Tabel 2 NJ'!F33<0.5),"-",IFERROR('Tabel 2 NJ'!F33/'Tabel 1 NJ'!E31*100,"-")) -> 5.272108844 | G33: =IF(OR('Tabel 1 NJ'!E31<5,'Tabel 2 NJ'!G33<0.5),"-",IFERROR('Tabel 2 NJ'!G33/'Tabel 1 NJ'!E31*100,"-")) -> 4.33067258 | I33: =IF(OR('Tabel 1 NJ'!G31<5,'Tabel 2 NJ'!I33<0.5),"-",IFERROR('Tabel 2 NJ'!I33/'Tabel 1 NJ'!G31*100,"-")) -> 6.666666667 | J33: =IF(OR('Tabel 1 NJ'!G31<5,'Tabel 2 NJ'!J33<0.5),"-",IFERROR('Tabel 2 NJ'!J33/'Tabel 1 NJ'!G31*100,"-")) -> 5.719232452
A34: Jurist | C34: =IF(OR('Tabel 1 NJ'!C32<5,'Tabel 2 NJ'!C34<0.5),"-",IFERROR('Tabel 2 NJ'!C34/'Tabel 1 NJ'!C32*100,"-")) -> 3.03030303 | D34: =IF(OR('Tabel 1 NJ'!C32<5,'Tabel 2 NJ'!D34<0.5),"-",IFERROR('Tabel 2 NJ'!D34/'Tabel 1 NJ'!C32*100,"-")) -> 2.959804494 | F34: =IF(OR('Tabel 1 NJ'!E32<5,'Tabel 2 NJ'!F34<0.5),"-",IFERROR('Tabel 2 NJ'!F34/'Tabel 1 NJ'!E32*100,"-")) -> 2.444444444 | G34: =IF(OR('Tabel 1 NJ'!E32<5,'Tabel 2 NJ'!G34<0.5),"-",IFERROR('Tabel 2 NJ'!G34/'Tabel 1 NJ'!E32*100,"-")) -> 1.956520233 | I34: =IF(OR('Tabel 1 NJ'!G32<5,'Tabel 2 NJ'!I34<0.5),"-",IFERROR('Tabel 2 NJ'!I34/'Tabel 1 NJ'!G32*100,"-")) -> 2.62345679 | J34: =IF(OR('Tabel 1 NJ'!G32<5,'Tabel 2 NJ'!J34<0.5),"-",IFERROR('Tabel 2 NJ'!J34/'Tabel 1 NJ'!G32*100,"-")) -> 2.263079312
A35: Økonom | C35: =IF(OR('Tabel 1 NJ'!C33<5,'Tabel 2 NJ'!C35<0.5),"-",IFERROR('Tabel 2 NJ'!C35/'Tabel 1 NJ'!C33*100,"-")) -> 4.214559387 | D35: =IF(OR('Tabel 1 NJ'!C33<5,'Tabel 2 NJ'!D35<0.5),"-",IFERROR('Tabel 2 NJ'!D35/'Tabel 1 NJ'!C33*100,"-")) -> 3.560902764 | F35: =IF(OR('Tabel 1 NJ'!E33<5,'Tabel 2 NJ'!F35<0.5),"-",IFERROR('Tabel 2 NJ'!F35/'Tabel 1 NJ'!E33*100,"-")) -> 3.664921466 | G35: =IF(OR('Tabel 1 NJ'!E33<5,'Tabel 2 NJ'!G35<0.5),"-",IFERROR('Tabel 2 NJ'!G35/'Tabel 1 NJ'!E33*100,"-")) -> 3.625376065 | I35: =IF(OR('Tabel 1 NJ'!G33<5,'Tabel 2 NJ'!I35<0.5),"-",IFERROR('Tabel 2 NJ'!I35/'Tabel 1 NJ'!G33*100,"-")) -> 3.982300885 | J35: =IF(OR('Tabel 1 NJ'!G33<5,'Tabel 2 NJ'!J35<0.5),"-",IFERROR('Tabel 2 NJ'!J35/'Tabel 1 NJ'!G33*100,"-")) -> 3.588147013
A36: Samf. Adm. | C36: =IF(OR('Tabel 1 NJ'!C34<5,'Tabel 2 NJ'!C36<0.5),"-",IFERROR('Tabel 2 NJ'!C36/'Tabel 1 NJ'!C34*100,"-")) -> 8.808290155 | D36: =IF(OR('Tabel 1 NJ'!C34<5,'Tabel 2 NJ'!D36<0.5),"-",IFERROR('Tabel 2 NJ'!D36/'Tabel 1 NJ'!C34*100,"-")) -> 8.150073031 | F36: =IF(OR('Tabel 1 NJ'!E34<5,'Tabel 2 NJ'!F36<0.5),"-",IFERROR('Tabel 2 NJ'!F36/'Tabel 1 NJ'!E34*100,"-")) -> 11.51776103 | G36: =IF(OR('Tabel 1 NJ'!E34<5,'Tabel 2 NJ'!G36<0.5),"-",IFERROR('Tabel 2 NJ'!G36/'Tabel 1 NJ'!E34*100,"-")) -> 10.50853336 | I36: =IF(OR('Tabel 1 NJ'!G34<5,'Tabel 2 NJ'!I36<0.5),"-",IFERROR('Tabel 2 NJ'!I36/'Tabel 1 NJ'!G34*100,"-")) -> 10.47745358 | J36: =IF(OR('Tabel 1 NJ'!G34<5,'Tabel 2 NJ'!J36<0.5),"-",IFERROR('Tabel 2 NJ'!J36/'Tabel 1 NJ'!G34*100,"-")) -> 9.6029972
A37: Cand. Merc. | C37: =IF(OR('Tabel 1 NJ'!C35<5,'Tabel 2 NJ'!C37<0.5),"-",IFERROR('Tabel 2 NJ'!C37/'Tabel 1 NJ'!C35*100,"-")) -> 6.311992786 | D37: =IF(OR('Tabel 1 NJ'!C35<5,'Tabel 2 NJ'!D37<0.5),"-",IFERROR('Tabel 2 NJ'!D37/'Tabel 1 NJ'!C35*100,"-")) -> 5.764879548 | F37: =IF(OR('Tabel 1 NJ'!E35<5,'Tabel 2 NJ'!F37<0.5),"-",IFERROR('Tabel 2 NJ'!F37/'Tabel 1 NJ'!E35*100,"-")) -> 6.480558325 | G37: =IF(OR('Tabel 1 NJ'!E35<5,'Tabel 2 NJ'!G37<0.5),"-",IFERROR('Tabel 2 NJ'!G37/'Tabel 1 NJ'!E35*100,"-")) -> 5.525244263 | I37: =IF(OR('Tabel 1 NJ'!G35<5,'Tabel 2 NJ'!I37<0.5),"-",IFERROR('Tabel 2 NJ'!I37/'Tabel 1 NJ'!G35*100,"-")) -> 6.392045455 | J37: =IF(OR('Tabel 1 NJ'!G35<5,'Tabel 2 NJ'!J37<0.5),"-",IFERROR('Tabel 2 NJ'!J37/'Tabel 1 NJ'!G35*100,"-")) -> 5.651075481
A38: HA | C38: =IF(OR('Tabel 1 NJ'!C36<5,'Tabel 2 NJ'!C38<0.5),"-",IFERROR('Tabel 2 NJ'!C38/'Tabel 1 NJ'!C36*100,"-")) -> 9.787234043 | D38: =IF(OR('Tabel 1 NJ'!C36<5,'Tabel 2 NJ'!D38<0.5),"-",IFERROR('Tabel 2 NJ'!D38/'Tabel 1 NJ'!C36*100,"-")) -> 9.423118011 | F38: =IF(OR('Tabel 1 NJ'!E36<5,'Tabel 2 NJ'!F38<0.5),"-",IFERROR('Tabel 2 NJ'!F38/'Tabel 1 NJ'!E36*100,"-")) -> 10.41666667 | G38: =IF(OR('Tabel 1 NJ'!E36<5,'Tabel 2 NJ'!G38<0.5),"-",IFERROR('Tabel 2 NJ'!G38/'Tabel 1 NJ'!E36*100,"-")) -> 8.055325994 | I38: =IF(OR('Tabel 1 NJ'!G36<5,'Tabel 2 NJ'!I38<0.5),"-",IFERROR('Tabel 2 NJ'!I38/'Tabel 1 NJ'!G36*100,"-")) -> 10.07025761 | J38: =IF(OR('Tabel 1 NJ'!G36<5,'Tabel 2 NJ'!J38<0.5),"-",IFERROR('Tabel 2 NJ'!J38/'Tabel 1 NJ'!G36*100,"-")) -> 8.808092092
A39: HD | C39: =IF(OR('Tabel 1 NJ'!C37<5,'Tabel 2 NJ'!C39<0.5),"-",IFERROR('Tabel 2 NJ'!C39/'Tabel 1 NJ'!C37*100,"-")) -> 7.407407407 | D39: =IF(OR('Tabel 1 NJ'!C37<5,'Tabel 2 NJ'!D39<0.5),"-",IFERROR('Tabel 2 NJ'!D39/'Tabel 1 NJ'!C37*100,"-")) -> 6.543712587 | F39: =IF(OR('Tabel 1 NJ'!E37<5,'Tabel 2 NJ'!F39<0.5),"-",IFERROR('Tabel 2 NJ'!F39/'Tabel 1 NJ'!E37*100,"-")) -> 4.964539007 | G39: =IF(OR('Tabel 1 NJ'!E37<5,'Tabel 2 NJ'!G39<0.5),"-",IFERROR('Tabel 2 NJ'!G39/'Tabel 1 NJ'!E37*100,"-")) -> 4.410672492 | I39: =IF(OR('Tabel 1 NJ'!G37<5,'Tabel 2 NJ'!I39<0.5),"-",IFERROR('Tabel 2 NJ'!I39/'Tabel 1 NJ'!G37*100,"-")) -> 6.363636364 | J39: =IF(OR('Tabel 1 NJ'!G37<5,'Tabel 2 NJ'!J39<0.5),"-",IFERROR('Tabel 2 NJ'!J39/'Tabel 1 NJ'!G37*100,"-")) -> 5.632322728
A40: Komm. og Sprog | C40: =IF(OR('Tabel 1 NJ'!C38<5,'Tabel 2 NJ'!C40<0.5),"-",IFERROR('Tabel 2 NJ'!C40/'Tabel 1 NJ'!C38*100,"-")) -> 21.73913043 | D40: =IF(OR('Tabel 1 NJ'!C38<5,'Tabel 2 NJ'!D40<0.5),"-",IFERROR('Tabel 2 NJ'!D40/'Tabel 1 NJ'!C38*100,"-")) -> 20.10527201 | F40: =IF(OR('Tabel 1 NJ'!E38<5,'Tabel 2 NJ'!F40<0.5),"-",IFERROR('Tabel 2 NJ'!F40/'Tabel 1 NJ'!E38*100,"-")) -> 11.68831169 | G40: =IF(OR('Tabel 1 NJ'!E38<5,'Tabel 2 NJ'!G40<0.5),"-",IFERROR('Tabel 2 NJ'!G40/'Tabel 1 NJ'!E38*100,"-")) -> 10.24935583 | I40: =IF(OR('Tabel 1 NJ'!G38<5,'Tabel 2 NJ'!I40<0.5),"-",IFERROR('Tabel 2 NJ'!I40/'Tabel 1 NJ'!G38*100,"-")) -> 13.52785146 | J40: =IF(OR('Tabel 1 NJ'!G38<5,'Tabel 2 NJ'!J40<0.5),"-",IFERROR('Tabel 2 NJ'!J40/'Tabel 1 NJ'!G38*100,"-")) -> 12.05322378
A41: Bygningskonst. | C41: =IF(OR('Tabel 1 NJ'!C39<5,'Tabel 2 NJ'!C41<0.5),"-",IFERROR('Tabel 2 NJ'!C41/'Tabel 1 NJ'!C39*100,"-")) -> 4.2527339 | D41: =IF(OR('Tabel 1 NJ'!C39<5,'Tabel 2 NJ'!D41<0.5),"-",IFERROR('Tabel 2 NJ'!D41/'Tabel 1 NJ'!C39*100,"-")) -> 3.380027478 | F41: =IF(OR('Tabel 1 NJ'!E39<5,'Tabel 2 NJ'!F41<0.5),"-",IFERROR('Tabel 2 NJ'!F41/'Tabel 1 NJ'!E39*100,"-")) -> 8.163265306 | G41: =IF(OR('Tabel 1 NJ'!E39<5,'Tabel 2 NJ'!G41<0.5),"-",IFERROR('Tabel 2 NJ'!G41/'Tabel 1 NJ'!E39*100,"-")) -> 7.692297901 | I41: =IF(OR('Tabel 1 NJ'!G39<5,'Tabel 2 NJ'!I41<0.5),"-",IFERROR('Tabel 2 NJ'!I41/'Tabel 1 NJ'!G39*100,"-")) -> 4.668838219 | J41: =IF(OR('Tabel 1 NJ'!G39<5,'Tabel 2 NJ'!J41<0.5),"-",IFERROR('Tabel 2 NJ'!J41/'Tabel 1 NJ'!G39*100,"-")) -> 3.838879271
A42: Cand. IT. | C42: =IF(OR('Tabel 1 NJ'!C40<5,'Tabel 2 NJ'!C42<0.5),"-",IFERROR('Tabel 2 NJ'!C42/'Tabel 1 NJ'!C40*100,"-")) -> 8.940397351 | D42: =IF(OR('Tabel 1 NJ'!C40<5,'Tabel 2 NJ'!D42<0.5),"-",IFERROR('Tabel 2 NJ'!D42/'Tabel 1 NJ'!C40*100,"-")) -> 8.011415198 | F42: =IF(OR('Tabel 1 NJ'!E40<5,'Tabel 2 NJ'!F42<0.5),"-",IFERROR('Tabel 2 NJ'!F42/'Tabel 1 NJ'!E40*100,"-")) -> 18.29787234 | G42: =IF(OR('Tabel 1 NJ'!E40<5,'Tabel 2 NJ'!G42<0.5),"-",IFERROR('Tabel 2 NJ'!G42/'Tabel 1 NJ'!E40*100,"-")) -> 14.46272382 | I42: =IF(OR('Tabel 1 NJ'!G40<5,'Tabel 2 NJ'!I42<0.5),"-",IFERROR('Tabel 2 NJ'!I42/'Tabel 1 NJ'!G40*100,"-")) -> 13.03538175 | J42: =IF(OR('Tabel 1 NJ'!G40<5,'Tabel 2 NJ'!J42<0.5),"-",IFERROR('Tabel 2 NJ'!J42/'Tabel 1 NJ'!G40*100,"-")) -> 10.83461357
A43: Bac. Samf. | C43: =IF(OR('Tabel 1 NJ'!C41<5,'Tabel 2 NJ'!C43<0.5),"-",IFERROR('Tabel 2 NJ'!C43/'Tabel 1 NJ'!C41*100,"-")) -> 10.81081081 | D43: =IF(OR('Tabel 1 NJ'!C41<5,'Tabel 2 NJ'!D43<0.5),"-",IFERROR('Tabel 2 NJ'!D43/'Tabel 1 NJ'!C41*100,"-")) -> 9.561360774 | F43: =IF(OR('Tabel 1 NJ'!E41<5,'Tabel 2 NJ'!F43<0.5),"-",IFERROR('Tabel 2 NJ'!F43/'Tabel 1 NJ'!E41*100,"-")) -> 13.33333333 | G43: =IF(OR('Tabel 1 NJ'!E41<5,'Tabel 2 NJ'!G43<0.5),"-",IFERROR('Tabel 2 NJ'!G43/'Tabel 1 NJ'!E41*100,"-")) -> 10.97943824 | I43: =IF(OR('Tabel 1 NJ'!G41<5,'Tabel 2 NJ'!I43<0.5),"-",IFERROR('Tabel 2 NJ'!I43/'Tabel 1 NJ'!G41*100,"-")) -> 11.94029851 | J43: =IF(OR('Tabel 1 NJ'!G41<5,'Tabel 2 NJ'!J43<0.5),"-",IFERROR('Tabel 2 NJ'!J43/'Tabel 1 NJ'!G41*100,"-")) -> 10.19632083
A44: Bac. Hum. | C44: =IF(OR('Tabel 1 NJ'!C42<5,'Tabel 2 NJ'!C44<0.5),"-",IFERROR('Tabel 2 NJ'!C44/'Tabel 1 NJ'!C42*100,"-")) -> 21.05263158 | D44: =IF(OR('Tabel 1 NJ'!C42<5,'Tabel 2 NJ'!D44<0.5),"-",IFERROR('Tabel 2 NJ'!D44/'Tabel 1 NJ'!C42*100,"-")) -> 19.03147127 | F44: =IF(OR('Tabel 1 NJ'!E42<5,'Tabel 2 NJ'!F44<0.5),"-",IFERROR('Tabel 2 NJ'!F44/'Tabel 1 NJ'!E42*100,"-")) -> 23.7804878 | G44: =IF(OR('Tabel 1 NJ'!E42<5,'Tabel 2 NJ'!G44<0.5),"-",IFERROR('Tabel 2 NJ'!G44/'Tabel 1 NJ'!E42*100,"-")) -> 21.92733585 | I44: =IF(OR('Tabel 1 NJ'!G42<5,'Tabel 2 NJ'!I44<0.5),"-",IFERROR('Tabel 2 NJ'!I44/'Tabel 1 NJ'!G42*100,"-")) -> 22.6618705 | J44: =IF(OR('Tabel 1 NJ'!G42<5,'Tabel 2 NJ'!J44<0.5),"-",IFERROR('Tabel 2 NJ'!J44/'Tabel 1 NJ'!G42*100,"-")) -> 20.73982304
A45: Bac. Nat. | C45: =IF(OR('Tabel 1 NJ'!C43<5,'Tabel 2 NJ'!C45<0.5),"-",IFERROR('Tabel 2 NJ'!C45/'Tabel 1 NJ'!C43*100,"-")) -> 14.73684211 | D45: =IF(OR('Tabel 1 NJ'!C43<5,'Tabel 2 NJ'!D45<0.5),"-",IFERROR('Tabel 2 NJ'!D45/'Tabel 1 NJ'!C43*100,"-")) -> 13.77848976 | F45: =IF(OR('Tabel 1 NJ'!E43<5,'Tabel 2 NJ'!F45<0.5),"-",IFERROR('Tabel 2 NJ'!F45/'Tabel 1 NJ'!E43*100,"-")) -> 15.85365854 | G45: =IF(OR('Tabel 1 NJ'!E43<5,'Tabel 2 NJ'!G45<0.5),"-",IFERROR('Tabel 2 NJ'!G45/'Tabel 1 NJ'!E43*100,"-")) -> 12.225547 | I45: =IF(OR('Tabel 1 NJ'!G43<5,'Tabel 2 NJ'!I45<0.5),"-",IFERROR('Tabel 2 NJ'!I45/'Tabel 1 NJ'!G43*100,"-")) -> 15.07352941 | J45: =IF(OR('Tabel 1 NJ'!G43<5,'Tabel 2 NJ'!J45<0.5),"-",IFERROR('Tabel 2 NJ'!J45/'Tabel 1 NJ'!G43*100,"-")) -> 13.31032319
A46: Andre | C46: =IF(OR('Tabel 1 NJ'!C44<5,'Tabel 2 NJ'!C46<0.5),"-",IFERROR('Tabel 2 NJ'!C46/'Tabel 1 NJ'!C44*100,"-")) -> 7.317073171 | D46: =IF(OR('Tabel 1 NJ'!C44<5,'Tabel 2 NJ'!D46<0.5),"-",IFERROR('Tabel 2 NJ'!D46/'Tabel 1 NJ'!C44*100,"-")) -> 6.368947976 | F46: =IF(OR('Tabel 1 NJ'!E44<5,'Tabel 2 NJ'!F46<0.5),"-",IFERROR('Tabel 2 NJ'!F46/'Tabel 1 NJ'!E44*100,"-")) -> 11.46496815 | G46: =IF(OR('Tabel 1 NJ'!E44<5,'Tabel 2 NJ'!G46<0.5),"-",IFERROR('Tabel 2 NJ'!G46/'Tabel 1 NJ'!E44*100,"-")) -> 10.14653562 | I46: =IF(OR('Tabel 1 NJ'!G44<5,'Tabel 2 NJ'!I46<0.5),"-",IFERROR('Tabel 2 NJ'!I46/'Tabel 1 NJ'!G44*100,"-")) -> 8.989726027 | J46: =IF(OR('Tabel 1 NJ'!G44<5,'Tabel 2 NJ'!J46<0.5),"-",IFERROR('Tabel 2 NJ'!J46/'Tabel 1 NJ'!G44*100,"-")) -> 7.892273128
A48: Total | C48: =IF(OR('Tabel 1 NJ'!C46<5,'Tabel 2 NJ'!C48<0.5),"-",IFERROR('Tabel 2 NJ'!C48/'Tabel 1 NJ'!C46*100,"-")) -> 6.569284802 | D48: =IF(OR('Tabel 1 NJ'!C46<5,'Tabel 2 NJ'!D48<0.5),"-",IFERROR('Tabel 2 NJ'!D48/'Tabel 1 NJ'!C46*100,"-")) -> 5.954239376 | F48: =IF(OR('Tabel 1 NJ'!E46<5,'Tabel 2 NJ'!F48<0.5),"-",IFERROR('Tabel 2 NJ'!F48/'Tabel 1 NJ'!E46*100,"-")) -> 8.806531511 | G48: =IF(OR('Tabel 1 NJ'!E46<5,'Tabel 2 NJ'!G48<0.5),"-",IFERROR('Tabel 2 NJ'!G48/'Tabel 1 NJ'!E46*100,"-")) -> 7.722779226 | I48: =IF(OR('Tabel 1 NJ'!G46<5,'Tabel 2 NJ'!I48<0.5),"-",IFERROR('Tabel 2 NJ'!I48/'Tabel 1 NJ'!G46*100,"-")) -> 7.610226642 | J48: =IF(OR('Tabel 1 NJ'!G46<5,'Tabel 2 NJ'!J48<0.5),"-",IFERROR('Tabel 2 NJ'!J48/'Tabel 1 NJ'!G46*100,"-")) -> 6.777102192
A50: Ingeniører i alt | C50: =IF(OR('Tabel 1 NJ'!C48<5,'Tabel 2 NJ'!C50<0.5),"-",IFERROR('Tabel 2 NJ'!C50/'Tabel 1 NJ'!C48*100,"-")) -> 3.360151443 | D50: =IF(OR('Tabel 1 NJ'!C48<5,'Tabel 2 NJ'!D50<0.5),"-",IFERROR('Tabel 2 NJ'!D50/'Tabel 1 NJ'!C48*100,"-")) -> 3.105742419 | F50: =IF(OR('Tabel 1 NJ'!E48<5,'Tabel 2 NJ'!F50<0.5),"-",IFERROR('Tabel 2 NJ'!F50/'Tabel 1 NJ'!E48*100,"-")) -> 5.318221447 | G50: =IF(OR('Tabel 1 NJ'!E48<5,'Tabel 2 NJ'!G50<0.5),"-",IFERROR('Tabel 2 NJ'!G50/'Tabel 1 NJ'!E48*100,"-")) -> 4.774698827 | I50: =IF(OR('Tabel 1 NJ'!G48<5,'Tabel 2 NJ'!I50<0.5),"-",IFERROR('Tabel 2 NJ'!I50/'Tabel 1 NJ'!G48*100,"-")) -> 3.778150009 | J50: =IF(OR('Tabel 1 NJ'!G48<5,'Tabel 2 NJ'!J50<0.5),"-",IFERROR('Tabel 2 NJ'!J50/'Tabel 1 NJ'!G48*100,"-")) -> 3.462022523
A51: Magistre i alt | C51: =IF(OR('Tabel 1 NJ'!C49<5,'Tabel 2 NJ'!C51<0.5),"-",IFERROR('Tabel 2 NJ'!C51/'Tabel 1 NJ'!C49*100,"-")) -> 10.82278481 | D51: =IF(OR('Tabel 1 NJ'!C49<5,'Tabel 2 NJ'!D51<0.5),"-",IFERROR('Tabel 2 NJ'!D51/'Tabel 1 NJ'!C49*100,"-")) -> 9.788395295 | F51: =IF(OR('Tabel 1 NJ'!E49<5,'Tabel 2 NJ'!F51<0.5),"-",IFERROR('Tabel 2 NJ'!F51/'Tabel 1 NJ'!E49*100,"-")) -> 12.35230934 | G51: =IF(OR('Tabel 1 NJ'!E49<5,'Tabel 2 NJ'!G51<0.5),"-",IFERROR('Tabel 2 NJ'!G51/'Tabel 1 NJ'!E49*100,"-")) -> 10.87316129 | I51: =IF(OR('Tabel 1 NJ'!G49<5,'Tabel 2 NJ'!I51<0.5),"-",IFERROR('Tabel 2 NJ'!I51/'Tabel 1 NJ'!G49*100,"-")) -> 11.79967985 | J51: =IF(OR('Tabel 1 NJ'!G49<5,'Tabel 2 NJ'!J51<0.5),"-",IFERROR('Tabel 2 NJ'!J51/'Tabel 1 NJ'!G49*100,"-")) -> 10.48122663
A52: DJØF'ere i alt | C52: =IF(OR('Tabel 1 NJ'!C50<5,'Tabel 2 NJ'!C52<0.5),"-",IFERROR('Tabel 2 NJ'!C52/'Tabel 1 NJ'!C50*100,"-")) -> 6.759026029 | D52: =IF(OR('Tabel 1 NJ'!C50<5,'Tabel 2 NJ'!D52<0.5),"-",IFERROR('Tabel 2 NJ'!D52/'Tabel 1 NJ'!C50*100,"-")) -> 6.230904008 | F52: =IF(OR('Tabel 1 NJ'!E50<5,'Tabel 2 NJ'!F52<0.5),"-",IFERROR('Tabel 2 NJ'!F52/'Tabel 1 NJ'!E50*100,"-")) -> 7.594936709 | G52: =IF(OR('Tabel 1 NJ'!E50<5,'Tabel 2 NJ'!G52<0.5),"-",IFERROR('Tabel 2 NJ'!G52/'Tabel 1 NJ'!E50*100,"-")) -> 6.66320109 | I52: =IF(OR('Tabel 1 NJ'!G50<5,'Tabel 2 NJ'!I52<0.5),"-",IFERROR('Tabel 2 NJ'!I52/'Tabel 1 NJ'!G50*100,"-")) -> 7.208082378 | J52: =IF(OR('Tabel 1 NJ'!G50<5,'Tabel 2 NJ'!J52<0.5),"-",IFERROR('Tabel 2 NJ'!J52/'Tabel 1 NJ'!G50*100,"-")) -> 6.463136655
A57: Morsø
C59: Mænd | F59: Kvinder | I59: I alt
C60: Ledigheds- berørte | D60: Gns. brutto- ledighed | F60: Ledigheds- berørte | G60: Gns. brutto- ledighed | I60: Ledigheds- berørte | J60: Gns. brutto- ledighed
A63: Civ. ing. | C63: =IF(OR('Tabel 1 NJ'!C61<5,'Tabel 2 NJ'!C63<0.5),"-",IFERROR('Tabel 2 NJ'!C63/'Tabel 1 NJ'!C61*100,"-")) -> - | D63: =IF(OR('Tabel 1 NJ'!C61<5,'Tabel 2 NJ'!D63<0.5),"-",IFERROR('Tabel 2 NJ'!D63/'Tabel 1 NJ'!C61*100,"-")) -> - | F63: =IF(OR('Tabel 1 NJ'!E61<5,'Tabel 2 NJ'!F63<0.5),"-",IFERROR('Tabel 2 NJ'!F63/'Tabel 1 NJ'!E61*100,"-")) -> - | G63: =IF(OR('Tabel 1 NJ'!E61<5,'Tabel 2 NJ'!G63<0.5),"-",IFERROR('Tabel 2 NJ'!G63/'Tabel 1 NJ'!E61*100,"-")) -> - | I63: =IF(OR('Tabel 1 NJ'!G61<5,'Tabel 2 NJ'!I63<0.5),"-",IFERROR('Tabel 2 NJ'!I63/'Tabel 1 NJ'!G61*100,"-")) -> - | J63: =IF(OR('Tabel 1 NJ'!G61<5,'Tabel 2 NJ'!J63<0.5),"-",IFERROR('Tabel 2 NJ'!J63/'Tabel 1 NJ'!G61*100,"-")) -> -
A64: Diplom ing. | C64: =IF(OR('Tabel 1 NJ'!C62<5,'Tabel 2 NJ'!C64<0.5),"-",IFERROR('Tabel 2 NJ'!C64/'Tabel 1 NJ'!C62*100,"-")) -> 5.263157895 | D64: =IF(OR('Tabel 1 NJ'!C62<5,'Tabel 2 NJ'!D64<0.5),"-",IFERROR('Tabel 2 NJ'!D64/'Tabel 1 NJ'!C62*100,"-")) -> 5.262173084 | F64: =IF(OR('Tabel 1 NJ'!E62<5,'Tabel 2 NJ'!F64<0.5),"-",IFERROR('Tabel 2 NJ'!F64/'Tabel 1 NJ'!E62*100,"-")) -> - | G64: =IF(OR('Tabel 1 NJ'!E62<5,'Tabel 2 NJ'!G64<0.5),"-",IFERROR('Tabel 2 NJ'!G64/'Tabel 1 NJ'!E62*100,"-")) -> - | I64: =IF(OR('Tabel 1 NJ'!G62<5,'Tabel 2 NJ'!I64<0.5),"-",IFERROR('Tabel 2 NJ'!I64/'Tabel 1 NJ'!G62*100,"-")) -> 3.571428571 | J64: =IF(OR('Tabel 1 NJ'!G62<5,'Tabel 2 NJ'!J64<0.5),"-",IFERROR('Tabel 2 NJ'!J64/'Tabel 1 NJ'!G62*100,"-")) -> 3.570760307
A65: Cand. Scient. Tek. | C65: =IF(OR('Tabel 1 NJ'!C63<5,'Tabel 2 NJ'!C65<0.5),"-",IFERROR('Tabel 2 NJ'!C65/'Tabel 1 NJ'!C63*100,"-")) -> - | D65: =IF(OR('Tabel 1 NJ'!C63<5,'Tabel 2 NJ'!D65<0.5),"-",IFERROR('Tabel 2 NJ'!D65/'Tabel 1 NJ'!C63*100,"-")) -> - | F65: =IF(OR('Tabel 1 NJ'!E63<5,'Tabel 2 NJ'!F65<0.5),"-",IFERROR('Tabel 2 NJ'!F65/'Tabel 1 NJ'!E63*100,"-")) -> - | G65: =IF(OR('Tabel 1 NJ'!E63<5,'Tabel 2 NJ'!G65<0.5),"-",IFERROR('Tabel 2 NJ'!G65/'Tabel 1 NJ'!E63*100,"-")) -> - | I65: =IF(OR('Tabel 1 NJ'!G63<5,'Tabel 2 NJ'!I65<0.5),"-",IFERROR('Tabel 2 NJ'!I65/'Tabel 1 NJ'!G63*100,"-")) -> - | J65: =IF(OR('Tabel 1 NJ'!G63<5,'Tabel 2 NJ'!J65<0.5),"-",IFERROR('Tabel 2 NJ'!J65/'Tabel 1 NJ'!G63*100,"-")) -> -
A66: MA. Hum. | C66: =IF(OR('Tabel 1 NJ'!C64<5,'Tabel 2 NJ'!C66<0.5),"-",IFERROR('Tabel 2 NJ'!C66/'Tabel 1 NJ'!C64*100,"-")) -> 8.333333333 | D66: =IF(OR('Tabel 1 NJ'!C64<5,'Tabel 2 NJ'!D66<0.5),"-",IFERROR('Tabel 2 NJ'!D66/'Tabel 1 NJ'!C64*100,"-")) -> 6.793280526 | F66: =IF(OR('Tabel 1 NJ'!E64<5,'Tabel 2 NJ'!F66<0.5),"-",IFERROR('Tabel 2 NJ'!F66/'Tabel 1 NJ'!E64*100,"-")) -> 16.66666667 | G66: =IF(OR('Tabel 1 NJ'!E64<5,'Tabel 2 NJ'!G66<0.5),"-",IFERROR('Tabel 2 NJ'!G66/'Tabel 1 NJ'!E64*100,"-")) -> 13.30848874 | I66: =IF(OR('Tabel 1 NJ'!G64<5,'Tabel 2 NJ'!I66<0.5),"-",IFERROR('Tabel 2 NJ'!I66/'Tabel 1 NJ'!G64*100,"-")) -> 13.88888889 | J66: =IF(OR('Tabel 1 NJ'!G64<5,'Tabel 2 NJ'!J66<0.5),"-",IFERROR('Tabel 2 NJ'!J66/'Tabel 1 NJ'!G64*100,"-")) -> 11.13675267
A67: MA. Nat. | C67: =IF(OR('Tabel 1 NJ'!C65<5,'Tabel 2 NJ'!C67<0.5),"-",IFERROR('Tabel 2 NJ'!C67/'Tabel 1 NJ'!C65*100,"-")) -> - | D67: =IF(OR('Tabel 1 NJ'!C65<5,'Tabel 2 NJ'!D67<0.5),"-",IFERROR('Tabel 2 NJ'!D67/'Tabel 1 NJ'!C65*100,"-")) -> - | F67: =IF(OR('Tabel 1 NJ'!E65<5,'Tabel 2 NJ'!F67<0.5),"-",IFERROR('Tabel 2 NJ'!F67/'Tabel 1 NJ'!E65*100,"-")) -> - | G67: =IF(OR('Tabel 1 NJ'!E65<5,'Tabel 2 NJ'!G67<0.5),"-",IFERROR('Tabel 2 NJ'!G67/'Tabel 1 NJ'!E65*100,"-")) -> - | I67: =IF(OR('Tabel 1 NJ'!G65<5,'Tabel 2 NJ'!I67<0.5),"-",IFERROR('Tabel 2 NJ'!I67/'Tabel 1 NJ'!G65*100,"-")) -> - | J67: =IF(OR('Tabel 1 NJ'!G65<5,'Tabel 2 NJ'!J67<0.5),"-",IFERROR('Tabel 2 NJ'!J67/'Tabel 1 NJ'!G65*100,"-")) -> -
A68: MA. Ph.d. | C68: =IF(OR('Tabel 1 NJ'!C66<5,'Tabel 2 NJ'!C68<0.5),"-",IFERROR('Tabel 2 NJ'!C68/'Tabel 1 NJ'!C66*100,"-")) -> - | D68: =IF(OR('Tabel 1 NJ'!C66<5,'Tabel 2 NJ'!D68<0.5),"-",IFERROR('Tabel 2 NJ'!D68/'Tabel 1 NJ'!C66*100,"-")) -> - | F68: =IF(OR('Tabel 1 NJ'!E66<5,'Tabel 2 NJ'!F68<0.5),"-",IFERROR('Tabel 2 NJ'!F68/'Tabel 1 NJ'!E66*100,"-")) -> - | G68: =IF(OR('Tabel 1 NJ'!E66<5,'Tabel 2 NJ'!G68<0.5),"-",IFERROR('Tabel 2 NJ'!G68/'Tabel 1 NJ'!E66*100,"-")) -> - | I68: =IF(OR('Tabel 1 NJ'!G66<5,'Tabel 2 NJ'!I68<0.5),"-",IFERROR('Tabel 2 NJ'!I68/'Tabel 1 NJ'!G66*100,"-")) -> - | J68: =IF(OR('Tabel 1 NJ'!G66<5,'Tabel 2 NJ'!J68<0.5),"-",IFERROR('Tabel 2 NJ'!J68/'Tabel 1 NJ'!G66*100,"-")) -> -
A69: MA. Samf. | C69: =IF(OR('Tabel 1 NJ'!C67<5,'Tabel 2 NJ'!C69<0.5),"-",IFERROR('Tabel 2 NJ'!C69/'Tabel 1 NJ'!C67*100,"-")) -> - | D69: =IF(OR('Tabel 1 NJ'!C67<5,'Tabel 2 NJ'!D69<0.5),"-",IFERROR('Tabel 2 NJ'!D69/'Tabel 1 NJ'!C67*100,"-")) -> - | F69: =IF(OR('Tabel 1 NJ'!E67<5,'Tabel 2 NJ'!F69<0.5),"-",IFERROR('Tabel 2 NJ'!F69/'Tabel 1 NJ'!E67*100,"-")) -> - | G69: =IF(OR('Tabel 1 NJ'!E67<5,'Tabel 2 NJ'!G69<0.5),"-",IFERROR('Tabel 2 NJ'!G69/'Tabel 1 NJ'!E67*100,"-")) -> - | I69: =IF(OR('Tabel 1 NJ'!G67<5,'Tabel 2 NJ'!I69<0.5),"-",IFERROR('Tabel 2 NJ'!I69/'Tabel 1 NJ'!G67*100,"-")) -> - | J69: =IF(OR('Tabel 1 NJ'!G67<5,'Tabel 2 NJ'!J69<0.5),"-",IFERROR('Tabel 2 NJ'!J69/'Tabel 1 NJ'!G67*100,"-")) -> -
A70: Øvrige Mag. | C70: =IF(OR('Tabel 1 NJ'!C68<5,'Tabel 2 NJ'!C70<0.5),"-",IFERROR('Tabel 2 NJ'!C70/'Tabel 1 NJ'!C68*100,"-")) -> - | D70: =IF(OR('Tabel 1 NJ'!C68<5,'Tabel 2 NJ'!D70<0.5),"-",IFERROR('Tabel 2 NJ'!D70/'Tabel 1 NJ'!C68*100,"-")) -> - | F70: =IF(OR('Tabel 1 NJ'!E68<5,'Tabel 2 NJ'!F70<0.5),"-",IFERROR('Tabel 2 NJ'!F70/'Tabel 1 NJ'!E68*100,"-")) -> - | G70: =IF(OR('Tabel 1 NJ'!E68<5,'Tabel 2 NJ'!G70<0.5),"-",IFERROR('Tabel 2 NJ'!G70/'Tabel 1 NJ'!E68*100,"-")) -> - | I70: =IF(OR('Tabel 1 NJ'!G68<5,'Tabel 2 NJ'!I70<0.5),"-",IFERROR('Tabel 2 NJ'!I70/'Tabel 1 NJ'!G68*100,"-")) -> - | J70: =IF(OR('Tabel 1 NJ'!G68<5,'Tabel 2 NJ'!J70<0.5),"-",IFERROR('Tabel 2 NJ'!J70/'Tabel 1 NJ'!G68*100,"-")) -> -
A71: Agronom | C71: =IF(OR('Tabel 1 NJ'!C69<5,'Tabel 2 NJ'!C71<0.5),"-",IFERROR('Tabel 2 NJ'!C71/'Tabel 1 NJ'!C69*100,"-")) -> - | D71: =IF(OR('Tabel 1 NJ'!C69<5,'Tabel 2 NJ'!D71<0.5),"-",IFERROR('Tabel 2 NJ'!D71/'Tabel 1 NJ'!C69*100,"-")) -> - | F71: =IF(OR('Tabel 1 NJ'!E69<5,'Tabel 2 NJ'!F71<0.5),"-",IFERROR('Tabel 2 NJ'!F71/'Tabel 1 NJ'!E69*100,"-")) -> - | G71: =IF(OR('Tabel 1 NJ'!E69<5,'Tabel 2 NJ'!G71<0.5),"-",IFERROR('Tabel 2 NJ'!G71/'Tabel 1 NJ'!E69*100,"-")) -> - | I71: =IF(OR('Tabel 1 NJ'!G69<5,'Tabel 2 NJ'!I71<0.5),"-",IFERROR('Tabel 2 NJ'!I71/'Tabel 1 NJ'!G69*100,"-")) -> - | J71: =IF(OR('Tabel 1 NJ'!G69<5,'Tabel 2 NJ'!J71<0.5),"-",IFERROR('Tabel 2 NJ'!J71/'Tabel 1 NJ'!G69*100,"-")) -> -
A72: Landsk. Arkt. | C72: =IF(OR('Tabel 1 NJ'!C70<5,'Tabel 2 NJ'!C72<0.5),"-",IFERROR('Tabel 2 NJ'!C72/'Tabel 1 NJ'!C70*100,"-")) -> - | D72: =IF(OR('Tabel 1 NJ'!C70<5,'Tabel 2 NJ'!D72<0.5),"-",IFERROR('Tabel 2 NJ'!D72/'Tabel 1 NJ'!C70*100,"-")) -> - | F72: =IF(OR('Tabel 1 NJ'!E70<5,'Tabel 2 NJ'!F72<0.5),"-",IFERROR('Tabel 2 NJ'!F72/'Tabel 1 NJ'!E70*100,"-")) -> - | G72: =IF(OR('Tabel 1 NJ'!E70<5,'Tabel 2 NJ'!G72<0.5),"-",IFERROR('Tabel 2 NJ'!G72/'Tabel 1 NJ'!E70*100,"-")) -> - | I72: =IF(OR('Tabel 1 NJ'!G70<5,'Tabel 2 NJ'!I72<0.5),"-",IFERROR('Tabel 2 NJ'!I72/'Tabel 1 NJ'!G70*100,"-")) -> - | J72: =IF(OR('Tabel 1 NJ'!G70<5,'Tabel 2 NJ'!J72<0.5),"-",IFERROR('Tabel 2 NJ'!J72/'Tabel 1 NJ'!G70*100,"-")) -> -
A73: Hortonom | C73: =IF(OR('Tabel 1 NJ'!C71<5,'Tabel 2 NJ'!C73<0.5),"-",IFERROR('Tabel 2 NJ'!C73/'Tabel 1 NJ'!C71*100,"-")) -> - | D73: =IF(OR('Tabel 1 NJ'!C71<5,'Tabel 2 NJ'!D73<0.5),"-",IFERROR('Tabel 2 NJ'!D73/'Tabel 1 NJ'!C71*100,"-")) -> - | F73: =IF(OR('Tabel 1 NJ'!E71<5,'Tabel 2 NJ'!F73<0.5),"-",IFERROR('Tabel 2 NJ'!F73/'Tabel 1 NJ'!E71*100,"-")) -> - | G73: =IF(OR('Tabel 1 NJ'!E71<5,'Tabel 2 NJ'!G73<0.5),"-",IFERROR('Tabel 2 NJ'!G73/'Tabel 1 NJ'!E71*100,"-")) -> - | I73: =IF(OR('Tabel 1 NJ'!G71<5,'Tabel 2 NJ'!I73<0.5),"-",IFERROR('Tabel 2 NJ'!I73/'Tabel 1 NJ'!G71*100,"-")) -> - | J73: =IF(OR('Tabel 1 NJ'!G71<5,'Tabel 2 NJ'!J73<0.5),"-",IFERROR('Tabel 2 NJ'!J73/'Tabel 1 NJ'!G71*100,"-")) -> -
A74: Forstkand. | C74: =IF(OR('Tabel 1 NJ'!C72<5,'Tabel 2 NJ'!C74<0.5),"-",IFERROR('Tabel 2 NJ'!C74/'Tabel 1 NJ'!C72*100,"-")) -> - | D74: =IF(OR('Tabel 1 NJ'!C72<5,'Tabel 2 NJ'!D74<0.5),"-",IFERROR('Tabel 2 NJ'!D74/'Tabel 1 NJ'!C72*100,"-")) -> - | F74: =IF(OR('Tabel 1 NJ'!E72<5,'Tabel 2 NJ'!F74<0.5),"-",IFERROR('Tabel 2 NJ'!F74/'Tabel 1 NJ'!E72*100,"-")) -> - | G74: =IF(OR('Tabel 1 NJ'!E72<5,'Tabel 2 NJ'!G74<0.5),"-",IFERROR('Tabel 2 NJ'!G74/'Tabel 1 NJ'!E72*100,"-")) -> - | I74: =IF(OR('Tabel 1 NJ'!G72<5,'Tabel 2 NJ'!I74<0.5),"-",IFERROR('Tabel 2 NJ'!I74/'Tabel 1 NJ'!G72*100,"-")) -> - | J74: =IF(OR('Tabel 1 NJ'!G72<5,'Tabel 2 NJ'!J74<0.5),"-",IFERROR('Tabel 2 NJ'!J74/'Tabel 1 NJ'!G72*100,"-")) -> -
A75: Jordbrugsakad. | C75: =IF(OR('Tabel 1 NJ'!C73<5,'Tabel 2 NJ'!C75<0.5),"-",IFERROR('Tabel 2 NJ'!C75/'Tabel 1 NJ'!C73*100,"-")) -> - | D75: =IF(OR('Tabel 1 NJ'!C73<5,'Tabel 2 NJ'!D75<0.5),"-",IFERROR('Tabel 2 NJ'!D75/'Tabel 1 NJ'!C73*100,"-")) -> - | F75: =IF(OR('Tabel 1 NJ'!E73<5,'Tabel 2 NJ'!F75<0.5),"-",IFERROR('Tabel 2 NJ'!F75/'Tabel 1 NJ'!E73*100,"-")) -> - | G75: =IF(OR('Tabel 1 NJ'!E73<5,'Tabel 2 NJ'!G75<0.5),"-",IFERROR('Tabel 2 NJ'!G75/'Tabel 1 NJ'!E73*100,"-")) -> - | I75: =IF(OR('Tabel 1 NJ'!G73<5,'Tabel 2 NJ'!I75<0.5),"-",IFERROR('Tabel 2 NJ'!I75/'Tabel 1 NJ'!G73*100,"-")) -> - | J75: =IF(OR('Tabel 1 NJ'!G73<5,'Tabel 2 NJ'!J75<0.5),"-",IFERROR('Tabel 2 NJ'!J75/'Tabel 1 NJ'!G73*100,"-")) -> -
A76: Mejeriing. | C76: =IF(OR('Tabel 1 NJ'!C74<5,'Tabel 2 NJ'!C76<0.5),"-",IFERROR('Tabel 2 NJ'!C76/'Tabel 1 NJ'!C74*100,"-")) -> - | D76: =IF(OR('Tabel 1 NJ'!C74<5,'Tabel 2 NJ'!D76<0.5),"-",IFERROR('Tabel 2 NJ'!D76/'Tabel 1 NJ'!C74*100,"-")) -> - | F76: =IF(OR('Tabel 1 NJ'!E74<5,'Tabel 2 NJ'!F76<0.5),"-",IFERROR('Tabel 2 NJ'!F76/'Tabel 1 NJ'!E74*100,"-")) -> - | G76: =IF(OR('Tabel 1 NJ'!E74<5,'Tabel 2 NJ'!G76<0.5),"-",IFERROR('Tabel 2 NJ'!G76/'Tabel 1 NJ'!E74*100,"-")) -> - | I76: =IF(OR('Tabel 1 NJ'!G74<5,'Tabel 2 NJ'!I76<0.5),"-",IFERROR('Tabel 2 NJ'!I76/'Tabel 1 NJ'!G74*100,"-")) -> - | J76: =IF(OR('Tabel 1 NJ'!G74<5,'Tabel 2 NJ'!J76<0.5),"-",IFERROR('Tabel 2 NJ'!J76/'Tabel 1 NJ'!G74*100,"-")) -> -
A77: Levn.m.kand. | C77: =IF(OR('Tabel 1 NJ'!C75<5,'Tabel 2 NJ'!C77<0.5),"-",IFERROR('Tabel 2 NJ'!C77/'Tabel 1 NJ'!C75*100,"-")) -> - | D77: =IF(OR('Tabel 1 NJ'!C75<5,'Tabel 2 NJ'!D77<0.5),"-",IFERROR('Tabel 2 NJ'!D77/'Tabel 1 NJ'!C75*100,"-")) -> - | F77: =IF(OR('Tabel 1 NJ'!E75<5,'Tabel 2 NJ'!F77<0.5),"-",IFERROR('Tabel 2 NJ'!F77/'Tabel 1 NJ'!E75*100,"-")) -> - | G77: =IF(OR('Tabel 1 NJ'!E75<5,'Tabel 2 NJ'!G77<0.5),"-",IFERROR('Tabel 2 NJ'!G77/'Tabel 1 NJ'!E75*100,"-")) -> - | I77: =IF(OR('Tabel 1 NJ'!G75<5,'Tabel 2 NJ'!I77<0.5),"-",IFERROR('Tabel 2 NJ'!I77/'Tabel 1 NJ'!G75*100,"-")) -> - | J77: =IF(OR('Tabel 1 NJ'!G75<5,'Tabel 2 NJ'!J77<0.5),"-",IFERROR('Tabel 2 NJ'!J77/'Tabel 1 NJ'!G75*100,"-")) -> -
A78: Dyrlæge | C78: =IF(OR('Tabel 1 NJ'!C76<5,'Tabel 2 NJ'!C78<0.5),"-",IFERROR('Tabel 2 NJ'!C78/'Tabel 1 NJ'!C76*100,"-")) -> - | D78: =IF(OR('Tabel 1 NJ'!C76<5,'Tabel 2 NJ'!D78<0.5),"-",IFERROR('Tabel 2 NJ'!D78/'Tabel 1 NJ'!C76*100,"-")) -> - | F78: =IF(OR('Tabel 1 NJ'!E76<5,'Tabel 2 NJ'!F78<0.5),"-",IFERROR('Tabel 2 NJ'!F78/'Tabel 1 NJ'!E76*100,"-")) -> - | G78: =IF(OR('Tabel 1 NJ'!E76<5,'Tabel 2 NJ'!G78<0.5),"-",IFERROR('Tabel 2 NJ'!G78/'Tabel 1 NJ'!E76*100,"-")) -> - | I78: =IF(OR('Tabel 1 NJ'!G76<5,'Tabel 2 NJ'!I78<0.5),"-",IFERROR('Tabel 2 NJ'!I78/'Tabel 1 NJ'!G76*100,"-")) -> - | J78: =IF(OR('Tabel 1 NJ'!G76<5,'Tabel 2 NJ'!J78<0.5),"-",IFERROR('Tabel 2 NJ'!J78/'Tabel 1 NJ'!G76*100,"-")) -> -
A79: Farmaceut | C79: =IF(OR('Tabel 1 NJ'!C77<5,'Tabel 2 NJ'!C79<0.5),"-",IFERROR('Tabel 2 NJ'!C79/'Tabel 1 NJ'!C77*100,"-")) -> - | D79: =IF(OR('Tabel 1 NJ'!C77<5,'Tabel 2 NJ'!D79<0.5),"-",IFERROR('Tabel 2 NJ'!D79/'Tabel 1 NJ'!C77*100,"-")) -> - | F79: =IF(OR('Tabel 1 NJ'!E77<5,'Tabel 2 NJ'!F79<0.5),"-",IFERROR('Tabel 2 NJ'!F79/'Tabel 1 NJ'!E77*100,"-")) -> - | G79: =IF(OR('Tabel 1 NJ'!E77<5,'Tabel 2 NJ'!G79<0.5),"-",IFERROR('Tabel 2 NJ'!G79/'Tabel 1 NJ'!E77*100,"-")) -> - | I79: =IF(OR('Tabel 1 NJ'!G77<5,'Tabel 2 NJ'!I79<0.5),"-",IFERROR('Tabel 2 NJ'!I79/'Tabel 1 NJ'!G77*100,"-")) -> - | J79: =IF(OR('Tabel 1 NJ'!G77<5,'Tabel 2 NJ'!J79<0.5),"-",IFERROR('Tabel 2 NJ'!J79/'Tabel 1 NJ'!G77*100,"-")) -> -
A80: Læge | C80: =IF(OR('Tabel 1 NJ'!C78<5,'Tabel 2 NJ'!C80<0.5),"-",IFERROR('Tabel 2 NJ'!C80/'Tabel 1 NJ'!C78*100,"-")) -> - | D80: =IF(OR('Tabel 1 NJ'!C78<5,'Tabel 2 NJ'!D80<0.5),"-",IFERROR('Tabel 2 NJ'!D80/'Tabel 1 NJ'!C78*100,"-")) -> - | F80: =IF(OR('Tabel 1 NJ'!E78<5,'Tabel 2 NJ'!F80<0.5),"-",IFERROR('Tabel 2 NJ'!F80/'Tabel 1 NJ'!E78*100,"-")) -> - | G80: =IF(OR('Tabel 1 NJ'!E78<5,'Tabel 2 NJ'!G80<0.5),"-",IFERROR('Tabel 2 NJ'!G80/'Tabel 1 NJ'!E78*100,"-")) -> - | I80: =IF(OR('Tabel 1 NJ'!G78<5,'Tabel 2 NJ'!I80<0.5),"-",IFERROR('Tabel 2 NJ'!I80/'Tabel 1 NJ'!G78*100,"-")) -> - | J80: =IF(OR('Tabel 1 NJ'!G78<5,'Tabel 2 NJ'!J80<0.5),"-",IFERROR('Tabel 2 NJ'!J80/'Tabel 1 NJ'!G78*100,"-")) -> -
A81: Tandlæge | C81: =IF(OR('Tabel 1 NJ'!C79<5,'Tabel 2 NJ'!C81<0.5),"-",IFERROR('Tabel 2 NJ'!C81/'Tabel 1 NJ'!C79*100,"-")) -> - | D81: =IF(OR('Tabel 1 NJ'!C79<5,'Tabel 2 NJ'!D81<0.5),"-",IFERROR('Tabel 2 NJ'!D81/'Tabel 1 NJ'!C79*100,"-")) -> - | F81: =IF(OR('Tabel 1 NJ'!E79<5,'Tabel 2 NJ'!F81<0.5),"-",IFERROR('Tabel 2 NJ'!F81/'Tabel 1 NJ'!E79*100,"-")) -> - | G81: =IF(OR('Tabel 1 NJ'!E79<5,'Tabel 2 NJ'!G81<0.5),"-",IFERROR('Tabel 2 NJ'!G81/'Tabel 1 NJ'!E79*100,"-")) -> - | I81: =IF(OR('Tabel 1 NJ'!G79<5,'Tabel 2 NJ'!I81<0.5),"-",IFERROR('Tabel 2 NJ'!I81/'Tabel 1 NJ'!G79*100,"-")) -> - | J81: =IF(OR('Tabel 1 NJ'!G79<5,'Tabel 2 NJ'!J81<0.5),"-",IFERROR('Tabel 2 NJ'!J81/'Tabel 1 NJ'!G79*100,"-")) -> -
A82: Arkitekt | C82: =IF(OR('Tabel 1 NJ'!C80<5,'Tabel 2 NJ'!C82<0.5),"-",IFERROR('Tabel 2 NJ'!C82/'Tabel 1 NJ'!C80*100,"-")) -> - | D82: =IF(OR('Tabel 1 NJ'!C80<5,'Tabel 2 NJ'!D82<0.5),"-",IFERROR('Tabel 2 NJ'!D82/'Tabel 1 NJ'!C80*100,"-")) -> - | F82: =IF(OR('Tabel 1 NJ'!E80<5,'Tabel 2 NJ'!F82<0.5),"-",IFERROR('Tabel 2 NJ'!F82/'Tabel 1 NJ'!E80*100,"-")) -> - | G82: =IF(OR('Tabel 1 NJ'!E80<5,'Tabel 2 NJ'!G82<0.5),"-",IFERROR('Tabel 2 NJ'!G82/'Tabel 1 NJ'!E80*100,"-")) -> - | I82: =IF(OR('Tabel 1 NJ'!G80<5,'Tabel 2 NJ'!I82<0.5),"-",IFERROR('Tabel 2 NJ'!I82/'Tabel 1 NJ'!G80*100,"-")) -> - | J82: =IF(OR('Tabel 1 NJ'!G80<5,'Tabel 2 NJ'!J82<0.5),"-",IFERROR('Tabel 2 NJ'!J82/'Tabel 1 NJ'!G80*100,"-")) -> -
A83: Landinspek. | C83: =IF(OR('Tabel 1 NJ'!C81<5,'Tabel 2 NJ'!C83<0.5),"-",IFERROR('Tabel 2 NJ'!C83/'Tabel 1 NJ'!C81*100,"-")) -> - | D83: =IF(OR('Tabel 1 NJ'!C81<5,'Tabel 2 NJ'!D83<0.5),"-",IFERROR('Tabel 2 NJ'!D83/'Tabel 1 NJ'!C81*100,"-")) -> - | F83: =IF(OR('Tabel 1 NJ'!E81<5,'Tabel 2 NJ'!F83<0.5),"-",IFERROR('Tabel 2 NJ'!F83/'Tabel 1 NJ'!E81*100,"-")) -> - | G83: =IF(OR('Tabel 1 NJ'!E81<5,'Tabel 2 NJ'!G83<0.5),"-",IFERROR('Tabel 2 NJ'!G83/'Tabel 1 NJ'!E81*100,"-")) -> - | I83: =IF(OR('Tabel 1 NJ'!G81<5,'Tabel 2 NJ'!I83<0.5),"-",IFERROR('Tabel 2 NJ'!I83/'Tabel 1 NJ'!G81*100,"-")) -> - | J83: =IF(OR('Tabel 1 NJ'!G81<5,'Tabel 2 NJ'!J83<0.5),"-",IFERROR('Tabel 2 NJ'!J83/'Tabel 1 NJ'!G81*100,"-")) -> -
A84: Bibliotekar | C84: =IF(OR('Tabel 1 NJ'!C82<5,'Tabel 2 NJ'!C84<0.5),"-",IFERROR('Tabel 2 NJ'!C84/'Tabel 1 NJ'!C82*100,"-")) -> - | D84: =IF(OR('Tabel 1 NJ'!C82<5,'Tabel 2 NJ'!D84<0.5),"-",IFERROR('Tabel 2 NJ'!D84/'Tabel 1 NJ'!C82*100,"-")) -> - | F84: =IF(OR('Tabel 1 NJ'!E82<5,'Tabel 2 NJ'!F84<0.5),"-",IFERROR('Tabel 2 NJ'!F84/'Tabel 1 NJ'!E82*100,"-")) -> 33.33333333 | G84: =IF(OR('Tabel 1 NJ'!E82<5,'Tabel 2 NJ'!G84<0.5),"-",IFERROR('Tabel 2 NJ'!G84/'Tabel 1 NJ'!E82*100,"-")) -> 31.78860267 | I84: =IF(OR('Tabel 1 NJ'!G82<5,'Tabel 2 NJ'!I84<0.5),"-",IFERROR('Tabel 2 NJ'!I84/'Tabel 1 NJ'!G82*100,"-")) -> 25 | J84: =IF(OR('Tabel 1 NJ'!G82<5,'Tabel 2 NJ'!J84<0.5),"-",IFERROR('Tabel 2 NJ'!J84/'Tabel 1 NJ'!G82*100,"-")) -> 23.84145201
A85: Musikudd. | C85: =IF(OR('Tabel 1 NJ'!C83<5,'Tabel 2 NJ'!C85<0.5),"-",IFERROR('Tabel 2 NJ'!C85/'Tabel 1 NJ'!C83*100,"-")) -> - | D85: =IF(OR('Tabel 1 NJ'!C83<5,'Tabel 2 NJ'!D85<0.5),"-",IFERROR('Tabel 2 NJ'!D85/'Tabel 1 NJ'!C83*100,"-")) -> - | F85: =IF(OR('Tabel 1 NJ'!E83<5,'Tabel 2 NJ'!F85<0.5),"-",IFERROR('Tabel 2 NJ'!F85/'Tabel 1 NJ'!E83*100,"-")) -> - | G85: =IF(OR('Tabel 1 NJ'!E83<5,'Tabel 2 NJ'!G85<0.5),"-",IFERROR('Tabel 2 NJ'!G85/'Tabel 1 NJ'!E83*100,"-")) -> - | I85: =IF(OR('Tabel 1 NJ'!G83<5,'Tabel 2 NJ'!I85<0.5),"-",IFERROR('Tabel 2 NJ'!I85/'Tabel 1 NJ'!G83*100,"-")) -> - | J85: =IF(OR('Tabel 1 NJ'!G83<5,'Tabel 2 NJ'!J85<0.5),"-",IFERROR('Tabel 2 NJ'!J85/'Tabel 1 NJ'!G83*100,"-")) -> -
A86: Teolog | C86: =IF(OR('Tabel 1 NJ'!C84<5,'Tabel 2 NJ'!C86<0.5),"-",IFERROR('Tabel 2 NJ'!C86/'Tabel 1 NJ'!C84*100,"-")) -> - | D86: =IF(OR('Tabel 1 NJ'!C84<5,'Tabel 2 NJ'!D86<0.5),"-",IFERROR('Tabel 2 NJ'!D86/'Tabel 1 NJ'!C84*100,"-")) -> - | F86: =IF(OR('Tabel 1 NJ'!E84<5,'Tabel 2 NJ'!F86<0.5),"-",IFERROR('Tabel 2 NJ'!F86/'Tabel 1 NJ'!E84*100,"-")) -> - | G86: =IF(OR('Tabel 1 NJ'!E84<5,'Tabel 2 NJ'!G86<0.5),"-",IFERROR('Tabel 2 NJ'!G86/'Tabel 1 NJ'!E84*100,"-")) -> - | I86: =IF(OR('Tabel 1 NJ'!G84<5,'Tabel 2 NJ'!I86<0.5),"-",IFERROR('Tabel 2 NJ'!I86/'Tabel 1 NJ'!G84*100,"-")) -> - | J86: =IF(OR('Tabel 1 NJ'!G84<5,'Tabel 2 NJ'!J86<0.5),"-",IFERROR('Tabel 2 NJ'!J86/'Tabel 1 NJ'!G84*100,"-")) -> -
A87: Psykolog | C87: =IF(OR('Tabel 1 NJ'!C85<5,'Tabel 2 NJ'!C87<0.5),"-",IFERROR('Tabel 2 NJ'!C87/'Tabel 1 NJ'!C85*100,"-")) -> - | D87: =IF(OR('Tabel 1 NJ'!C85<5,'Tabel 2 NJ'!D87<0.5),"-",IFERROR('Tabel 2 NJ'!D87/'Tabel 1 NJ'!C85*100,"-")) -> - | F87: =IF(OR('Tabel 1 NJ'!E85<5,'Tabel 2 NJ'!F87<0.5),"-",IFERROR('Tabel 2 NJ'!F87/'Tabel 1 NJ'!E85*100,"-")) -> - | G87: =IF(OR('Tabel 1 NJ'!E85<5,'Tabel 2 NJ'!G87<0.5),"-",IFERROR('Tabel 2 NJ'!G87/'Tabel 1 NJ'!E85*100,"-")) -> - | I87: =IF(OR('Tabel 1 NJ'!G85<5,'Tabel 2 NJ'!I87<0.5),"-",IFERROR('Tabel 2 NJ'!I87/'Tabel 1 NJ'!G85*100,"-")) -> - | J87: =IF(OR('Tabel 1 NJ'!G85<5,'Tabel 2 NJ'!J87<0.5),"-",IFERROR('Tabel 2 NJ'!J87/'Tabel 1 NJ'!G85*100,"-")) -> -
A88: Jurist | C88: =IF(OR('Tabel 1 NJ'!C86<5,'Tabel 2 NJ'!C88<0.5),"-",IFERROR('Tabel 2 NJ'!C88/'Tabel 1 NJ'!C86*100,"-")) -> - | D88: =IF(OR('Tabel 1 NJ'!C86<5,'Tabel 2 NJ'!D88<0.5),"-",IFERROR('Tabel 2 NJ'!D88/'Tabel 1 NJ'!C86*100,"-")) -> - | F88: =IF(OR('Tabel 1 NJ'!E86<5,'Tabel 2 NJ'!F88<0.5),"-",IFERROR('Tabel 2 NJ'!F88/'Tabel 1 NJ'!E86*100,"-")) -> - | G88: =IF(OR('Tabel 1 NJ'!E86<5,'Tabel 2 NJ'!G88<0.5),"-",IFERROR('Tabel 2 NJ'!G88/'Tabel 1 NJ'!E86*100,"-")) -> - | I88: =IF(OR('Tabel 1 NJ'!G86<5,'Tabel 2 NJ'!I88<0.5),"-",IFERROR('Tabel 2 NJ'!I88/'Tabel 1 NJ'!G86*100,"-")) -> - | J88: =IF(OR('Tabel 1 NJ'!G86<5,'Tabel 2 NJ'!J88<0.5),"-",IFERROR('Tabel 2 NJ'!J88/'Tabel 1 NJ'!G86*100,"-")) -> -
A89: Økonom | C89: =IF(OR('Tabel 1 NJ'!C87<5,'Tabel 2 NJ'!C89<0.5),"-",IFERROR('Tabel 2 NJ'!C89/'Tabel 1 NJ'!C87*100,"-")) -> - | D89: =IF(OR('Tabel 1 NJ'!C87<5,'Tabel 2 NJ'!D89<0.5),"-",IFERROR('Tabel 2 NJ'!D89/'Tabel 1 NJ'!C87*100,"-")) -> - | F89: =IF(OR('Tabel 1 NJ'!E87<5,'Tabel 2 NJ'!F89<0.5),"-",IFERROR('Tabel 2 NJ'!F89/'Tabel 1 NJ'!E87*100,"-")) -> - | G89: =IF(OR('Tabel 1 NJ'!E87<5,'Tabel 2 NJ'!G89<0.5),"-",IFERROR('Tabel 2 NJ'!G89/'Tabel 1 NJ'!E87*100,"-")) -> - | I89: =IF(OR('Tabel 1 NJ'!G87<5,'Tabel 2 NJ'!I89<0.5),"-",IFERROR('Tabel 2 NJ'!I89/'Tabel 1 NJ'!G87*100,"-")) -> - | J89: =IF(OR('Tabel 1 NJ'!G87<5,'Tabel 2 NJ'!J89<0.5),"-",IFERROR('Tabel 2 NJ'!J89/'Tabel 1 NJ'!G87*100,"-")) -> -
A90: Samf. Adm. | C90: =IF(OR('Tabel 1 NJ'!C88<5,'Tabel 2 NJ'!C90<0.5),"-",IFERROR('Tabel 2 NJ'!C90/'Tabel 1 NJ'!C88*100,"-")) -> - | D90: =IF(OR('Tabel 1 NJ'!C88<5,'Tabel 2 NJ'!D90<0.5),"-",IFERROR('Tabel 2 NJ'!D90/'Tabel 1 NJ'!C88*100,"-")) -> - | F90: =IF(OR('Tabel 1 NJ'!E88<5,'Tabel 2 NJ'!F90<0.5),"-",IFERROR('Tabel 2 NJ'!F90/'Tabel 1 NJ'!E88*100,"-")) -> - | G90: =IF(OR('Tabel 1 NJ'!E88<5,'Tabel 2 NJ'!G90<0.5),"-",IFERROR('Tabel 2 NJ'!G90/'Tabel 1 NJ'!E88*100,"-")) -> - | I90: =IF(OR('Tabel 1 NJ'!G88<5,'Tabel 2 NJ'!I90<0.5),"-",IFERROR('Tabel 2 NJ'!I90/'Tabel 1 NJ'!G88*100,"-")) -> - | J90: =IF(OR('Tabel 1 NJ'!G88<5,'Tabel 2 NJ'!J90<0.5),"-",IFERROR('Tabel 2 NJ'!J90/'Tabel 1 NJ'!G88*100,"-")) -> -
A91: Cand. Merc. | C91: =IF(OR('Tabel 1 NJ'!C89<5,'Tabel 2 NJ'!C91<0.5),"-",IFERROR('Tabel 2 NJ'!C91/'Tabel 1 NJ'!C89*100,"-")) -> - | D91: =IF(OR('Tabel 1 NJ'!C89<5,'Tabel 2 NJ'!D91<0.5),"-",IFERROR('Tabel 2 NJ'!D91/'Tabel 1 NJ'!C89*100,"-")) -> - | F91: =IF(OR('Tabel 1 NJ'!E89<5,'Tabel 2 NJ'!F91<0.5),"-",IFERROR('Tabel 2 NJ'!F91/'Tabel 1 NJ'!E89*100,"-")) -> - | G91: =IF(OR('Tabel 1 NJ'!E89<5,'Tabel 2 NJ'!G91<0.5),"-",IFERROR('Tabel 2 NJ'!G91/'Tabel 1 NJ'!E89*100,"-")) -> - | I91: =IF(OR('Tabel 1 NJ'!G89<5,'Tabel 2 NJ'!I91<0.5),"-",IFERROR('Tabel 2 NJ'!I91/'Tabel 1 NJ'!G89*100,"-")) -> - | J91: =IF(OR('Tabel 1 NJ'!G89<5,'Tabel 2 NJ'!J91<0.5),"-",IFERROR('Tabel 2 NJ'!J91/'Tabel 1 NJ'!G89*100,"-")) -> -
A92: HA | C92: =IF(OR('Tabel 1 NJ'!C90<5,'Tabel 2 NJ'!C92<0.5),"-",IFERROR('Tabel 2 NJ'!C92/'Tabel 1 NJ'!C90*100,"-")) -> - | D92: =IF(OR('Tabel 1 NJ'!C90<5,'Tabel 2 NJ'!D92<0.5),"-",IFERROR('Tabel 2 NJ'!D92/'Tabel 1 NJ'!C90*100,"-")) -> - | F92: =IF(OR('Tabel 1 NJ'!E90<5,'Tabel 2 NJ'!F92<0.5),"-",IFERROR('Tabel 2 NJ'!F92/'Tabel 1 NJ'!E90*100,"-")) -> - | G92: =IF(OR('Tabel 1 NJ'!E90<5,'Tabel 2 NJ'!G92<0.5),"-",IFERROR('Tabel 2 NJ'!G92/'Tabel 1 NJ'!E90*100,"-")) -> - | I92: =IF(OR('Tabel 1 NJ'!G90<5,'Tabel 2 NJ'!I92<0.5),"-",IFERROR('Tabel 2 NJ'!I92/'Tabel 1 NJ'!G90*100,"-")) -> - | J92: =IF(OR('Tabel 1 NJ'!G90<5,'Tabel 2 NJ'!J92<0.5),"-",IFERROR('Tabel 2 NJ'!J92/'Tabel 1 NJ'!G90*100,"-")) -> -
A93: HD | C93: =IF(OR('Tabel 1 NJ'!C91<5,'Tabel 2 NJ'!C93<0.5),"-",IFERROR('Tabel 2 NJ'!C93/'Tabel 1 NJ'!C91*100,"-")) -> - | D93: =IF(OR('Tabel 1 NJ'!C91<5,'Tabel 2 NJ'!D93<0.5),"-",IFERROR('Tabel 2 NJ'!D93/'Tabel 1 NJ'!C91*100,"-")) -> - | F93: =IF(OR('Tabel 1 NJ'!E91<5,'Tabel 2 NJ'!F93<0.5),"-",IFERROR('Tabel 2 NJ'!F93/'Tabel 1 NJ'!E91*100,"-")) -> - | G93: =IF(OR('Tabel 1 NJ'!E91<5,'Tabel 2 NJ'!G93<0.5),"-",IFERROR('Tabel 2 NJ'!G93/'Tabel 1 NJ'!E91*100,"-")) -> - | I93: =IF(OR('Tabel 1 NJ'!G91<5,'Tabel 2 NJ'!I93<0.5),"-",IFERROR('Tabel 2 NJ'!I93/'Tabel 1 NJ'!G91*100,"-")) -> - | J93: =IF(OR('Tabel 1 NJ'!G91<5,'Tabel 2 NJ'!J93<0.5),"-",IFERROR('Tabel 2 NJ'!J93/'Tabel 1 NJ'!G91*100,"-")) -> -
A94: Komm. og Sprog | C94: =IF(OR('Tabel 1 NJ'!C92<5,'Tabel 2 NJ'!C94<0.5),"-",IFERROR('Tabel 2 NJ'!C94/'Tabel 1 NJ'!C92*100,"-")) -> - | D94: =IF(OR('Tabel 1 NJ'!C92<5,'Tabel 2 NJ'!D94<0.5),"-",IFERROR('Tabel 2 NJ'!D94/'Tabel 1 NJ'!C92*100,"-")) -> - | F94: =IF(OR('Tabel 1 NJ'!E92<5,'Tabel 2 NJ'!F94<0.5),"-",IFERROR('Tabel 2 NJ'!F94/'Tabel 1 NJ'!E92*100,"-")) -> - | G94: =IF(OR('Tabel 1 NJ'!E92<5,'Tabel 2 NJ'!G94<0.5),"-",IFERROR('Tabel 2 NJ'!G94/'Tabel 1 NJ'!E92*100,"-")) -> - | I94: =IF(OR('Tabel 1 NJ'!G92<5,'Tabel 2 NJ'!I94<0.5),"-",IFERROR('Tabel 2 NJ'!I94/'Tabel 1 NJ'!G92*100,"-")) -> - | J94: =IF(OR('Tabel 1 NJ'!G92<5,'Tabel 2 NJ'!J94<0.5),"-",IFERROR('Tabel 2 NJ'!J94/'Tabel 1 NJ'!G92*100,"-")) -> -
A95: Bygningskonst. | C95: =IF(OR('Tabel 1 NJ'!C93<5,'Tabel 2 NJ'!C95<0.5),"-",IFERROR('Tabel 2 NJ'!C95/'Tabel 1 NJ'!C93*100,"-")) -> 14.28571429 | D95: =IF(OR('Tabel 1 NJ'!C93<5,'Tabel 2 NJ'!D95<0.5),"-",IFERROR('Tabel 2 NJ'!D95/'Tabel 1 NJ'!C93*100,"-")) -> 13.62635992 | F95: =IF(OR('Tabel 1 NJ'!E93<5,'Tabel 2 NJ'!F95<0.5),"-",IFERROR('Tabel 2 NJ'!F95/'Tabel 1 NJ'!E93*100,"-")) -> - | G95: =IF(OR('Tabel 1 NJ'!E93<5,'Tabel 2 NJ'!G95<0.5),"-",IFERROR('Tabel 2 NJ'!G95/'Tabel 1 NJ'!E93*100,"-")) -> - | I95: =IF(OR('Tabel 1 NJ'!G93<5,'Tabel 2 NJ'!I95<0.5),"-",IFERROR('Tabel 2 NJ'!I95/'Tabel 1 NJ'!G93*100,"-")) -> 13.33333333 | J95: =IF(OR('Tabel 1 NJ'!G93<5,'Tabel 2 NJ'!J95<0.5),"-",IFERROR('Tabel 2 NJ'!J95/'Tabel 1 NJ'!G93*100,"-")) -> 12.71793592
A96: Cand. IT. | C96: =IF(OR('Tabel 1 NJ'!C94<5,'Tabel 2 NJ'!C96<0.5),"-",IFERROR('Tabel 2 NJ'!C96/'Tabel 1 NJ'!C94*100,"-")) -> - | D96: =IF(OR('Tabel 1 NJ'!C94<5,'Tabel 2 NJ'!D96<0.5),"-",IFERROR('Tabel 2 NJ'!D96/'Tabel 1 NJ'!C94*100,"-")) -> - | F96: =IF(OR('Tabel 1 NJ'!E94<5,'Tabel 2 NJ'!F96<0.5),"-",IFERROR('Tabel 2 NJ'!F96/'Tabel 1 NJ'!E94*100,"-")) -> - | G96: =IF(OR('Tabel 1 NJ'!E94<5,'Tabel 2 NJ'!G96<0.5),"-",IFERROR('Tabel 2 NJ'!G96/'Tabel 1 NJ'!E94*100,"-")) -> - | I96: =IF(OR('Tabel 1 NJ'!G94<5,'Tabel 2 NJ'!I96<0.5),"-",IFERROR('Tabel 2 NJ'!I96/'Tabel 1 NJ'!G94*100,"-")) -> - | J96: =IF(OR('Tabel 1 NJ'!G94<5,'Tabel 2 NJ'!J96<0.5),"-",IFERROR('Tabel 2 NJ'!J96/'Tabel 1 NJ'!G94*100,"-")) -> -
A97: Bac. Samf. | C97: =IF(OR('Tabel 1 NJ'!C95<5,'Tabel 2 NJ'!C97<0.5),"-",IFERROR('Tabel 2 NJ'!C97/'Tabel 1 NJ'!C95*100,"-")) -> - | D97: =IF(OR('Tabel 1 NJ'!C95<5,'Tabel 2 NJ'!D97<0.5),"-",IFERROR('Tabel 2 NJ'!D97/'Tabel 1 NJ'!C95*100,"-")) -> - | F97: =IF(OR('Tabel 1 NJ'!E95<5,'Tabel 2 NJ'!F97<0.5),"-",IFERROR('Tabel 2 NJ'!F97/'Tabel 1 NJ'!E95*100,"-")) -> - | G97: =IF(OR('Tabel 1 NJ'!E95<5,'Tabel 2 NJ'!G97<0.5),"-",IFERROR('Tabel 2 NJ'!G97/'Tabel 1 NJ'!E95*100,"-")) -> - | I97: =IF(OR('Tabel 1 NJ'!G95<5,'Tabel 2 NJ'!I97<0.5),"-",IFERROR('Tabel 2 NJ'!I97/'Tabel 1 NJ'!G95*100,"-")) -> - | J97: =IF(OR('Tabel 1 NJ'!G95<5,'Tabel 2 NJ'!J97<0.5),"-",IFERROR('Tabel 2 NJ'!J97/'Tabel 1 NJ'!G95*100,"-")) -> -
A98: Bac. Hum. | C98: =IF(OR('Tabel 1 NJ'!C96<5,'Tabel 2 NJ'!C98<0.5),"-",IFERROR('Tabel 2 NJ'!C98/'Tabel 1 NJ'!C96*100,"-")) -> - | D98: =IF(OR('Tabel 1 NJ'!C96<5,'Tabel 2 NJ'!D98<0.5),"-",IFERROR('Tabel 2 NJ'!D98/'Tabel 1 NJ'!C96*100,"-")) -> - | F98: =IF(OR('Tabel 1 NJ'!E96<5,'Tabel 2 NJ'!F98<0.5),"-",IFERROR('Tabel 2 NJ'!F98/'Tabel 1 NJ'!E96*100,"-")) -> - | G98: =IF(OR('Tabel 1 NJ'!E96<5,'Tabel 2 NJ'!G98<0.5),"-",IFERROR('Tabel 2 NJ'!G98/'Tabel 1 NJ'!E96*100,"-")) -> - | I98: =IF(OR('Tabel 1 NJ'!G96<5,'Tabel 2 NJ'!I98<0.5),"-",IFERROR('Tabel 2 NJ'!I98/'Tabel 1 NJ'!G96*100,"-")) -> 40 | J98: =IF(OR('Tabel 1 NJ'!G96<5,'Tabel 2 NJ'!J98<0.5),"-",IFERROR('Tabel 2 NJ'!J98/'Tabel 1 NJ'!G96*100,"-")) -> 39.99251544
A99: Bac. Nat. | C99: =IF(OR('Tabel 1 NJ'!C97<5,'Tabel 2 NJ'!C99<0.5),"-",IFERROR('Tabel 2 NJ'!C99/'Tabel 1 NJ'!C97*100,"-")) -> - | D99: =IF(OR('Tabel 1 NJ'!C97<5,'Tabel 2 NJ'!D99<0.5),"-",IFERROR('Tabel 2 NJ'!D99/'Tabel 1 NJ'!C97*100,"-")) -> - | F99: =IF(OR('Tabel 1 NJ'!E97<5,'Tabel 2 NJ'!F99<0.5),"-",IFERROR('Tabel 2 NJ'!F99/'Tabel 1 NJ'!E97*100,"-")) -> - | G99: =IF(OR('Tabel 1 NJ'!E97<5,'Tabel 2 NJ'!G99<0.5),"-",IFERROR('Tabel 2 NJ'!G99/'Tabel 1 NJ'!E97*100,"-")) -> - | I99: =IF(OR('Tabel 1 NJ'!G97<5,'Tabel 2 NJ'!I99<0.5),"-",IFERROR('Tabel 2 NJ'!I99/'Tabel 1 NJ'!G97*100,"-")) -> - | J99: =IF(OR('Tabel 1 NJ'!G97<5,'Tabel 2 NJ'!J99<0.5),"-",IFERROR('Tabel 2 NJ'!J99/'Tabel 1 NJ'!G97*100,"-")) -> -
A100: Andre | C100: =IF(OR('Tabel 1 NJ'!C98<5,'Tabel 2 NJ'!C100<0.5),"-",IFERROR('Tabel 2 NJ'!C100/'Tabel 1 NJ'!C98*100,"-")) -> 12.5 | D100: =IF(OR('Tabel 1 NJ'!C98<5,'Tabel 2 NJ'!D100<0.5),"-",IFERROR('Tabel 2 NJ'!D100/'Tabel 1 NJ'!C98*100,"-")) -> 10.8214308 | F100: =IF(OR('Tabel 1 NJ'!E98<5,'Tabel 2 NJ'!F100<0.5),"-",IFERROR('Tabel 2 NJ'!F100/'Tabel 1 NJ'!E98*100,"-")) -> - | G100: =IF(OR('Tabel 1 NJ'!E98<5,'Tabel 2 NJ'!G100<0.5),"-",IFERROR('Tabel 2 NJ'!G100/'Tabel 1 NJ'!E98*100,"-")) -> - | I100: =IF(OR('Tabel 1 NJ'!G98<5,'Tabel 2 NJ'!I100<0.5),"-",IFERROR('Tabel 2 NJ'!I100/'Tabel 1 NJ'!G98*100,"-")) -> 6.25 | J100: =IF(OR('Tabel 1 NJ'!G98<5,'Tabel 2 NJ'!J100<0.5),"-",IFERROR('Tabel 2 NJ'!J100/'Tabel 1 NJ'!G98*100,"-")) -> 5.410715399
A102: Total | C102: =IF(OR('Tabel 1 NJ'!C100<5,'Tabel 2 NJ'!C102<0.5),"-",IFERROR('Tabel 2 NJ'!C102/'Tabel 1 NJ'!C100*100,"-")) -> 5.426356589 | D102: =IF(OR('Tabel 1 NJ'!C100<5,'Tabel 2 NJ'!D102<0.5),"-",IFERROR('Tabel 2 NJ'!D102/'Tabel 1 NJ'!C100*100,"-")) -> 5.107005561 | F102: =IF(OR('Tabel 1 NJ'!E100<5,'Tabel 2 NJ'!F102<0.5),"-",IFERROR('Tabel 2 NJ'!F102/'Tabel 1 NJ'!E100*100,"-")) -> 6.557377049 | G102: =IF(OR('Tabel 1 NJ'!E100<5,'Tabel 2 NJ'!G102<0.5),"-",IFERROR('Tabel 2 NJ'!G102/'Tabel 1 NJ'!E100*100,"-")) -> 5.820474779 | I102: =IF(OR('Tabel 1 NJ'!G100<5,'Tabel 2 NJ'!I102<0.5),"-",IFERROR('Tabel 2 NJ'!I102/'Tabel 1 NJ'!G100*100,"-")) -> 5.976095618 | J102: =IF(OR('Tabel 1 NJ'!G100<5,'Tabel 2 NJ'!J102<0.5),"-",IFERROR('Tabel 2 NJ'!J102/'Tabel 1 NJ'!G100*100,"-")) -> 5.453791396
A104: Ingeniører i alt | C104: =IF(OR('Tabel 1 NJ'!C102<5,'Tabel 2 NJ'!C104<0.5),"-",IFERROR('Tabel 2 NJ'!C104/'Tabel 1 NJ'!C102*100,"-")) -> 3.125 | D104: =IF(OR('Tabel 1 NJ'!C102<5,'Tabel 2 NJ'!D104<0.5),"-",IFERROR('Tabel 2 NJ'!D104/'Tabel 1 NJ'!C102*100,"-")) -> 3.124415269 | F104: =IF(OR('Tabel 1 NJ'!E102<5,'Tabel 2 NJ'!F104<0.5),"-",IFERROR('Tabel 2 NJ'!F104/'Tabel 1 NJ'!E102*100,"-")) -> - | G104: =IF(OR('Tabel 1 NJ'!E102<5,'Tabel 2 NJ'!G104<0.5),"-",IFERROR('Tabel 2 NJ'!G104/'Tabel 1 NJ'!E102*100,"-")) -> - | I104: =IF(OR('Tabel 1 NJ'!G102<5,'Tabel 2 NJ'!I104<0.5),"-",IFERROR('Tabel 2 NJ'!I104/'Tabel 1 NJ'!G102*100,"-")) -> 2 | J104: =IF(OR('Tabel 1 NJ'!G102<5,'Tabel 2 NJ'!J104<0.5),"-",IFERROR('Tabel 2 NJ'!J104/'Tabel 1 NJ'!G102*100,"-")) -> 1.999625772
A105: Magistre i alt | C105: =IF(OR('Tabel 1 NJ'!C103<5,'Tabel 2 NJ'!C105<0.5),"-",IFERROR('Tabel 2 NJ'!C105/'Tabel 1 NJ'!C103*100,"-")) -> 3.571428571 | D105: =IF(OR('Tabel 1 NJ'!C103<5,'Tabel 2 NJ'!D105<0.5),"-",IFERROR('Tabel 2 NJ'!D105/'Tabel 1 NJ'!C103*100,"-")) -> 2.91140594 | F105: =IF(OR('Tabel 1 NJ'!E103<5,'Tabel 2 NJ'!F105<0.5),"-",IFERROR('Tabel 2 NJ'!F105/'Tabel 1 NJ'!E103*100,"-")) -> 11.11111111 | G105: =IF(OR('Tabel 1 NJ'!E103<5,'Tabel 2 NJ'!G105<0.5),"-",IFERROR('Tabel 2 NJ'!G105/'Tabel 1 NJ'!E103*100,"-")) -> 8.872325828 | I105: =IF(OR('Tabel 1 NJ'!G103<5,'Tabel 2 NJ'!I105<0.5),"-",IFERROR('Tabel 2 NJ'!I105/'Tabel 1 NJ'!G103*100,"-")) -> 7.8125 | J105: =IF(OR('Tabel 1 NJ'!G103<5,'Tabel 2 NJ'!J105<0.5),"-",IFERROR('Tabel 2 NJ'!J105/'Tabel 1 NJ'!G103*100,"-")) -> 6.264423377
A106: DJØF'ere i alt | C106: =IF(OR('Tabel 1 NJ'!C104<5,'Tabel 2 NJ'!C106<0.5),"-",IFERROR('Tabel 2 NJ'!C106/'Tabel 1 NJ'!C104*100,"-")) -> - | D106: =IF(OR('Tabel 1 NJ'!C104<5,'Tabel 2 NJ'!D106<0.5),"-",IFERROR('Tabel 2 NJ'!D106/'Tabel 1 NJ'!C104*100,"-")) -> - | F106: =IF(OR('Tabel 1 NJ'!E104<5,'Tabel 2 NJ'!F106<0.5),"-",IFERROR('Tabel 2 NJ'!F106/'Tabel 1 NJ'!E104*100,"-")) -> - | G106: =IF(OR('Tabel 1 NJ'!E104<5,'Tabel 2 NJ'!G106<0.5),"-",IFERROR('Tabel 2 NJ'!G106/'Tabel 1 NJ'!E104*100,"-")) -> - | I106: =IF(OR('Tabel 1 NJ'!G104<5,'Tabel 2 NJ'!I106<0.5),"-",IFERROR('Tabel 2 NJ'!I106/'Tabel 1 NJ'!G104*100,"-")) -> - | J106: =IF(OR('Tabel 1 NJ'!G104<5,'Tabel 2 NJ'!J106<0.5),"-",IFERROR('Tabel 2 NJ'!J106/'Tabel 1 NJ'!G104*100,"-")) -> -
A111: Thisted
C113: Mænd | F113: Kvinder | I113: I alt
C114: Ledigheds- berørte | D114: Gns. brutto- ledighed | F114: Ledigheds- berørte | G114: Gns. brutto- ledighed | I114: Ledigheds- berørte | J114: Gns. brutto- ledighed
A117: Civ. ing. | C117: =IF(OR('Tabel 1 NJ'!C115<5,'Tabel 2 NJ'!C117<0.5),"-",IFERROR('Tabel 2 NJ'!C117/'Tabel 1 NJ'!C115*100,"-")) -> 2.702702703 | D117: =IF(OR('Tabel 1 NJ'!C115<5,'Tabel 2 NJ'!D117<0.5),"-",IFERROR('Tabel 2 NJ'!D117/'Tabel 1 NJ'!C115*100,"-")) -> 2.702196989 | F117: =IF(OR('Tabel 1 NJ'!E115<5,'Tabel 2 NJ'!F117<0.5),"-",IFERROR('Tabel 2 NJ'!F117/'Tabel 1 NJ'!E115*100,"-")) -> 18.18181818 | G117: =IF(OR('Tabel 1 NJ'!E115<5,'Tabel 2 NJ'!G117<0.5),"-",IFERROR('Tabel 2 NJ'!G117/'Tabel 1 NJ'!E115*100,"-")) -> 18.17841611 | I117: =IF(OR('Tabel 1 NJ'!G115<5,'Tabel 2 NJ'!I117<0.5),"-",IFERROR('Tabel 2 NJ'!I117/'Tabel 1 NJ'!G115*100,"-")) -> 6.25 | J117: =IF(OR('Tabel 1 NJ'!G115<5,'Tabel 2 NJ'!J117<0.5),"-",IFERROR('Tabel 2 NJ'!J117/'Tabel 1 NJ'!G115*100,"-")) -> 6.248830537
A118: Diplom ing. | C118: =IF(OR('Tabel 1 NJ'!C116<5,'Tabel 2 NJ'!C118<0.5),"-",IFERROR('Tabel 2 NJ'!C118/'Tabel 1 NJ'!C116*100,"-")) -> 5.769230769 | D118: =IF(OR('Tabel 1 NJ'!C116<5,'Tabel 2 NJ'!D118<0.5),"-",IFERROR('Tabel 2 NJ'!D118/'Tabel 1 NJ'!C116*100,"-")) -> 5.768151265 | F118: =IF(OR('Tabel 1 NJ'!E116<5,'Tabel 2 NJ'!F118<0.5),"-",IFERROR('Tabel 2 NJ'!F118/'Tabel 1 NJ'!E116*100,"-")) -> - | G118: =IF(OR('Tabel 1 NJ'!E116<5,'Tabel 2 NJ'!G118<0.5),"-",IFERROR('Tabel 2 NJ'!G118/'Tabel 1 NJ'!E116*100,"-")) -> - | I118: =IF(OR('Tabel 1 NJ'!G116<5,'Tabel 2 NJ'!I118<0.5),"-",IFERROR('Tabel 2 NJ'!I118/'Tabel 1 NJ'!G116*100,"-")) -> 5 | J118: =IF(OR('Tabel 1 NJ'!G116<5,'Tabel 2 NJ'!J118<0.5),"-",IFERROR('Tabel 2 NJ'!J118/'Tabel 1 NJ'!G116*100,"-")) -> 4.99906443
A119: Cand. Scient. Tek. | C119: =IF(OR('Tabel 1 NJ'!C117<5,'Tabel 2 NJ'!C119<0.5),"-",IFERROR('Tabel 2 NJ'!C119/'Tabel 1 NJ'!C117*100,"-")) -> 4.545454545 | D119: =IF(OR('Tabel 1 NJ'!C117<5,'Tabel 2 NJ'!D119<0.5),"-",IFERROR('Tabel 2 NJ'!D119/'Tabel 1 NJ'!C117*100,"-")) -> 3.705425741 | F119: =IF(OR('Tabel 1 NJ'!E117<5,'Tabel 2 NJ'!F119<0.5),"-",IFERROR('Tabel 2 NJ'!F119/'Tabel 1 NJ'!E117*100,"-")) -> 25 | G119: =IF(OR('Tabel 1 NJ'!E117<5,'Tabel 2 NJ'!G119<0.5),"-",IFERROR('Tabel 2 NJ'!G119/'Tabel 1 NJ'!E117*100,"-")) -> 22.73046217 | I119: =IF(OR('Tabel 1 NJ'!G117<5,'Tabel 2 NJ'!I119<0.5),"-",IFERROR('Tabel 2 NJ'!I119/'Tabel 1 NJ'!G117*100,"-")) -> 13.15789474 | J119: =IF(OR('Tabel 1 NJ'!G117<5,'Tabel 2 NJ'!J119<0.5),"-",IFERROR('Tabel 2 NJ'!J119/'Tabel 1 NJ'!G117*100,"-")) -> 11.7159674
A120: MA. Hum. | C120: =IF(OR('Tabel 1 NJ'!C118<5,'Tabel 2 NJ'!C120<0.5),"-",IFERROR('Tabel 2 NJ'!C120/'Tabel 1 NJ'!C118*100,"-")) -> 7.142857143 | D120: =IF(OR('Tabel 1 NJ'!C118<5,'Tabel 2 NJ'!D120<0.5),"-",IFERROR('Tabel 2 NJ'!D120/'Tabel 1 NJ'!C118*100,"-")) -> 5.090690926 | F120: =IF(OR('Tabel 1 NJ'!E118<5,'Tabel 2 NJ'!F120<0.5),"-",IFERROR('Tabel 2 NJ'!F120/'Tabel 1 NJ'!E118*100,"-")) -> 8.139534884 | G120: =IF(OR('Tabel 1 NJ'!E118<5,'Tabel 2 NJ'!G120<0.5),"-",IFERROR('Tabel 2 NJ'!G120/'Tabel 1 NJ'!E118*100,"-")) -> 6.308210247 | I120: =IF(OR('Tabel 1 NJ'!G118<5,'Tabel 2 NJ'!I120<0.5),"-",IFERROR('Tabel 2 NJ'!I120/'Tabel 1 NJ'!G118*100,"-")) -> 7.8125 | J120: =IF(OR('Tabel 1 NJ'!G118<5,'Tabel 2 NJ'!J120<0.5),"-",IFERROR('Tabel 2 NJ'!J120/'Tabel 1 NJ'!G118*100,"-")) -> 5.90871172
A121: MA. Nat. | C121: =IF(OR('Tabel 1 NJ'!C119<5,'Tabel 2 NJ'!C121<0.5),"-",IFERROR('Tabel 2 NJ'!C121/'Tabel 1 NJ'!C119*100,"-")) -> - | D121: =IF(OR('Tabel 1 NJ'!C119<5,'Tabel 2 NJ'!D121<0.5),"-",IFERROR('Tabel 2 NJ'!D121/'Tabel 1 NJ'!C119*100,"-")) -> - | F121: =IF(OR('Tabel 1 NJ'!E119<5,'Tabel 2 NJ'!F121<0.5),"-",IFERROR('Tabel 2 NJ'!F121/'Tabel 1 NJ'!E119*100,"-")) -> 5.555555556 | G121: =IF(OR('Tabel 1 NJ'!E119<5,'Tabel 2 NJ'!G121<0.5),"-",IFERROR('Tabel 2 NJ'!G121/'Tabel 1 NJ'!E119*100,"-")) -> 4.483807702 | I121: =IF(OR('Tabel 1 NJ'!G119<5,'Tabel 2 NJ'!I121<0.5),"-",IFERROR('Tabel 2 NJ'!I121/'Tabel 1 NJ'!G119*100,"-")) -> 2.941176471 | J121: =IF(OR('Tabel 1 NJ'!G119<5,'Tabel 2 NJ'!J121<0.5),"-",IFERROR('Tabel 2 NJ'!J121/'Tabel 1 NJ'!G119*100,"-")) -> 2.373780548
A122: MA. Ph.d. | C122: =IF(OR('Tabel 1 NJ'!C120<5,'Tabel 2 NJ'!C122<0.5),"-",IFERROR('Tabel 2 NJ'!C122/'Tabel 1 NJ'!C120*100,"-")) -> - | D122: =IF(OR('Tabel 1 NJ'!C120<5,'Tabel 2 NJ'!D122<0.5),"-",IFERROR('Tabel 2 NJ'!D122/'Tabel 1 NJ'!C120*100,"-")) -> - | F122: =IF(OR('Tabel 1 NJ'!E120<5,'Tabel 2 NJ'!F122<0.5),"-",IFERROR('Tabel 2 NJ'!F122/'Tabel 1 NJ'!E120*100,"-")) -> - | G122: =IF(OR('Tabel 1 NJ'!E120<5,'Tabel 2 NJ'!G122<0.5),"-",IFERROR('Tabel 2 NJ'!G122/'Tabel 1 NJ'!E120*100,"-")) -> - | I122: =IF(OR('Tabel 1 NJ'!G120<5,'Tabel 2 NJ'!I122<0.5),"-",IFERROR('Tabel 2 NJ'!I122/'Tabel 1 NJ'!G120*100,"-")) -> - | J122: =IF(OR('Tabel 1 NJ'!G120<5,'Tabel 2 NJ'!J122<0.5),"-",IFERROR('Tabel 2 NJ'!J122/'Tabel 1 NJ'!G120*100,"-")) -> -
A123: MA. Samf. | C123: =IF(OR('Tabel 1 NJ'!C121<5,'Tabel 2 NJ'!C123<0.5),"-",IFERROR('Tabel 2 NJ'!C123/'Tabel 1 NJ'!C121*100,"-")) -> - | D123: =IF(OR('Tabel 1 NJ'!C121<5,'Tabel 2 NJ'!D123<0.5),"-",IFERROR('Tabel 2 NJ'!D123/'Tabel 1 NJ'!C121*100,"-")) -> - | F123: =IF(OR('Tabel 1 NJ'!E121<5,'Tabel 2 NJ'!F123<0.5),"-",IFERROR('Tabel 2 NJ'!F123/'Tabel 1 NJ'!E121*100,"-")) -> - | G123: =IF(OR('Tabel 1 NJ'!E121<5,'Tabel 2 NJ'!G123<0.5),"-",IFERROR('Tabel 2 NJ'!G123/'Tabel 1 NJ'!E121*100,"-")) -> - | I123: =IF(OR('Tabel 1 NJ'!G121<5,'Tabel 2 NJ'!I123<0.5),"-",IFERROR('Tabel 2 NJ'!I123/'Tabel 1 NJ'!G121*100,"-")) -> - | J123: =IF(OR('Tabel 1 NJ'!G121<5,'Tabel 2 NJ'!J123<0.5),"-",IFERROR('Tabel 2 NJ'!J123/'Tabel 1 NJ'!G121*100,"-")) -> -
A124: Øvrige Mag. | C124: =IF(OR('Tabel 1 NJ'!C122<5,'Tabel 2 NJ'!C124<0.5),"-",IFERROR('Tabel 2 NJ'!C124/'Tabel 1 NJ'!C122*100,"-")) -> - | D124: =IF(OR('Tabel 1 NJ'!C122<5,'Tabel 2 NJ'!D124<0.5),"-",IFERROR('Tabel 2 NJ'!D124/'Tabel 1 NJ'!C122*100,"-")) -> - | F124: =IF(OR('Tabel 1 NJ'!E122<5,'Tabel 2 NJ'!F124<0.5),"-",IFERROR('Tabel 2 NJ'!F124/'Tabel 1 NJ'!E122*100,"-")) -> 12.5 | G124: =IF(OR('Tabel 1 NJ'!E122<5,'Tabel 2 NJ'!G124<0.5),"-",IFERROR('Tabel 2 NJ'!G124/'Tabel 1 NJ'!E122*100,"-")) -> 12.49766107 | I124: =IF(OR('Tabel 1 NJ'!G122<5,'Tabel 2 NJ'!I124<0.5),"-",IFERROR('Tabel 2 NJ'!I124/'Tabel 1 NJ'!G122*100,"-")) -> 7.692307692 | J124: =IF(OR('Tabel 1 NJ'!G122<5,'Tabel 2 NJ'!J124<0.5),"-",IFERROR('Tabel 2 NJ'!J124/'Tabel 1 NJ'!G122*100,"-")) -> 7.690868353
A125: Agronom | C125: =IF(OR('Tabel 1 NJ'!C123<5,'Tabel 2 NJ'!C125<0.5),"-",IFERROR('Tabel 2 NJ'!C125/'Tabel 1 NJ'!C123*100,"-")) -> 11.11111111 | D125: =IF(OR('Tabel 1 NJ'!C123<5,'Tabel 2 NJ'!D125<0.5),"-",IFERROR('Tabel 2 NJ'!D125/'Tabel 1 NJ'!C123*100,"-")) -> 11.10903207 | F125: =IF(OR('Tabel 1 NJ'!E123<5,'Tabel 2 NJ'!F125<0.5),"-",IFERROR('Tabel 2 NJ'!F125/'Tabel 1 NJ'!E123*100,"-")) -> - | G125: =IF(OR('Tabel 1 NJ'!E123<5,'Tabel 2 NJ'!G125<0.5),"-",IFERROR('Tabel 2 NJ'!G125/'Tabel 1 NJ'!E123*100,"-")) -> - | I125: =IF(OR('Tabel 1 NJ'!G123<5,'Tabel 2 NJ'!I125<0.5),"-",IFERROR('Tabel 2 NJ'!I125/'Tabel 1 NJ'!G123*100,"-")) -> 20 | J125: =IF(OR('Tabel 1 NJ'!G123<5,'Tabel 2 NJ'!J125<0.5),"-",IFERROR('Tabel 2 NJ'!J125/'Tabel 1 NJ'!G123*100,"-")) -> 19.99625772
A126: Landsk. Arkt. | C126: =IF(OR('Tabel 1 NJ'!C124<5,'Tabel 2 NJ'!C126<0.5),"-",IFERROR('Tabel 2 NJ'!C126/'Tabel 1 NJ'!C124*100,"-")) -> - | D126: =IF(OR('Tabel 1 NJ'!C124<5,'Tabel 2 NJ'!D126<0.5),"-",IFERROR('Tabel 2 NJ'!D126/'Tabel 1 NJ'!C124*100,"-")) -> - | F126: =IF(OR('Tabel 1 NJ'!E124<5,'Tabel 2 NJ'!F126<0.5),"-",IFERROR('Tabel 2 NJ'!F126/'Tabel 1 NJ'!E124*100,"-")) -> - | G126: =IF(OR('Tabel 1 NJ'!E124<5,'Tabel 2 NJ'!G126<0.5),"-",IFERROR('Tabel 2 NJ'!G126/'Tabel 1 NJ'!E124*100,"-")) -> - | I126: =IF(OR('Tabel 1 NJ'!G124<5,'Tabel 2 NJ'!I126<0.5),"-",IFERROR('Tabel 2 NJ'!I126/'Tabel 1 NJ'!G124*100,"-")) -> - | J126: =IF(OR('Tabel 1 NJ'!G124<5,'Tabel 2 NJ'!J126<0.5),"-",IFERROR('Tabel 2 NJ'!J126/'Tabel 1 NJ'!G124*100,"-")) -> -
A127: Hortonom | C127: =IF(OR('Tabel 1 NJ'!C125<5,'Tabel 2 NJ'!C127<0.5),"-",IFERROR('Tabel 2 NJ'!C127/'Tabel 1 NJ'!C125*100,"-")) -> - | D127: =IF(OR('Tabel 1 NJ'!C125<5,'Tabel 2 NJ'!D127<0.5),"-",IFERROR('Tabel 2 NJ'!D127/'Tabel 1 NJ'!C125*100,"-")) -> - | F127: =IF(OR('Tabel 1 NJ'!E125<5,'Tabel 2 NJ'!F127<0.5),"-",IFERROR('Tabel 2 NJ'!F127/'Tabel 1 NJ'!E125*100,"-")) -> - | G127: =IF(OR('Tabel 1 NJ'!E125<5,'Tabel 2 NJ'!G127<0.5),"-",IFERROR('Tabel 2 NJ'!G127/'Tabel 1 NJ'!E125*100,"-")) -> - | I127: =IF(OR('Tabel 1 NJ'!G125<5,'Tabel 2 NJ'!I127<0.5),"-",IFERROR('Tabel 2 NJ'!I127/'Tabel 1 NJ'!G125*100,"-")) -> - | J127: =IF(OR('Tabel 1 NJ'!G125<5,'Tabel 2 NJ'!J127<0.5),"-",IFERROR('Tabel 2 NJ'!J127/'Tabel 1 NJ'!G125*100,"-")) -> -
A128: Forstkand. | C128: =IF(OR('Tabel 1 NJ'!C126<5,'Tabel 2 NJ'!C128<0.5),"-",IFERROR('Tabel 2 NJ'!C128/'Tabel 1 NJ'!C126*100,"-")) -> - | D128: =IF(OR('Tabel 1 NJ'!C126<5,'Tabel 2 NJ'!D128<0.5),"-",IFERROR('Tabel 2 NJ'!D128/'Tabel 1 NJ'!C126*100,"-")) -> - | F128: =IF(OR('Tabel 1 NJ'!E126<5,'Tabel 2 NJ'!F128<0.5),"-",IFERROR('Tabel 2 NJ'!F128/'Tabel 1 NJ'!E126*100,"-")) -> - | G128: =IF(OR('Tabel 1 NJ'!E126<5,'Tabel 2 NJ'!G128<0.5),"-",IFERROR('Tabel 2 NJ'!G128/'Tabel 1 NJ'!E126*100,"-")) -> - | I128: =IF(OR('Tabel 1 NJ'!G126<5,'Tabel 2 NJ'!I128<0.5),"-",IFERROR('Tabel 2 NJ'!I128/'Tabel 1 NJ'!G126*100,"-")) -> - | J128: =IF(OR('Tabel 1 NJ'!G126<5,'Tabel 2 NJ'!J128<0.5),"-",IFERROR('Tabel 2 NJ'!J128/'Tabel 1 NJ'!G126*100,"-")) -> -
A129: Jordbrugsakad. | C129: =IF(OR('Tabel 1 NJ'!C127<5,'Tabel 2 NJ'!C129<0.5),"-",IFERROR('Tabel 2 NJ'!C129/'Tabel 1 NJ'!C127*100,"-")) -> 9.090909091 | D129: =IF(OR('Tabel 1 NJ'!C127<5,'Tabel 2 NJ'!D129<0.5),"-",IFERROR('Tabel 2 NJ'!D129/'Tabel 1 NJ'!C127*100,"-")) -> 9.089208054 | F129: =IF(OR('Tabel 1 NJ'!E127<5,'Tabel 2 NJ'!F129<0.5),"-",IFERROR('Tabel 2 NJ'!F129/'Tabel 1 NJ'!E127*100,"-")) -> - | G129: =IF(OR('Tabel 1 NJ'!E127<5,'Tabel 2 NJ'!G129<0.5),"-",IFERROR('Tabel 2 NJ'!G129/'Tabel 1 NJ'!E127*100,"-")) -> - | I129: =IF(OR('Tabel 1 NJ'!G127<5,'Tabel 2 NJ'!I129<0.5),"-",IFERROR('Tabel 2 NJ'!I129/'Tabel 1 NJ'!G127*100,"-")) -> 14.28571429 | J129: =IF(OR('Tabel 1 NJ'!G127<5,'Tabel 2 NJ'!J129<0.5),"-",IFERROR('Tabel 2 NJ'!J129/'Tabel 1 NJ'!G127*100,"-")) -> 14.28304123
A130: Mejeriing. | C130: =IF(OR('Tabel 1 NJ'!C128<5,'Tabel 2 NJ'!C130<0.5),"-",IFERROR('Tabel 2 NJ'!C130/'Tabel 1 NJ'!C128*100,"-")) -> - | D130: =IF(OR('Tabel 1 NJ'!C128<5,'Tabel 2 NJ'!D130<0.5),"-",IFERROR('Tabel 2 NJ'!D130/'Tabel 1 NJ'!C128*100,"-")) -> - | F130: =IF(OR('Tabel 1 NJ'!E128<5,'Tabel 2 NJ'!F130<0.5),"-",IFERROR('Tabel 2 NJ'!F130/'Tabel 1 NJ'!E128*100,"-")) -> - | G130: =IF(OR('Tabel 1 NJ'!E128<5,'Tabel 2 NJ'!G130<0.5),"-",IFERROR('Tabel 2 NJ'!G130/'Tabel 1 NJ'!E128*100,"-")) -> - | I130: =IF(OR('Tabel 1 NJ'!G128<5,'Tabel 2 NJ'!I130<0.5),"-",IFERROR('Tabel 2 NJ'!I130/'Tabel 1 NJ'!G128*100,"-")) -> - | J130: =IF(OR('Tabel 1 NJ'!G128<5,'Tabel 2 NJ'!J130<0.5),"-",IFERROR('Tabel 2 NJ'!J130/'Tabel 1 NJ'!G128*100,"-")) -> -
A131: Levn.m.kand. | C131: =IF(OR('Tabel 1 NJ'!C129<5,'Tabel 2 NJ'!C131<0.5),"-",IFERROR('Tabel 2 NJ'!C131/'Tabel 1 NJ'!C129*100,"-")) -> - | D131: =IF(OR('Tabel 1 NJ'!C129<5,'Tabel 2 NJ'!D131<0.5),"-",IFERROR('Tabel 2 NJ'!D131/'Tabel 1 NJ'!C129*100,"-")) -> - | F131: =IF(OR('Tabel 1 NJ'!E129<5,'Tabel 2 NJ'!F131<0.5),"-",IFERROR('Tabel 2 NJ'!F131/'Tabel 1 NJ'!E129*100,"-")) -> - | G131: =IF(OR('Tabel 1 NJ'!E129<5,'Tabel 2 NJ'!G131<0.5),"-",IFERROR('Tabel 2 NJ'!G131/'Tabel 1 NJ'!E129*100,"-")) -> - | I131: =IF(OR('Tabel 1 NJ'!G129<5,'Tabel 2 NJ'!I131<0.5),"-",IFERROR('Tabel 2 NJ'!I131/'Tabel 1 NJ'!G129*100,"-")) -> - | J131: =IF(OR('Tabel 1 NJ'!G129<5,'Tabel 2 NJ'!J131<0.5),"-",IFERROR('Tabel 2 NJ'!J131/'Tabel 1 NJ'!G129*100,"-")) -> -
A132: Dyrlæge | C132: =IF(OR('Tabel 1 NJ'!C130<5,'Tabel 2 NJ'!C132<0.5),"-",IFERROR('Tabel 2 NJ'!C132/'Tabel 1 NJ'!C130*100,"-")) -> - | D132: =IF(OR('Tabel 1 NJ'!C130<5,'Tabel 2 NJ'!D132<0.5),"-",IFERROR('Tabel 2 NJ'!D132/'Tabel 1 NJ'!C130*100,"-")) -> - | F132: =IF(OR('Tabel 1 NJ'!E130<5,'Tabel 2 NJ'!F132<0.5),"-",IFERROR('Tabel 2 NJ'!F132/'Tabel 1 NJ'!E130*100,"-")) -> - | G132: =IF(OR('Tabel 1 NJ'!E130<5,'Tabel 2 NJ'!G132<0.5),"-",IFERROR('Tabel 2 NJ'!G132/'Tabel 1 NJ'!E130*100,"-")) -> - | I132: =IF(OR('Tabel 1 NJ'!G130<5,'Tabel 2 NJ'!I132<0.5),"-",IFERROR('Tabel 2 NJ'!I132/'Tabel 1 NJ'!G130*100,"-")) -> - | J132: =IF(OR('Tabel 1 NJ'!G130<5,'Tabel 2 NJ'!J132<0.5),"-",IFERROR('Tabel 2 NJ'!J132/'Tabel 1 NJ'!G130*100,"-")) -> -
A133: Farmaceut | C133: =IF(OR('Tabel 1 NJ'!C131<5,'Tabel 2 NJ'!C133<0.5),"-",IFERROR('Tabel 2 NJ'!C133/'Tabel 1 NJ'!C131*100,"-")) -> - | D133: =IF(OR('Tabel 1 NJ'!C131<5,'Tabel 2 NJ'!D133<0.5),"-",IFERROR('Tabel 2 NJ'!D133/'Tabel 1 NJ'!C131*100,"-")) -> - | F133: =IF(OR('Tabel 1 NJ'!E131<5,'Tabel 2 NJ'!F133<0.5),"-",IFERROR('Tabel 2 NJ'!F133/'Tabel 1 NJ'!E131*100,"-")) -> - | G133: =IF(OR('Tabel 1 NJ'!E131<5,'Tabel 2 NJ'!G133<0.5),"-",IFERROR('Tabel 2 NJ'!G133/'Tabel 1 NJ'!E131*100,"-")) -> - | I133: =IF(OR('Tabel 1 NJ'!G131<5,'Tabel 2 NJ'!I133<0.5),"-",IFERROR('Tabel 2 NJ'!I133/'Tabel 1 NJ'!G131*100,"-")) -> - | J133: =IF(OR('Tabel 1 NJ'!G131<5,'Tabel 2 NJ'!J133<0.5),"-",IFERROR('Tabel 2 NJ'!J133/'Tabel 1 NJ'!G131*100,"-")) -> -
A134: Læge | C134: =IF(OR('Tabel 1 NJ'!C132<5,'Tabel 2 NJ'!C134<0.5),"-",IFERROR('Tabel 2 NJ'!C134/'Tabel 1 NJ'!C132*100,"-")) -> - | D134: =IF(OR('Tabel 1 NJ'!C132<5,'Tabel 2 NJ'!D134<0.5),"-",IFERROR('Tabel 2 NJ'!D134/'Tabel 1 NJ'!C132*100,"-")) -> - | F134: =IF(OR('Tabel 1 NJ'!E132<5,'Tabel 2 NJ'!F134<0.5),"-",IFERROR('Tabel 2 NJ'!F134/'Tabel 1 NJ'!E132*100,"-")) -> - | G134: =IF(OR('Tabel 1 NJ'!E132<5,'Tabel 2 NJ'!G134<0.5),"-",IFERROR('Tabel 2 NJ'!G134/'Tabel 1 NJ'!E132*100,"-")) -> - | I134: =IF(OR('Tabel 1 NJ'!G132<5,'Tabel 2 NJ'!I134<0.5),"-",IFERROR('Tabel 2 NJ'!I134/'Tabel 1 NJ'!G132*100,"-")) -> - | J134: =IF(OR('Tabel 1 NJ'!G132<5,'Tabel 2 NJ'!J134<0.5),"-",IFERROR('Tabel 2 NJ'!J134/'Tabel 1 NJ'!G132*100,"-")) -> -
A135: Tandlæge | C135: =IF(OR('Tabel 1 NJ'!C133<5,'Tabel 2 NJ'!C135<0.5),"-",IFERROR('Tabel 2 NJ'!C135/'Tabel 1 NJ'!C133*100,"-")) -> - | D135: =IF(OR('Tabel 1 NJ'!C133<5,'Tabel 2 NJ'!D135<0.5),"-",IFERROR('Tabel 2 NJ'!D135/'Tabel 1 NJ'!C133*100,"-")) -> - | F135: =IF(OR('Tabel 1 NJ'!E133<5,'Tabel 2 NJ'!F135<0.5),"-",IFERROR('Tabel 2 NJ'!F135/'Tabel 1 NJ'!E133*100,"-")) -> - | G135: =IF(OR('Tabel 1 NJ'!E133<5,'Tabel 2 NJ'!G135<0.5),"-",IFERROR('Tabel 2 NJ'!G135/'Tabel 1 NJ'!E133*100,"-")) -> - | I135: =IF(OR('Tabel 1 NJ'!G133<5,'Tabel 2 NJ'!I135<0.5),"-",IFERROR('Tabel 2 NJ'!I135/'Tabel 1 NJ'!G133*100,"-")) -> - | J135: =IF(OR('Tabel 1 NJ'!G133<5,'Tabel 2 NJ'!J135<0.5),"-",IFERROR('Tabel 2 NJ'!J135/'Tabel 1 NJ'!G133*100,"-")) -> -
A136: Arkitekt | C136: =IF(OR('Tabel 1 NJ'!C134<5,'Tabel 2 NJ'!C136<0.5),"-",IFERROR('Tabel 2 NJ'!C136/'Tabel 1 NJ'!C134*100,"-")) -> - | D136: =IF(OR('Tabel 1 NJ'!C134<5,'Tabel 2 NJ'!D136<0.5),"-",IFERROR('Tabel 2 NJ'!D136/'Tabel 1 NJ'!C134*100,"-")) -> - | F136: =IF(OR('Tabel 1 NJ'!E134<5,'Tabel 2 NJ'!F136<0.5),"-",IFERROR('Tabel 2 NJ'!F136/'Tabel 1 NJ'!E134*100,"-")) -> - | G136: =IF(OR('Tabel 1 NJ'!E134<5,'Tabel 2 NJ'!G136<0.5),"-",IFERROR('Tabel 2 NJ'!G136/'Tabel 1 NJ'!E134*100,"-")) -> - | I136: =IF(OR('Tabel 1 NJ'!G134<5,'Tabel 2 NJ'!I136<0.5),"-",IFERROR('Tabel 2 NJ'!I136/'Tabel 1 NJ'!G134*100,"-")) -> 8.333333333 | J136: =IF(OR('Tabel 1 NJ'!G134<5,'Tabel 2 NJ'!J136<0.5),"-",IFERROR('Tabel 2 NJ'!J136/'Tabel 1 NJ'!G134*100,"-")) -> 8.331774049
A137: Landinspek. | C137: =IF(OR('Tabel 1 NJ'!C135<5,'Tabel 2 NJ'!C137<0.5),"-",IFERROR('Tabel 2 NJ'!C137/'Tabel 1 NJ'!C135*100,"-")) -> - | D137: =IF(OR('Tabel 1 NJ'!C135<5,'Tabel 2 NJ'!D137<0.5),"-",IFERROR('Tabel 2 NJ'!D137/'Tabel 1 NJ'!C135*100,"-")) -> - | F137: =IF(OR('Tabel 1 NJ'!E135<5,'Tabel 2 NJ'!F137<0.5),"-",IFERROR('Tabel 2 NJ'!F137/'Tabel 1 NJ'!E135*100,"-")) -> - | G137: =IF(OR('Tabel 1 NJ'!E135<5,'Tabel 2 NJ'!G137<0.5),"-",IFERROR('Tabel 2 NJ'!G137/'Tabel 1 NJ'!E135*100,"-")) -> - | I137: =IF(OR('Tabel 1 NJ'!G135<5,'Tabel 2 NJ'!I137<0.5),"-",IFERROR('Tabel 2 NJ'!I137/'Tabel 1 NJ'!G135*100,"-")) -> - | J137: =IF(OR('Tabel 1 NJ'!G135<5,'Tabel 2 NJ'!J137<0.5),"-",IFERROR('Tabel 2 NJ'!J137/'Tabel 1 NJ'!G135*100,"-")) -> -
A138: Bibliotekar | C138: =IF(OR('Tabel 1 NJ'!C136<5,'Tabel 2 NJ'!C138<0.5),"-",IFERROR('Tabel 2 NJ'!C138/'Tabel 1 NJ'!C136*100,"-")) -> - | D138: =IF(OR('Tabel 1 NJ'!C136<5,'Tabel 2 NJ'!D138<0.5),"-",IFERROR('Tabel 2 NJ'!D138/'Tabel 1 NJ'!C136*100,"-")) -> - | F138: =IF(OR('Tabel 1 NJ'!E136<5,'Tabel 2 NJ'!F138<0.5),"-",IFERROR('Tabel 2 NJ'!F138/'Tabel 1 NJ'!E136*100,"-")) -> 11.11111111 | G138: =IF(OR('Tabel 1 NJ'!E136<5,'Tabel 2 NJ'!G138<0.5),"-",IFERROR('Tabel 2 NJ'!G138/'Tabel 1 NJ'!E136*100,"-")) -> 11.10903207 | I138: =IF(OR('Tabel 1 NJ'!G136<5,'Tabel 2 NJ'!I138<0.5),"-",IFERROR('Tabel 2 NJ'!I138/'Tabel 1 NJ'!G136*100,"-")) -> 16.66666667 | J138: =IF(OR('Tabel 1 NJ'!G136<5,'Tabel 2 NJ'!J138<0.5),"-",IFERROR('Tabel 2 NJ'!J138/'Tabel 1 NJ'!G136*100,"-")) -> 13.70090854
A139: Musikudd. | C139: =IF(OR('Tabel 1 NJ'!C137<5,'Tabel 2 NJ'!C139<0.5),"-",IFERROR('Tabel 2 NJ'!C139/'Tabel 1 NJ'!C137*100,"-")) -> - | D139: =IF(OR('Tabel 1 NJ'!C137<5,'Tabel 2 NJ'!D139<0.5),"-",IFERROR('Tabel 2 NJ'!D139/'Tabel 1 NJ'!C137*100,"-")) -> - | F139: =IF(OR('Tabel 1 NJ'!E137<5,'Tabel 2 NJ'!F139<0.5),"-",IFERROR('Tabel 2 NJ'!F139/'Tabel 1 NJ'!E137*100,"-")) -> - | G139: =IF(OR('Tabel 1 NJ'!E137<5,'Tabel 2 NJ'!G139<0.5),"-",IFERROR('Tabel 2 NJ'!G139/'Tabel 1 NJ'!E137*100,"-")) -> - | I139: =IF(OR('Tabel 1 NJ'!G137<5,'Tabel 2 NJ'!I139<0.5),"-",IFERROR('Tabel 2 NJ'!I139/'Tabel 1 NJ'!G137*100,"-")) -> - | J139: =IF(OR('Tabel 1 NJ'!G137<5,'Tabel 2 NJ'!J139<0.5),"-",IFERROR('Tabel 2 NJ'!J139/'Tabel 1 NJ'!G137*100,"-")) -> -
A140: Teolog | C140: =IF(OR('Tabel 1 NJ'!C138<5,'Tabel 2 NJ'!C140<0.5),"-",IFERROR('Tabel 2 NJ'!C140/'Tabel 1 NJ'!C138*100,"-")) -> - | D140: =IF(OR('Tabel 1 NJ'!C138<5,'Tabel 2 NJ'!D140<0.5),"-",IFERROR('Tabel 2 NJ'!D140/'Tabel 1 NJ'!C138*100,"-")) -> - | F140: =IF(OR('Tabel 1 NJ'!E138<5,'Tabel 2 NJ'!F140<0.5),"-",IFERROR('Tabel 2 NJ'!F140/'Tabel 1 NJ'!E138*100,"-")) -> - | G140: =IF(OR('Tabel 1 NJ'!E138<5,'Tabel 2 NJ'!G140<0.5),"-",IFERROR('Tabel 2 NJ'!G140/'Tabel 1 NJ'!E138*100,"-")) -> - | I140: =IF(OR('Tabel 1 NJ'!G138<5,'Tabel 2 NJ'!I140<0.5),"-",IFERROR('Tabel 2 NJ'!I140/'Tabel 1 NJ'!G138*100,"-")) -> - | J140: =IF(OR('Tabel 1 NJ'!G138<5,'Tabel 2 NJ'!J140<0.5),"-",IFERROR('Tabel 2 NJ'!J140/'Tabel 1 NJ'!G138*100,"-")) -> -
A141: Psykolog | C141: =IF(OR('Tabel 1 NJ'!C139<5,'Tabel 2 NJ'!C141<0.5),"-",IFERROR('Tabel 2 NJ'!C141/'Tabel 1 NJ'!C139*100,"-")) -> - | D141: =IF(OR('Tabel 1 NJ'!C139<5,'Tabel 2 NJ'!D141<0.5),"-",IFERROR('Tabel 2 NJ'!D141/'Tabel 1 NJ'!C139*100,"-")) -> - | F141: =IF(OR('Tabel 1 NJ'!E139<5,'Tabel 2 NJ'!F141<0.5),"-",IFERROR('Tabel 2 NJ'!F141/'Tabel 1 NJ'!E139*100,"-")) -> 6.666666667 | G141: =IF(OR('Tabel 1 NJ'!E139<5,'Tabel 2 NJ'!G141<0.5),"-",IFERROR('Tabel 2 NJ'!G141/'Tabel 1 NJ'!E139*100,"-")) -> - | I141: =IF(OR('Tabel 1 NJ'!G139<5,'Tabel 2 NJ'!I141<0.5),"-",IFERROR('Tabel 2 NJ'!I141/'Tabel 1 NJ'!G139*100,"-")) -> 5.882352941 | J141: =IF(OR('Tabel 1 NJ'!G139<5,'Tabel 2 NJ'!J141<0.5),"-",IFERROR('Tabel 2 NJ'!J141/'Tabel 1 NJ'!G139*100,"-")) -> -
A142: Jurist | C142: =IF(OR('Tabel 1 NJ'!C140<5,'Tabel 2 NJ'!C142<0.5),"-",IFERROR('Tabel 2 NJ'!C142/'Tabel 1 NJ'!C140*100,"-")) -> - | D142: =IF(OR('Tabel 1 NJ'!C140<5,'Tabel 2 NJ'!D142<0.5),"-",IFERROR('Tabel 2 NJ'!D142/'Tabel 1 NJ'!C140*100,"-")) -> - | F142: =IF(OR('Tabel 1 NJ'!E140<5,'Tabel 2 NJ'!F142<0.5),"-",IFERROR('Tabel 2 NJ'!F142/'Tabel 1 NJ'!E140*100,"-")) -> - | G142: =IF(OR('Tabel 1 NJ'!E140<5,'Tabel 2 NJ'!G142<0.5),"-",IFERROR('Tabel 2 NJ'!G142/'Tabel 1 NJ'!E140*100,"-")) -> - | I142: =IF(OR('Tabel 1 NJ'!G140<5,'Tabel 2 NJ'!I142<0.5),"-",IFERROR('Tabel 2 NJ'!I142/'Tabel 1 NJ'!G140*100,"-")) -> - | J142: =IF(OR('Tabel 1 NJ'!G140<5,'Tabel 2 NJ'!J142<0.5),"-",IFERROR('Tabel 2 NJ'!J142/'Tabel 1 NJ'!G140*100,"-")) -> -
A143: Økonom | C143: =IF(OR('Tabel 1 NJ'!C141<5,'Tabel 2 NJ'!C143<0.5),"-",IFERROR('Tabel 2 NJ'!C143/'Tabel 1 NJ'!C141*100,"-")) -> 20 | D143: =IF(OR('Tabel 1 NJ'!C141<5,'Tabel 2 NJ'!D143<0.5),"-",IFERROR('Tabel 2 NJ'!D143/'Tabel 1 NJ'!C141*100,"-")) -> 12.6114888 | F143: =IF(OR('Tabel 1 NJ'!E141<5,'Tabel 2 NJ'!F143<0.5),"-",IFERROR('Tabel 2 NJ'!F143/'Tabel 1 NJ'!E141*100,"-")) -> - | G143: =IF(OR('Tabel 1 NJ'!E141<5,'Tabel 2 NJ'!G143<0.5),"-",IFERROR('Tabel 2 NJ'!G143/'Tabel 1 NJ'!E141*100,"-")) -> - | I143: =IF(OR('Tabel 1 NJ'!G141<5,'Tabel 2 NJ'!I143<0.5),"-",IFERROR('Tabel 2 NJ'!I143/'Tabel 1 NJ'!G141*100,"-")) -> 7.142857143 | J143: =IF(OR('Tabel 1 NJ'!G141<5,'Tabel 2 NJ'!J143<0.5),"-",IFERROR('Tabel 2 NJ'!J143/'Tabel 1 NJ'!G141*100,"-")) -> 4.504103144
A144: Samf. Adm. | C144: =IF(OR('Tabel 1 NJ'!C142<5,'Tabel 2 NJ'!C144<0.5),"-",IFERROR('Tabel 2 NJ'!C144/'Tabel 1 NJ'!C142*100,"-")) -> - | D144: =IF(OR('Tabel 1 NJ'!C142<5,'Tabel 2 NJ'!D144<0.5),"-",IFERROR('Tabel 2 NJ'!D144/'Tabel 1 NJ'!C142*100,"-")) -> - | F144: =IF(OR('Tabel 1 NJ'!E142<5,'Tabel 2 NJ'!F144<0.5),"-",IFERROR('Tabel 2 NJ'!F144/'Tabel 1 NJ'!E142*100,"-")) -> 17.39130435 | G144: =IF(OR('Tabel 1 NJ'!E142<5,'Tabel 2 NJ'!G144<0.5),"-",IFERROR('Tabel 2 NJ'!G144/'Tabel 1 NJ'!E142*100,"-")) -> 17.38805019 | I144: =IF(OR('Tabel 1 NJ'!G142<5,'Tabel 2 NJ'!I144<0.5),"-",IFERROR('Tabel 2 NJ'!I144/'Tabel 1 NJ'!G142*100,"-")) -> 10.25641026 | J144: =IF(OR('Tabel 1 NJ'!G142<5,'Tabel 2 NJ'!J144<0.5),"-",IFERROR('Tabel 2 NJ'!J144/'Tabel 1 NJ'!G142*100,"-")) -> 10.25449114
A145: Cand. Merc. | C145: =IF(OR('Tabel 1 NJ'!C143<5,'Tabel 2 NJ'!C145<0.5),"-",IFERROR('Tabel 2 NJ'!C145/'Tabel 1 NJ'!C143*100,"-")) -> 4.166666667 | D145: =IF(OR('Tabel 1 NJ'!C143<5,'Tabel 2 NJ'!D145<0.5),"-",IFERROR('Tabel 2 NJ'!D145/'Tabel 1 NJ'!C143*100,"-")) -> 4.165887025 | F145: =IF(OR('Tabel 1 NJ'!E143<5,'Tabel 2 NJ'!F145<0.5),"-",IFERROR('Tabel 2 NJ'!F145/'Tabel 1 NJ'!E143*100,"-")) -> 6.25 | G145: =IF(OR('Tabel 1 NJ'!E143<5,'Tabel 2 NJ'!G145<0.5),"-",IFERROR('Tabel 2 NJ'!G145/'Tabel 1 NJ'!E143*100,"-")) -> 6.248830537 | I145: =IF(OR('Tabel 1 NJ'!G143<5,'Tabel 2 NJ'!I145<0.5),"-",IFERROR('Tabel 2 NJ'!I145/'Tabel 1 NJ'!G143*100,"-")) -> 5 | J145: =IF(OR('Tabel 1 NJ'!G143<5,'Tabel 2 NJ'!J145<0.5),"-",IFERROR('Tabel 2 NJ'!J145/'Tabel 1 NJ'!G143*100,"-")) -> 4.99906443
A146: HA | C146: =IF(OR('Tabel 1 NJ'!C144<5,'Tabel 2 NJ'!C146<0.5),"-",IFERROR('Tabel 2 NJ'!C146/'Tabel 1 NJ'!C144*100,"-")) -> - | D146: =IF(OR('Tabel 1 NJ'!C144<5,'Tabel 2 NJ'!D146<0.5),"-",IFERROR('Tabel 2 NJ'!D146/'Tabel 1 NJ'!C144*100,"-")) -> - | F146: =IF(OR('Tabel 1 NJ'!E144<5,'Tabel 2 NJ'!F146<0.5),"-",IFERROR('Tabel 2 NJ'!F146/'Tabel 1 NJ'!E144*100,"-")) -> - | G146: =IF(OR('Tabel 1 NJ'!E144<5,'Tabel 2 NJ'!G146<0.5),"-",IFERROR('Tabel 2 NJ'!G146/'Tabel 1 NJ'!E144*100,"-")) -> - | I146: =IF(OR('Tabel 1 NJ'!G144<5,'Tabel 2 NJ'!I146<0.5),"-",IFERROR('Tabel 2 NJ'!I146/'Tabel 1 NJ'!G144*100,"-")) -> - | J146: =IF(OR('Tabel 1 NJ'!G144<5,'Tabel 2 NJ'!J146<0.5),"-",IFERROR('Tabel 2 NJ'!J146/'Tabel 1 NJ'!G144*100,"-")) -> -
A147: HD | C147: =IF(OR('Tabel 1 NJ'!C145<5,'Tabel 2 NJ'!C147<0.5),"-",IFERROR('Tabel 2 NJ'!C147/'Tabel 1 NJ'!C145*100,"-")) -> - | D147: =IF(OR('Tabel 1 NJ'!C145<5,'Tabel 2 NJ'!D147<0.5),"-",IFERROR('Tabel 2 NJ'!D147/'Tabel 1 NJ'!C145*100,"-")) -> - | F147: =IF(OR('Tabel 1 NJ'!E145<5,'Tabel 2 NJ'!F147<0.5),"-",IFERROR('Tabel 2 NJ'!F147/'Tabel 1 NJ'!E145*100,"-")) -> - | G147: =IF(OR('Tabel 1 NJ'!E145<5,'Tabel 2 NJ'!G147<0.5),"-",IFERROR('Tabel 2 NJ'!G147/'Tabel 1 NJ'!E145*100,"-")) -> - | I147: =IF(OR('Tabel 1 NJ'!G145<5,'Tabel 2 NJ'!I147<0.5),"-",IFERROR('Tabel 2 NJ'!I147/'Tabel 1 NJ'!G145*100,"-")) -> - | J147: =IF(OR('Tabel 1 NJ'!G145<5,'Tabel 2 NJ'!J147<0.5),"-",IFERROR('Tabel 2 NJ'!J147/'Tabel 1 NJ'!G145*100,"-")) -> -
A148: Komm. og Sprog | C148: =IF(OR('Tabel 1 NJ'!C146<5,'Tabel 2 NJ'!C148<0.5),"-",IFERROR('Tabel 2 NJ'!C148/'Tabel 1 NJ'!C146*100,"-")) -> - | D148: =IF(OR('Tabel 1 NJ'!C146<5,'Tabel 2 NJ'!D148<0.5),"-",IFERROR('Tabel 2 NJ'!D148/'Tabel 1 NJ'!C146*100,"-")) -> - | F148: =IF(OR('Tabel 1 NJ'!E146<5,'Tabel 2 NJ'!F148<0.5),"-",IFERROR('Tabel 2 NJ'!F148/'Tabel 1 NJ'!E146*100,"-")) -> 11.11111111 | G148: =IF(OR('Tabel 1 NJ'!E146<5,'Tabel 2 NJ'!G148<0.5),"-",IFERROR('Tabel 2 NJ'!G148/'Tabel 1 NJ'!E146*100,"-")) -> 11.10903207 | I148: =IF(OR('Tabel 1 NJ'!G146<5,'Tabel 2 NJ'!I148<0.5),"-",IFERROR('Tabel 2 NJ'!I148/'Tabel 1 NJ'!G146*100,"-")) -> 10 | J148: =IF(OR('Tabel 1 NJ'!G146<5,'Tabel 2 NJ'!J148<0.5),"-",IFERROR('Tabel 2 NJ'!J148/'Tabel 1 NJ'!G146*100,"-")) -> 9.998128859
A149: Bygningskonst. | C149: =IF(OR('Tabel 1 NJ'!C147<5,'Tabel 2 NJ'!C149<0.5),"-",IFERROR('Tabel 2 NJ'!C149/'Tabel 1 NJ'!C147*100,"-")) -> - | D149: =IF(OR('Tabel 1 NJ'!C147<5,'Tabel 2 NJ'!D149<0.5),"-",IFERROR('Tabel 2 NJ'!D149/'Tabel 1 NJ'!C147*100,"-")) -> - | F149: =IF(OR('Tabel 1 NJ'!E147<5,'Tabel 2 NJ'!F149<0.5),"-",IFERROR('Tabel 2 NJ'!F149/'Tabel 1 NJ'!E147*100,"-")) -> - | G149: =IF(OR('Tabel 1 NJ'!E147<5,'Tabel 2 NJ'!G149<0.5),"-",IFERROR('Tabel 2 NJ'!G149/'Tabel 1 NJ'!E147*100,"-")) -> - | I149: =IF(OR('Tabel 1 NJ'!G147<5,'Tabel 2 NJ'!I149<0.5),"-",IFERROR('Tabel 2 NJ'!I149/'Tabel 1 NJ'!G147*100,"-")) -> - | J149: =IF(OR('Tabel 1 NJ'!G147<5,'Tabel 2 NJ'!J149<0.5),"-",IFERROR('Tabel 2 NJ'!J149/'Tabel 1 NJ'!G147*100,"-")) -> -
A150: Cand. IT. | C150: =IF(OR('Tabel 1 NJ'!C148<5,'Tabel 2 NJ'!C150<0.5),"-",IFERROR('Tabel 2 NJ'!C150/'Tabel 1 NJ'!C148*100,"-")) -> - | D150: =IF(OR('Tabel 1 NJ'!C148<5,'Tabel 2 NJ'!D150<0.5),"-",IFERROR('Tabel 2 NJ'!D150/'Tabel 1 NJ'!C148*100,"-")) -> - | F150: =IF(OR('Tabel 1 NJ'!E148<5,'Tabel 2 NJ'!F150<0.5),"-",IFERROR('Tabel 2 NJ'!F150/'Tabel 1 NJ'!E148*100,"-")) -> - | G150: =IF(OR('Tabel 1 NJ'!E148<5,'Tabel 2 NJ'!G150<0.5),"-",IFERROR('Tabel 2 NJ'!G150/'Tabel 1 NJ'!E148*100,"-")) -> - | I150: =IF(OR('Tabel 1 NJ'!G148<5,'Tabel 2 NJ'!I150<0.5),"-",IFERROR('Tabel 2 NJ'!I150/'Tabel 1 NJ'!G148*100,"-")) -> 20 | J150: =IF(OR('Tabel 1 NJ'!G148<5,'Tabel 2 NJ'!J150<0.5),"-",IFERROR('Tabel 2 NJ'!J150/'Tabel 1 NJ'!G148*100,"-")) -> 19.0731616
A151: Bac. Samf. | C151: =IF(OR('Tabel 1 NJ'!C149<5,'Tabel 2 NJ'!C151<0.5),"-",IFERROR('Tabel 2 NJ'!C151/'Tabel 1 NJ'!C149*100,"-")) -> - | D151: =IF(OR('Tabel 1 NJ'!C149<5,'Tabel 2 NJ'!D151<0.5),"-",IFERROR('Tabel 2 NJ'!D151/'Tabel 1 NJ'!C149*100,"-")) -> - | F151: =IF(OR('Tabel 1 NJ'!E149<5,'Tabel 2 NJ'!F151<0.5),"-",IFERROR('Tabel 2 NJ'!F151/'Tabel 1 NJ'!E149*100,"-")) -> - | G151: =IF(OR('Tabel 1 NJ'!E149<5,'Tabel 2 NJ'!G151<0.5),"-",IFERROR('Tabel 2 NJ'!G151/'Tabel 1 NJ'!E149*100,"-")) -> - | I151: =IF(OR('Tabel 1 NJ'!G149<5,'Tabel 2 NJ'!I151<0.5),"-",IFERROR('Tabel 2 NJ'!I151/'Tabel 1 NJ'!G149*100,"-")) -> - | J151: =IF(OR('Tabel 1 NJ'!G149<5,'Tabel 2 NJ'!J151<0.5),"-",IFERROR('Tabel 2 NJ'!J151/'Tabel 1 NJ'!G149*100,"-")) -> -
A152: Bac. Hum. | C152: =IF(OR('Tabel 1 NJ'!C150<5,'Tabel 2 NJ'!C152<0.5),"-",IFERROR('Tabel 2 NJ'!C152/'Tabel 1 NJ'!C150*100,"-")) -> 20 | D152: =IF(OR('Tabel 1 NJ'!C150<5,'Tabel 2 NJ'!D152<0.5),"-",IFERROR('Tabel 2 NJ'!D152/'Tabel 1 NJ'!C150*100,"-")) -> 18.74883054 | F152: =IF(OR('Tabel 1 NJ'!E150<5,'Tabel 2 NJ'!F152<0.5),"-",IFERROR('Tabel 2 NJ'!F152/'Tabel 1 NJ'!E150*100,"-")) -> 14.28571429 | G152: =IF(OR('Tabel 1 NJ'!E150<5,'Tabel 2 NJ'!G152<0.5),"-",IFERROR('Tabel 2 NJ'!G152/'Tabel 1 NJ'!E150*100,"-")) -> 14.28304123 | I152: =IF(OR('Tabel 1 NJ'!G150<5,'Tabel 2 NJ'!I152<0.5),"-",IFERROR('Tabel 2 NJ'!I152/'Tabel 1 NJ'!G150*100,"-")) -> 16.66666667 | J152: =IF(OR('Tabel 1 NJ'!G150<5,'Tabel 2 NJ'!J152<0.5),"-",IFERROR('Tabel 2 NJ'!J152/'Tabel 1 NJ'!G150*100,"-")) -> 16.14378677
A153: Bac. Nat. | C153: =IF(OR('Tabel 1 NJ'!C151<5,'Tabel 2 NJ'!C153<0.5),"-",IFERROR('Tabel 2 NJ'!C153/'Tabel 1 NJ'!C151*100,"-")) -> - | D153: =IF(OR('Tabel 1 NJ'!C151<5,'Tabel 2 NJ'!D153<0.5),"-",IFERROR('Tabel 2 NJ'!D153/'Tabel 1 NJ'!C151*100,"-")) -> - | F153: =IF(OR('Tabel 1 NJ'!E151<5,'Tabel 2 NJ'!F153<0.5),"-",IFERROR('Tabel 2 NJ'!F153/'Tabel 1 NJ'!E151*100,"-")) -> - | G153: =IF(OR('Tabel 1 NJ'!E151<5,'Tabel 2 NJ'!G153<0.5),"-",IFERROR('Tabel 2 NJ'!G153/'Tabel 1 NJ'!E151*100,"-")) -> - | I153: =IF(OR('Tabel 1 NJ'!G151<5,'Tabel 2 NJ'!I153<0.5),"-",IFERROR('Tabel 2 NJ'!I153/'Tabel 1 NJ'!G151*100,"-")) -> - | J153: =IF(OR('Tabel 1 NJ'!G151<5,'Tabel 2 NJ'!J153<0.5),"-",IFERROR('Tabel 2 NJ'!J153/'Tabel 1 NJ'!G151*100,"-")) -> -
A154: Andre | C154: =IF(OR('Tabel 1 NJ'!C152<5,'Tabel 2 NJ'!C154<0.5),"-",IFERROR('Tabel 2 NJ'!C154/'Tabel 1 NJ'!C152*100,"-")) -> - | D154: =IF(OR('Tabel 1 NJ'!C152<5,'Tabel 2 NJ'!D154<0.5),"-",IFERROR('Tabel 2 NJ'!D154/'Tabel 1 NJ'!C152*100,"-")) -> - | F154: =IF(OR('Tabel 1 NJ'!E152<5,'Tabel 2 NJ'!F154<0.5),"-",IFERROR('Tabel 2 NJ'!F154/'Tabel 1 NJ'!E152*100,"-")) -> 9.523809524 | G154: =IF(OR('Tabel 1 NJ'!E152<5,'Tabel 2 NJ'!G154<0.5),"-",IFERROR('Tabel 2 NJ'!G154/'Tabel 1 NJ'!E152*100,"-")) -> 9.076517777 | I154: =IF(OR('Tabel 1 NJ'!G152<5,'Tabel 2 NJ'!I154<0.5),"-",IFERROR('Tabel 2 NJ'!I154/'Tabel 1 NJ'!G152*100,"-")) -> 5 | J154: =IF(OR('Tabel 1 NJ'!G152<5,'Tabel 2 NJ'!J154<0.5),"-",IFERROR('Tabel 2 NJ'!J154/'Tabel 1 NJ'!G152*100,"-")) -> 4.765171833
A156: Total | C156: =IF(OR('Tabel 1 NJ'!C154<5,'Tabel 2 NJ'!C156<0.5),"-",IFERROR('Tabel 2 NJ'!C156/'Tabel 1 NJ'!C154*100,"-")) -> 4.120879121 | D156: =IF(OR('Tabel 1 NJ'!C154<5,'Tabel 2 NJ'!D156<0.5),"-",IFERROR('Tabel 2 NJ'!D156/'Tabel 1 NJ'!C154*100,"-")) -> 3.571959756 | F156: =IF(OR('Tabel 1 NJ'!E154<5,'Tabel 2 NJ'!F156<0.5),"-",IFERROR('Tabel 2 NJ'!F156/'Tabel 1 NJ'!E154*100,"-")) -> 7.795698925 | G156: =IF(OR('Tabel 1 NJ'!E154<5,'Tabel 2 NJ'!G156<0.5),"-",IFERROR('Tabel 2 NJ'!G156/'Tabel 1 NJ'!E154*100,"-")) -> 7.010741958 | I156: =IF(OR('Tabel 1 NJ'!G154<5,'Tabel 2 NJ'!I156<0.5),"-",IFERROR('Tabel 2 NJ'!I156/'Tabel 1 NJ'!G154*100,"-")) -> 5.97826087 | J156: =IF(OR('Tabel 1 NJ'!G154<5,'Tabel 2 NJ'!J156<0.5),"-",IFERROR('Tabel 2 NJ'!J156/'Tabel 1 NJ'!G154*100,"-")) -> 5.310039891
A158: Ingeniører i alt | C158: =IF(OR('Tabel 1 NJ'!C156<5,'Tabel 2 NJ'!C158<0.5),"-",IFERROR('Tabel 2 NJ'!C158/'Tabel 1 NJ'!C156*100,"-")) -> 4.494382022 | D158: =IF(OR('Tabel 1 NJ'!C156<5,'Tabel 2 NJ'!D158<0.5),"-",IFERROR('Tabel 2 NJ'!D158/'Tabel 1 NJ'!C156*100,"-")) -> 4.49354106 | F158: =IF(OR('Tabel 1 NJ'!E156<5,'Tabel 2 NJ'!F158<0.5),"-",IFERROR('Tabel 2 NJ'!F158/'Tabel 1 NJ'!E156*100,"-")) -> 10.52631579 | G158: =IF(OR('Tabel 1 NJ'!E156<5,'Tabel 2 NJ'!G158<0.5),"-",IFERROR('Tabel 2 NJ'!G158/'Tabel 1 NJ'!E156*100,"-")) -> 10.52434617 | I158: =IF(OR('Tabel 1 NJ'!G156<5,'Tabel 2 NJ'!I158<0.5),"-",IFERROR('Tabel 2 NJ'!I158/'Tabel 1 NJ'!G156*100,"-")) -> 5.555555556 | J158: =IF(OR('Tabel 1 NJ'!G156<5,'Tabel 2 NJ'!J158<0.5),"-",IFERROR('Tabel 2 NJ'!J158/'Tabel 1 NJ'!G156*100,"-")) -> 5.554516033
A159: Magistre i alt | C159: =IF(OR('Tabel 1 NJ'!C157<5,'Tabel 2 NJ'!C159<0.5),"-",IFERROR('Tabel 2 NJ'!C159/'Tabel 1 NJ'!C157*100,"-")) -> 5.970149254 | D159: =IF(OR('Tabel 1 NJ'!C157<5,'Tabel 2 NJ'!D159<0.5),"-",IFERROR('Tabel 2 NJ'!D159/'Tabel 1 NJ'!C157*100,"-")) -> 4.441399315 | F159: =IF(OR('Tabel 1 NJ'!E157<5,'Tabel 2 NJ'!F159<0.5),"-",IFERROR('Tabel 2 NJ'!F159/'Tabel 1 NJ'!E157*100,"-")) -> 7.317073171 | G159: =IF(OR('Tabel 1 NJ'!E157<5,'Tabel 2 NJ'!G159<0.5),"-",IFERROR('Tabel 2 NJ'!G159/'Tabel 1 NJ'!E157*100,"-")) -> 5.879641532 | I159: =IF(OR('Tabel 1 NJ'!G157<5,'Tabel 2 NJ'!I159<0.5),"-",IFERROR('Tabel 2 NJ'!I159/'Tabel 1 NJ'!G157*100,"-")) -> 6.842105263 | J159: =IF(OR('Tabel 1 NJ'!G157<5,'Tabel 2 NJ'!J159<0.5),"-",IFERROR('Tabel 2 NJ'!J159/'Tabel 1 NJ'!G157*100,"-")) -> 5.372471908
A160: DJØF'ere i alt | C160: =IF(OR('Tabel 1 NJ'!C158<5,'Tabel 2 NJ'!C160<0.5),"-",IFERROR('Tabel 2 NJ'!C160/'Tabel 1 NJ'!C158*100,"-")) -> 3.448275862 | D160: =IF(OR('Tabel 1 NJ'!C158<5,'Tabel 2 NJ'!D160<0.5),"-",IFERROR('Tabel 2 NJ'!D160/'Tabel 1 NJ'!C158*100,"-")) -> 2.811012631 | F160: =IF(OR('Tabel 1 NJ'!E158<5,'Tabel 2 NJ'!F160<0.5),"-",IFERROR('Tabel 2 NJ'!F160/'Tabel 1 NJ'!E158*100,"-")) -> 7.8125 | G160: =IF(OR('Tabel 1 NJ'!E158<5,'Tabel 2 NJ'!G160<0.5),"-",IFERROR('Tabel 2 NJ'!G160/'Tabel 1 NJ'!E158*100,"-")) -> 7.811038171 | I160: =IF(OR('Tabel 1 NJ'!G158<5,'Tabel 2 NJ'!I160<0.5),"-",IFERROR('Tabel 2 NJ'!I160/'Tabel 1 NJ'!G158*100,"-")) -> 5.737704918 | J160: =IF(OR('Tabel 1 NJ'!G158<5,'Tabel 2 NJ'!J160<0.5),"-",IFERROR('Tabel 2 NJ'!J160/'Tabel 1 NJ'!G158*100,"-")) -> 5.433976849
A165: Brønderslev
C167: Mænd | F167: Kvinder | I167: I alt
C168: Ledigheds- berørte | D168: Gns. brutto- ledighed | F168: Ledigheds- berørte | G168: Gns. brutto- ledighed | I168: Ledigheds- berørte | J168: Gns. brutto- ledighed
A171: Civ. ing. | C171: =IF(OR('Tabel 1 NJ'!C169<5,'Tabel 2 NJ'!C171<0.5),"-",IFERROR('Tabel 2 NJ'!C171/'Tabel 1 NJ'!C169*100,"-")) -> 2.678571429 | D171: =IF(OR('Tabel 1 NJ'!C169<5,'Tabel 2 NJ'!D171<0.5),"-",IFERROR('Tabel 2 NJ'!D171/'Tabel 1 NJ'!C169*100,"-")) -> 2.253165346 | F171: =IF(OR('Tabel 1 NJ'!E169<5,'Tabel 2 NJ'!F171<0.5),"-",IFERROR('Tabel 2 NJ'!F171/'Tabel 1 NJ'!E169*100,"-")) -> 2.5 | G171: =IF(OR('Tabel 1 NJ'!E169<5,'Tabel 2 NJ'!G171<0.5),"-",IFERROR('Tabel 2 NJ'!G171/'Tabel 1 NJ'!E169*100,"-")) -> 2.499532215 | I171: =IF(OR('Tabel 1 NJ'!G169<5,'Tabel 2 NJ'!I171<0.5),"-",IFERROR('Tabel 2 NJ'!I171/'Tabel 1 NJ'!G169*100,"-")) -> 2.631578947 | J171: =IF(OR('Tabel 1 NJ'!G169<5,'Tabel 2 NJ'!J171<0.5),"-",IFERROR('Tabel 2 NJ'!J171/'Tabel 1 NJ'!G169*100,"-")) -> 2.317998733
A172: Diplom ing. | C172: =IF(OR('Tabel 1 NJ'!C170<5,'Tabel 2 NJ'!C172<0.5),"-",IFERROR('Tabel 2 NJ'!C172/'Tabel 1 NJ'!C170*100,"-")) -> 3.076923077 | D172: =IF(OR('Tabel 1 NJ'!C170<5,'Tabel 2 NJ'!D172<0.5),"-",IFERROR('Tabel 2 NJ'!D172/'Tabel 1 NJ'!C170*100,"-")) -> 2.934332554 | F172: =IF(OR('Tabel 1 NJ'!E170<5,'Tabel 2 NJ'!F172<0.5),"-",IFERROR('Tabel 2 NJ'!F172/'Tabel 1 NJ'!E170*100,"-")) -> - | G172: =IF(OR('Tabel 1 NJ'!E170<5,'Tabel 2 NJ'!G172<0.5),"-",IFERROR('Tabel 2 NJ'!G172/'Tabel 1 NJ'!E170*100,"-")) -> - | I172: =IF(OR('Tabel 1 NJ'!G170<5,'Tabel 2 NJ'!I172<0.5),"-",IFERROR('Tabel 2 NJ'!I172/'Tabel 1 NJ'!G170*100,"-")) -> 2.666666667 | J172: =IF(OR('Tabel 1 NJ'!G170<5,'Tabel 2 NJ'!J172<0.5),"-",IFERROR('Tabel 2 NJ'!J172/'Tabel 1 NJ'!G170*100,"-")) -> 2.543088214
A173: Cand. Scient. Tek. | C173: =IF(OR('Tabel 1 NJ'!C171<5,'Tabel 2 NJ'!C173<0.5),"-",IFERROR('Tabel 2 NJ'!C173/'Tabel 1 NJ'!C171*100,"-")) -> - | D173: =IF(OR('Tabel 1 NJ'!C171<5,'Tabel 2 NJ'!D173<0.5),"-",IFERROR('Tabel 2 NJ'!D173/'Tabel 1 NJ'!C171*100,"-")) -> - | F173: =IF(OR('Tabel 1 NJ'!E171<5,'Tabel 2 NJ'!F173<0.5),"-",IFERROR('Tabel 2 NJ'!F173/'Tabel 1 NJ'!E171*100,"-")) -> 9.090909091 | G173: =IF(OR('Tabel 1 NJ'!E171<5,'Tabel 2 NJ'!G173<0.5),"-",IFERROR('Tabel 2 NJ'!G173/'Tabel 1 NJ'!E171*100,"-")) -> 8.040235197 | I173: =IF(OR('Tabel 1 NJ'!G171<5,'Tabel 2 NJ'!I173<0.5),"-",IFERROR('Tabel 2 NJ'!I173/'Tabel 1 NJ'!G171*100,"-")) -> 3.50877193 | J173: =IF(OR('Tabel 1 NJ'!G171<5,'Tabel 2 NJ'!J173<0.5),"-",IFERROR('Tabel 2 NJ'!J173/'Tabel 1 NJ'!G171*100,"-")) -> 3.103248672
A174: MA. Hum. | C174: =IF(OR('Tabel 1 NJ'!C172<5,'Tabel 2 NJ'!C174<0.5),"-",IFERROR('Tabel 2 NJ'!C174/'Tabel 1 NJ'!C172*100,"-")) -> 14.63414634 | D174: =IF(OR('Tabel 1 NJ'!C172<5,'Tabel 2 NJ'!D174<0.5),"-",IFERROR('Tabel 2 NJ'!D174/'Tabel 1 NJ'!C172*100,"-")) -> 13.39767218 | F174: =IF(OR('Tabel 1 NJ'!E172<5,'Tabel 2 NJ'!F174<0.5),"-",IFERROR('Tabel 2 NJ'!F174/'Tabel 1 NJ'!E172*100,"-")) -> 6.578947368 | G174: =IF(OR('Tabel 1 NJ'!E172<5,'Tabel 2 NJ'!G174<0.5),"-",IFERROR('Tabel 2 NJ'!G174/'Tabel 1 NJ'!E172*100,"-")) -> 4.852655871 | I174: =IF(OR('Tabel 1 NJ'!G172<5,'Tabel 2 NJ'!I174<0.5),"-",IFERROR('Tabel 2 NJ'!I174/'Tabel 1 NJ'!G172*100,"-")) -> 9.401709402 | J174: =IF(OR('Tabel 1 NJ'!G172<5,'Tabel 2 NJ'!J174<0.5),"-",IFERROR('Tabel 2 NJ'!J174/'Tabel 1 NJ'!G172*100,"-")) -> 7.847063295
A175: MA. Nat. | C175: =IF(OR('Tabel 1 NJ'!C173<5,'Tabel 2 NJ'!C175<0.5),"-",IFERROR('Tabel 2 NJ'!C175/'Tabel 1 NJ'!C173*100,"-")) -> - | D175: =IF(OR('Tabel 1 NJ'!C173<5,'Tabel 2 NJ'!D175<0.5),"-",IFERROR('Tabel 2 NJ'!D175/'Tabel 1 NJ'!C173*100,"-")) -> - | F175: =IF(OR('Tabel 1 NJ'!E173<5,'Tabel 2 NJ'!F175<0.5),"-",IFERROR('Tabel 2 NJ'!F175/'Tabel 1 NJ'!E173*100,"-")) -> - | G175: =IF(OR('Tabel 1 NJ'!E173<5,'Tabel 2 NJ'!G175<0.5),"-",IFERROR('Tabel 2 NJ'!G175/'Tabel 1 NJ'!E173*100,"-")) -> - | I175: =IF(OR('Tabel 1 NJ'!G173<5,'Tabel 2 NJ'!I175<0.5),"-",IFERROR('Tabel 2 NJ'!I175/'Tabel 1 NJ'!G173*100,"-")) -> - | J175: =IF(OR('Tabel 1 NJ'!G173<5,'Tabel 2 NJ'!J175<0.5),"-",IFERROR('Tabel 2 NJ'!J175/'Tabel 1 NJ'!G173*100,"-")) -> -
A176: MA. Ph.d. | C176: =IF(OR('Tabel 1 NJ'!C174<5,'Tabel 2 NJ'!C176<0.5),"-",IFERROR('Tabel 2 NJ'!C176/'Tabel 1 NJ'!C174*100,"-")) -> - | D176: =IF(OR('Tabel 1 NJ'!C174<5,'Tabel 2 NJ'!D176<0.5),"-",IFERROR('Tabel 2 NJ'!D176/'Tabel 1 NJ'!C174*100,"-")) -> - | F176: =IF(OR('Tabel 1 NJ'!E174<5,'Tabel 2 NJ'!F176<0.5),"-",IFERROR('Tabel 2 NJ'!F176/'Tabel 1 NJ'!E174*100,"-")) -> - | G176: =IF(OR('Tabel 1 NJ'!E174<5,'Tabel 2 NJ'!G176<0.5),"-",IFERROR('Tabel 2 NJ'!G176/'Tabel 1 NJ'!E174*100,"-")) -> - | I176: =IF(OR('Tabel 1 NJ'!G174<5,'Tabel 2 NJ'!I176<0.5),"-",IFERROR('Tabel 2 NJ'!I176/'Tabel 1 NJ'!G174*100,"-")) -> - | J176: =IF(OR('Tabel 1 NJ'!G174<5,'Tabel 2 NJ'!J176<0.5),"-",IFERROR('Tabel 2 NJ'!J176/'Tabel 1 NJ'!G174*100,"-")) -> -
A177: MA. Samf. | C177: =IF(OR('Tabel 1 NJ'!C175<5,'Tabel 2 NJ'!C177<0.5),"-",IFERROR('Tabel 2 NJ'!C177/'Tabel 1 NJ'!C175*100,"-")) -> - | D177: =IF(OR('Tabel 1 NJ'!C175<5,'Tabel 2 NJ'!D177<0.5),"-",IFERROR('Tabel 2 NJ'!D177/'Tabel 1 NJ'!C175*100,"-")) -> - | F177: =IF(OR('Tabel 1 NJ'!E175<5,'Tabel 2 NJ'!F177<0.5),"-",IFERROR('Tabel 2 NJ'!F177/'Tabel 1 NJ'!E175*100,"-")) -> 16.66666667 | G177: =IF(OR('Tabel 1 NJ'!E175<5,'Tabel 2 NJ'!G177<0.5),"-",IFERROR('Tabel 2 NJ'!G177/'Tabel 1 NJ'!E175*100,"-")) -> 16.6635481 | I177: =IF(OR('Tabel 1 NJ'!G175<5,'Tabel 2 NJ'!I177<0.5),"-",IFERROR('Tabel 2 NJ'!I177/'Tabel 1 NJ'!G175*100,"-")) -> 22.22222222 | J177: =IF(OR('Tabel 1 NJ'!G175<5,'Tabel 2 NJ'!J177<0.5),"-",IFERROR('Tabel 2 NJ'!J177/'Tabel 1 NJ'!G175*100,"-")) -> 22.21806413
A178: Øvrige Mag. | C178: =IF(OR('Tabel 1 NJ'!C176<5,'Tabel 2 NJ'!C178<0.5),"-",IFERROR('Tabel 2 NJ'!C178/'Tabel 1 NJ'!C176*100,"-")) -> - | D178: =IF(OR('Tabel 1 NJ'!C176<5,'Tabel 2 NJ'!D178<0.5),"-",IFERROR('Tabel 2 NJ'!D178/'Tabel 1 NJ'!C176*100,"-")) -> - | F178: =IF(OR('Tabel 1 NJ'!E176<5,'Tabel 2 NJ'!F178<0.5),"-",IFERROR('Tabel 2 NJ'!F178/'Tabel 1 NJ'!E176*100,"-")) -> 22.22222222 | G178: =IF(OR('Tabel 1 NJ'!E176<5,'Tabel 2 NJ'!G178<0.5),"-",IFERROR('Tabel 2 NJ'!G178/'Tabel 1 NJ'!E176*100,"-")) -> 22.21806413 | I178: =IF(OR('Tabel 1 NJ'!G176<5,'Tabel 2 NJ'!I178<0.5),"-",IFERROR('Tabel 2 NJ'!I178/'Tabel 1 NJ'!G176*100,"-")) -> 16.66666667 | J178: =IF(OR('Tabel 1 NJ'!G176<5,'Tabel 2 NJ'!J178<0.5),"-",IFERROR('Tabel 2 NJ'!J178/'Tabel 1 NJ'!G176*100,"-")) -> 16.6635481
A179: Agronom | C179: =IF(OR('Tabel 1 NJ'!C177<5,'Tabel 2 NJ'!C179<0.5),"-",IFERROR('Tabel 2 NJ'!C179/'Tabel 1 NJ'!C177*100,"-")) -> - | D179: =IF(OR('Tabel 1 NJ'!C177<5,'Tabel 2 NJ'!D179<0.5),"-",IFERROR('Tabel 2 NJ'!D179/'Tabel 1 NJ'!C177*100,"-")) -> - | F179: =IF(OR('Tabel 1 NJ'!E177<5,'Tabel 2 NJ'!F179<0.5),"-",IFERROR('Tabel 2 NJ'!F179/'Tabel 1 NJ'!E177*100,"-")) -> - | G179: =IF(OR('Tabel 1 NJ'!E177<5,'Tabel 2 NJ'!G179<0.5),"-",IFERROR('Tabel 2 NJ'!G179/'Tabel 1 NJ'!E177*100,"-")) -> - | I179: =IF(OR('Tabel 1 NJ'!G177<5,'Tabel 2 NJ'!I179<0.5),"-",IFERROR('Tabel 2 NJ'!I179/'Tabel 1 NJ'!G177*100,"-")) -> - | J179: =IF(OR('Tabel 1 NJ'!G177<5,'Tabel 2 NJ'!J179<0.5),"-",IFERROR('Tabel 2 NJ'!J179/'Tabel 1 NJ'!G177*100,"-")) -> -
A180: Landsk. Arkt. | C180: =IF(OR('Tabel 1 NJ'!C178<5,'Tabel 2 NJ'!C180<0.5),"-",IFERROR('Tabel 2 NJ'!C180/'Tabel 1 NJ'!C178*100,"-")) -> - | D180: =IF(OR('Tabel 1 NJ'!C178<5,'Tabel 2 NJ'!D180<0.5),"-",IFERROR('Tabel 2 NJ'!D180/'Tabel 1 NJ'!C178*100,"-")) -> - | F180: =IF(OR('Tabel 1 NJ'!E178<5,'Tabel 2 NJ'!F180<0.5),"-",IFERROR('Tabel 2 NJ'!F180/'Tabel 1 NJ'!E178*100,"-")) -> - | G180: =IF(OR('Tabel 1 NJ'!E178<5,'Tabel 2 NJ'!G180<0.5),"-",IFERROR('Tabel 2 NJ'!G180/'Tabel 1 NJ'!E178*100,"-")) -> - | I180: =IF(OR('Tabel 1 NJ'!G178<5,'Tabel 2 NJ'!I180<0.5),"-",IFERROR('Tabel 2 NJ'!I180/'Tabel 1 NJ'!G178*100,"-")) -> - | J180: =IF(OR('Tabel 1 NJ'!G178<5,'Tabel 2 NJ'!J180<0.5),"-",IFERROR('Tabel 2 NJ'!J180/'Tabel 1 NJ'!G178*100,"-")) -> -
A181: Hortonom | C181: =IF(OR('Tabel 1 NJ'!C179<5,'Tabel 2 NJ'!C181<0.5),"-",IFERROR('Tabel 2 NJ'!C181/'Tabel 1 NJ'!C179*100,"-")) -> - | D181: =IF(OR('Tabel 1 NJ'!C179<5,'Tabel 2 NJ'!D181<0.5),"-",IFERROR('Tabel 2 NJ'!D181/'Tabel 1 NJ'!C179*100,"-")) -> - | F181: =IF(OR('Tabel 1 NJ'!E179<5,'Tabel 2 NJ'!F181<0.5),"-",IFERROR('Tabel 2 NJ'!F181/'Tabel 1 NJ'!E179*100,"-")) -> - | G181: =IF(OR('Tabel 1 NJ'!E179<5,'Tabel 2 NJ'!G181<0.5),"-",IFERROR('Tabel 2 NJ'!G181/'Tabel 1 NJ'!E179*100,"-")) -> - | I181: =IF(OR('Tabel 1 NJ'!G179<5,'Tabel 2 NJ'!I181<0.5),"-",IFERROR('Tabel 2 NJ'!I181/'Tabel 1 NJ'!G179*100,"-")) -> - | J181: =IF(OR('Tabel 1 NJ'!G179<5,'Tabel 2 NJ'!J181<0.5),"-",IFERROR('Tabel 2 NJ'!J181/'Tabel 1 NJ'!G179*100,"-")) -> -
A182: Forstkand. | C182: =IF(OR('Tabel 1 NJ'!C180<5,'Tabel 2 NJ'!C182<0.5),"-",IFERROR('Tabel 2 NJ'!C182/'Tabel 1 NJ'!C180*100,"-")) -> - | D182: =IF(OR('Tabel 1 NJ'!C180<5,'Tabel 2 NJ'!D182<0.5),"-",IFERROR('Tabel 2 NJ'!D182/'Tabel 1 NJ'!C180*100,"-")) -> - | F182: =IF(OR('Tabel 1 NJ'!E180<5,'Tabel 2 NJ'!F182<0.5),"-",IFERROR('Tabel 2 NJ'!F182/'Tabel 1 NJ'!E180*100,"-")) -> - | G182: =IF(OR('Tabel 1 NJ'!E180<5,'Tabel 2 NJ'!G182<0.5),"-",IFERROR('Tabel 2 NJ'!G182/'Tabel 1 NJ'!E180*100,"-")) -> - | I182: =IF(OR('Tabel 1 NJ'!G180<5,'Tabel 2 NJ'!I182<0.5),"-",IFERROR('Tabel 2 NJ'!I182/'Tabel 1 NJ'!G180*100,"-")) -> - | J182: =IF(OR('Tabel 1 NJ'!G180<5,'Tabel 2 NJ'!J182<0.5),"-",IFERROR('Tabel 2 NJ'!J182/'Tabel 1 NJ'!G180*100,"-")) -> -
A183: Jordbrugsakad. | C183: =IF(OR('Tabel 1 NJ'!C181<5,'Tabel 2 NJ'!C183<0.5),"-",IFERROR('Tabel 2 NJ'!C183/'Tabel 1 NJ'!C181*100,"-")) -> - | D183: =IF(OR('Tabel 1 NJ'!C181<5,'Tabel 2 NJ'!D183<0.5),"-",IFERROR('Tabel 2 NJ'!D183/'Tabel 1 NJ'!C181*100,"-")) -> - | F183: =IF(OR('Tabel 1 NJ'!E181<5,'Tabel 2 NJ'!F183<0.5),"-",IFERROR('Tabel 2 NJ'!F183/'Tabel 1 NJ'!E181*100,"-")) -> - | G183: =IF(OR('Tabel 1 NJ'!E181<5,'Tabel 2 NJ'!G183<0.5),"-",IFERROR('Tabel 2 NJ'!G183/'Tabel 1 NJ'!E181*100,"-")) -> - | I183: =IF(OR('Tabel 1 NJ'!G181<5,'Tabel 2 NJ'!I183<0.5),"-",IFERROR('Tabel 2 NJ'!I183/'Tabel 1 NJ'!G181*100,"-")) -> - | J183: =IF(OR('Tabel 1 NJ'!G181<5,'Tabel 2 NJ'!J183<0.5),"-",IFERROR('Tabel 2 NJ'!J183/'Tabel 1 NJ'!G181*100,"-")) -> -
A184: Mejeriing. | C184: =IF(OR('Tabel 1 NJ'!C182<5,'Tabel 2 NJ'!C184<0.5),"-",IFERROR('Tabel 2 NJ'!C184/'Tabel 1 NJ'!C182*100,"-")) -> - | D184: =IF(OR('Tabel 1 NJ'!C182<5,'Tabel 2 NJ'!D184<0.5),"-",IFERROR('Tabel 2 NJ'!D184/'Tabel 1 NJ'!C182*100,"-")) -> - | F184: =IF(OR('Tabel 1 NJ'!E182<5,'Tabel 2 NJ'!F184<0.5),"-",IFERROR('Tabel 2 NJ'!F184/'Tabel 1 NJ'!E182*100,"-")) -> - | G184: =IF(OR('Tabel 1 NJ'!E182<5,'Tabel 2 NJ'!G184<0.5),"-",IFERROR('Tabel 2 NJ'!G184/'Tabel 1 NJ'!E182*100,"-")) -> - | I184: =IF(OR('Tabel 1 NJ'!G182<5,'Tabel 2 NJ'!I184<0.5),"-",IFERROR('Tabel 2 NJ'!I184/'Tabel 1 NJ'!G182*100,"-")) -> - | J184: =IF(OR('Tabel 1 NJ'!G182<5,'Tabel 2 NJ'!J184<0.5),"-",IFERROR('Tabel 2 NJ'!J184/'Tabel 1 NJ'!G182*100,"-")) -> -
A185: Levn.m.kand. | C185: =IF(OR('Tabel 1 NJ'!C183<5,'Tabel 2 NJ'!C185<0.5),"-",IFERROR('Tabel 2 NJ'!C185/'Tabel 1 NJ'!C183*100,"-")) -> - | D185: =IF(OR('Tabel 1 NJ'!C183<5,'Tabel 2 NJ'!D185<0.5),"-",IFERROR('Tabel 2 NJ'!D185/'Tabel 1 NJ'!C183*100,"-")) -> - | F185: =IF(OR('Tabel 1 NJ'!E183<5,'Tabel 2 NJ'!F185<0.5),"-",IFERROR('Tabel 2 NJ'!F185/'Tabel 1 NJ'!E183*100,"-")) -> - | G185: =IF(OR('Tabel 1 NJ'!E183<5,'Tabel 2 NJ'!G185<0.5),"-",IFERROR('Tabel 2 NJ'!G185/'Tabel 1 NJ'!E183*100,"-")) -> - | I185: =IF(OR('Tabel 1 NJ'!G183<5,'Tabel 2 NJ'!I185<0.5),"-",IFERROR('Tabel 2 NJ'!I185/'Tabel 1 NJ'!G183*100,"-")) -> - | J185: =IF(OR('Tabel 1 NJ'!G183<5,'Tabel 2 NJ'!J185<0.5),"-",IFERROR('Tabel 2 NJ'!J185/'Tabel 1 NJ'!G183*100,"-")) -> -
A186: Dyrlæge | C186: =IF(OR('Tabel 1 NJ'!C184<5,'Tabel 2 NJ'!C186<0.5),"-",IFERROR('Tabel 2 NJ'!C186/'Tabel 1 NJ'!C184*100,"-")) -> - | D186: =IF(OR('Tabel 1 NJ'!C184<5,'Tabel 2 NJ'!D186<0.5),"-",IFERROR('Tabel 2 NJ'!D186/'Tabel 1 NJ'!C184*100,"-")) -> - | F186: =IF(OR('Tabel 1 NJ'!E184<5,'Tabel 2 NJ'!F186<0.5),"-",IFERROR('Tabel 2 NJ'!F186/'Tabel 1 NJ'!E184*100,"-")) -> 7.692307692 | G186: =IF(OR('Tabel 1 NJ'!E184<5,'Tabel 2 NJ'!G186<0.5),"-",IFERROR('Tabel 2 NJ'!G186/'Tabel 1 NJ'!E184*100,"-")) -> 6.510610328 | I186: =IF(OR('Tabel 1 NJ'!G184<5,'Tabel 2 NJ'!I186<0.5),"-",IFERROR('Tabel 2 NJ'!I186/'Tabel 1 NJ'!G184*100,"-")) -> 5.882352941 | J186: =IF(OR('Tabel 1 NJ'!G184<5,'Tabel 2 NJ'!J186<0.5),"-",IFERROR('Tabel 2 NJ'!J186/'Tabel 1 NJ'!G184*100,"-")) -> 4.978702015
A187: Farmaceut | C187: =IF(OR('Tabel 1 NJ'!C185<5,'Tabel 2 NJ'!C187<0.5),"-",IFERROR('Tabel 2 NJ'!C187/'Tabel 1 NJ'!C185*100,"-")) -> - | D187: =IF(OR('Tabel 1 NJ'!C185<5,'Tabel 2 NJ'!D187<0.5),"-",IFERROR('Tabel 2 NJ'!D187/'Tabel 1 NJ'!C185*100,"-")) -> - | F187: =IF(OR('Tabel 1 NJ'!E185<5,'Tabel 2 NJ'!F187<0.5),"-",IFERROR('Tabel 2 NJ'!F187/'Tabel 1 NJ'!E185*100,"-")) -> - | G187: =IF(OR('Tabel 1 NJ'!E185<5,'Tabel 2 NJ'!G187<0.5),"-",IFERROR('Tabel 2 NJ'!G187/'Tabel 1 NJ'!E185*100,"-")) -> - | I187: =IF(OR('Tabel 1 NJ'!G185<5,'Tabel 2 NJ'!I187<0.5),"-",IFERROR('Tabel 2 NJ'!I187/'Tabel 1 NJ'!G185*100,"-")) -> - | J187: =IF(OR('Tabel 1 NJ'!G185<5,'Tabel 2 NJ'!J187<0.5),"-",IFERROR('Tabel 2 NJ'!J187/'Tabel 1 NJ'!G185*100,"-")) -> -
A188: Læge | C188: =IF(OR('Tabel 1 NJ'!C186<5,'Tabel 2 NJ'!C188<0.5),"-",IFERROR('Tabel 2 NJ'!C188/'Tabel 1 NJ'!C186*100,"-")) -> - | D188: =IF(OR('Tabel 1 NJ'!C186<5,'Tabel 2 NJ'!D188<0.5),"-",IFERROR('Tabel 2 NJ'!D188/'Tabel 1 NJ'!C186*100,"-")) -> - | F188: =IF(OR('Tabel 1 NJ'!E186<5,'Tabel 2 NJ'!F188<0.5),"-",IFERROR('Tabel 2 NJ'!F188/'Tabel 1 NJ'!E186*100,"-")) -> - | G188: =IF(OR('Tabel 1 NJ'!E186<5,'Tabel 2 NJ'!G188<0.5),"-",IFERROR('Tabel 2 NJ'!G188/'Tabel 1 NJ'!E186*100,"-")) -> - | I188: =IF(OR('Tabel 1 NJ'!G186<5,'Tabel 2 NJ'!I188<0.5),"-",IFERROR('Tabel 2 NJ'!I188/'Tabel 1 NJ'!G186*100,"-")) -> - | J188: =IF(OR('Tabel 1 NJ'!G186<5,'Tabel 2 NJ'!J188<0.5),"-",IFERROR('Tabel 2 NJ'!J188/'Tabel 1 NJ'!G186*100,"-")) -> -
A189: Tandlæge | C189: =IF(OR('Tabel 1 NJ'!C187<5,'Tabel 2 NJ'!C189<0.5),"-",IFERROR('Tabel 2 NJ'!C189/'Tabel 1 NJ'!C187*100,"-")) -> - | D189: =IF(OR('Tabel 1 NJ'!C187<5,'Tabel 2 NJ'!D189<0.5),"-",IFERROR('Tabel 2 NJ'!D189/'Tabel 1 NJ'!C187*100,"-")) -> - | F189: =IF(OR('Tabel 1 NJ'!E187<5,'Tabel 2 NJ'!F189<0.5),"-",IFERROR('Tabel 2 NJ'!F189/'Tabel 1 NJ'!E187*100,"-")) -> - | G189: =IF(OR('Tabel 1 NJ'!E187<5,'Tabel 2 NJ'!G189<0.5),"-",IFERROR('Tabel 2 NJ'!G189/'Tabel 1 NJ'!E187*100,"-")) -> - | I189: =IF(OR('Tabel 1 NJ'!G187<5,'Tabel 2 NJ'!I189<0.5),"-",IFERROR('Tabel 2 NJ'!I189/'Tabel 1 NJ'!G187*100,"-")) -> - | J189: =IF(OR('Tabel 1 NJ'!G187<5,'Tabel 2 NJ'!J189<0.5),"-",IFERROR('Tabel 2 NJ'!J189/'Tabel 1 NJ'!G187*100,"-")) -> -
A190: Arkitekt | C190: =IF(OR('Tabel 1 NJ'!C188<5,'Tabel 2 NJ'!C190<0.5),"-",IFERROR('Tabel 2 NJ'!C190/'Tabel 1 NJ'!C188*100,"-")) -> - | D190: =IF(OR('Tabel 1 NJ'!C188<5,'Tabel 2 NJ'!D190<0.5),"-",IFERROR('Tabel 2 NJ'!D190/'Tabel 1 NJ'!C188*100,"-")) -> - | F190: =IF(OR('Tabel 1 NJ'!E188<5,'Tabel 2 NJ'!F190<0.5),"-",IFERROR('Tabel 2 NJ'!F190/'Tabel 1 NJ'!E188*100,"-")) -> - | G190: =IF(OR('Tabel 1 NJ'!E188<5,'Tabel 2 NJ'!G190<0.5),"-",IFERROR('Tabel 2 NJ'!G190/'Tabel 1 NJ'!E188*100,"-")) -> - | I190: =IF(OR('Tabel 1 NJ'!G188<5,'Tabel 2 NJ'!I190<0.5),"-",IFERROR('Tabel 2 NJ'!I190/'Tabel 1 NJ'!G188*100,"-")) -> - | J190: =IF(OR('Tabel 1 NJ'!G188<5,'Tabel 2 NJ'!J190<0.5),"-",IFERROR('Tabel 2 NJ'!J190/'Tabel 1 NJ'!G188*100,"-")) -> -
A191: Landinspek. | C191: =IF(OR('Tabel 1 NJ'!C189<5,'Tabel 2 NJ'!C191<0.5),"-",IFERROR('Tabel 2 NJ'!C191/'Tabel 1 NJ'!C189*100,"-")) -> - | D191: =IF(OR('Tabel 1 NJ'!C189<5,'Tabel 2 NJ'!D191<0.5),"-",IFERROR('Tabel 2 NJ'!D191/'Tabel 1 NJ'!C189*100,"-")) -> - | F191: =IF(OR('Tabel 1 NJ'!E189<5,'Tabel 2 NJ'!F191<0.5),"-",IFERROR('Tabel 2 NJ'!F191/'Tabel 1 NJ'!E189*100,"-")) -> - | G191: =IF(OR('Tabel 1 NJ'!E189<5,'Tabel 2 NJ'!G191<0.5),"-",IFERROR('Tabel 2 NJ'!G191/'Tabel 1 NJ'!E189*100,"-")) -> - | I191: =IF(OR('Tabel 1 NJ'!G189<5,'Tabel 2 NJ'!I191<0.5),"-",IFERROR('Tabel 2 NJ'!I191/'Tabel 1 NJ'!G189*100,"-")) -> - | J191: =IF(OR('Tabel 1 NJ'!G189<5,'Tabel 2 NJ'!J191<0.5),"-",IFERROR('Tabel 2 NJ'!J191/'Tabel 1 NJ'!G189*100,"-")) -> -
A192: Bibliotekar | C192: =IF(OR('Tabel 1 NJ'!C190<5,'Tabel 2 NJ'!C192<0.5),"-",IFERROR('Tabel 2 NJ'!C192/'Tabel 1 NJ'!C190*100,"-")) -> - | D192: =IF(OR('Tabel 1 NJ'!C190<5,'Tabel 2 NJ'!D192<0.5),"-",IFERROR('Tabel 2 NJ'!D192/'Tabel 1 NJ'!C190*100,"-")) -> - | F192: =IF(OR('Tabel 1 NJ'!E190<5,'Tabel 2 NJ'!F192<0.5),"-",IFERROR('Tabel 2 NJ'!F192/'Tabel 1 NJ'!E190*100,"-")) -> - | G192: =IF(OR('Tabel 1 NJ'!E190<5,'Tabel 2 NJ'!G192<0.5),"-",IFERROR('Tabel 2 NJ'!G192/'Tabel 1 NJ'!E190*100,"-")) -> - | I192: =IF(OR('Tabel 1 NJ'!G190<5,'Tabel 2 NJ'!I192<0.5),"-",IFERROR('Tabel 2 NJ'!I192/'Tabel 1 NJ'!G190*100,"-")) -> - | J192: =IF(OR('Tabel 1 NJ'!G190<5,'Tabel 2 NJ'!J192<0.5),"-",IFERROR('Tabel 2 NJ'!J192/'Tabel 1 NJ'!G190*100,"-")) -> -
A193: Musikudd. | C193: =IF(OR('Tabel 1 NJ'!C191<5,'Tabel 2 NJ'!C193<0.5),"-",IFERROR('Tabel 2 NJ'!C193/'Tabel 1 NJ'!C191*100,"-")) -> - | D193: =IF(OR('Tabel 1 NJ'!C191<5,'Tabel 2 NJ'!D193<0.5),"-",IFERROR('Tabel 2 NJ'!D193/'Tabel 1 NJ'!C191*100,"-")) -> - | F193: =IF(OR('Tabel 1 NJ'!E191<5,'Tabel 2 NJ'!F193<0.5),"-",IFERROR('Tabel 2 NJ'!F193/'Tabel 1 NJ'!E191*100,"-")) -> - | G193: =IF(OR('Tabel 1 NJ'!E191<5,'Tabel 2 NJ'!G193<0.5),"-",IFERROR('Tabel 2 NJ'!G193/'Tabel 1 NJ'!E191*100,"-")) -> - | I193: =IF(OR('Tabel 1 NJ'!G191<5,'Tabel 2 NJ'!I193<0.5),"-",IFERROR('Tabel 2 NJ'!I193/'Tabel 1 NJ'!G191*100,"-")) -> - | J193: =IF(OR('Tabel 1 NJ'!G191<5,'Tabel 2 NJ'!J193<0.5),"-",IFERROR('Tabel 2 NJ'!J193/'Tabel 1 NJ'!G191*100,"-")) -> -
A194: Teolog | C194: =IF(OR('Tabel 1 NJ'!C192<5,'Tabel 2 NJ'!C194<0.5),"-",IFERROR('Tabel 2 NJ'!C194/'Tabel 1 NJ'!C192*100,"-")) -> - | D194: =IF(OR('Tabel 1 NJ'!C192<5,'Tabel 2 NJ'!D194<0.5),"-",IFERROR('Tabel 2 NJ'!D194/'Tabel 1 NJ'!C192*100,"-")) -> - | F194: =IF(OR('Tabel 1 NJ'!E192<5,'Tabel 2 NJ'!F194<0.5),"-",IFERROR('Tabel 2 NJ'!F194/'Tabel 1 NJ'!E192*100,"-")) -> - | G194: =IF(OR('Tabel 1 NJ'!E192<5,'Tabel 2 NJ'!G194<0.5),"-",IFERROR('Tabel 2 NJ'!G194/'Tabel 1 NJ'!E192*100,"-")) -> - | I194: =IF(OR('Tabel 1 NJ'!G192<5,'Tabel 2 NJ'!I194<0.5),"-",IFERROR('Tabel 2 NJ'!I194/'Tabel 1 NJ'!G192*100,"-")) -> 12.5 | J194: =IF(OR('Tabel 1 NJ'!G192<5,'Tabel 2 NJ'!J194<0.5),"-",IFERROR('Tabel 2 NJ'!J194/'Tabel 1 NJ'!G192*100,"-")) -> 12.49766107
A195: Psykolog | C195: =IF(OR('Tabel 1 NJ'!C193<5,'Tabel 2 NJ'!C195<0.5),"-",IFERROR('Tabel 2 NJ'!C195/'Tabel 1 NJ'!C193*100,"-")) -> - | D195: =IF(OR('Tabel 1 NJ'!C193<5,'Tabel 2 NJ'!D195<0.5),"-",IFERROR('Tabel 2 NJ'!D195/'Tabel 1 NJ'!C193*100,"-")) -> - | F195: =IF(OR('Tabel 1 NJ'!E193<5,'Tabel 2 NJ'!F195<0.5),"-",IFERROR('Tabel 2 NJ'!F195/'Tabel 1 NJ'!E193*100,"-")) -> 4.166666667 | G195: =IF(OR('Tabel 1 NJ'!E193<5,'Tabel 2 NJ'!G195<0.5),"-",IFERROR('Tabel 2 NJ'!G195/'Tabel 1 NJ'!E193*100,"-")) -> 4.165887025 | I195: =IF(OR('Tabel 1 NJ'!G193<5,'Tabel 2 NJ'!I195<0.5),"-",IFERROR('Tabel 2 NJ'!I195/'Tabel 1 NJ'!G193*100,"-")) -> 3.846153846 | J195: =IF(OR('Tabel 1 NJ'!G193<5,'Tabel 2 NJ'!J195<0.5),"-",IFERROR('Tabel 2 NJ'!J195/'Tabel 1 NJ'!G193*100,"-")) -> 3.845434177
A196: Jurist | C196: =IF(OR('Tabel 1 NJ'!C194<5,'Tabel 2 NJ'!C196<0.5),"-",IFERROR('Tabel 2 NJ'!C196/'Tabel 1 NJ'!C194*100,"-")) -> - | D196: =IF(OR('Tabel 1 NJ'!C194<5,'Tabel 2 NJ'!D196<0.5),"-",IFERROR('Tabel 2 NJ'!D196/'Tabel 1 NJ'!C194*100,"-")) -> - | F196: =IF(OR('Tabel 1 NJ'!E194<5,'Tabel 2 NJ'!F196<0.5),"-",IFERROR('Tabel 2 NJ'!F196/'Tabel 1 NJ'!E194*100,"-")) -> 4 | G196: =IF(OR('Tabel 1 NJ'!E194<5,'Tabel 2 NJ'!G196<0.5),"-",IFERROR('Tabel 2 NJ'!G196/'Tabel 1 NJ'!E194*100,"-")) -> 3.814632321 | I196: =IF(OR('Tabel 1 NJ'!G194<5,'Tabel 2 NJ'!I196<0.5),"-",IFERROR('Tabel 2 NJ'!I196/'Tabel 1 NJ'!G194*100,"-")) -> 3.225806452 | J196: =IF(OR('Tabel 1 NJ'!G194<5,'Tabel 2 NJ'!J196<0.5),"-",IFERROR('Tabel 2 NJ'!J196/'Tabel 1 NJ'!G194*100,"-")) -> 3.076316388
A197: Økonom | C197: =IF(OR('Tabel 1 NJ'!C195<5,'Tabel 2 NJ'!C197<0.5),"-",IFERROR('Tabel 2 NJ'!C197/'Tabel 1 NJ'!C195*100,"-")) -> - | D197: =IF(OR('Tabel 1 NJ'!C195<5,'Tabel 2 NJ'!D197<0.5),"-",IFERROR('Tabel 2 NJ'!D197/'Tabel 1 NJ'!C195*100,"-")) -> - | F197: =IF(OR('Tabel 1 NJ'!E195<5,'Tabel 2 NJ'!F197<0.5),"-",IFERROR('Tabel 2 NJ'!F197/'Tabel 1 NJ'!E195*100,"-")) -> - | G197: =IF(OR('Tabel 1 NJ'!E195<5,'Tabel 2 NJ'!G197<0.5),"-",IFERROR('Tabel 2 NJ'!G197/'Tabel 1 NJ'!E195*100,"-")) -> - | I197: =IF(OR('Tabel 1 NJ'!G195<5,'Tabel 2 NJ'!I197<0.5),"-",IFERROR('Tabel 2 NJ'!I197/'Tabel 1 NJ'!G195*100,"-")) -> - | J197: =IF(OR('Tabel 1 NJ'!G195<5,'Tabel 2 NJ'!J197<0.5),"-",IFERROR('Tabel 2 NJ'!J197/'Tabel 1 NJ'!G195*100,"-")) -> -
A198: Samf. Adm. | C198: =IF(OR('Tabel 1 NJ'!C196<5,'Tabel 2 NJ'!C198<0.5),"-",IFERROR('Tabel 2 NJ'!C198/'Tabel 1 NJ'!C196*100,"-")) -> 8.333333333 | D198: =IF(OR('Tabel 1 NJ'!C196<5,'Tabel 2 NJ'!D198<0.5),"-",IFERROR('Tabel 2 NJ'!D198/'Tabel 1 NJ'!C196*100,"-")) -> 8.331774049 | F198: =IF(OR('Tabel 1 NJ'!E196<5,'Tabel 2 NJ'!F198<0.5),"-",IFERROR('Tabel 2 NJ'!F198/'Tabel 1 NJ'!E196*100,"-")) -> 15 | G198: =IF(OR('Tabel 1 NJ'!E196<5,'Tabel 2 NJ'!G198<0.5),"-",IFERROR('Tabel 2 NJ'!G198/'Tabel 1 NJ'!E196*100,"-")) -> 13.43790931 | I198: =IF(OR('Tabel 1 NJ'!G196<5,'Tabel 2 NJ'!I198<0.5),"-",IFERROR('Tabel 2 NJ'!I198/'Tabel 1 NJ'!G196*100,"-")) -> 11.36363636 | J198: =IF(OR('Tabel 1 NJ'!G196<5,'Tabel 2 NJ'!J198<0.5),"-",IFERROR('Tabel 2 NJ'!J198/'Tabel 1 NJ'!G196*100,"-")) -> 10.65274462
A199: Cand. Merc. | C199: =IF(OR('Tabel 1 NJ'!C197<5,'Tabel 2 NJ'!C199<0.5),"-",IFERROR('Tabel 2 NJ'!C199/'Tabel 1 NJ'!C197*100,"-")) -> 6.25 | D199: =IF(OR('Tabel 1 NJ'!C197<5,'Tabel 2 NJ'!D199<0.5),"-",IFERROR('Tabel 2 NJ'!D199/'Tabel 1 NJ'!C197*100,"-")) -> 6.248830537 | F199: =IF(OR('Tabel 1 NJ'!E197<5,'Tabel 2 NJ'!F199<0.5),"-",IFERROR('Tabel 2 NJ'!F199/'Tabel 1 NJ'!E197*100,"-")) -> 6 | G199: =IF(OR('Tabel 1 NJ'!E197<5,'Tabel 2 NJ'!G199<0.5),"-",IFERROR('Tabel 2 NJ'!G199/'Tabel 1 NJ'!E197*100,"-")) -> 5.998877316 | I199: =IF(OR('Tabel 1 NJ'!G197<5,'Tabel 2 NJ'!I199<0.5),"-",IFERROR('Tabel 2 NJ'!I199/'Tabel 1 NJ'!G197*100,"-")) -> 6.12244898 | J199: =IF(OR('Tabel 1 NJ'!G197<5,'Tabel 2 NJ'!J199<0.5),"-",IFERROR('Tabel 2 NJ'!J199/'Tabel 1 NJ'!G197*100,"-")) -> 6.121303383
A200: HA | C200: =IF(OR('Tabel 1 NJ'!C198<5,'Tabel 2 NJ'!C200<0.5),"-",IFERROR('Tabel 2 NJ'!C200/'Tabel 1 NJ'!C198*100,"-")) -> 9.090909091 | D200: =IF(OR('Tabel 1 NJ'!C198<5,'Tabel 2 NJ'!D200<0.5),"-",IFERROR('Tabel 2 NJ'!D200/'Tabel 1 NJ'!C198*100,"-")) -> 9.089208054 | F200: =IF(OR('Tabel 1 NJ'!E198<5,'Tabel 2 NJ'!F200<0.5),"-",IFERROR('Tabel 2 NJ'!F200/'Tabel 1 NJ'!E198*100,"-")) -> - | G200: =IF(OR('Tabel 1 NJ'!E198<5,'Tabel 2 NJ'!G200<0.5),"-",IFERROR('Tabel 2 NJ'!G200/'Tabel 1 NJ'!E198*100,"-")) -> - | I200: =IF(OR('Tabel 1 NJ'!G198<5,'Tabel 2 NJ'!I200<0.5),"-",IFERROR('Tabel 2 NJ'!I200/'Tabel 1 NJ'!G198*100,"-")) -> 6.25 | J200: =IF(OR('Tabel 1 NJ'!G198<5,'Tabel 2 NJ'!J200<0.5),"-",IFERROR('Tabel 2 NJ'!J200/'Tabel 1 NJ'!G198*100,"-")) -> 6.248830537
A201: HD | C201: =IF(OR('Tabel 1 NJ'!C199<5,'Tabel 2 NJ'!C201<0.5),"-",IFERROR('Tabel 2 NJ'!C201/'Tabel 1 NJ'!C199*100,"-")) -> - | D201: =IF(OR('Tabel 1 NJ'!C199<5,'Tabel 2 NJ'!D201<0.5),"-",IFERROR('Tabel 2 NJ'!D201/'Tabel 1 NJ'!C199*100,"-")) -> - | F201: =IF(OR('Tabel 1 NJ'!E199<5,'Tabel 2 NJ'!F201<0.5),"-",IFERROR('Tabel 2 NJ'!F201/'Tabel 1 NJ'!E199*100,"-")) -> - | G201: =IF(OR('Tabel 1 NJ'!E199<5,'Tabel 2 NJ'!G201<0.5),"-",IFERROR('Tabel 2 NJ'!G201/'Tabel 1 NJ'!E199*100,"-")) -> - | I201: =IF(OR('Tabel 1 NJ'!G199<5,'Tabel 2 NJ'!I201<0.5),"-",IFERROR('Tabel 2 NJ'!I201/'Tabel 1 NJ'!G199*100,"-")) -> - | J201: =IF(OR('Tabel 1 NJ'!G199<5,'Tabel 2 NJ'!J201<0.5),"-",IFERROR('Tabel 2 NJ'!J201/'Tabel 1 NJ'!G199*100,"-")) -> -
A202: Komm. og Sprog | C202: =IF(OR('Tabel 1 NJ'!C200<5,'Tabel 2 NJ'!C202<0.5),"-",IFERROR('Tabel 2 NJ'!C202/'Tabel 1 NJ'!C200*100,"-")) -> - | D202: =IF(OR('Tabel 1 NJ'!C200<5,'Tabel 2 NJ'!D202<0.5),"-",IFERROR('Tabel 2 NJ'!D202/'Tabel 1 NJ'!C200*100,"-")) -> - | F202: =IF(OR('Tabel 1 NJ'!E200<5,'Tabel 2 NJ'!F202<0.5),"-",IFERROR('Tabel 2 NJ'!F202/'Tabel 1 NJ'!E200*100,"-")) -> - | G202: =IF(OR('Tabel 1 NJ'!E200<5,'Tabel 2 NJ'!G202<0.5),"-",IFERROR('Tabel 2 NJ'!G202/'Tabel 1 NJ'!E200*100,"-")) -> - | I202: =IF(OR('Tabel 1 NJ'!G200<5,'Tabel 2 NJ'!I202<0.5),"-",IFERROR('Tabel 2 NJ'!I202/'Tabel 1 NJ'!G200*100,"-")) -> 4.761904762 | J202: =IF(OR('Tabel 1 NJ'!G200<5,'Tabel 2 NJ'!J202<0.5),"-",IFERROR('Tabel 2 NJ'!J202/'Tabel 1 NJ'!G200*100,"-")) -> 4.761013742
A203: Bygningskonst. | C203: =IF(OR('Tabel 1 NJ'!C201<5,'Tabel 2 NJ'!C203<0.5),"-",IFERROR('Tabel 2 NJ'!C203/'Tabel 1 NJ'!C201*100,"-")) -> 2.272727273 | D203: =IF(OR('Tabel 1 NJ'!C201<5,'Tabel 2 NJ'!D203<0.5),"-",IFERROR('Tabel 2 NJ'!D203/'Tabel 1 NJ'!C201*100,"-")) -> 2.272727273 | F203: =IF(OR('Tabel 1 NJ'!E201<5,'Tabel 2 NJ'!F203<0.5),"-",IFERROR('Tabel 2 NJ'!F203/'Tabel 1 NJ'!E201*100,"-")) -> - | G203: =IF(OR('Tabel 1 NJ'!E201<5,'Tabel 2 NJ'!G203<0.5),"-",IFERROR('Tabel 2 NJ'!G203/'Tabel 1 NJ'!E201*100,"-")) -> - | I203: =IF(OR('Tabel 1 NJ'!G201<5,'Tabel 2 NJ'!I203<0.5),"-",IFERROR('Tabel 2 NJ'!I203/'Tabel 1 NJ'!G201*100,"-")) -> 1.960784314 | J203: =IF(OR('Tabel 1 NJ'!G201<5,'Tabel 2 NJ'!J203<0.5),"-",IFERROR('Tabel 2 NJ'!J203/'Tabel 1 NJ'!G201*100,"-")) -> 1.960784314
A204: Cand. IT. | C204: =IF(OR('Tabel 1 NJ'!C202<5,'Tabel 2 NJ'!C204<0.5),"-",IFERROR('Tabel 2 NJ'!C204/'Tabel 1 NJ'!C202*100,"-")) -> - | D204: =IF(OR('Tabel 1 NJ'!C202<5,'Tabel 2 NJ'!D204<0.5),"-",IFERROR('Tabel 2 NJ'!D204/'Tabel 1 NJ'!C202*100,"-")) -> - | F204: =IF(OR('Tabel 1 NJ'!E202<5,'Tabel 2 NJ'!F204<0.5),"-",IFERROR('Tabel 2 NJ'!F204/'Tabel 1 NJ'!E202*100,"-")) -> 28.57142857 | G204: =IF(OR('Tabel 1 NJ'!E202<5,'Tabel 2 NJ'!G204<0.5),"-",IFERROR('Tabel 2 NJ'!G204/'Tabel 1 NJ'!E202*100,"-")) -> 11.36049755 | I204: =IF(OR('Tabel 1 NJ'!G202<5,'Tabel 2 NJ'!I204<0.5),"-",IFERROR('Tabel 2 NJ'!I204/'Tabel 1 NJ'!G202*100,"-")) -> 20 | J204: =IF(OR('Tabel 1 NJ'!G202<5,'Tabel 2 NJ'!J204<0.5),"-",IFERROR('Tabel 2 NJ'!J204/'Tabel 1 NJ'!G202*100,"-")) -> 7.952348282
A205: Bac. Samf. | C205: =IF(OR('Tabel 1 NJ'!C203<5,'Tabel 2 NJ'!C205<0.5),"-",IFERROR('Tabel 2 NJ'!C205/'Tabel 1 NJ'!C203*100,"-")) -> - | D205: =IF(OR('Tabel 1 NJ'!C203<5,'Tabel 2 NJ'!D205<0.5),"-",IFERROR('Tabel 2 NJ'!D205/'Tabel 1 NJ'!C203*100,"-")) -> - | F205: =IF(OR('Tabel 1 NJ'!E203<5,'Tabel 2 NJ'!F205<0.5),"-",IFERROR('Tabel 2 NJ'!F205/'Tabel 1 NJ'!E203*100,"-")) -> - | G205: =IF(OR('Tabel 1 NJ'!E203<5,'Tabel 2 NJ'!G205<0.5),"-",IFERROR('Tabel 2 NJ'!G205/'Tabel 1 NJ'!E203*100,"-")) -> - | I205: =IF(OR('Tabel 1 NJ'!G203<5,'Tabel 2 NJ'!I205<0.5),"-",IFERROR('Tabel 2 NJ'!I205/'Tabel 1 NJ'!G203*100,"-")) -> - | J205: =IF(OR('Tabel 1 NJ'!G203<5,'Tabel 2 NJ'!J205<0.5),"-",IFERROR('Tabel 2 NJ'!J205/'Tabel 1 NJ'!G203*100,"-")) -> -
A206: Bac. Hum. | C206: =IF(OR('Tabel 1 NJ'!C204<5,'Tabel 2 NJ'!C206<0.5),"-",IFERROR('Tabel 2 NJ'!C206/'Tabel 1 NJ'!C204*100,"-")) -> 14.28571429 | D206: =IF(OR('Tabel 1 NJ'!C204<5,'Tabel 2 NJ'!D206<0.5),"-",IFERROR('Tabel 2 NJ'!D206/'Tabel 1 NJ'!C204*100,"-")) -> 14.28304123 | F206: =IF(OR('Tabel 1 NJ'!E204<5,'Tabel 2 NJ'!F206<0.5),"-",IFERROR('Tabel 2 NJ'!F206/'Tabel 1 NJ'!E204*100,"-")) -> 11.11111111 | G206: =IF(OR('Tabel 1 NJ'!E204<5,'Tabel 2 NJ'!G206<0.5),"-",IFERROR('Tabel 2 NJ'!G206/'Tabel 1 NJ'!E204*100,"-")) -> 11.10903207 | I206: =IF(OR('Tabel 1 NJ'!G204<5,'Tabel 2 NJ'!I206<0.5),"-",IFERROR('Tabel 2 NJ'!I206/'Tabel 1 NJ'!G204*100,"-")) -> 12.5 | J206: =IF(OR('Tabel 1 NJ'!G204<5,'Tabel 2 NJ'!J206<0.5),"-",IFERROR('Tabel 2 NJ'!J206/'Tabel 1 NJ'!G204*100,"-")) -> 12.49766107
A207: Bac. Nat. | C207: =IF(OR('Tabel 1 NJ'!C205<5,'Tabel 2 NJ'!C207<0.5),"-",IFERROR('Tabel 2 NJ'!C207/'Tabel 1 NJ'!C205*100,"-")) -> - | D207: =IF(OR('Tabel 1 NJ'!C205<5,'Tabel 2 NJ'!D207<0.5),"-",IFERROR('Tabel 2 NJ'!D207/'Tabel 1 NJ'!C205*100,"-")) -> - | F207: =IF(OR('Tabel 1 NJ'!E205<5,'Tabel 2 NJ'!F207<0.5),"-",IFERROR('Tabel 2 NJ'!F207/'Tabel 1 NJ'!E205*100,"-")) -> - | G207: =IF(OR('Tabel 1 NJ'!E205<5,'Tabel 2 NJ'!G207<0.5),"-",IFERROR('Tabel 2 NJ'!G207/'Tabel 1 NJ'!E205*100,"-")) -> - | I207: =IF(OR('Tabel 1 NJ'!G205<5,'Tabel 2 NJ'!I207<0.5),"-",IFERROR('Tabel 2 NJ'!I207/'Tabel 1 NJ'!G205*100,"-")) -> - | J207: =IF(OR('Tabel 1 NJ'!G205<5,'Tabel 2 NJ'!J207<0.5),"-",IFERROR('Tabel 2 NJ'!J207/'Tabel 1 NJ'!G205*100,"-")) -> -
A208: Andre | C208: =IF(OR('Tabel 1 NJ'!C206<5,'Tabel 2 NJ'!C208<0.5),"-",IFERROR('Tabel 2 NJ'!C208/'Tabel 1 NJ'!C206*100,"-")) -> - | D208: =IF(OR('Tabel 1 NJ'!C206<5,'Tabel 2 NJ'!D208<0.5),"-",IFERROR('Tabel 2 NJ'!D208/'Tabel 1 NJ'!C206*100,"-")) -> - | F208: =IF(OR('Tabel 1 NJ'!E206<5,'Tabel 2 NJ'!F208<0.5),"-",IFERROR('Tabel 2 NJ'!F208/'Tabel 1 NJ'!E206*100,"-")) -> 10.71428571 | G208: =IF(OR('Tabel 1 NJ'!E206<5,'Tabel 2 NJ'!G208<0.5),"-",IFERROR('Tabel 2 NJ'!G208/'Tabel 1 NJ'!E206*100,"-")) -> 6.635867096 | I208: =IF(OR('Tabel 1 NJ'!G206<5,'Tabel 2 NJ'!I208<0.5),"-",IFERROR('Tabel 2 NJ'!I208/'Tabel 1 NJ'!G206*100,"-")) -> 5.555555556 | J208: =IF(OR('Tabel 1 NJ'!G206<5,'Tabel 2 NJ'!J208<0.5),"-",IFERROR('Tabel 2 NJ'!J208/'Tabel 1 NJ'!G206*100,"-")) -> 3.440819975
A210: Total | C210: =IF(OR('Tabel 1 NJ'!C208<5,'Tabel 2 NJ'!C210<0.5),"-",IFERROR('Tabel 2 NJ'!C210/'Tabel 1 NJ'!C208*100,"-")) -> 4.255319149 | D210: =IF(OR('Tabel 1 NJ'!C208<5,'Tabel 2 NJ'!D210<0.5),"-",IFERROR('Tabel 2 NJ'!D210/'Tabel 1 NJ'!C208*100,"-")) -> 4.046815435 | F210: =IF(OR('Tabel 1 NJ'!E208<5,'Tabel 2 NJ'!F210<0.5),"-",IFERROR('Tabel 2 NJ'!F210/'Tabel 1 NJ'!E208*100,"-")) -> 5.829596413 | G210: =IF(OR('Tabel 1 NJ'!E208<5,'Tabel 2 NJ'!G210<0.5),"-",IFERROR('Tabel 2 NJ'!G210/'Tabel 1 NJ'!E208*100,"-")) -> 4.842171094 | I210: =IF(OR('Tabel 1 NJ'!G208<5,'Tabel 2 NJ'!I210<0.5),"-",IFERROR('Tabel 2 NJ'!I210/'Tabel 1 NJ'!G208*100,"-")) -> 4.984423676 | J210: =IF(OR('Tabel 1 NJ'!G208<5,'Tabel 2 NJ'!J210<0.5),"-",IFERROR('Tabel 2 NJ'!J210/'Tabel 1 NJ'!G208*100,"-")) -> 4.4151733
A212: Ingeniører i alt | C212: =IF(OR('Tabel 1 NJ'!C210<5,'Tabel 2 NJ'!C212<0.5),"-",IFERROR('Tabel 2 NJ'!C212/'Tabel 1 NJ'!C210*100,"-")) -> 2.824858757 | D212: =IF(OR('Tabel 1 NJ'!C210<5,'Tabel 2 NJ'!D212<0.5),"-",IFERROR('Tabel 2 NJ'!D212/'Tabel 1 NJ'!C210*100,"-")) -> 2.503311496 | F212: =IF(OR('Tabel 1 NJ'!E210<5,'Tabel 2 NJ'!F212<0.5),"-",IFERROR('Tabel 2 NJ'!F212/'Tabel 1 NJ'!E210*100,"-")) -> 2 | G212: =IF(OR('Tabel 1 NJ'!E210<5,'Tabel 2 NJ'!G212<0.5),"-",IFERROR('Tabel 2 NJ'!G212/'Tabel 1 NJ'!E210*100,"-")) -> 1.999625772 | I212: =IF(OR('Tabel 1 NJ'!G210<5,'Tabel 2 NJ'!I212<0.5),"-",IFERROR('Tabel 2 NJ'!I212/'Tabel 1 NJ'!G210*100,"-")) -> 2.643171806 | J212: =IF(OR('Tabel 1 NJ'!G210<5,'Tabel 2 NJ'!J212<0.5),"-",IFERROR('Tabel 2 NJ'!J212/'Tabel 1 NJ'!G210*100,"-")) -> 2.392367504
A213: Magistre i alt | C213: =IF(OR('Tabel 1 NJ'!C211<5,'Tabel 2 NJ'!C213<0.5),"-",IFERROR('Tabel 2 NJ'!C213/'Tabel 1 NJ'!C211*100,"-")) -> 10.60606061 | D213: =IF(OR('Tabel 1 NJ'!C211<5,'Tabel 2 NJ'!D213<0.5),"-",IFERROR('Tabel 2 NJ'!D213/'Tabel 1 NJ'!C211*100,"-")) -> 9.837664363 | F213: =IF(OR('Tabel 1 NJ'!E211<5,'Tabel 2 NJ'!F213<0.5),"-",IFERROR('Tabel 2 NJ'!F213/'Tabel 1 NJ'!E211*100,"-")) -> 7.692307692 | G213: =IF(OR('Tabel 1 NJ'!E211<5,'Tabel 2 NJ'!G213<0.5),"-",IFERROR('Tabel 2 NJ'!G213/'Tabel 1 NJ'!E211*100,"-")) -> 6.43024723 | I213: =IF(OR('Tabel 1 NJ'!G211<5,'Tabel 2 NJ'!I213<0.5),"-",IFERROR('Tabel 2 NJ'!I213/'Tabel 1 NJ'!G211*100,"-")) -> 8.823529412 | J213: =IF(OR('Tabel 1 NJ'!G211<5,'Tabel 2 NJ'!J213<0.5),"-",IFERROR('Tabel 2 NJ'!J213/'Tabel 1 NJ'!G211*100,"-")) -> 7.753126823
A214: DJØF'ere i alt | C214: =IF(OR('Tabel 1 NJ'!C212<5,'Tabel 2 NJ'!C214<0.5),"-",IFERROR('Tabel 2 NJ'!C214/'Tabel 1 NJ'!C212*100,"-")) -> 6.25 | D214: =IF(OR('Tabel 1 NJ'!C212<5,'Tabel 2 NJ'!D214<0.5),"-",IFERROR('Tabel 2 NJ'!D214/'Tabel 1 NJ'!C212*100,"-")) -> 6.248830537 | F214: =IF(OR('Tabel 1 NJ'!E212<5,'Tabel 2 NJ'!F214<0.5),"-",IFERROR('Tabel 2 NJ'!F214/'Tabel 1 NJ'!E212*100,"-")) -> 6.481481481 | G214: =IF(OR('Tabel 1 NJ'!E212<5,'Tabel 2 NJ'!G214<0.5),"-",IFERROR('Tabel 2 NJ'!G214/'Tabel 1 NJ'!E212*100,"-")) -> 6.148776482 | I214: =IF(OR('Tabel 1 NJ'!G212<5,'Tabel 2 NJ'!I214<0.5),"-",IFERROR('Tabel 2 NJ'!I214/'Tabel 1 NJ'!G212*100,"-")) -> 6.37254902 | J214: =IF(OR('Tabel 1 NJ'!G212<5,'Tabel 2 NJ'!J214<0.5),"-",IFERROR('Tabel 2 NJ'!J214/'Tabel 1 NJ'!G212*100,"-")) -> 6.195860743
A219: Frederikshavn
C221: Mænd | F221: Kvinder | I221: I alt
C222: Ledigheds- berørte | D222: Gns. brutto- ledighed | F222: Ledigheds- berørte | G222: Gns. brutto- ledighed | I222: Ledigheds- berørte | J222: Gns. brutto- ledighed
A225: Civ. ing. | C225: =IF(OR('Tabel 1 NJ'!C223<5,'Tabel 2 NJ'!C225<0.5),"-",IFERROR('Tabel 2 NJ'!C225/'Tabel 1 NJ'!C223*100,"-")) -> - | D225: =IF(OR('Tabel 1 NJ'!C223<5,'Tabel 2 NJ'!D225<0.5),"-",IFERROR('Tabel 2 NJ'!D225/'Tabel 1 NJ'!C223*100,"-")) -> - | F225: =IF(OR('Tabel 1 NJ'!E223<5,'Tabel 2 NJ'!F225<0.5),"-",IFERROR('Tabel 2 NJ'!F225/'Tabel 1 NJ'!E223*100,"-")) -> - | G225: =IF(OR('Tabel 1 NJ'!E223<5,'Tabel 2 NJ'!G225<0.5),"-",IFERROR('Tabel 2 NJ'!G225/'Tabel 1 NJ'!E223*100,"-")) -> - | I225: =IF(OR('Tabel 1 NJ'!G223<5,'Tabel 2 NJ'!I225<0.5),"-",IFERROR('Tabel 2 NJ'!I225/'Tabel 1 NJ'!G223*100,"-")) -> - | J225: =IF(OR('Tabel 1 NJ'!G223<5,'Tabel 2 NJ'!J225<0.5),"-",IFERROR('Tabel 2 NJ'!J225/'Tabel 1 NJ'!G223*100,"-")) -> -
A226: Diplom ing. | C226: =IF(OR('Tabel 1 NJ'!C224<5,'Tabel 2 NJ'!C226<0.5),"-",IFERROR('Tabel 2 NJ'!C226/'Tabel 1 NJ'!C224*100,"-")) -> 4.6875 | D226: =IF(OR('Tabel 1 NJ'!C224<5,'Tabel 2 NJ'!D226<0.5),"-",IFERROR('Tabel 2 NJ'!D226/'Tabel 1 NJ'!C224*100,"-")) -> 4.686622903 | F226: =IF(OR('Tabel 1 NJ'!E224<5,'Tabel 2 NJ'!F226<0.5),"-",IFERROR('Tabel 2 NJ'!F226/'Tabel 1 NJ'!E224*100,"-")) -> - | G226: =IF(OR('Tabel 1 NJ'!E224<5,'Tabel 2 NJ'!G226<0.5),"-",IFERROR('Tabel 2 NJ'!G226/'Tabel 1 NJ'!E224*100,"-")) -> - | I226: =IF(OR('Tabel 1 NJ'!G224<5,'Tabel 2 NJ'!I226<0.5),"-",IFERROR('Tabel 2 NJ'!I226/'Tabel 1 NJ'!G224*100,"-")) -> 3.846153846 | J226: =IF(OR('Tabel 1 NJ'!G224<5,'Tabel 2 NJ'!J226<0.5),"-",IFERROR('Tabel 2 NJ'!J226/'Tabel 1 NJ'!G224*100,"-")) -> 3.845434177
A227: Cand. Scient. Tek. | C227: =IF(OR('Tabel 1 NJ'!C225<5,'Tabel 2 NJ'!C227<0.5),"-",IFERROR('Tabel 2 NJ'!C227/'Tabel 1 NJ'!C225*100,"-")) -> 8.333333333 | D227: =IF(OR('Tabel 1 NJ'!C225<5,'Tabel 2 NJ'!D227<0.5),"-",IFERROR('Tabel 2 NJ'!D227/'Tabel 1 NJ'!C225*100,"-")) -> 8.331774049 | F227: =IF(OR('Tabel 1 NJ'!E225<5,'Tabel 2 NJ'!F227<0.5),"-",IFERROR('Tabel 2 NJ'!F227/'Tabel 1 NJ'!E225*100,"-")) -> 7.692307692 | G227: =IF(OR('Tabel 1 NJ'!E225<5,'Tabel 2 NJ'!G227<0.5),"-",IFERROR('Tabel 2 NJ'!G227/'Tabel 1 NJ'!E225*100,"-")) -> 7.690868353 | I227: =IF(OR('Tabel 1 NJ'!G225<5,'Tabel 2 NJ'!I227<0.5),"-",IFERROR('Tabel 2 NJ'!I227/'Tabel 1 NJ'!G225*100,"-")) -> 8 | J227: =IF(OR('Tabel 1 NJ'!G225<5,'Tabel 2 NJ'!J227<0.5),"-",IFERROR('Tabel 2 NJ'!J227/'Tabel 1 NJ'!G225*100,"-")) -> 7.998503087
A228: MA. Hum. | C228: =IF(OR('Tabel 1 NJ'!C226<5,'Tabel 2 NJ'!C228<0.5),"-",IFERROR('Tabel 2 NJ'!C228/'Tabel 1 NJ'!C226*100,"-")) -> 17.24137931 | D228: =IF(OR('Tabel 1 NJ'!C226<5,'Tabel 2 NJ'!D228<0.5),"-",IFERROR('Tabel 2 NJ'!D228/'Tabel 1 NJ'!C226*100,"-")) -> 14.21851913 | F228: =IF(OR('Tabel 1 NJ'!E226<5,'Tabel 2 NJ'!F228<0.5),"-",IFERROR('Tabel 2 NJ'!F228/'Tabel 1 NJ'!E226*100,"-")) -> 13.18681319 | G228: =IF(OR('Tabel 1 NJ'!E226<5,'Tabel 2 NJ'!G228<0.5),"-",IFERROR('Tabel 2 NJ'!G228/'Tabel 1 NJ'!E226*100,"-")) -> 11.76831028 | I228: =IF(OR('Tabel 1 NJ'!G226<5,'Tabel 2 NJ'!I228<0.5),"-",IFERROR('Tabel 2 NJ'!I228/'Tabel 1 NJ'!G226*100,"-")) -> 14.16666667 | J228: =IF(OR('Tabel 1 NJ'!G226<5,'Tabel 2 NJ'!J228<0.5),"-",IFERROR('Tabel 2 NJ'!J228/'Tabel 1 NJ'!G226*100,"-")) -> 12.36044408
A229: MA. Nat. | C229: =IF(OR('Tabel 1 NJ'!C227<5,'Tabel 2 NJ'!C229<0.5),"-",IFERROR('Tabel 2 NJ'!C229/'Tabel 1 NJ'!C227*100,"-")) -> 8.333333333 | D229: =IF(OR('Tabel 1 NJ'!C227<5,'Tabel 2 NJ'!D229<0.5),"-",IFERROR('Tabel 2 NJ'!D229/'Tabel 1 NJ'!C227*100,"-")) -> 8.331774049 | F229: =IF(OR('Tabel 1 NJ'!E227<5,'Tabel 2 NJ'!F229<0.5),"-",IFERROR('Tabel 2 NJ'!F229/'Tabel 1 NJ'!E227*100,"-")) -> - | G229: =IF(OR('Tabel 1 NJ'!E227<5,'Tabel 2 NJ'!G229<0.5),"-",IFERROR('Tabel 2 NJ'!G229/'Tabel 1 NJ'!E227*100,"-")) -> - | I229: =IF(OR('Tabel 1 NJ'!G227<5,'Tabel 2 NJ'!I229<0.5),"-",IFERROR('Tabel 2 NJ'!I229/'Tabel 1 NJ'!G227*100,"-")) -> 6.25 | J229: =IF(OR('Tabel 1 NJ'!G227<5,'Tabel 2 NJ'!J229<0.5),"-",IFERROR('Tabel 2 NJ'!J229/'Tabel 1 NJ'!G227*100,"-")) -> 6.248830537
A230: MA. Ph.d. | C230: =IF(OR('Tabel 1 NJ'!C228<5,'Tabel 2 NJ'!C230<0.5),"-",IFERROR('Tabel 2 NJ'!C230/'Tabel 1 NJ'!C228*100,"-")) -> - | D230: =IF(OR('Tabel 1 NJ'!C228<5,'Tabel 2 NJ'!D230<0.5),"-",IFERROR('Tabel 2 NJ'!D230/'Tabel 1 NJ'!C228*100,"-")) -> - | F230: =IF(OR('Tabel 1 NJ'!E228<5,'Tabel 2 NJ'!F230<0.5),"-",IFERROR('Tabel 2 NJ'!F230/'Tabel 1 NJ'!E228*100,"-")) -> - | G230: =IF(OR('Tabel 1 NJ'!E228<5,'Tabel 2 NJ'!G230<0.5),"-",IFERROR('Tabel 2 NJ'!G230/'Tabel 1 NJ'!E228*100,"-")) -> - | I230: =IF(OR('Tabel 1 NJ'!G228<5,'Tabel 2 NJ'!I230<0.5),"-",IFERROR('Tabel 2 NJ'!I230/'Tabel 1 NJ'!G228*100,"-")) -> - | J230: =IF(OR('Tabel 1 NJ'!G228<5,'Tabel 2 NJ'!J230<0.5),"-",IFERROR('Tabel 2 NJ'!J230/'Tabel 1 NJ'!G228*100,"-")) -> -
A231: MA. Samf. | C231: =IF(OR('Tabel 1 NJ'!C229<5,'Tabel 2 NJ'!C231<0.5),"-",IFERROR('Tabel 2 NJ'!C231/'Tabel 1 NJ'!C229*100,"-")) -> - | D231: =IF(OR('Tabel 1 NJ'!C229<5,'Tabel 2 NJ'!D231<0.5),"-",IFERROR('Tabel 2 NJ'!D231/'Tabel 1 NJ'!C229*100,"-")) -> - | F231: =IF(OR('Tabel 1 NJ'!E229<5,'Tabel 2 NJ'!F231<0.5),"-",IFERROR('Tabel 2 NJ'!F231/'Tabel 1 NJ'!E229*100,"-")) -> - | G231: =IF(OR('Tabel 1 NJ'!E229<5,'Tabel 2 NJ'!G231<0.5),"-",IFERROR('Tabel 2 NJ'!G231/'Tabel 1 NJ'!E229*100,"-")) -> - | I231: =IF(OR('Tabel 1 NJ'!G229<5,'Tabel 2 NJ'!I231<0.5),"-",IFERROR('Tabel 2 NJ'!I231/'Tabel 1 NJ'!G229*100,"-")) -> 11.11111111 | J231: =IF(OR('Tabel 1 NJ'!G229<5,'Tabel 2 NJ'!J231<0.5),"-",IFERROR('Tabel 2 NJ'!J231/'Tabel 1 NJ'!G229*100,"-")) -> 11.10903207
A232: Øvrige Mag. | C232: =IF(OR('Tabel 1 NJ'!C230<5,'Tabel 2 NJ'!C232<0.5),"-",IFERROR('Tabel 2 NJ'!C232/'Tabel 1 NJ'!C230*100,"-")) -> - | D232: =IF(OR('Tabel 1 NJ'!C230<5,'Tabel 2 NJ'!D232<0.5),"-",IFERROR('Tabel 2 NJ'!D232/'Tabel 1 NJ'!C230*100,"-")) -> - | F232: =IF(OR('Tabel 1 NJ'!E230<5,'Tabel 2 NJ'!F232<0.5),"-",IFERROR('Tabel 2 NJ'!F232/'Tabel 1 NJ'!E230*100,"-")) -> - | G232: =IF(OR('Tabel 1 NJ'!E230<5,'Tabel 2 NJ'!G232<0.5),"-",IFERROR('Tabel 2 NJ'!G232/'Tabel 1 NJ'!E230*100,"-")) -> - | I232: =IF(OR('Tabel 1 NJ'!G230<5,'Tabel 2 NJ'!I232<0.5),"-",IFERROR('Tabel 2 NJ'!I232/'Tabel 1 NJ'!G230*100,"-")) -> - | J232: =IF(OR('Tabel 1 NJ'!G230<5,'Tabel 2 NJ'!J232<0.5),"-",IFERROR('Tabel 2 NJ'!J232/'Tabel 1 NJ'!G230*100,"-")) -> -
A233: Agronom | C233: =IF(OR('Tabel 1 NJ'!C231<5,'Tabel 2 NJ'!C233<0.5),"-",IFERROR('Tabel 2 NJ'!C233/'Tabel 1 NJ'!C231*100,"-")) -> - | D233: =IF(OR('Tabel 1 NJ'!C231<5,'Tabel 2 NJ'!D233<0.5),"-",IFERROR('Tabel 2 NJ'!D233/'Tabel 1 NJ'!C231*100,"-")) -> - | F233: =IF(OR('Tabel 1 NJ'!E231<5,'Tabel 2 NJ'!F233<0.5),"-",IFERROR('Tabel 2 NJ'!F233/'Tabel 1 NJ'!E231*100,"-")) -> - | G233: =IF(OR('Tabel 1 NJ'!E231<5,'Tabel 2 NJ'!G233<0.5),"-",IFERROR('Tabel 2 NJ'!G233/'Tabel 1 NJ'!E231*100,"-")) -> - | I233: =IF(OR('Tabel 1 NJ'!G231<5,'Tabel 2 NJ'!I233<0.5),"-",IFERROR('Tabel 2 NJ'!I233/'Tabel 1 NJ'!G231*100,"-")) -> - | J233: =IF(OR('Tabel 1 NJ'!G231<5,'Tabel 2 NJ'!J233<0.5),"-",IFERROR('Tabel 2 NJ'!J233/'Tabel 1 NJ'!G231*100,"-")) -> -
A234: Landsk. Arkt. | C234: =IF(OR('Tabel 1 NJ'!C232<5,'Tabel 2 NJ'!C234<0.5),"-",IFERROR('Tabel 2 NJ'!C234/'Tabel 1 NJ'!C232*100,"-")) -> - | D234: =IF(OR('Tabel 1 NJ'!C232<5,'Tabel 2 NJ'!D234<0.5),"-",IFERROR('Tabel 2 NJ'!D234/'Tabel 1 NJ'!C232*100,"-")) -> - | F234: =IF(OR('Tabel 1 NJ'!E232<5,'Tabel 2 NJ'!F234<0.5),"-",IFERROR('Tabel 2 NJ'!F234/'Tabel 1 NJ'!E232*100,"-")) -> - | G234: =IF(OR('Tabel 1 NJ'!E232<5,'Tabel 2 NJ'!G234<0.5),"-",IFERROR('Tabel 2 NJ'!G234/'Tabel 1 NJ'!E232*100,"-")) -> - | I234: =IF(OR('Tabel 1 NJ'!G232<5,'Tabel 2 NJ'!I234<0.5),"-",IFERROR('Tabel 2 NJ'!I234/'Tabel 1 NJ'!G232*100,"-")) -> - | J234: =IF(OR('Tabel 1 NJ'!G232<5,'Tabel 2 NJ'!J234<0.5),"-",IFERROR('Tabel 2 NJ'!J234/'Tabel 1 NJ'!G232*100,"-")) -> -
A235: Hortonom | C235: =IF(OR('Tabel 1 NJ'!C233<5,'Tabel 2 NJ'!C235<0.5),"-",IFERROR('Tabel 2 NJ'!C235/'Tabel 1 NJ'!C233*100,"-")) -> - | D235: =IF(OR('Tabel 1 NJ'!C233<5,'Tabel 2 NJ'!D235<0.5),"-",IFERROR('Tabel 2 NJ'!D235/'Tabel 1 NJ'!C233*100,"-")) -> - | F235: =IF(OR('Tabel 1 NJ'!E233<5,'Tabel 2 NJ'!F235<0.5),"-",IFERROR('Tabel 2 NJ'!F235/'Tabel 1 NJ'!E233*100,"-")) -> - | G235: =IF(OR('Tabel 1 NJ'!E233<5,'Tabel 2 NJ'!G235<0.5),"-",IFERROR('Tabel 2 NJ'!G235/'Tabel 1 NJ'!E233*100,"-")) -> - | I235: =IF(OR('Tabel 1 NJ'!G233<5,'Tabel 2 NJ'!I235<0.5),"-",IFERROR('Tabel 2 NJ'!I235/'Tabel 1 NJ'!G233*100,"-")) -> - | J235: =IF(OR('Tabel 1 NJ'!G233<5,'Tabel 2 NJ'!J235<0.5),"-",IFERROR('Tabel 2 NJ'!J235/'Tabel 1 NJ'!G233*100,"-")) -> -
A236: Forstkand. | C236: =IF(OR('Tabel 1 NJ'!C234<5,'Tabel 2 NJ'!C236<0.5),"-",IFERROR('Tabel 2 NJ'!C236/'Tabel 1 NJ'!C234*100,"-")) -> - | D236: =IF(OR('Tabel 1 NJ'!C234<5,'Tabel 2 NJ'!D236<0.5),"-",IFERROR('Tabel 2 NJ'!D236/'Tabel 1 NJ'!C234*100,"-")) -> - | F236: =IF(OR('Tabel 1 NJ'!E234<5,'Tabel 2 NJ'!F236<0.5),"-",IFERROR('Tabel 2 NJ'!F236/'Tabel 1 NJ'!E234*100,"-")) -> - | G236: =IF(OR('Tabel 1 NJ'!E234<5,'Tabel 2 NJ'!G236<0.5),"-",IFERROR('Tabel 2 NJ'!G236/'Tabel 1 NJ'!E234*100,"-")) -> - | I236: =IF(OR('Tabel 1 NJ'!G234<5,'Tabel 2 NJ'!I236<0.5),"-",IFERROR('Tabel 2 NJ'!I236/'Tabel 1 NJ'!G234*100,"-")) -> - | J236: =IF(OR('Tabel 1 NJ'!G234<5,'Tabel 2 NJ'!J236<0.5),"-",IFERROR('Tabel 2 NJ'!J236/'Tabel 1 NJ'!G234*100,"-")) -> -
A237: Jordbrugsakad. | C237: =IF(OR('Tabel 1 NJ'!C235<5,'Tabel 2 NJ'!C237<0.5),"-",IFERROR('Tabel 2 NJ'!C237/'Tabel 1 NJ'!C235*100,"-")) -> - | D237: =IF(OR('Tabel 1 NJ'!C235<5,'Tabel 2 NJ'!D237<0.5),"-",IFERROR('Tabel 2 NJ'!D237/'Tabel 1 NJ'!C235*100,"-")) -> - | F237: =IF(OR('Tabel 1 NJ'!E235<5,'Tabel 2 NJ'!F237<0.5),"-",IFERROR('Tabel 2 NJ'!F237/'Tabel 1 NJ'!E235*100,"-")) -> - | G237: =IF(OR('Tabel 1 NJ'!E235<5,'Tabel 2 NJ'!G237<0.5),"-",IFERROR('Tabel 2 NJ'!G237/'Tabel 1 NJ'!E235*100,"-")) -> - | I237: =IF(OR('Tabel 1 NJ'!G235<5,'Tabel 2 NJ'!I237<0.5),"-",IFERROR('Tabel 2 NJ'!I237/'Tabel 1 NJ'!G235*100,"-")) -> - | J237: =IF(OR('Tabel 1 NJ'!G235<5,'Tabel 2 NJ'!J237<0.5),"-",IFERROR('Tabel 2 NJ'!J237/'Tabel 1 NJ'!G235*100,"-")) -> -
A238: Mejeriing. | C238: =IF(OR('Tabel 1 NJ'!C236<5,'Tabel 2 NJ'!C238<0.5),"-",IFERROR('Tabel 2 NJ'!C238/'Tabel 1 NJ'!C236*100,"-")) -> - | D238: =IF(OR('Tabel 1 NJ'!C236<5,'Tabel 2 NJ'!D238<0.5),"-",IFERROR('Tabel 2 NJ'!D238/'Tabel 1 NJ'!C236*100,"-")) -> - | F238: =IF(OR('Tabel 1 NJ'!E236<5,'Tabel 2 NJ'!F238<0.5),"-",IFERROR('Tabel 2 NJ'!F238/'Tabel 1 NJ'!E236*100,"-")) -> - | G238: =IF(OR('Tabel 1 NJ'!E236<5,'Tabel 2 NJ'!G238<0.5),"-",IFERROR('Tabel 2 NJ'!G238/'Tabel 1 NJ'!E236*100,"-")) -> - | I238: =IF(OR('Tabel 1 NJ'!G236<5,'Tabel 2 NJ'!I238<0.5),"-",IFERROR('Tabel 2 NJ'!I238/'Tabel 1 NJ'!G236*100,"-")) -> - | J238: =IF(OR('Tabel 1 NJ'!G236<5,'Tabel 2 NJ'!J238<0.5),"-",IFERROR('Tabel 2 NJ'!J238/'Tabel 1 NJ'!G236*100,"-")) -> -
A239: Levn.m.kand. | C239: =IF(OR('Tabel 1 NJ'!C237<5,'Tabel 2 NJ'!C239<0.5),"-",IFERROR('Tabel 2 NJ'!C239/'Tabel 1 NJ'!C237*100,"-")) -> - | D239: =IF(OR('Tabel 1 NJ'!C237<5,'Tabel 2 NJ'!D239<0.5),"-",IFERROR('Tabel 2 NJ'!D239/'Tabel 1 NJ'!C237*100,"-")) -> - | F239: =IF(OR('Tabel 1 NJ'!E237<5,'Tabel 2 NJ'!F239<0.5),"-",IFERROR('Tabel 2 NJ'!F239/'Tabel 1 NJ'!E237*100,"-")) -> - | G239: =IF(OR('Tabel 1 NJ'!E237<5,'Tabel 2 NJ'!G239<0.5),"-",IFERROR('Tabel 2 NJ'!G239/'Tabel 1 NJ'!E237*100,"-")) -> - | I239: =IF(OR('Tabel 1 NJ'!G237<5,'Tabel 2 NJ'!I239<0.5),"-",IFERROR('Tabel 2 NJ'!I239/'Tabel 1 NJ'!G237*100,"-")) -> - | J239: =IF(OR('Tabel 1 NJ'!G237<5,'Tabel 2 NJ'!J239<0.5),"-",IFERROR('Tabel 2 NJ'!J239/'Tabel 1 NJ'!G237*100,"-")) -> -
A240: Dyrlæge | C240: =IF(OR('Tabel 1 NJ'!C238<5,'Tabel 2 NJ'!C240<0.5),"-",IFERROR('Tabel 2 NJ'!C240/'Tabel 1 NJ'!C238*100,"-")) -> - | D240: =IF(OR('Tabel 1 NJ'!C238<5,'Tabel 2 NJ'!D240<0.5),"-",IFERROR('Tabel 2 NJ'!D240/'Tabel 1 NJ'!C238*100,"-")) -> - | F240: =IF(OR('Tabel 1 NJ'!E238<5,'Tabel 2 NJ'!F240<0.5),"-",IFERROR('Tabel 2 NJ'!F240/'Tabel 1 NJ'!E238*100,"-")) -> 6.25 | G240: =IF(OR('Tabel 1 NJ'!E238<5,'Tabel 2 NJ'!G240<0.5),"-",IFERROR('Tabel 2 NJ'!G240/'Tabel 1 NJ'!E238*100,"-")) -> 6.248830537 | I240: =IF(OR('Tabel 1 NJ'!G238<5,'Tabel 2 NJ'!I240<0.5),"-",IFERROR('Tabel 2 NJ'!I240/'Tabel 1 NJ'!G238*100,"-")) -> 5 | J240: =IF(OR('Tabel 1 NJ'!G238<5,'Tabel 2 NJ'!J240<0.5),"-",IFERROR('Tabel 2 NJ'!J240/'Tabel 1 NJ'!G238*100,"-")) -> 4.99906443
... 341 more rows

Sheet Tabel 4F NJ
A1: ='[1]Tabel 4F NJ DATA'!L1 -> Tabel 4. Antal forsikrede - aldersfordelt
A3: ='[1]Tabel 4F NJ DATA'!L3 -> Nordjylland
C5: ='[1]Tabel 4F NJ DATA'!N5 -> Under 30 år | D5: ='[1]Tabel 4F NJ DATA'!O5 -> 30 - 39 år | E5: ='[1]Tabel 4F NJ DATA'!P5 -> 40 - 49 år | F5: ='[1]Tabel 4F NJ DATA'!Q5 -> 50 - 59 år | G5: ='[1]Tabel 4F NJ DATA'!R5 -> Over 60 år | I5: ='[1]Tabel 4F NJ DATA'!T5 -> I alt
A7: ='[1]Tabel 4F NJ DATA'!L7 -> Civ. ing. | C7: ='[1]Tabel 4F NJ DATA'!N7 -> 762 | D7: ='[1]Tabel 4F NJ DATA'!O7 -> 1214 | E7: ='[1]Tabel 4F NJ DATA'!P7 -> 986 | F7: ='[1]Tabel 4F NJ DATA'!Q7 -> 766 | G7: ='[1]Tabel 4F NJ DATA'!R7 -> 176 | I7: ='[1]Tabel 4F NJ DATA'!T7 -> 3904
A8: ='[1]Tabel 4F NJ DATA'!L8 -> Diplom ing. | C8: ='[1]Tabel 4F NJ DATA'!N8 -> 128 | D8: ='[1]Tabel 4F NJ DATA'!O8 -> 166 | E8: ='[1]Tabel 4F NJ DATA'!P8 -> 347 | F8: ='[1]Tabel 4F NJ DATA'!Q8 -> 613 | G8: ='[1]Tabel 4F NJ DATA'!R8 -> 215 | I8: ='[1]Tabel 4F NJ DATA'!T8 -> 1469
A9: ='[1]Tabel 4F NJ DATA'!L9 -> Cand. Scient. Tek. | C9: ='[1]Tabel 4F NJ DATA'!N9 -> 527 | D9: ='[1]Tabel 4F NJ DATA'!O9 -> 669 | E9: ='[1]Tabel 4F NJ DATA'!P9 -> 208 | F9: ='[1]Tabel 4F NJ DATA'!Q9 -> 71 | G9: ='[1]Tabel 4F NJ DATA'!R9 -> 15 | I9: ='[1]Tabel 4F NJ DATA'!T9 -> 1490
A10: ='[1]Tabel 4F NJ DATA'!L10 -> MA. Hum. | C10: ='[1]Tabel 4F NJ DATA'!N10 -> 461 | D10: ='[1]Tabel 4F NJ DATA'!O10 -> 1015 | E10: ='[1]Tabel 4F NJ DATA'!P10 -> 954 | F10: ='[1]Tabel 4F NJ DATA'!Q10 -> 424 | G10: ='[1]Tabel 4F NJ DATA'!R10 -> 179 | I10: ='[1]Tabel 4F NJ DATA'!T10 -> 3033
A11: ='[1]Tabel 4F NJ DATA'!L11 -> MA. Nat. | C11: ='[1]Tabel 4F NJ DATA'!N11 -> 54 | D11: ='[1]Tabel 4F NJ DATA'!O11 -> 194 | E11: ='[1]Tabel 4F NJ DATA'!P11 -> 237 | F11: ='[1]Tabel 4F NJ DATA'!Q11 -> 148 | G11: ='[1]Tabel 4F NJ DATA'!R11 -> 61 | I11: ='[1]Tabel 4F NJ DATA'!T11 -> 694
A12: ='[1]Tabel 4F NJ DATA'!L12 -> MA. Ph.d. | C12: ='[1]Tabel 4F NJ DATA'!N12 -> 1 | D12: ='[1]Tabel 4F NJ DATA'!O12 -> 22 | E12: ='[1]Tabel 4F NJ DATA'!P12 -> 41 | F12: ='[1]Tabel 4F NJ DATA'!Q12 -> 24 | G12: ='[1]Tabel 4F NJ DATA'!R12 -> 9 | I12: ='[1]Tabel 4F NJ DATA'!T12 -> 97
A13: ='[1]Tabel 4F NJ DATA'!L13 -> MA. Samf. | C13: ='[1]Tabel 4F NJ DATA'!N13 -> 112 | D13: ='[1]Tabel 4F NJ DATA'!O13 -> 175 | E13: ='[1]Tabel 4F NJ DATA'!P13 -> 40 | F13: ='[1]Tabel 4F NJ DATA'!Q13 -> 13 | G13: ='[1]Tabel 4F NJ DATA'!R13 -> 3 | I13: ='[1]Tabel 4F NJ DATA'!T13 -> 343
A14: ='[1]Tabel 4F NJ DATA'!L14 -> Øvrige Mag. | C14: ='[1]Tabel 4F NJ DATA'!N14 -> 17 | D14: ='[1]Tabel 4F NJ DATA'!O14 -> 41 | E14: ='[1]Tabel 4F NJ DATA'!P14 -> 57 | F14: ='[1]Tabel 4F NJ DATA'!Q14 -> 55 | G14: ='[1]Tabel 4F NJ DATA'!R14 -> 36 | I14: ='[1]Tabel 4F NJ DATA'!T14 -> 206
A15: ='[1]Tabel 4F NJ DATA'!L15 -> Agronom | C15: ='[1]Tabel 4F NJ DATA'!N15 -> 2 | D15: ='[1]Tabel 4F NJ DATA'!O15 -> 8 | E15: ='[1]Tabel 4F NJ DATA'!P15 -> 36 | F15: ='[1]Tabel 4F NJ DATA'!Q15 -> 60 | G15: ='[1]Tabel 4F NJ DATA'!R15 -> 24 | I15: ='[1]Tabel 4F NJ DATA'!T15 -> 130
A16: ='[1]Tabel 4F NJ DATA'!L16 -> Landsk. Arkt. | C16: ='[1]Tabel 4F NJ DATA'!N16 -> 1 | D16: ='[1]Tabel 4F NJ DATA'!O16 -> 7 | E16: ='[1]Tabel 4F NJ DATA'!P16 -> 5 | F16: ='[1]Tabel 4F NJ DATA'!Q16 -> 1 | G16: ='[1]Tabel 4F NJ DATA'!R16 -> 0 | I16: ='[1]Tabel 4F NJ DATA'!T16 -> 14
A17: ='[1]Tabel 4F NJ DATA'!L17 -> Hortonom | C17: ='[1]Tabel 4F NJ DATA'!N17 -> 0 | D17: ='[1]Tabel 4F NJ DATA'!O17 -> 0 | E17: ='[1]Tabel 4F NJ DATA'!P17 -> 1 | F17: ='[1]Tabel 4F NJ DATA'!Q17 -> 2 | G17: ='[1]Tabel 4F NJ DATA'!R17 -> 0 | I17: ='[1]Tabel 4F NJ DATA'!T17 -> 3
A18: ='[1]Tabel 4F NJ DATA'!L18 -> Forstkand. | C18: ='[1]Tabel 4F NJ DATA'!N18 -> 0 | D18: ='[1]Tabel 4F NJ DATA'!O18 -> 2 | E18: ='[1]Tabel 4F NJ DATA'!P18 -> 9 | F18: ='[1]Tabel 4F NJ DATA'!Q18 -> 7 | G18: ='[1]Tabel 4F NJ DATA'!R18 -> 4 | I18: ='[1]Tabel 4F NJ DATA'!T18 -> 22
A19: ='[1]Tabel 4F NJ DATA'!L19 -> Jordbrugsakad. | C19: ='[1]Tabel 4F NJ DATA'!N19 -> 3 | D19: ='[1]Tabel 4F NJ DATA'!O19 -> 17 | E19: ='[1]Tabel 4F NJ DATA'!P19 -> 51 | F19: ='[1]Tabel 4F NJ DATA'!Q19 -> 70 | G19: ='[1]Tabel 4F NJ DATA'!R19 -> 28 | I19: ='[1]Tabel 4F NJ DATA'!T19 -> 169
A20: ='[1]Tabel 4F NJ DATA'!L20 -> Mejeriing. | C20: ='[1]Tabel 4F NJ DATA'!N20 -> 2 | D20: ='[1]Tabel 4F NJ DATA'!O20 -> 2 | E20: ='[1]Tabel 4F NJ DATA'!P20 -> 3 | F20: ='[1]Tabel 4F NJ DATA'!Q20 -> 7 | G20: ='[1]Tabel 4F NJ DATA'!R20 -> 6 | I20: ='[1]Tabel 4F NJ DATA'!T20 -> 20
A21: ='[1]Tabel 4F NJ DATA'!L21 -> Levn.m.kand. | C21: ='[1]Tabel 4F NJ DATA'!N21 -> 1 | D21: ='[1]Tabel 4F NJ DATA'!O21 -> 1 | E21: ='[1]Tabel 4F NJ DATA'!P21 -> 2 | F21: ='[1]Tabel 4F NJ DATA'!Q21 -> 0 | G21: ='[1]Tabel 4F NJ DATA'!R21 -> 0 | I21: ='[1]Tabel 4F NJ DATA'!T21 -> 4
A22: ='[1]Tabel 4F NJ DATA'!L22 -> Dyrlæge | C22: ='[1]Tabel 4F NJ DATA'!N22 -> 25 | D22: ='[1]Tabel 4F NJ DATA'!O22 -> 65 | E22: ='[1]Tabel 4F NJ DATA'!P22 -> 49 | F22: ='[1]Tabel 4F NJ DATA'!Q22 -> 49 | G22: ='[1]Tabel 4F NJ DATA'!R22 -> 8 | I22: ='[1]Tabel 4F NJ DATA'!T22 -> 196
A23: ='[1]Tabel 4F NJ DATA'!L23 -> Farmaceut | C23: ='[1]Tabel 4F NJ DATA'!N23 -> 15 | D23: ='[1]Tabel 4F NJ DATA'!O23 -> 48 | E23: ='[1]Tabel 4F NJ DATA'!P23 -> 32 | F23: ='[1]Tabel 4F NJ DATA'!Q23 -> 11 | G23: ='[1]Tabel 4F NJ DATA'!R23 -> 12 | I23: ='[1]Tabel 4F NJ DATA'!T23 -> 118
A24: ='[1]Tabel 4F NJ DATA'!L24 -> Læge | C24: ='[1]Tabel 4F NJ DATA'!N24 -> 216 | D24: ='[1]Tabel 4F NJ DATA'!O24 -> 314 | E24: ='[1]Tabel 4F NJ DATA'!P24 -> 154 | F24: ='[1]Tabel 4F NJ DATA'!Q24 -> 94 | G24: ='[1]Tabel 4F NJ DATA'!R24 -> 45 | I24: ='[1]Tabel 4F NJ DATA'!T24 -> 823
A25: ='[1]Tabel 4F NJ DATA'!L25 -> Tandlæge | C25: ='[1]Tabel 4F NJ DATA'!N25 -> 24 | D25: ='[1]Tabel 4F NJ DATA'!O25 -> 33 | E25: ='[1]Tabel 4F NJ DATA'!P25 -> 27 | F25: ='[1]Tabel 4F NJ DATA'!Q25 -> 21 | G25: ='[1]Tabel 4F NJ DATA'!R25 -> 20 | I25: ='[1]Tabel 4F NJ DATA'!T25 -> 125
A26: ='[1]Tabel 4F NJ DATA'!L26 -> Arkitekt | C26: ='[1]Tabel 4F NJ DATA'!N26 -> 10 | D26: ='[1]Tabel 4F NJ DATA'!O26 -> 37 | E26: ='[1]Tabel 4F NJ DATA'!P26 -> 35 | F26: ='[1]Tabel 4F NJ DATA'!Q26 -> 23 | G26: ='[1]Tabel 4F NJ DATA'!R26 -> 24 | I26: ='[1]Tabel 4F NJ DATA'!T26 -> 129
A27: ='[1]Tabel 4F NJ DATA'!L27 -> Landinspek. | C27: ='[1]Tabel 4F NJ DATA'!N27 -> 21 | D27: ='[1]Tabel 4F NJ DATA'!O27 -> 45 | E27: ='[1]Tabel 4F NJ DATA'!P27 -> 68 | F27: ='[1]Tabel 4F NJ DATA'!Q27 -> 80 | G27: ='[1]Tabel 4F NJ DATA'!R27 -> 19 | I27: ='[1]Tabel 4F NJ DATA'!T27 -> 233
A28: ='[1]Tabel 4F NJ DATA'!L28 -> Bibliotekar | C28: ='[1]Tabel 4F NJ DATA'!N28 -> 8 | D28: ='[1]Tabel 4F NJ DATA'!O28 -> 72 | E28: ='[1]Tabel 4F NJ DATA'!P28 -> 102 | F28: ='[1]Tabel 4F NJ DATA'!Q28 -> 79 | G28: ='[1]Tabel 4F NJ DATA'!R28 -> 54 | I28: ='[1]Tabel 4F NJ DATA'!T28 -> 315
A29: ='[1]Tabel 4F NJ DATA'!L29 -> Musikudd. | C29: ='[1]Tabel 4F NJ DATA'!N29 -> 1 | D29: ='[1]Tabel 4F NJ DATA'!O29 -> 13 | E29: ='[1]Tabel 4F NJ DATA'!P29 -> 21 | F29: ='[1]Tabel 4F NJ DATA'!Q29 -> 42 | G29: ='[1]Tabel 4F NJ DATA'!R29 -> 25 | I29: ='[1]Tabel 4F NJ DATA'!T29 -> 102
A30: ='[1]Tabel 4F NJ DATA'!L30 -> Teolog | C30: ='[1]Tabel 4F NJ DATA'!N30 -> 4 | D30: ='[1]Tabel 4F NJ DATA'!O30 -> 23 | E30: ='[1]Tabel 4F NJ DATA'!P30 -> 40 | F30: ='[1]Tabel 4F NJ DATA'!Q30 -> 61 | G30: ='[1]Tabel 4F NJ DATA'!R30 -> 29 | I30: ='[1]Tabel 4F NJ DATA'!T30 -> 157
A31: ='[1]Tabel 4F NJ DATA'!L31 -> Psykolog | C31: ='[1]Tabel 4F NJ DATA'!N31 -> 178 | D31: ='[1]Tabel 4F NJ DATA'!O31 -> 284 | E31: ='[1]Tabel 4F NJ DATA'!P31 -> 154 | F31: ='[1]Tabel 4F NJ DATA'!Q31 -> 59 | G31: ='[1]Tabel 4F NJ DATA'!R31 -> 30 | I31: ='[1]Tabel 4F NJ DATA'!T31 -> 705
A32: ='[1]Tabel 4F NJ DATA'!L32 -> Jurist | C32: ='[1]Tabel 4F NJ DATA'!N32 -> 172 | D32: ='[1]Tabel 4F NJ DATA'!O32 -> 238 | E32: ='[1]Tabel 4F NJ DATA'!P32 -> 116 | F32: ='[1]Tabel 4F NJ DATA'!Q32 -> 92 | G32: ='[1]Tabel 4F NJ DATA'!R32 -> 30 | I32: ='[1]Tabel 4F NJ DATA'!T32 -> 648
A33: ='[1]Tabel 4F NJ DATA'!L33 -> Økonom | C33: ='[1]Tabel 4F NJ DATA'!N33 -> 123 | D33: ='[1]Tabel 4F NJ DATA'!O33 -> 144 | E33: ='[1]Tabel 4F NJ DATA'!P33 -> 76 | F33: ='[1]Tabel 4F NJ DATA'!Q33 -> 98 | G33: ='[1]Tabel 4F NJ DATA'!R33 -> 11 | I33: ='[1]Tabel 4F NJ DATA'!T33 -> 452
A34: ='[1]Tabel 4F NJ DATA'!L34 -> Samf. Adm. | C34: ='[1]Tabel 4F NJ DATA'!N34 -> 284 | D34: ='[1]Tabel 4F NJ DATA'!O34 -> 625 | E34: ='[1]Tabel 4F NJ DATA'!P34 -> 369 | F34: ='[1]Tabel 4F NJ DATA'!Q34 -> 183 | G34: ='[1]Tabel 4F NJ DATA'!R34 -> 47 | I34: ='[1]Tabel 4F NJ DATA'!T34 -> 1508
A35: ='[1]Tabel 4F NJ DATA'!L35 -> Cand. Merc. | C35: ='[1]Tabel 4F NJ DATA'!N35 -> 532 | D35: ='[1]Tabel 4F NJ DATA'!O35 -> 738 | E35: ='[1]Tabel 4F NJ DATA'!P35 -> 434 | F35: ='[1]Tabel 4F NJ DATA'!Q35 -> 364 | G35: ='[1]Tabel 4F NJ DATA'!R35 -> 44 | I35: ='[1]Tabel 4F NJ DATA'!T35 -> 2112
A36: ='[1]Tabel 4F NJ DATA'!L36 -> HA | C36: ='[1]Tabel 4F NJ DATA'!N36 -> 124 | D36: ='[1]Tabel 4F NJ DATA'!O36 -> 72 | E36: ='[1]Tabel 4F NJ DATA'!P36 -> 56 | F36: ='[1]Tabel 4F NJ DATA'!Q36 -> 141 | G36: ='[1]Tabel 4F NJ DATA'!R36 -> 34 | I36: ='[1]Tabel 4F NJ DATA'!T36 -> 427
A37: ='[1]Tabel 4F NJ DATA'!L37 -> HD | C37: ='[1]Tabel 4F NJ DATA'!N37 -> 57 | D37: ='[1]Tabel 4F NJ DATA'!O37 -> 48 | E37: ='[1]Tabel 4F NJ DATA'!P37 -> 68 | F37: ='[1]Tabel 4F NJ DATA'!Q37 -> 108 | G37: ='[1]Tabel 4F NJ DATA'!R37 -> 49 | I37: ='[1]Tabel 4F NJ DATA'!T37 -> 330
A38: ='[1]Tabel 4F NJ DATA'!L38 -> Komm. og Sprog | C38: ='[1]Tabel 4F NJ DATA'!N38 -> 61 | D38: ='[1]Tabel 4F NJ DATA'!O38 -> 100 | E38: ='[1]Tabel 4F NJ DATA'!P38 -> 103 | F38: ='[1]Tabel 4F NJ DATA'!Q38 -> 78 | G38: ='[1]Tabel 4F NJ DATA'!R38 -> 35 | I38: ='[1]Tabel 4F NJ DATA'!T38 -> 377
A39: ='[1]Tabel 4F NJ DATA'!L39 -> Bygningskonst. | C39: ='[1]Tabel 4F NJ DATA'!N39 -> 201 | D39: ='[1]Tabel 4F NJ DATA'!O39 -> 372 | E39: ='[1]Tabel 4F NJ DATA'!P39 -> 244 | F39: ='[1]Tabel 4F NJ DATA'!Q39 -> 82 | G39: ='[1]Tabel 4F NJ DATA'!R39 -> 22 | I39: ='[1]Tabel 4F NJ DATA'!T39 -> 921
A40: ='[1]Tabel 4F NJ DATA'!L40 -> Cand. IT. | C40: ='[1]Tabel 4F NJ DATA'!N40 -> 178 | D40: ='[1]Tabel 4F NJ DATA'!O40 -> 293 | E40: ='[1]Tabel 4F NJ DATA'!P40 -> 59 | F40: ='[1]Tabel 4F NJ DATA'!Q40 -> 6 | G40: ='[1]Tabel 4F NJ DATA'!R40 -> 1 | I40: ='[1]Tabel 4F NJ DATA'!T40 -> 537
A41: ='[1]Tabel 4F NJ DATA'!L41 -> Bac. Samf. | C41: ='[1]Tabel 4F NJ DATA'!N41 -> 14 | D41: ='[1]Tabel 4F NJ DATA'!O41 -> 16 | E41: ='[1]Tabel 4F NJ DATA'!P41 -> 24 | F41: ='[1]Tabel 4F NJ DATA'!Q41 -> 11 | G41: ='[1]Tabel 4F NJ DATA'!R41 -> 2 | I41: ='[1]Tabel 4F NJ DATA'!T41 -> 67
A42: ='[1]Tabel 4F NJ DATA'!L42 -> Bac. Hum. | C42: ='[1]Tabel 4F NJ DATA'!N42 -> 108 | D42: ='[1]Tabel 4F NJ DATA'!O42 -> 55 | E42: ='[1]Tabel 4F NJ DATA'!P42 -> 62 | F42: ='[1]Tabel 4F NJ DATA'!Q42 -> 43 | G42: ='[1]Tabel 4F NJ DATA'!R42 -> 10 | I42: ='[1]Tabel 4F NJ DATA'!T42 -> 278
A43: ='[1]Tabel 4F NJ DATA'!L43 -> Bac. Nat. | C43: ='[1]Tabel 4F NJ DATA'!N43 -> 127 | D43: ='[1]Tabel 4F NJ DATA'!O43 -> 86 | E43: ='[1]Tabel 4F NJ DATA'!P43 -> 35 | F43: ='[1]Tabel 4F NJ DATA'!Q43 -> 18 | G43: ='[1]Tabel 4F NJ DATA'!R43 -> 6 | I43: ='[1]Tabel 4F NJ DATA'!T43 -> 272
A44: ='[1]Tabel 4F NJ DATA'!L44 -> Andre | C44: ='[1]Tabel 4F NJ DATA'!N44 -> 175 | D44: ='[1]Tabel 4F NJ DATA'!O44 -> 414 | E44: ='[1]Tabel 4F NJ DATA'!P44 -> 257 | F44: ='[1]Tabel 4F NJ DATA'!Q44 -> 203 | G44: ='[1]Tabel 4F NJ DATA'!R44 -> 119 | I44: ='[1]Tabel 4F NJ DATA'!T44 -> 1168
A46: ='[1]Tabel 4F NJ DATA'!L46 -> Total | C46: ='[1]Tabel 4F NJ DATA'!N46 -> 4726 | D46: ='[1]Tabel 4F NJ DATA'!O46 -> 7651 | E46: ='[1]Tabel 4F NJ DATA'!P46 -> 5511 | F46: ='[1]Tabel 4F NJ DATA'!Q46 -> 4137 | G46: ='[1]Tabel 4F NJ DATA'!R46 -> 1404 | I46: ='[1]Tabel 4F NJ DATA'!T46 -> 23429
A48: ='[1]Tabel 4F NJ DATA'!L48 -> Ingeniører i alt | C48: ='[1]Tabel 4F NJ DATA'!N48 -> 890 | D48: ='[1]Tabel 4F NJ DATA'!O48 -> 1380 | E48: ='[1]Tabel 4F NJ DATA'!P48 -> 1333 | F48: ='[1]Tabel 4F NJ DATA'!Q48 -> 1379 | G48: ='[1]Tabel 4F NJ DATA'!R48 -> 391 | I48: ='[1]Tabel 4F NJ DATA'!T48 -> 5373
A49: ='[1]Tabel 4F NJ DATA'!L49 -> Magistre i alt | C49: ='[1]Tabel 4F NJ DATA'!N49 -> 645 | D49: ='[1]Tabel 4F NJ DATA'!O49 -> 1447 | E49: ='[1]Tabel 4F NJ DATA'!P49 -> 1329 | F49: ='[1]Tabel 4F NJ DATA'!Q49 -> 664 | G49: ='[1]Tabel 4F NJ DATA'!R49 -> 288 | I49: ='[1]Tabel 4F NJ DATA'!T49 -> 4373
A50: ='[1]Tabel 4F NJ DATA'!L50 -> DJØF'ere i alt | C50: ='[1]Tabel 4F NJ DATA'!N50 -> 1235 | D50: ='[1]Tabel 4F NJ DATA'!O50 -> 1817 | E50: ='[1]Tabel 4F NJ DATA'!P50 -> 1051 | F50: ='[1]Tabel 4F NJ DATA'!Q50 -> 878 | G50: ='[1]Tabel 4F NJ DATA'!R50 -> 166 | I50: ='[1]Tabel 4F NJ DATA'!T50 -> 5147
A57: ='[1]Tabel 4F NJ DATA'!L55 -> Morsø
C59: ='[1]Tabel 4F NJ DATA'!N57 -> Under 30 år | D59: ='[1]Tabel 4F NJ DATA'!O57 -> 30 - 39 år | E59: ='[1]Tabel 4F NJ DATA'!P57 -> 40 - 49 år | F59: ='[1]Tabel 4F NJ DATA'!Q57 -> 50 - 59 år | G59: ='[1]Tabel 4F NJ DATA'!R57 -> Over 60 år | I59: ='[1]Tabel 4F NJ DATA'!T57 -> I alt
A61: ='[1]Tabel 4F NJ DATA'!L59 -> Civ. ing. | C61: ='[1]Tabel 4F NJ DATA'!N59 -> 2 | D61: ='[1]Tabel 4F NJ DATA'!O59 -> 8 | E61: ='[1]Tabel 4F NJ DATA'!P59 -> 6 | F61: ='[1]Tabel 4F NJ DATA'!Q59 -> 6 | G61: ='[1]Tabel 4F NJ DATA'!R59 -> 0 | I61: ='[1]Tabel 4F NJ DATA'!T59 -> 22
A62: ='[1]Tabel 4F NJ DATA'!L60 -> Diplom ing. | C62: ='[1]Tabel 4F NJ DATA'!N60 -> 1 | D62: ='[1]Tabel 4F NJ DATA'!O60 -> 6 | E62: ='[1]Tabel 4F NJ DATA'!P60 -> 6 | F62: ='[1]Tabel 4F NJ DATA'!Q60 -> 15 | G62: ='[1]Tabel 4F NJ DATA'!R60 -> 0 | I62: ='[1]Tabel 4F NJ DATA'!T60 -> 28
A63: ='[1]Tabel 4F NJ DATA'!L61 -> Cand. Scient. Tek. | C63: ='[1]Tabel 4F NJ DATA'!N61 -> 2 | D63: ='[1]Tabel 4F NJ DATA'!O61 -> 1 | E63: ='[1]Tabel 4F NJ DATA'!P61 -> 0 | F63: ='[1]Tabel 4F NJ DATA'!Q61 -> 2 | G63: ='[1]Tabel 4F NJ DATA'!R61 -> 2 | I63: ='[1]Tabel 4F NJ DATA'!T61 -> 7
A64: ='[1]Tabel 4F NJ DATA'!L62 -> MA. Hum. | C64: ='[1]Tabel 4F NJ DATA'!N62 -> 2 | D64: ='[1]Tabel 4F NJ DATA'!O62 -> 10 | E64: ='[1]Tabel 4F NJ DATA'!P62 -> 8 | F64: ='[1]Tabel 4F NJ DATA'!Q62 -> 11 | G64: ='[1]Tabel 4F NJ DATA'!R62 -> 5 | I64: ='[1]Tabel 4F NJ DATA'!T62 -> 36
A65: ='[1]Tabel 4F NJ DATA'!L63 -> MA. Nat. | C65: ='[1]Tabel 4F NJ DATA'!N63 -> 0 | D65: ='[1]Tabel 4F NJ DATA'!O63 -> 7 | E65: ='[1]Tabel 4F NJ DATA'!P63 -> 7 | F65: ='[1]Tabel 4F NJ DATA'!Q63 -> 5 | G65: ='[1]Tabel 4F NJ DATA'!R63 -> 1 | I65: ='[1]Tabel 4F NJ DATA'!T63 -> 20
A66: ='[1]Tabel 4F NJ DATA'!L64 -> MA. Ph.d. | C66: ='[1]Tabel 4F NJ DATA'!N64 -> 0 | D66: ='[1]Tabel 4F NJ DATA'!O64 -> 2 | E66: ='[1]Tabel 4F NJ DATA'!P64 -> 2 | F66: ='[1]Tabel 4F NJ DATA'!Q64 -> 0 | G66: ='[1]Tabel 4F NJ DATA'!R64 -> 0 | I66: ='[1]Tabel 4F NJ DATA'!T64 -> 4
A67: ='[1]Tabel 4F NJ DATA'!L65 -> MA. Samf. | C67: ='[1]Tabel 4F NJ DATA'!N65 -> 1 | D67: ='[1]Tabel 4F NJ DATA'!O65 -> 1 | E67: ='[1]Tabel 4F NJ DATA'!P65 -> 0 | F67: ='[1]Tabel 4F NJ DATA'!Q65 -> 0 | G67: ='[1]Tabel 4F NJ DATA'!R65 -> 0 | I67: ='[1]Tabel 4F NJ DATA'!T65 -> 2
A68: ='[1]Tabel 4F NJ DATA'!L66 -> Øvrige Mag. | C68: ='[1]Tabel 4F NJ DATA'!N66 -> 1 | D68: ='[1]Tabel 4F NJ DATA'!O66 -> 0 | E68: ='[1]Tabel 4F NJ DATA'!P66 -> 0 | F68: ='[1]Tabel 4F NJ DATA'!Q66 -> 0 | G68: ='[1]Tabel 4F NJ DATA'!R66 -> 1 | I68: ='[1]Tabel 4F NJ DATA'!T66 -> 2
A69: ='[1]Tabel 4F NJ DATA'!L67 -> Agronom | C69: ='[1]Tabel 4F NJ DATA'!N67 -> 0 | D69: ='[1]Tabel 4F NJ DATA'!O67 -> 0 | E69: ='[1]Tabel 4F NJ DATA'!P67 -> 0 | F69: ='[1]Tabel 4F NJ DATA'!Q67 -> 1 | G69: ='[1]Tabel 4F NJ DATA'!R67 -> 2 | I69: ='[1]Tabel 4F NJ DATA'!T67 -> 3
A70: ='[1]Tabel 4F NJ DATA'!L68 -> Landsk. Arkt. | C70: ='[1]Tabel 4F NJ DATA'!N68 -> 0 | D70: ='[1]Tabel 4F NJ DATA'!O68 -> 2 | E70: ='[1]Tabel 4F NJ DATA'!P68 -> 0 | F70: ='[1]Tabel 4F NJ DATA'!Q68 -> 0 | G70: ='[1]Tabel 4F NJ DATA'!R68 -> 0 | I70: ='[1]Tabel 4F NJ DATA'!T68 -> 2
A71: ='[1]Tabel 4F NJ DATA'!L69 -> Hortonom | C71: ='[1]Tabel 4F NJ DATA'!N69 -> 0 | D71: ='[1]Tabel 4F NJ DATA'!O69 -> 0 | E71: ='[1]Tabel 4F NJ DATA'!P69 -> 0 | F71: ='[1]Tabel 4F NJ DATA'!Q69 -> 0 | G71: ='[1]Tabel 4F NJ DATA'!R69 -> 0 | I71: ='[1]Tabel 4F NJ DATA'!T69 -> 0
A72: ='[1]Tabel 4F NJ DATA'!L70 -> Forstkand. | C72: ='[1]Tabel 4F NJ DATA'!N70 -> 0 | D72: ='[1]Tabel 4F NJ DATA'!O70 -> 0 | E72: ='[1]Tabel 4F NJ DATA'!P70 -> 0 | F72: ='[1]Tabel 4F NJ DATA'!Q70 -> 0 | G72: ='[1]Tabel 4F NJ DATA'!R70 -> 0 | I72: ='[1]Tabel 4F NJ DATA'!T70 -> 0
A73: ='[1]Tabel 4F NJ DATA'!L71 -> Jordbrugsakad. | C73: ='[1]Tabel 4F NJ DATA'!N71 -> 0 | D73: ='[1]Tabel 4F NJ DATA'!O71 -> 2 | E73: ='[1]Tabel 4F NJ DATA'!P71 -> 0 | F73: ='[1]Tabel 4F NJ DATA'!Q71 -> 1 | G73: ='[1]Tabel 4F NJ DATA'!R71 -> 2 | I73: ='[1]Tabel 4F NJ DATA'!T71 -> 5
A74: ='[1]Tabel 4F NJ DATA'!L72 -> Mejeriing. | C74: ='[1]Tabel 4F NJ DATA'!N72 -> 0 | D74: ='[1]Tabel 4F NJ DATA'!O72 -> 0 | E74: ='[1]Tabel 4F NJ DATA'!P72 -> 0 | F74: ='[1]Tabel 4F NJ DATA'!Q72 -> 0 | G74: ='[1]Tabel 4F NJ DATA'!R72 -> 0 | I74: ='[1]Tabel 4F NJ DATA'!T72 -> 0
A75: ='[1]Tabel 4F NJ DATA'!L73 -> Levn.m.kand. | C75: ='[1]Tabel 4F NJ DATA'!N73 -> 1 | D75: ='[1]Tabel 4F NJ DATA'!O73 -> 0 | E75: ='[1]Tabel 4F NJ DATA'!P73 -> 0 | F75: ='[1]Tabel 4F NJ DATA'!Q73 -> 0 | G75: ='[1]Tabel 4F NJ DATA'!R73 -> 0 | I75: ='[1]Tabel 4F NJ DATA'!T73 -> 1
A76: ='[1]Tabel 4F NJ DATA'!L74 -> Dyrlæge | C76: ='[1]Tabel 4F NJ DATA'!N74 -> 1 | D76: ='[1]Tabel 4F NJ DATA'!O74 -> 1 | E76: ='[1]Tabel 4F NJ DATA'!P74 -> 1 | F76: ='[1]Tabel 4F NJ DATA'!Q74 -> 2 | G76: ='[1]Tabel 4F NJ DATA'!R74 -> 0 | I76: ='[1]Tabel 4F NJ DATA'!T74 -> 5
A77: ='[1]Tabel 4F NJ DATA'!L75 -> Farmaceut | C77: ='[1]Tabel 4F NJ DATA'!N75 -> 0 | D77: ='[1]Tabel 4F NJ DATA'!O75 -> 0 | E77: ='[1]Tabel 4F NJ DATA'!P75 -> 0 | F77: ='[1]Tabel 4F NJ DATA'!Q75 -> 0 | G77: ='[1]Tabel 4F NJ DATA'!R75 -> 0 | I77: ='[1]Tabel 4F NJ DATA'!T75 -> 0
A78: ='[1]Tabel 4F NJ DATA'!L76 -> Læge | C78: ='[1]Tabel 4F NJ DATA'!N76 -> 0 | D78: ='[1]Tabel 4F NJ DATA'!O76 -> 1 | E78: ='[1]Tabel 4F NJ DATA'!P76 -> 0 | F78: ='[1]Tabel 4F NJ DATA'!Q76 -> 0 | G78: ='[1]Tabel 4F NJ DATA'!R76 -> 0 | I78: ='[1]Tabel 4F NJ DATA'!T76 -> 1
A79: ='[1]Tabel 4F NJ DATA'!L77 -> Tandlæge | C79: ='[1]Tabel 4F NJ DATA'!N77 -> 1 | D79: ='[1]Tabel 4F NJ DATA'!O77 -> 0 | E79: ='[1]Tabel 4F NJ DATA'!P77 -> 0 | F79: ='[1]Tabel 4F NJ DATA'!Q77 -> 1 | G79: ='[1]Tabel 4F NJ DATA'!R77 -> 1 | I79: ='[1]Tabel 4F NJ DATA'!T77 -> 3
A80: ='[1]Tabel 4F NJ DATA'!L78 -> Arkitekt | C80: ='[1]Tabel 4F NJ DATA'!N78 -> 0 | D80: ='[1]Tabel 4F NJ DATA'!O78 -> 2 | E80: ='[1]Tabel 4F NJ DATA'!P78 -> 1 | F80: ='[1]Tabel 4F NJ DATA'!Q78 -> 1 | G80: ='[1]Tabel 4F NJ DATA'!R78 -> 0 | I80: ='[1]Tabel 4F NJ DATA'!T78 -> 4
A81: ='[1]Tabel 4F NJ DATA'!L79 -> Landinspek. | C81: ='[1]Tabel 4F NJ DATA'!N79 -> 0 | D81: ='[1]Tabel 4F NJ DATA'!O79 -> 1 | E81: ='[1]Tabel 4F NJ DATA'!P79 -> 0 | F81: ='[1]Tabel 4F NJ DATA'!Q79 -> 0 | G81: ='[1]Tabel 4F NJ DATA'!R79 -> 1 | I81: ='[1]Tabel 4F NJ DATA'!T79 -> 2
A82: ='[1]Tabel 4F NJ DATA'!L80 -> Bibliotekar | C82: ='[1]Tabel 4F NJ DATA'!N80 -> 0 | D82: ='[1]Tabel 4F NJ DATA'!O80 -> 4 | E82: ='[1]Tabel 4F NJ DATA'!P80 -> 4 | F82: ='[1]Tabel 4F NJ DATA'!Q80 -> 0 | G82: ='[1]Tabel 4F NJ DATA'!R80 -> 0 | I82: ='[1]Tabel 4F NJ DATA'!T80 -> 8
A83: ='[1]Tabel 4F NJ DATA'!L81 -> Musikudd. | C83: ='[1]Tabel 4F NJ DATA'!N81 -> 0 | D83: ='[1]Tabel 4F NJ DATA'!O81 -> 0 | E83: ='[1]Tabel 4F NJ DATA'!P81 -> 0 | F83: ='[1]Tabel 4F NJ DATA'!Q81 -> 0 | G83: ='[1]Tabel 4F NJ DATA'!R81 -> 0 | I83: ='[1]Tabel 4F NJ DATA'!T81 -> 0
A84: ='[1]Tabel 4F NJ DATA'!L82 -> Teolog | C84: ='[1]Tabel 4F NJ DATA'!N82 -> 0 | D84: ='[1]Tabel 4F NJ DATA'!O82 -> 0 | E84: ='[1]Tabel 4F NJ DATA'!P82 -> 0 | F84: ='[1]Tabel 4F NJ DATA'!Q82 -> 3 | G84: ='[1]Tabel 4F NJ DATA'!R82 -> 1 | I84: ='[1]Tabel 4F NJ DATA'!T82 -> 4
A85: ='[1]Tabel 4F NJ DATA'!L83 -> Psykolog | C85: ='[1]Tabel 4F NJ DATA'!N83 -> 0 | D85: ='[1]Tabel 4F NJ DATA'!O83 -> 0 | E85: ='[1]Tabel 4F NJ DATA'!P83 -> 2 | F85: ='[1]Tabel 4F NJ DATA'!Q83 -> 0 | G85: ='[1]Tabel 4F NJ DATA'!R83 -> 0 | I85: ='[1]Tabel 4F NJ DATA'!T83 -> 2
A86: ='[1]Tabel 4F NJ DATA'!L84 -> Jurist | C86: ='[1]Tabel 4F NJ DATA'!N84 -> 1 | D86: ='[1]Tabel 4F NJ DATA'!O84 -> 0 | E86: ='[1]Tabel 4F NJ DATA'!P84 -> 3 | F86: ='[1]Tabel 4F NJ DATA'!Q84 -> 1 | G86: ='[1]Tabel 4F NJ DATA'!R84 -> 1 | I86: ='[1]Tabel 4F NJ DATA'!T84 -> 6
A87: ='[1]Tabel 4F NJ DATA'!L85 -> Økonom | C87: ='[1]Tabel 4F NJ DATA'!N85 -> 0 | D87: ='[1]Tabel 4F NJ DATA'!O85 -> 0 | E87: ='[1]Tabel 4F NJ DATA'!P85 -> 0 | F87: ='[1]Tabel 4F NJ DATA'!Q85 -> 2 | G87: ='[1]Tabel 4F NJ DATA'!R85 -> 0 | I87: ='[1]Tabel 4F NJ DATA'!T85 -> 2
A88: ='[1]Tabel 4F NJ DATA'!L86 -> Samf. Adm. | C88: ='[1]Tabel 4F NJ DATA'!N86 -> 1 | D88: ='[1]Tabel 4F NJ DATA'!O86 -> 3 | E88: ='[1]Tabel 4F NJ DATA'!P86 -> 4 | F88: ='[1]Tabel 4F NJ DATA'!Q86 -> 0 | G88: ='[1]Tabel 4F NJ DATA'!R86 -> 0 | I88: ='[1]Tabel 4F NJ DATA'!T86 -> 8
A89: ='[1]Tabel 4F NJ DATA'!L87 -> Cand. Merc. | C89: ='[1]Tabel 4F NJ DATA'!N87 -> 3 | D89: ='[1]Tabel 4F NJ DATA'!O87 -> 4 | E89: ='[1]Tabel 4F NJ DATA'!P87 -> 6 | F89: ='[1]Tabel 4F NJ DATA'!Q87 -> 5 | G89: ='[1]Tabel 4F NJ DATA'!R87 -> 1 | I89: ='[1]Tabel 4F NJ DATA'!T87 -> 19
A90: ='[1]Tabel 4F NJ DATA'!L88 -> HA | C90: ='[1]Tabel 4F NJ DATA'!N88 -> 1 | D90: ='[1]Tabel 4F NJ DATA'!O88 -> 0 | E90: ='[1]Tabel 4F NJ DATA'!P88 -> 0 | F90: ='[1]Tabel 4F NJ DATA'!Q88 -> 6 | G90: ='[1]Tabel 4F NJ DATA'!R88 -> 0 | I90: ='[1]Tabel 4F NJ DATA'!T88 -> 7
A91: ='[1]Tabel 4F NJ DATA'!L89 -> HD | C91: ='[1]Tabel 4F NJ DATA'!N89 -> 0 | D91: ='[1]Tabel 4F NJ DATA'!O89 -> 2 | E91: ='[1]Tabel 4F NJ DATA'!P89 -> 1 | F91: ='[1]Tabel 4F NJ DATA'!Q89 -> 3 | G91: ='[1]Tabel 4F NJ DATA'!R89 -> 2 | I91: ='[1]Tabel 4F NJ DATA'!T89 -> 8
A92: ='[1]Tabel 4F NJ DATA'!L90 -> Komm. og Sprog | C92: ='[1]Tabel 4F NJ DATA'!N90 -> 1 | D92: ='[1]Tabel 4F NJ DATA'!O90 -> 0 | E92: ='[1]Tabel 4F NJ DATA'!P90 -> 2 | F92: ='[1]Tabel 4F NJ DATA'!Q90 -> 1 | G92: ='[1]Tabel 4F NJ DATA'!R90 -> 3 | I92: ='[1]Tabel 4F NJ DATA'!T90 -> 7
A93: ='[1]Tabel 4F NJ DATA'!L91 -> Bygningskonst. | C93: ='[1]Tabel 4F NJ DATA'!N91 -> 4 | D93: ='[1]Tabel 4F NJ DATA'!O91 -> 5 | E93: ='[1]Tabel 4F NJ DATA'!P91 -> 4 | F93: ='[1]Tabel 4F NJ DATA'!Q91 -> 1 | G93: ='[1]Tabel 4F NJ DATA'!R91 -> 1 | I93: ='[1]Tabel 4F NJ DATA'!T91 -> 15
A94: ='[1]Tabel 4F NJ DATA'!L92 -> Cand. IT. | C94: ='[1]Tabel 4F NJ DATA'!N92 -> 1 | D94: ='[1]Tabel 4F NJ DATA'!O92 -> 0 | E94: ='[1]Tabel 4F NJ DATA'!P92 -> 0 | F94: ='[1]Tabel 4F NJ DATA'!Q92 -> 0 | G94: ='[1]Tabel 4F NJ DATA'!R92 -> 0 | I94: ='[1]Tabel 4F NJ DATA'!T92 -> 1
A95: ='[1]Tabel 4F NJ DATA'!L93 -> Bac. Samf. | C95: ='[1]Tabel 4F NJ DATA'!N93 -> 0 | D95: ='[1]Tabel 4F NJ DATA'!O93 -> 0 | E95: ='[1]Tabel 4F NJ DATA'!P93 -> 0 | F95: ='[1]Tabel 4F NJ DATA'!Q93 -> 0 | G95: ='[1]Tabel 4F NJ DATA'!R93 -> 0 | I95: ='[1]Tabel 4F NJ DATA'!T93 -> 0
A96: ='[1]Tabel 4F NJ DATA'!L94 -> Bac. Hum. | C96: ='[1]Tabel 4F NJ DATA'!N94 -> 3 | D96: ='[1]Tabel 4F NJ DATA'!O94 -> 1 | E96: ='[1]Tabel 4F NJ DATA'!P94 -> 1 | F96: ='[1]Tabel 4F NJ DATA'!Q94 -> 0 | G96: ='[1]Tabel 4F NJ DATA'!R94 -> 0 | I96: ='[1]Tabel 4F NJ DATA'!T94 -> 5
A97: ='[1]Tabel 4F NJ DATA'!L95 -> Bac. Nat. | C97: ='[1]Tabel 4F NJ DATA'!N95 -> 0 | D97: ='[1]Tabel 4F NJ DATA'!O95 -> 1 | E97: ='[1]Tabel 4F NJ DATA'!P95 -> 0 | F97: ='[1]Tabel 4F NJ DATA'!Q95 -> 0 | G97: ='[1]Tabel 4F NJ DATA'!R95 -> 0 | I97: ='[1]Tabel 4F NJ DATA'!T95 -> 1
A98: ='[1]Tabel 4F NJ DATA'!L96 -> Andre | C98: ='[1]Tabel 4F NJ DATA'!N96 -> 3 | D98: ='[1]Tabel 4F NJ DATA'!O96 -> 3 | E98: ='[1]Tabel 4F NJ DATA'!P96 -> 3 | F98: ='[1]Tabel 4F NJ DATA'!Q96 -> 5 | G98: ='[1]Tabel 4F NJ DATA'!R96 -> 2 | I98: ='[1]Tabel 4F NJ DATA'!T96 -> 16
A100: ='[1]Tabel 4F NJ DATA'!L98 -> Total | C100: ='[1]Tabel 4F NJ DATA'!N98 -> 30 | D100: ='[1]Tabel 4F NJ DATA'!O98 -> 65 | E100: ='[1]Tabel 4F NJ DATA'!P98 -> 61 | F100: ='[1]Tabel 4F NJ DATA'!Q98 -> 71 | G100: ='[1]Tabel 4F NJ DATA'!R98 -> 24 | I100: ='[1]Tabel 4F NJ DATA'!T98 -> 251
A102: ='[1]Tabel 4F NJ DATA'!L100 -> Ingeniører i alt | C102: ='[1]Tabel 4F NJ DATA'!N100 -> 3 | D102: ='[1]Tabel 4F NJ DATA'!O100 -> 14 | E102: ='[1]Tabel 4F NJ DATA'!P100 -> 12 | F102: ='[1]Tabel 4F NJ DATA'!Q100 -> 21 | G102: ='[1]Tabel 4F NJ DATA'!R100 -> 0 | I102: ='[1]Tabel 4F NJ DATA'!T100 -> 50
A103: ='[1]Tabel 4F NJ DATA'!L101 -> Magistre i alt | C103: ='[1]Tabel 4F NJ DATA'!N101 -> 4 | D103: ='[1]Tabel 4F NJ DATA'!O101 -> 20 | E103: ='[1]Tabel 4F NJ DATA'!P101 -> 17 | F103: ='[1]Tabel 4F NJ DATA'!Q101 -> 16 | G103: ='[1]Tabel 4F NJ DATA'!R101 -> 7 | I103: ='[1]Tabel 4F NJ DATA'!T101 -> 64
A104: ='[1]Tabel 4F NJ DATA'!L102 -> DJØF'ere i alt | C104: ='[1]Tabel 4F NJ DATA'!N102 -> 6 | D104: ='[1]Tabel 4F NJ DATA'!O102 -> 7 | E104: ='[1]Tabel 4F NJ DATA'!P102 -> 13 | F104: ='[1]Tabel 4F NJ DATA'!Q102 -> 14 | G104: ='[1]Tabel 4F NJ DATA'!R102 -> 2 | I104: ='[1]Tabel 4F NJ DATA'!T102 -> 42
A111: ='[1]Tabel 4F NJ DATA'!L107 -> Thisted
C113: ='[1]Tabel 4F NJ DATA'!N109 -> Under 30 år | D113: ='[1]Tabel 4F NJ DATA'!O109 -> 30 - 39 år | E113: ='[1]Tabel 4F NJ DATA'!P109 -> 40 - 49 år | F113: ='[1]Tabel 4F NJ DATA'!Q109 -> 50 - 59 år | G113: ='[1]Tabel 4F NJ DATA'!R109 -> Over 60 år | I113: ='[1]Tabel 4F NJ DATA'!T109 -> I alt
A115: ='[1]Tabel 4F NJ DATA'!L111 -> Civ. ing. | C115: ='[1]Tabel 4F NJ DATA'!N111 -> 7 | D115: ='[1]Tabel 4F NJ DATA'!O111 -> 18 | E115: ='[1]Tabel 4F NJ DATA'!P111 -> 12 | F115: ='[1]Tabel 4F NJ DATA'!Q111 -> 4 | G115: ='[1]Tabel 4F NJ DATA'!R111 -> 7 | I115: ='[1]Tabel 4F NJ DATA'!T111 -> 48
A116: ='[1]Tabel 4F NJ DATA'!L112 -> Diplom ing. | C116: ='[1]Tabel 4F NJ DATA'!N112 -> 3 | D116: ='[1]Tabel 4F NJ DATA'!O112 -> 6 | E116: ='[1]Tabel 4F NJ DATA'!P112 -> 13 | F116: ='[1]Tabel 4F NJ DATA'!Q112 -> 28 | G116: ='[1]Tabel 4F NJ DATA'!R112 -> 10 | I116: ='[1]Tabel 4F NJ DATA'!T112 -> 60
A117: ='[1]Tabel 4F NJ DATA'!L113 -> Cand. Scient. Tek. | C117: ='[1]Tabel 4F NJ DATA'!N113 -> 5 | D117: ='[1]Tabel 4F NJ DATA'!O113 -> 23 | E117: ='[1]Tabel 4F NJ DATA'!P113 -> 7 | F117: ='[1]Tabel 4F NJ DATA'!Q113 -> 1 | G117: ='[1]Tabel 4F NJ DATA'!R113 -> 2 | I117: ='[1]Tabel 4F NJ DATA'!T113 -> 38
A118: ='[1]Tabel 4F NJ DATA'!L114 -> MA. Hum. | C118: ='[1]Tabel 4F NJ DATA'!N114 -> 5 | D118: ='[1]Tabel 4F NJ DATA'!O114 -> 48 | E118: ='[1]Tabel 4F NJ DATA'!P114 -> 46 | F118: ='[1]Tabel 4F NJ DATA'!Q114 -> 20 | G118: ='[1]Tabel 4F NJ DATA'!R114 -> 9 | I118: ='[1]Tabel 4F NJ DATA'!T114 -> 128
A119: ='[1]Tabel 4F NJ DATA'!L115 -> MA. Nat. | C119: ='[1]Tabel 4F NJ DATA'!N115 -> 0 | D119: ='[1]Tabel 4F NJ DATA'!O115 -> 9 | E119: ='[1]Tabel 4F NJ DATA'!P115 -> 11 | F119: ='[1]Tabel 4F NJ DATA'!Q115 -> 9 | G119: ='[1]Tabel 4F NJ DATA'!R115 -> 5 | I119: ='[1]Tabel 4F NJ DATA'!T115 -> 34
A120: ='[1]Tabel 4F NJ DATA'!L116 -> MA. Ph.d. | C120: ='[1]Tabel 4F NJ DATA'!N116 -> 0 | D120: ='[1]Tabel 4F NJ DATA'!O116 -> 0 | E120: ='[1]Tabel 4F NJ DATA'!P116 -> 0 | F120: ='[1]Tabel 4F NJ DATA'!Q116 -> 1 | G120: ='[1]Tabel 4F NJ DATA'!R116 -> 1 | I120: ='[1]Tabel 4F NJ DATA'!T116 -> 2
A121: ='[1]Tabel 4F NJ DATA'!L117 -> MA. Samf. | C121: ='[1]Tabel 4F NJ DATA'!N117 -> 0 | D121: ='[1]Tabel 4F NJ DATA'!O117 -> 12 | E121: ='[1]Tabel 4F NJ DATA'!P117 -> 0 | F121: ='[1]Tabel 4F NJ DATA'!Q117 -> 1 | G121: ='[1]Tabel 4F NJ DATA'!R117 -> 0 | I121: ='[1]Tabel 4F NJ DATA'!T117 -> 13
A122: ='[1]Tabel 4F NJ DATA'!L118 -> Øvrige Mag. | C122: ='[1]Tabel 4F NJ DATA'!N118 -> 1 | D122: ='[1]Tabel 4F NJ DATA'!O118 -> 1 | E122: ='[1]Tabel 4F NJ DATA'!P118 -> 4 | F122: ='[1]Tabel 4F NJ DATA'!Q118 -> 3 | G122: ='[1]Tabel 4F NJ DATA'!R118 -> 4 | I122: ='[1]Tabel 4F NJ DATA'!T118 -> 13
A123: ='[1]Tabel 4F NJ DATA'!L119 -> Agronom | C123: ='[1]Tabel 4F NJ DATA'!N119 -> 0 | D123: ='[1]Tabel 4F NJ DATA'!O119 -> 1 | E123: ='[1]Tabel 4F NJ DATA'!P119 -> 2 | F123: ='[1]Tabel 4F NJ DATA'!Q119 -> 6 | G123: ='[1]Tabel 4F NJ DATA'!R119 -> 1 | I123: ='[1]Tabel 4F NJ DATA'!T119 -> 10
A124: ='[1]Tabel 4F NJ DATA'!L120 -> Landsk. Arkt. | C124: ='[1]Tabel 4F NJ DATA'!N120 -> 0 | D124: ='[1]Tabel 4F NJ DATA'!O120 -> 1 | E124: ='[1]Tabel 4F NJ DATA'!P120 -> 0 | F124: ='[1]Tabel 4F NJ DATA'!Q120 -> 0 | G124: ='[1]Tabel 4F NJ DATA'!R120 -> 0 | I124: ='[1]Tabel 4F NJ DATA'!T120 -> 1
A125: ='[1]Tabel 4F NJ DATA'!L121 -> Hortonom | C125: ='[1]Tabel 4F NJ DATA'!N121 -> 0 | D125: ='[1]Tabel 4F NJ DATA'!O121 -> 0 | E125: ='[1]Tabel 4F NJ DATA'!P121 -> 0 | F125: ='[1]Tabel 4F NJ DATA'!Q121 -> 0 | G125: ='[1]Tabel 4F NJ DATA'!R121 -> 0 | I125: ='[1]Tabel 4F NJ DATA'!T121 -> 0
A126: ='[1]Tabel 4F NJ DATA'!L122 -> Forstkand. | C126: ='[1]Tabel 4F NJ DATA'!N122 -> 0 | D126: ='[1]Tabel 4F NJ DATA'!O122 -> 0 | E126: ='[1]Tabel 4F NJ DATA'!P122 -> 2 | F126: ='[1]Tabel 4F NJ DATA'!Q122 -> 0 | G126: ='[1]Tabel 4F NJ DATA'!R122 -> 1 | I126: ='[1]Tabel 4F NJ DATA'!T122 -> 3
A127: ='[1]Tabel 4F NJ DATA'!L123 -> Jordbrugsakad. | C127: ='[1]Tabel 4F NJ DATA'!N123 -> 0 | D127: ='[1]Tabel 4F NJ DATA'!O123 -> 2 | E127: ='[1]Tabel 4F NJ DATA'!P123 -> 4 | F127: ='[1]Tabel 4F NJ DATA'!Q123 -> 6 | G127: ='[1]Tabel 4F NJ DATA'!R123 -> 2 | I127: ='[1]Tabel 4F NJ DATA'!T123 -> 14
A128: ='[1]Tabel 4F NJ DATA'!L124 -> Mejeriing. | C128: ='[1]Tabel 4F NJ DATA'!N124 -> 1 | D128: ='[1]Tabel 4F NJ DATA'!O124 -> 0 | E128: ='[1]Tabel 4F NJ DATA'!P124 -> 0 | F128: ='[1]Tabel 4F NJ DATA'!Q124 -> 1 | G128: ='[1]Tabel 4F NJ DATA'!R124 -> 3 | I128: ='[1]Tabel 4F NJ DATA'!T124 -> 5
A129: ='[1]Tabel 4F NJ DATA'!L125 -> Levn.m.kand. | C129: ='[1]Tabel 4F NJ DATA'!N125 -> 0 | D129: ='[1]Tabel 4F NJ DATA'!O125 -> 0 | E129: ='[1]Tabel 4F NJ DATA'!P125 -> 0 | F129: ='[1]Tabel 4F NJ DATA'!Q125 -> 0 | G129: ='[1]Tabel 4F NJ DATA'!R125 -> 0 | I129: ='[1]Tabel 4F NJ DATA'!T125 -> 0
A130: ='[1]Tabel 4F NJ DATA'!L126 -> Dyrlæge | C130: ='[1]Tabel 4F NJ DATA'!N126 -> 5 | D130: ='[1]Tabel 4F NJ DATA'!O126 -> 6 | E130: ='[1]Tabel 4F NJ DATA'!P126 -> 4 | F130: ='[1]Tabel 4F NJ DATA'!Q126 -> 2 | G130: ='[1]Tabel 4F NJ DATA'!R126 -> 0 | I130: ='[1]Tabel 4F NJ DATA'!T126 -> 17
A131: ='[1]Tabel 4F NJ DATA'!L127 -> Farmaceut | C131: ='[1]Tabel 4F NJ DATA'!N127 -> 1 | D131: ='[1]Tabel 4F NJ DATA'!O127 -> 2 | E131: ='[1]Tabel 4F NJ DATA'!P127 -> 1 | F131: ='[1]Tabel 4F NJ DATA'!Q127 -> 1 | G131: ='[1]Tabel 4F NJ DATA'!R127 -> 2 | I131: ='[1]Tabel 4F NJ DATA'!T127 -> 7
A132: ='[1]Tabel 4F NJ DATA'!L128 -> Læge | C132: ='[1]Tabel 4F NJ DATA'!N128 -> 9 | D132: ='[1]Tabel 4F NJ DATA'!O128 -> 11 | E132: ='[1]Tabel 4F NJ DATA'!P128 -> 4 | F132: ='[1]Tabel 4F NJ DATA'!Q128 -> 5 | G132: ='[1]Tabel 4F NJ DATA'!R128 -> 1 | I132: ='[1]Tabel 4F NJ DATA'!T128 -> 30
A133: ='[1]Tabel 4F NJ DATA'!L129 -> Tandlæge | C133: ='[1]Tabel 4F NJ DATA'!N129 -> 1 | D133: ='[1]Tabel 4F NJ DATA'!O129 -> 2 | E133: ='[1]Tabel 4F NJ DATA'!P129 -> 0 | F133: ='[1]Tabel 4F NJ DATA'!Q129 -> 2 | G133: ='[1]Tabel 4F NJ DATA'!R129 -> 1 | I133: ='[1]Tabel 4F NJ DATA'!T129 -> 6
A134: ='[1]Tabel 4F NJ DATA'!L130 -> Arkitekt | C134: ='[1]Tabel 4F NJ DATA'!N130 -> 0 | D134: ='[1]Tabel 4F NJ DATA'!O130 -> 4 | E134: ='[1]Tabel 4F NJ DATA'!P130 -> 4 | F134: ='[1]Tabel 4F NJ DATA'!Q130 -> 3 | G134: ='[1]Tabel 4F NJ DATA'!R130 -> 1 | I134: ='[1]Tabel 4F NJ DATA'!T130 -> 12
A135: ='[1]Tabel 4F NJ DATA'!L131 -> Landinspek. | C135: ='[1]Tabel 4F NJ DATA'!N131 -> 0 | D135: ='[1]Tabel 4F NJ DATA'!O131 -> 0 | E135: ='[1]Tabel 4F NJ DATA'!P131 -> 1 | F135: ='[1]Tabel 4F NJ DATA'!Q131 -> 4 | G135: ='[1]Tabel 4F NJ DATA'!R131 -> 1 | I135: ='[1]Tabel 4F NJ DATA'!T131 -> 6
A136: ='[1]Tabel 4F NJ DATA'!L132 -> Bibliotekar | C136: ='[1]Tabel 4F NJ DATA'!N132 -> 0 | D136: ='[1]Tabel 4F NJ DATA'!O132 -> 4 | E136: ='[1]Tabel 4F NJ DATA'!P132 -> 3 | F136: ='[1]Tabel 4F NJ DATA'!Q132 -> 1 | G136: ='[1]Tabel 4F NJ DATA'!R132 -> 4 | I136: ='[1]Tabel 4F NJ DATA'!T132 -> 12
A137: ='[1]Tabel 4F NJ DATA'!L133 -> Musikudd. | C137: ='[1]Tabel 4F NJ DATA'!N133 -> 0 | D137: ='[1]Tabel 4F NJ DATA'!O133 -> 0 | E137: ='[1]Tabel 4F NJ DATA'!P133 -> 0 | F137: ='[1]Tabel 4F NJ DATA'!Q133 -> 3 | G137: ='[1]Tabel 4F NJ DATA'!R133 -> 1 | I137: ='[1]Tabel 4F NJ DATA'!T133 -> 4
A138: ='[1]Tabel 4F NJ DATA'!L134 -> Teolog | C138: ='[1]Tabel 4F NJ DATA'!N134 -> 1 | D138: ='[1]Tabel 4F NJ DATA'!O134 -> 1 | E138: ='[1]Tabel 4F NJ DATA'!P134 -> 2 | F138: ='[1]Tabel 4F NJ DATA'!Q134 -> 5 | G138: ='[1]Tabel 4F NJ DATA'!R134 -> 5 | I138: ='[1]Tabel 4F NJ DATA'!T134 -> 14
A139: ='[1]Tabel 4F NJ DATA'!L135 -> Psykolog | C139: ='[1]Tabel 4F NJ DATA'!N135 -> 4 | D139: ='[1]Tabel 4F NJ DATA'!O135 -> 3 | E139: ='[1]Tabel 4F NJ DATA'!P135 -> 8 | F139: ='[1]Tabel 4F NJ DATA'!Q135 -> 2 | G139: ='[1]Tabel 4F NJ DATA'!R135 -> 0 | I139: ='[1]Tabel 4F NJ DATA'!T135 -> 17
A140: ='[1]Tabel 4F NJ DATA'!L136 -> Jurist | C140: ='[1]Tabel 4F NJ DATA'!N136 -> 4 | D140: ='[1]Tabel 4F NJ DATA'!O136 -> 5 | E140: ='[1]Tabel 4F NJ DATA'!P136 -> 3 | F140: ='[1]Tabel 4F NJ DATA'!Q136 -> 3 | G140: ='[1]Tabel 4F NJ DATA'!R136 -> 1 | I140: ='[1]Tabel 4F NJ DATA'!T136 -> 16
A141: ='[1]Tabel 4F NJ DATA'!L137 -> Økonom | C141: ='[1]Tabel 4F NJ DATA'!N137 -> 1 | D141: ='[1]Tabel 4F NJ DATA'!O137 -> 4 | E141: ='[1]Tabel 4F NJ DATA'!P137 -> 3 | F141: ='[1]Tabel 4F NJ DATA'!Q137 -> 6 | G141: ='[1]Tabel 4F NJ DATA'!R137 -> 0 | I141: ='[1]Tabel 4F NJ DATA'!T137 -> 14
A142: ='[1]Tabel 4F NJ DATA'!L138 -> Samf. Adm. | C142: ='[1]Tabel 4F NJ DATA'!N138 -> 8 | D142: ='[1]Tabel 4F NJ DATA'!O138 -> 17 | E142: ='[1]Tabel 4F NJ DATA'!P138 -> 7 | F142: ='[1]Tabel 4F NJ DATA'!Q138 -> 4 | G142: ='[1]Tabel 4F NJ DATA'!R138 -> 3 | I142: ='[1]Tabel 4F NJ DATA'!T138 -> 39
A143: ='[1]Tabel 4F NJ DATA'!L139 -> Cand. Merc. | C143: ='[1]Tabel 4F NJ DATA'!N139 -> 4 | D143: ='[1]Tabel 4F NJ DATA'!O139 -> 13 | E143: ='[1]Tabel 4F NJ DATA'!P139 -> 10 | F143: ='[1]Tabel 4F NJ DATA'!Q139 -> 12 | G143: ='[1]Tabel 4F NJ DATA'!R139 -> 1 | I143: ='[1]Tabel 4F NJ DATA'!T139 -> 40
A144: ='[1]Tabel 4F NJ DATA'!L140 -> HA | C144: ='[1]Tabel 4F NJ DATA'!N140 -> 1 | D144: ='[1]Tabel 4F NJ DATA'!O140 -> 3 | E144: ='[1]Tabel 4F NJ DATA'!P140 -> 2 | F144: ='[1]Tabel 4F NJ DATA'!Q140 -> 7 | G144: ='[1]Tabel 4F NJ DATA'!R140 -> 0 | I144: ='[1]Tabel 4F NJ DATA'!T140 -> 13
A145: ='[1]Tabel 4F NJ DATA'!L141 -> HD | C145: ='[1]Tabel 4F NJ DATA'!N141 -> 2 | D145: ='[1]Tabel 4F NJ DATA'!O141 -> 1 | E145: ='[1]Tabel 4F NJ DATA'!P141 -> 2 | F145: ='[1]Tabel 4F NJ DATA'!Q141 -> 7 | G145: ='[1]Tabel 4F NJ DATA'!R141 -> 3 | I145: ='[1]Tabel 4F NJ DATA'!T141 -> 15
A146: ='[1]Tabel 4F NJ DATA'!L142 -> Komm. og Sprog | C146: ='[1]Tabel 4F NJ DATA'!N142 -> 1 | D146: ='[1]Tabel 4F NJ DATA'!O142 -> 3 | E146: ='[1]Tabel 4F NJ DATA'!P142 -> 4 | F146: ='[1]Tabel 4F NJ DATA'!Q142 -> 2 | G146: ='[1]Tabel 4F NJ DATA'!R142 -> 0 | I146: ='[1]Tabel 4F NJ DATA'!T142 -> 10
A147: ='[1]Tabel 4F NJ DATA'!L143 -> Bygningskonst. | C147: ='[1]Tabel 4F NJ DATA'!N143 -> 8 | D147: ='[1]Tabel 4F NJ DATA'!O143 -> 13 | E147: ='[1]Tabel 4F NJ DATA'!P143 -> 10 | F147: ='[1]Tabel 4F NJ DATA'!Q143 -> 3 | G147: ='[1]Tabel 4F NJ DATA'!R143 -> 5 | I147: ='[1]Tabel 4F NJ DATA'!T143 -> 39
A148: ='[1]Tabel 4F NJ DATA'!L144 -> Cand. IT. | C148: ='[1]Tabel 4F NJ DATA'!N144 -> 1 | D148: ='[1]Tabel 4F NJ DATA'!O144 -> 8 | E148: ='[1]Tabel 4F NJ DATA'!P144 -> 0 | F148: ='[1]Tabel 4F NJ DATA'!Q144 -> 0 | G148: ='[1]Tabel 4F NJ DATA'!R144 -> 1 | I148: ='[1]Tabel 4F NJ DATA'!T144 -> 10
A149: ='[1]Tabel 4F NJ DATA'!L145 -> Bac. Samf. | C149: ='[1]Tabel 4F NJ DATA'!N145 -> 0 | D149: ='[1]Tabel 4F NJ DATA'!O145 -> 0 | E149: ='[1]Tabel 4F NJ DATA'!P145 -> 2 | F149: ='[1]Tabel 4F NJ DATA'!Q145 -> 1 | G149: ='[1]Tabel 4F NJ DATA'!R145 -> 0 | I149: ='[1]Tabel 4F NJ DATA'!T145 -> 3
A150: ='[1]Tabel 4F NJ DATA'!L146 -> Bac. Hum. | C150: ='[1]Tabel 4F NJ DATA'!N146 -> 4 | D150: ='[1]Tabel 4F NJ DATA'!O146 -> 3 | E150: ='[1]Tabel 4F NJ DATA'!P146 -> 1 | F150: ='[1]Tabel 4F NJ DATA'!Q146 -> 3 | G150: ='[1]Tabel 4F NJ DATA'!R146 -> 1 | I150: ='[1]Tabel 4F NJ DATA'!T146 -> 12
A151: ='[1]Tabel 4F NJ DATA'!L147 -> Bac. Nat. | C151: ='[1]Tabel 4F NJ DATA'!N147 -> 1 | D151: ='[1]Tabel 4F NJ DATA'!O147 -> 2 | E151: ='[1]Tabel 4F NJ DATA'!P147 -> 1 | F151: ='[1]Tabel 4F NJ DATA'!Q147 -> 1 | G151: ='[1]Tabel 4F NJ DATA'!R147 -> 0 | I151: ='[1]Tabel 4F NJ DATA'!T147 -> 5
A152: ='[1]Tabel 4F NJ DATA'!L148 -> Andre | C152: ='[1]Tabel 4F NJ DATA'!N148 -> 3 | D152: ='[1]Tabel 4F NJ DATA'!O148 -> 12 | E152: ='[1]Tabel 4F NJ DATA'!P148 -> 8 | F152: ='[1]Tabel 4F NJ DATA'!Q148 -> 10 | G152: ='[1]Tabel 4F NJ DATA'!R148 -> 7 | I152: ='[1]Tabel 4F NJ DATA'!T148 -> 40
A154: ='[1]Tabel 4F NJ DATA'!L150 -> Total | C154: ='[1]Tabel 4F NJ DATA'!N150 -> 81 | D154: ='[1]Tabel 4F NJ DATA'!O150 -> 236 | E154: ='[1]Tabel 4F NJ DATA'!P150 -> 177 | F154: ='[1]Tabel 4F NJ DATA'!Q150 -> 161 | G154: ='[1]Tabel 4F NJ DATA'!R150 -> 81 | I154: ='[1]Tabel 4F NJ DATA'!T150 -> 736
A156: ='[1]Tabel 4F NJ DATA'!L152 -> Ingeniører i alt | C156: ='[1]Tabel 4F NJ DATA'!N152 -> 10 | D156: ='[1]Tabel 4F NJ DATA'!O152 -> 24 | E156: ='[1]Tabel 4F NJ DATA'!P152 -> 25 | F156: ='[1]Tabel 4F NJ DATA'!Q152 -> 32 | G156: ='[1]Tabel 4F NJ DATA'!R152 -> 17 | I156: ='[1]Tabel 4F NJ DATA'!T152 -> 108
A157: ='[1]Tabel 4F NJ DATA'!L153 -> Magistre i alt | C157: ='[1]Tabel 4F NJ DATA'!N153 -> 6 | D157: ='[1]Tabel 4F NJ DATA'!O153 -> 70 | E157: ='[1]Tabel 4F NJ DATA'!P153 -> 61 | F157: ='[1]Tabel 4F NJ DATA'!Q153 -> 34 | G157: ='[1]Tabel 4F NJ DATA'!R153 -> 19 | I157: ='[1]Tabel 4F NJ DATA'!T153 -> 190
A158: ='[1]Tabel 4F NJ DATA'!L154 -> DJØF'ere i alt | C158: ='[1]Tabel 4F NJ DATA'!N154 -> 18 | D158: ='[1]Tabel 4F NJ DATA'!O154 -> 42 | E158: ='[1]Tabel 4F NJ DATA'!P154 -> 25 | F158: ='[1]Tabel 4F NJ DATA'!Q154 -> 32 | G158: ='[1]Tabel 4F NJ DATA'!R154 -> 5 | I158: ='[1]Tabel 4F NJ DATA'!T154 -> 122
A165: ='[1]Tabel 4F NJ DATA'!L159 -> Brønderslev
C167: ='[1]Tabel 4F NJ DATA'!N161 -> Under 30 år | D167: ='[1]Tabel 4F NJ DATA'!O161 -> 30 - 39 år | E167: ='[1]Tabel 4F NJ DATA'!P161 -> 40 - 49 år | F167: ='[1]Tabel 4F NJ DATA'!Q161 -> 50 - 59 år | G167: ='[1]Tabel 4F NJ DATA'!R161 -> Over 60 år | I167: ='[1]Tabel 4F NJ DATA'!T161 -> I alt
A169: ='[1]Tabel 4F NJ DATA'!L163 -> Civ. ing. | C169: ='[1]Tabel 4F NJ DATA'!N163 -> 12 | D169: ='[1]Tabel 4F NJ DATA'!O163 -> 46 | E169: ='[1]Tabel 4F NJ DATA'!P163 -> 57 | F169: ='[1]Tabel 4F NJ DATA'!Q163 -> 31 | G169: ='[1]Tabel 4F NJ DATA'!R163 -> 6 | I169: ='[1]Tabel 4F NJ DATA'!T163 -> 152
A170: ='[1]Tabel 4F NJ DATA'!L164 -> Diplom ing. | C170: ='[1]Tabel 4F NJ DATA'!N164 -> 4 | D170: ='[1]Tabel 4F NJ DATA'!O164 -> 3 | E170: ='[1]Tabel 4F NJ DATA'!P164 -> 19 | F170: ='[1]Tabel 4F NJ DATA'!Q164 -> 41 | G170: ='[1]Tabel 4F NJ DATA'!R164 -> 8 | I170: ='[1]Tabel 4F NJ DATA'!T164 -> 75
A171: ='[1]Tabel 4F NJ DATA'!L165 -> Cand. Scient. Tek. | C171: ='[1]Tabel 4F NJ DATA'!N165 -> 15 | D171: ='[1]Tabel 4F NJ DATA'!O165 -> 30 | E171: ='[1]Tabel 4F NJ DATA'!P165 -> 8 | F171: ='[1]Tabel 4F NJ DATA'!Q165 -> 4 | G171: ='[1]Tabel 4F NJ DATA'!R165 -> 0 | I171: ='[1]Tabel 4F NJ DATA'!T165 -> 57
A172: ='[1]Tabel 4F NJ DATA'!L166 -> MA. Hum. | C172: ='[1]Tabel 4F NJ DATA'!N166 -> 16 | D172: ='[1]Tabel 4F NJ DATA'!O166 -> 39 | E172: ='[1]Tabel 4F NJ DATA'!P166 -> 40 | F172: ='[1]Tabel 4F NJ DATA'!Q166 -> 12 | G172: ='[1]Tabel 4F NJ DATA'!R166 -> 10 | I172: ='[1]Tabel 4F NJ DATA'!T166 -> 117
A173: ='[1]Tabel 4F NJ DATA'!L167 -> MA. Nat. | C173: ='[1]Tabel 4F NJ DATA'!N167 -> 4 | D173: ='[1]Tabel 4F NJ DATA'!O167 -> 6 | E173: ='[1]Tabel 4F NJ DATA'!P167 -> 8 | F173: ='[1]Tabel 4F NJ DATA'!Q167 -> 10 | G173: ='[1]Tabel 4F NJ DATA'!R167 -> 3 | I173: ='[1]Tabel 4F NJ DATA'!T167 -> 31
A174: ='[1]Tabel 4F NJ DATA'!L168 -> MA. Ph.d. | C174: ='[1]Tabel 4F NJ DATA'!N168 -> 0 | D174: ='[1]Tabel 4F NJ DATA'!O168 -> 0 | E174: ='[1]Tabel 4F NJ DATA'!P168 -> 1 | F174: ='[1]Tabel 4F NJ DATA'!Q168 -> 0 | G174: ='[1]Tabel 4F NJ DATA'!R168 -> 0 | I174: ='[1]Tabel 4F NJ DATA'!T168 -> 1
A175: ='[1]Tabel 4F NJ DATA'!L169 -> MA. Samf. | C175: ='[1]Tabel 4F NJ DATA'!N169 -> 1 | D175: ='[1]Tabel 4F NJ DATA'!O169 -> 7 | E175: ='[1]Tabel 4F NJ DATA'!P169 -> 0 | F175: ='[1]Tabel 4F NJ DATA'!Q169 -> 1 | G175: ='[1]Tabel 4F NJ DATA'!R169 -> 0 | I175: ='[1]Tabel 4F NJ DATA'!T169 -> 9
A176: ='[1]Tabel 4F NJ DATA'!L170 -> Øvrige Mag. | C176: ='[1]Tabel 4F NJ DATA'!N170 -> 0 | D176: ='[1]Tabel 4F NJ DATA'!O170 -> 1 | E176: ='[1]Tabel 4F NJ DATA'!P170 -> 4 | F176: ='[1]Tabel 4F NJ DATA'!Q170 -> 6 | G176: ='[1]Tabel 4F NJ DATA'!R170 -> 1 | I176: ='[1]Tabel 4F NJ DATA'!T170 -> 12
A177: ='[1]Tabel 4F NJ DATA'!L171 -> Agronom | C177: ='[1]Tabel 4F NJ DATA'!N171 -> 0 | D177: ='[1]Tabel 4F NJ DATA'!O171 -> 1 | E177: ='[1]Tabel 4F NJ DATA'!P171 -> 4 | F177: ='[1]Tabel 4F NJ DATA'!Q171 -> 5 | G177: ='[1]Tabel 4F NJ DATA'!R171 -> 0 | I177: ='[1]Tabel 4F NJ DATA'!T171 -> 10
A178: ='[1]Tabel 4F NJ DATA'!L172 -> Landsk. Arkt. | C178: ='[1]Tabel 4F NJ DATA'!N172 -> 0 | D178: ='[1]Tabel 4F NJ DATA'!O172 -> 0 | E178: ='[1]Tabel 4F NJ DATA'!P172 -> 1 | F178: ='[1]Tabel 4F NJ DATA'!Q172 -> 0 | G178: ='[1]Tabel 4F NJ DATA'!R172 -> 0 | I178: ='[1]Tabel 4F NJ DATA'!T172 -> 1
A179: ='[1]Tabel 4F NJ DATA'!L173 -> Hortonom | C179: ='[1]Tabel 4F NJ DATA'!N173 -> 0 | D179: ='[1]Tabel 4F NJ DATA'!O173 -> 0 | E179: ='[1]Tabel 4F NJ DATA'!P173 -> 0 | F179: ='[1]Tabel 4F NJ DATA'!Q173 -> 0 | G179: ='[1]Tabel 4F NJ DATA'!R173 -> 0 | I179: ='[1]Tabel 4F NJ DATA'!T173 -> 0
A180: ='[1]Tabel 4F NJ DATA'!L174 -> Forstkand. | C180: ='[1]Tabel 4F NJ DATA'!N174 -> 0 | D180: ='[1]Tabel 4F NJ DATA'!O174 -> 1 | E180: ='[1]Tabel 4F NJ DATA'!P174 -> 0 | F180: ='[1]Tabel 4F NJ DATA'!Q174 -> 0 | G180: ='[1]Tabel 4F NJ DATA'!R174 -> 0 | I180: ='[1]Tabel 4F NJ DATA'!T174 -> 1
A181: ='[1]Tabel 4F NJ DATA'!L175 -> Jordbrugsakad. | C181: ='[1]Tabel 4F NJ DATA'!N175 -> 0 | D181: ='[1]Tabel 4F NJ DATA'!O175 -> 2 | E181: ='[1]Tabel 4F NJ DATA'!P175 -> 5 | F181: ='[1]Tabel 4F NJ DATA'!Q175 -> 5 | G181: ='[1]Tabel 4F NJ DATA'!R175 -> 0 | I181: ='[1]Tabel 4F NJ DATA'!T175 -> 12
A182: ='[1]Tabel 4F NJ DATA'!L176 -> Mejeriing. | C182: ='[1]Tabel 4F NJ DATA'!N176 -> 0 | D182: ='[1]Tabel 4F NJ DATA'!O176 -> 0 | E182: ='[1]Tabel 4F NJ DATA'!P176 -> 0 | F182: ='[1]Tabel 4F NJ DATA'!Q176 -> 1 | G182: ='[1]Tabel 4F NJ DATA'!R176 -> 0 | I182: ='[1]Tabel 4F NJ DATA'!T176 -> 1
A183: ='[1]Tabel 4F NJ DATA'!L177 -> Levn.m.kand. | C183: ='[1]Tabel 4F NJ DATA'!N177 -> 0 | D183: ='[1]Tabel 4F NJ DATA'!O177 -> 0 | E183: ='[1]Tabel 4F NJ DATA'!P177 -> 0 | F183: ='[1]Tabel 4F NJ DATA'!Q177 -> 0 | G183: ='[1]Tabel 4F NJ DATA'!R177 -> 0 | I183: ='[1]Tabel 4F NJ DATA'!T177 -> 0
A184: ='[1]Tabel 4F NJ DATA'!L178 -> Dyrlæge | C184: ='[1]Tabel 4F NJ DATA'!N178 -> 3 | D184: ='[1]Tabel 4F NJ DATA'!O178 -> 5 | E184: ='[1]Tabel 4F NJ DATA'!P178 -> 5 | F184: ='[1]Tabel 4F NJ DATA'!Q178 -> 4 | G184: ='[1]Tabel 4F NJ DATA'!R178 -> 0 | I184: ='[1]Tabel 4F NJ DATA'!T178 -> 17
A185: ='[1]Tabel 4F NJ DATA'!L179 -> Farmaceut | C185: ='[1]Tabel 4F NJ DATA'!N179 -> 2 | D185: ='[1]Tabel 4F NJ DATA'!O179 -> 2 | E185: ='[1]Tabel 4F NJ DATA'!P179 -> 1 | F185: ='[1]Tabel 4F NJ DATA'!Q179 -> 1 | G185: ='[1]Tabel 4F NJ DATA'!R179 -> 0 | I185: ='[1]Tabel 4F NJ DATA'!T179 -> 6
A186: ='[1]Tabel 4F NJ DATA'!L180 -> Læge | C186: ='[1]Tabel 4F NJ DATA'!N180 -> 0 | D186: ='[1]Tabel 4F NJ DATA'!O180 -> 5 | E186: ='[1]Tabel 4F NJ DATA'!P180 -> 6 | F186: ='[1]Tabel 4F NJ DATA'!Q180 -> 6 | G186: ='[1]Tabel 4F NJ DATA'!R180 -> 5 | I186: ='[1]Tabel 4F NJ DATA'!T180 -> 22
A187: ='[1]Tabel 4F NJ DATA'!L181 -> Tandlæge | C187: ='[1]Tabel 4F NJ DATA'!N181 -> 0 | D187: ='[1]Tabel 4F NJ DATA'!O181 -> 2 | E187: ='[1]Tabel 4F NJ DATA'!P181 -> 2 | F187: ='[1]Tabel 4F NJ DATA'!Q181 -> 0 | G187: ='[1]Tabel 4F NJ DATA'!R181 -> 1 | I187: ='[1]Tabel 4F NJ DATA'!T181 -> 5
A188: ='[1]Tabel 4F NJ DATA'!L182 -> Arkitekt | C188: ='[1]Tabel 4F NJ DATA'!N182 -> 0 | D188: ='[1]Tabel 4F NJ DATA'!O182 -> 0 | E188: ='[1]Tabel 4F NJ DATA'!P182 -> 0 | F188: ='[1]Tabel 4F NJ DATA'!Q182 -> 0 | G188: ='[1]Tabel 4F NJ DATA'!R182 -> 1 | I188: ='[1]Tabel 4F NJ DATA'!T182 -> 1
A189: ='[1]Tabel 4F NJ DATA'!L183 -> Landinspek. | C189: ='[1]Tabel 4F NJ DATA'!N183 -> 0 | D189: ='[1]Tabel 4F NJ DATA'!O183 -> 4 | E189: ='[1]Tabel 4F NJ DATA'!P183 -> 4 | F189: ='[1]Tabel 4F NJ DATA'!Q183 -> 3 | G189: ='[1]Tabel 4F NJ DATA'!R183 -> 0 | I189: ='[1]Tabel 4F NJ DATA'!T183 -> 11
A190: ='[1]Tabel 4F NJ DATA'!L184 -> Bibliotekar | C190: ='[1]Tabel 4F NJ DATA'!N184 -> 0 | D190: ='[1]Tabel 4F NJ DATA'!O184 -> 4 | E190: ='[1]Tabel 4F NJ DATA'!P184 -> 2 | F190: ='[1]Tabel 4F NJ DATA'!Q184 -> 4 | G190: ='[1]Tabel 4F NJ DATA'!R184 -> 5 | I190: ='[1]Tabel 4F NJ DATA'!T184 -> 15
A191: ='[1]Tabel 4F NJ DATA'!L185 -> Musikudd. | C191: ='[1]Tabel 4F NJ DATA'!N185 -> 0 | D191: ='[1]Tabel 4F NJ DATA'!O185 -> 0 | E191: ='[1]Tabel 4F NJ DATA'!P185 -> 0 | F191: ='[1]Tabel 4F NJ DATA'!Q185 -> 2 | G191: ='[1]Tabel 4F NJ DATA'!R185 -> 4 | I191: ='[1]Tabel 4F NJ DATA'!T185 -> 6
A192: ='[1]Tabel 4F NJ DATA'!L186 -> Teolog | C192: ='[1]Tabel 4F NJ DATA'!N186 -> 0 | D192: ='[1]Tabel 4F NJ DATA'!O186 -> 2 | E192: ='[1]Tabel 4F NJ DATA'!P186 -> 3 | F192: ='[1]Tabel 4F NJ DATA'!Q186 -> 1 | G192: ='[1]Tabel 4F NJ DATA'!R186 -> 2 | I192: ='[1]Tabel 4F NJ DATA'!T186 -> 8
A193: ='[1]Tabel 4F NJ DATA'!L187 -> Psykolog | C193: ='[1]Tabel 4F NJ DATA'!N187 -> 4 | D193: ='[1]Tabel 4F NJ DATA'!O187 -> 14 | E193: ='[1]Tabel 4F NJ DATA'!P187 -> 5 | F193: ='[1]Tabel 4F NJ DATA'!Q187 -> 3 | G193: ='[1]Tabel 4F NJ DATA'!R187 -> 0 | I193: ='[1]Tabel 4F NJ DATA'!T187 -> 26
A194: ='[1]Tabel 4F NJ DATA'!L188 -> Jurist | C194: ='[1]Tabel 4F NJ DATA'!N188 -> 6 | D194: ='[1]Tabel 4F NJ DATA'!O188 -> 16 | E194: ='[1]Tabel 4F NJ DATA'!P188 -> 3 | F194: ='[1]Tabel 4F NJ DATA'!Q188 -> 5 | G194: ='[1]Tabel 4F NJ DATA'!R188 -> 1 | I194: ='[1]Tabel 4F NJ DATA'!T188 -> 31
A195: ='[1]Tabel 4F NJ DATA'!L189 -> Økonom | C195: ='[1]Tabel 4F NJ DATA'!N189 -> 2 | D195: ='[1]Tabel 4F NJ DATA'!O189 -> 4 | E195: ='[1]Tabel 4F NJ DATA'!P189 -> 2 | F195: ='[1]Tabel 4F NJ DATA'!Q189 -> 7 | G195: ='[1]Tabel 4F NJ DATA'!R189 -> 0 | I195: ='[1]Tabel 4F NJ DATA'!T189 -> 15
A196: ='[1]Tabel 4F NJ DATA'!L190 -> Samf. Adm. | C196: ='[1]Tabel 4F NJ DATA'!N190 -> 4 | D196: ='[1]Tabel 4F NJ DATA'!O190 -> 21 | E196: ='[1]Tabel 4F NJ DATA'!P190 -> 11 | F196: ='[1]Tabel 4F NJ DATA'!Q190 -> 7 | G196: ='[1]Tabel 4F NJ DATA'!R190 -> 1 | I196: ='[1]Tabel 4F NJ DATA'!T190 -> 44
A197: ='[1]Tabel 4F NJ DATA'!L191 -> Cand. Merc. | C197: ='[1]Tabel 4F NJ DATA'!N191 -> 20 | D197: ='[1]Tabel 4F NJ DATA'!O191 -> 33 | E197: ='[1]Tabel 4F NJ DATA'!P191 -> 19 | F197: ='[1]Tabel 4F NJ DATA'!Q191 -> 23 | G197: ='[1]Tabel 4F NJ DATA'!R191 -> 3 | I197: ='[1]Tabel 4F NJ DATA'!T191 -> 98
A198: ='[1]Tabel 4F NJ DATA'!L192 -> HA | C198: ='[1]Tabel 4F NJ DATA'!N192 -> 0 | D198: ='[1]Tabel 4F NJ DATA'!O192 -> 3 | E198: ='[1]Tabel 4F NJ DATA'!P192 -> 6 | F198: ='[1]Tabel 4F NJ DATA'!Q192 -> 7 | G198: ='[1]Tabel 4F NJ DATA'!R192 -> 0 | I198: ='[1]Tabel 4F NJ DATA'!T192 -> 16
A199: ='[1]Tabel 4F NJ DATA'!L193 -> HD | C199: ='[1]Tabel 4F NJ DATA'!N193 -> 1 | D199: ='[1]Tabel 4F NJ DATA'!O193 -> 2 | E199: ='[1]Tabel 4F NJ DATA'!P193 -> 3 | F199: ='[1]Tabel 4F NJ DATA'!Q193 -> 8 | G199: ='[1]Tabel 4F NJ DATA'!R193 -> 5 | I199: ='[1]Tabel 4F NJ DATA'!T193 -> 19
A200: ='[1]Tabel 4F NJ DATA'!L194 -> Komm. og Sprog | C200: ='[1]Tabel 4F NJ DATA'!N194 -> 4 | D200: ='[1]Tabel 4F NJ DATA'!O194 -> 4 | E200: ='[1]Tabel 4F NJ DATA'!P194 -> 4 | F200: ='[1]Tabel 4F NJ DATA'!Q194 -> 8 | G200: ='[1]Tabel 4F NJ DATA'!R194 -> 1 | I200: ='[1]Tabel 4F NJ DATA'!T194 -> 21
A201: ='[1]Tabel 4F NJ DATA'!L195 -> Bygningskonst. | C201: ='[1]Tabel 4F NJ DATA'!N195 -> 9 | D201: ='[1]Tabel 4F NJ DATA'!O195 -> 18 | E201: ='[1]Tabel 4F NJ DATA'!P195 -> 19 | F201: ='[1]Tabel 4F NJ DATA'!Q195 -> 5 | G201: ='[1]Tabel 4F NJ DATA'!R195 -> 0 | I201: ='[1]Tabel 4F NJ DATA'!T195 -> 51
A202: ='[1]Tabel 4F NJ DATA'!L196 -> Cand. IT. | C202: ='[1]Tabel 4F NJ DATA'!N196 -> 1 | D202: ='[1]Tabel 4F NJ DATA'!O196 -> 8 | E202: ='[1]Tabel 4F NJ DATA'!P196 -> 1 | F202: ='[1]Tabel 4F NJ DATA'!Q196 -> 0 | G202: ='[1]Tabel 4F NJ DATA'!R196 -> 0 | I202: ='[1]Tabel 4F NJ DATA'!T196 -> 10
A203: ='[1]Tabel 4F NJ DATA'!L197 -> Bac. Samf. | C203: ='[1]Tabel 4F NJ DATA'!N197 -> 0 | D203: ='[1]Tabel 4F NJ DATA'!O197 -> 0 | E203: ='[1]Tabel 4F NJ DATA'!P197 -> 1 | F203: ='[1]Tabel 4F NJ DATA'!Q197 -> 0 | G203: ='[1]Tabel 4F NJ DATA'!R197 -> 0 | I203: ='[1]Tabel 4F NJ DATA'!T197 -> 1
A204: ='[1]Tabel 4F NJ DATA'!L198 -> Bac. Hum. | C204: ='[1]Tabel 4F NJ DATA'!N198 -> 2 | D204: ='[1]Tabel 4F NJ DATA'!O198 -> 5 | E204: ='[1]Tabel 4F NJ DATA'!P198 -> 6 | F204: ='[1]Tabel 4F NJ DATA'!Q198 -> 3 | G204: ='[1]Tabel 4F NJ DATA'!R198 -> 0 | I204: ='[1]Tabel 4F NJ DATA'!T198 -> 16
A205: ='[1]Tabel 4F NJ DATA'!L199 -> Bac. Nat. | C205: ='[1]Tabel 4F NJ DATA'!N199 -> 1 | D205: ='[1]Tabel 4F NJ DATA'!O199 -> 1 | E205: ='[1]Tabel 4F NJ DATA'!P199 -> 1 | F205: ='[1]Tabel 4F NJ DATA'!Q199 -> 0 | G205: ='[1]Tabel 4F NJ DATA'!R199 -> 0 | I205: ='[1]Tabel 4F NJ DATA'!T199 -> 3
A206: ='[1]Tabel 4F NJ DATA'!L200 -> Andre | C206: ='[1]Tabel 4F NJ DATA'!N200 -> 5 | D206: ='[1]Tabel 4F NJ DATA'!O200 -> 22 | E206: ='[1]Tabel 4F NJ DATA'!P200 -> 12 | F206: ='[1]Tabel 4F NJ DATA'!Q200 -> 8 | G206: ='[1]Tabel 4F NJ DATA'!R200 -> 7 | I206: ='[1]Tabel 4F NJ DATA'!T200 -> 54
A208: ='[1]Tabel 4F NJ DATA'!L202 -> Total | C208: ='[1]Tabel 4F NJ DATA'!N202 -> 116 | D208: ='[1]Tabel 4F NJ DATA'!O202 -> 309 | E208: ='[1]Tabel 4F NJ DATA'!P202 -> 258 | F208: ='[1]Tabel 4F NJ DATA'!Q202 -> 216 | G208: ='[1]Tabel 4F NJ DATA'!R202 -> 64 | I208: ='[1]Tabel 4F NJ DATA'!T202 -> 963
A210: ='[1]Tabel 4F NJ DATA'!L204 -> Ingeniører i alt | C210: ='[1]Tabel 4F NJ DATA'!N204 -> 16 | D210: ='[1]Tabel 4F NJ DATA'!O204 -> 49 | E210: ='[1]Tabel 4F NJ DATA'!P204 -> 76 | F210: ='[1]Tabel 4F NJ DATA'!Q204 -> 72 | G210: ='[1]Tabel 4F NJ DATA'!R204 -> 14 | I210: ='[1]Tabel 4F NJ DATA'!T204 -> 227
A211: ='[1]Tabel 4F NJ DATA'!L205 -> Magistre i alt | C211: ='[1]Tabel 4F NJ DATA'!N205 -> 21 | D211: ='[1]Tabel 4F NJ DATA'!O205 -> 53 | E211: ='[1]Tabel 4F NJ DATA'!P205 -> 53 | F211: ='[1]Tabel 4F NJ DATA'!Q205 -> 29 | G211: ='[1]Tabel 4F NJ DATA'!R205 -> 14 | I211: ='[1]Tabel 4F NJ DATA'!T205 -> 170
A212: ='[1]Tabel 4F NJ DATA'!L206 -> DJØF'ere i alt | C212: ='[1]Tabel 4F NJ DATA'!N206 -> 32 | D212: ='[1]Tabel 4F NJ DATA'!O206 -> 77 | E212: ='[1]Tabel 4F NJ DATA'!P206 -> 41 | F212: ='[1]Tabel 4F NJ DATA'!Q206 -> 49 | G212: ='[1]Tabel 4F NJ DATA'!R206 -> 5 | I212: ='[1]Tabel 4F NJ DATA'!T206 -> 204
A219: ='[1]Tabel 4F NJ DATA'!L211 -> Frederikshavn
C221: ='[1]Tabel 4F NJ DATA'!N213 -> Under 30 år | D221: ='[1]Tabel 4F NJ DATA'!O213 -> 30 - 39 år | E221: ='[1]Tabel 4F NJ DATA'!P213 -> 40 - 49 år | F221: ='[1]Tabel 4F NJ DATA'!Q213 -> 50 - 59 år | G221: ='[1]Tabel 4F NJ DATA'!R213 -> Over 60 år | I221: ='[1]Tabel 4F NJ DATA'!T213 -> I alt
A223: ='[1]Tabel 4F NJ DATA'!L215 -> Civ. ing. | C223: ='[1]Tabel 4F NJ DATA'!N215 -> 12 | D223: ='[1]Tabel 4F NJ DATA'!O215 -> 25 | E223: ='[1]Tabel 4F NJ DATA'!P215 -> 22 | F223: ='[1]Tabel 4F NJ DATA'!Q215 -> 21 | G223: ='[1]Tabel 4F NJ DATA'!R215 -> 7 | I223: ='[1]Tabel 4F NJ DATA'!T215 -> 87
A224: ='[1]Tabel 4F NJ DATA'!L216 -> Diplom ing. | C224: ='[1]Tabel 4F NJ DATA'!N216 -> 1 | D224: ='[1]Tabel 4F NJ DATA'!O216 -> 6 | E224: ='[1]Tabel 4F NJ DATA'!P216 -> 20 | F224: ='[1]Tabel 4F NJ DATA'!Q216 -> 43 | G224: ='[1]Tabel 4F NJ DATA'!R216 -> 8 | I224: ='[1]Tabel 4F NJ DATA'!T216 -> 78
A225: ='[1]Tabel 4F NJ DATA'!L217 -> Cand. Scient. Tek. | C225: ='[1]Tabel 4F NJ DATA'!N217 -> 5 | D225: ='[1]Tabel 4F NJ DATA'!O217 -> 11 | E225: ='[1]Tabel 4F NJ DATA'!P217 -> 6 | F225: ='[1]Tabel 4F NJ DATA'!Q217 -> 3 | G225: ='[1]Tabel 4F NJ DATA'!R217 -> 0 | I225: ='[1]Tabel 4F NJ DATA'!T217 -> 25
A226: ='[1]Tabel 4F NJ DATA'!L218 -> MA. Hum. | C226: ='[1]Tabel 4F NJ DATA'!N218 -> 10 | D226: ='[1]Tabel 4F NJ DATA'!O218 -> 40 | E226: ='[1]Tabel 4F NJ DATA'!P218 -> 40 | F226: ='[1]Tabel 4F NJ DATA'!Q218 -> 23 | G226: ='[1]Tabel 4F NJ DATA'!R218 -> 7 | I226: ='[1]Tabel 4F NJ DATA'!T218 -> 120
A227: ='[1]Tabel 4F NJ DATA'!L219 -> MA. Nat. | C227: ='[1]Tabel 4F NJ DATA'!N219 -> 0 | D227: ='[1]Tabel 4F NJ DATA'!O219 -> 3 | E227: ='[1]Tabel 4F NJ DATA'!P219 -> 9 | F227: ='[1]Tabel 4F NJ DATA'!Q219 -> 1 | G227: ='[1]Tabel 4F NJ DATA'!R219 -> 3 | I227: ='[1]Tabel 4F NJ DATA'!T219 -> 16
A228: ='[1]Tabel 4F NJ DATA'!L220 -> MA. Ph.d. | C228: ='[1]Tabel 4F NJ DATA'!N220 -> 1 | D228: ='[1]Tabel 4F NJ DATA'!O220 -> 0 | E228: ='[1]Tabel 4F NJ DATA'!P220 -> 2 | F228: ='[1]Tabel 4F NJ DATA'!Q220 -> 1 | G228: ='[1]Tabel 4F NJ DATA'!R220 -> 0 | I228: ='[1]Tabel 4F NJ DATA'!T220 -> 4
A229: ='[1]Tabel 4F NJ DATA'!L221 -> MA. Samf. | C229: ='[1]Tabel 4F NJ DATA'!N221 -> 4 | D229: ='[1]Tabel 4F NJ DATA'!O221 -> 4 | E229: ='[1]Tabel 4F NJ DATA'!P221 -> 1 | F229: ='[1]Tabel 4F NJ DATA'!Q221 -> 0 | G229: ='[1]Tabel 4F NJ DATA'!R221 -> 0 | I229: ='[1]Tabel 4F NJ DATA'!T221 -> 9
A230: ='[1]Tabel 4F NJ DATA'!L222 -> Øvrige Mag. | C230: ='[1]Tabel 4F NJ DATA'!N222 -> 0 | D230: ='[1]Tabel 4F NJ DATA'!O222 -> 1 | E230: ='[1]Tabel 4F NJ DATA'!P222 -> 3 | F230: ='[1]Tabel 4F NJ DATA'!Q222 -> 1 | G230: ='[1]Tabel 4F NJ DATA'!R222 -> 2 | I230: ='[1]Tabel 4F NJ DATA'!T222 -> 7
A231: ='[1]Tabel 4F NJ DATA'!L223 -> Agronom | C231: ='[1]Tabel 4F NJ DATA'!N223 -> 0 | D231: ='[1]Tabel 4F NJ DATA'!O223 -> 0 | E231: ='[1]Tabel 4F NJ DATA'!P223 -> 3 | F231: ='[1]Tabel 4F NJ DATA'!Q223 -> 2 | G231: ='[1]Tabel 4F NJ DATA'!R223 -> 2 | I231: ='[1]Tabel 4F NJ DATA'!T223 -> 7
A232: ='[1]Tabel 4F NJ DATA'!L224 -> Landsk. Arkt. | C232: ='[1]Tabel 4F NJ DATA'!N224 -> 0 | D232: ='[1]Tabel 4F NJ DATA'!O224 -> 1 | E232: ='[1]Tabel 4F NJ DATA'!P224 -> 0 | F232: ='[1]Tabel 4F NJ DATA'!Q224 -> 0 | G232: ='[1]Tabel 4F NJ DATA'!R224 -> 0 | I232: ='[1]Tabel 4F NJ DATA'!T224 -> 1
A233: ='[1]Tabel 4F NJ DATA'!L225 -> Hortonom | C233: ='[1]Tabel 4F NJ DATA'!N225 -> 0 | D233: ='[1]Tabel 4F NJ DATA'!O225 -> 0 | E233: ='[1]Tabel 4F NJ DATA'!P225 -> 0 | F233: ='[1]Tabel 4F NJ DATA'!Q225 -> 0 | G233: ='[1]Tabel 4F NJ DATA'!R225 -> 0 | I233: ='[1]Tabel 4F NJ DATA'!T225 -> 0
A234: ='[1]Tabel 4F NJ DATA'!L226 -> Forstkand. | C234: ='[1]Tabel 4F NJ DATA'!N226 -> 0 | D234: ='[1]Tabel 4F NJ DATA'!O226 -> 0 | E234: ='[1]Tabel 4F NJ DATA'!P226 -> 2 | F234: ='[1]Tabel 4F NJ DATA'!Q226 -> 1 | G234: ='[1]Tabel 4F NJ DATA'!R226 -> 0 | I234: ='[1]Tabel 4F NJ DATA'!T226 -> 3
A235: ='[1]Tabel 4F NJ DATA'!L227 -> Jordbrugsakad. | C235: ='[1]Tabel 4F NJ DATA'!N227 -> 0 | D235: ='[1]Tabel 4F NJ DATA'!O227 -> 1 | E235: ='[1]Tabel 4F NJ DATA'!P227 -> 5 | F235: ='[1]Tabel 4F NJ DATA'!Q227 -> 3 | G235: ='[1]Tabel 4F NJ DATA'!R227 -> 2 | I235: ='[1]Tabel 4F NJ DATA'!T227 -> 11
A236: ='[1]Tabel 4F NJ DATA'!L228 -> Mejeriing. | C236: ='[1]Tabel 4F NJ DATA'!N228 -> 0 | D236: ='[1]Tabel 4F NJ DATA'!O228 -> 0 | E236: ='[1]Tabel 4F NJ DATA'!P228 -> 1 | F236: ='[1]Tabel 4F NJ DATA'!Q228 -> 0 | G236: ='[1]Tabel 4F NJ DATA'!R228 -> 0 | I236: ='[1]Tabel 4F NJ DATA'!T228 -> 1
A237: ='[1]Tabel 4F NJ DATA'!L229 -> Levn.m.kand. | C237: ='[1]Tabel 4F NJ DATA'!N229 -> 0 | D237: ='[1]Tabel 4F NJ DATA'!O229 -> 0 | E237: ='[1]Tabel 4F NJ DATA'!P229 -> 0 | F237: ='[1]Tabel 4F NJ DATA'!Q229 -> 0 | G237: ='[1]Tabel 4F NJ DATA'!R229 -> 0 | I237: ='[1]Tabel 4F NJ DATA'!T229 -> 0
A238: ='[1]Tabel 4F NJ DATA'!L230 -> Dyrlæge | C238: ='[1]Tabel 4F NJ DATA'!N230 -> 2 | D238: ='[1]Tabel 4F NJ DATA'!O230 -> 5 | E238: ='[1]Tabel 4F NJ DATA'!P230 -> 5 | F238: ='[1]Tabel 4F NJ DATA'!Q230 -> 6 | G238: ='[1]Tabel 4F NJ DATA'!R230 -> 2 | I238: ='[1]Tabel 4F NJ DATA'!T230 -> 20
A239: ='[1]Tabel 4F NJ DATA'!L231 -> Farmaceut | C239: ='[1]Tabel 4F NJ DATA'!N231 -> 0 | D239: ='[1]Tabel 4F NJ DATA'!O231 -> 2 | E239: ='[1]Tabel 4F NJ DATA'!P231 -> 2 | F239: ='[1]Tabel 4F NJ DATA'!Q231 -> 1 | G239: ='[1]Tabel 4F NJ DATA'!R231 -> 3 | I239: ='[1]Tabel 4F NJ DATA'!T231 -> 8
A240: ='[1]Tabel 4F NJ DATA'!L232 -> Læge | C240: ='[1]Tabel 4F NJ DATA'!N232 -> 4 | D240: ='[1]Tabel 4F NJ DATA'!O232 -> 3 | E240: ='[1]Tabel 4F NJ DATA'!P232 -> 3 | F240: ='[1]Tabel 4F NJ DATA'!Q232 -> 4 | G240: ='[1]Tabel 4F NJ DATA'!R232 -> 2 | I240: ='[1]Tabel 4F NJ DATA'!T232 -> 16
A241: ='[1]Tabel 4F NJ DATA'!L233 -> Tandlæge | C241: ='[1]Tabel 4F NJ DATA'!N233 -> 6 | D241: ='[1]Tabel 4F NJ DATA'!O233 -> 3 | E241: ='[1]Tabel 4F NJ DATA'!P233 -> 0 | F241: ='[1]Tabel 4F NJ DATA'!Q233 -> 2 | G241: ='[1]Tabel 4F NJ DATA'!R233 -> 1 | I241: ='[1]Tabel 4F NJ DATA'!T233 -> 12
A242: ='[1]Tabel 4F NJ DATA'!L234 -> Arkitekt | C242: ='[1]Tabel 4F NJ DATA'!N234 -> 2 | D242: ='[1]Tabel 4F NJ DATA'!O234 -> 3 | E242: ='[1]Tabel 4F NJ DATA'!P234 -> 1 | F242: ='[1]Tabel 4F NJ DATA'!Q234 -> 2 | G242: ='[1]Tabel 4F NJ DATA'!R234 -> 1 | I242: ='[1]Tabel 4F NJ DATA'!T234 -> 9
A243: ='[1]Tabel 4F NJ DATA'!L235 -> Landinspek. | C243: ='[1]Tabel 4F NJ DATA'!N235 -> 0 | D243: ='[1]Tabel 4F NJ DATA'!O235 -> 1 | E243: ='[1]Tabel 4F NJ DATA'!P235 -> 6 | F243: ='[1]Tabel 4F NJ DATA'!Q235 -> 4 | G243: ='[1]Tabel 4F NJ DATA'!R235 -> 1 | I243: ='[1]Tabel 4F NJ DATA'!T235 -> 12
... 329 more rows

Sheet Tabel 4 NJ
A1: ='[1]Tabel 4 NJ DATA'!I1 -> Tabel 4. Ledighedsberørte - aldersfordelt
A3: ='[1]Tabel 4 NJ DATA'!I2 -> Nordjylland
C5: ='[1]Tabel 4 NJ DATA'!K4 -> Under 30 år | D5: ='[1]Tabel 4 NJ DATA'!L4 -> 30 - 39 år | E5: ='[1]Tabel 4 NJ DATA'!M4 -> 40 - 49 år | F5: ='[1]Tabel 4 NJ DATA'!N4 -> 50 - 59 år | G5: ='[1]Tabel 4 NJ DATA'!O4 -> Over 60 år | I5: ='[1]Tabel 4 NJ DATA'!Q4 -> I alt
A7: ='[1]Tabel 4 NJ DATA'!I6 -> Civ. ing. | C7: ='[1]Tabel 4 NJ DATA'!K6 -> 81 | D7: ='[1]Tabel 4 NJ DATA'!L6 -> 28 | E7: ='[1]Tabel 4 NJ DATA'!M6 -> 10 | F7: ='[1]Tabel 4 NJ DATA'!N6 -> 8 | G7: ='[1]Tabel 4 NJ DATA'!O6 -> 12 | I7: ='[1]Tabel 4 NJ DATA'!Q6 -> 139
A8: ='[1]Tabel 4 NJ DATA'!I7 -> Diplom ing. | C8: ='[1]Tabel 4 NJ DATA'!K7 -> 20 | D8: ='[1]Tabel 4 NJ DATA'!L7 -> 2 | E8: ='[1]Tabel 4 NJ DATA'!M7 -> 5 | F8: ='[1]Tabel 4 NJ DATA'!N7 -> 27 | G8: ='[1]Tabel 4 NJ DATA'!O7 -> 10 | I8: ='[1]Tabel 4 NJ DATA'!Q7 -> 64
A9: ='[1]Tabel 4 NJ DATA'!I8 -> Cand. Scient. Tek | C9: ='[1]Tabel 4 NJ DATA'!K8 -> 112 | D9: ='[1]Tabel 4 NJ DATA'!L8 -> 54 | E9: ='[1]Tabel 4 NJ DATA'!M8 -> 7 | F9: ='[1]Tabel 4 NJ DATA'!N8 -> 3 | G9: ='[1]Tabel 4 NJ DATA'!O8 -> 2 | I9: ='[1]Tabel 4 NJ DATA'!Q8 -> 178
A10: ='[1]Tabel 4 NJ DATA'!I9 -> MA. Hum. | C10: ='[1]Tabel 4 NJ DATA'!K9 -> 153 | D10: ='[1]Tabel 4 NJ DATA'!L9 -> 146 | E10: ='[1]Tabel 4 NJ DATA'!M9 -> 48 | F10: ='[1]Tabel 4 NJ DATA'!N9 -> 36 | G10: ='[1]Tabel 4 NJ DATA'!O9 -> 17 | I10: ='[1]Tabel 4 NJ DATA'!Q9 -> 400
A11: ='[1]Tabel 4 NJ DATA'!I10 -> MA. Nat. | C11: ='[1]Tabel 4 NJ DATA'!K10 -> 13 | D11: ='[1]Tabel 4 NJ DATA'!L10 -> 8 | E11: ='[1]Tabel 4 NJ DATA'!M10 -> 3 | F11: ='[1]Tabel 4 NJ DATA'!N10 -> 1 | G11: ='[1]Tabel 4 NJ DATA'!O10 -> 3 | I11: ='[1]Tabel 4 NJ DATA'!Q10 -> 28
A12: ='[1]Tabel 4 NJ DATA'!I11 -> MA. Ph.d. | C12: ='[1]Tabel 4 NJ DATA'!K11 -> 0 | D12: ='[1]Tabel 4 NJ DATA'!L11 -> 0 | E12: ='[1]Tabel 4 NJ DATA'!M11 -> 1 | F12: ='[1]Tabel 4 NJ DATA'!N11 -> 2 | G12: ='[1]Tabel 4 NJ DATA'!O11 -> 1 | I12: ='[1]Tabel 4 NJ DATA'!Q11 -> 4
A13: ='[1]Tabel 4 NJ DATA'!I12 -> MA. Samf. | C13: ='[1]Tabel 4 NJ DATA'!K12 -> 34 | D13: ='[1]Tabel 4 NJ DATA'!L12 -> 29 | E13: ='[1]Tabel 4 NJ DATA'!M12 -> 3 | F13: ='[1]Tabel 4 NJ DATA'!N12 -> 1 | G13: ='[1]Tabel 4 NJ DATA'!O12 -> 0 | I13: ='[1]Tabel 4 NJ DATA'!Q12 -> 67
A14: ='[1]Tabel 4 NJ DATA'!I13 -> Øvrige Mag. | C14: ='[1]Tabel 4 NJ DATA'!K13 -> 3 | D14: ='[1]Tabel 4 NJ DATA'!L13 -> 6 | E14: ='[1]Tabel 4 NJ DATA'!M13 -> 4 | F14: ='[1]Tabel 4 NJ DATA'!N13 -> 1 | G14: ='[1]Tabel 4 NJ DATA'!O13 -> 3 | I14: ='[1]Tabel 4 NJ DATA'!Q13 -> 17
A15: ='[1]Tabel 4 NJ DATA'!I14 -> Agronom | C15: ='[1]Tabel 4 NJ DATA'!K14 -> 1 | D15: ='[1]Tabel 4 NJ DATA'!L14 -> 0 | E15: ='[1]Tabel 4 NJ DATA'!M14 -> 2 | F15: ='[1]Tabel 4 NJ DATA'!N14 -> 1 | G15: ='[1]Tabel 4 NJ DATA'!O14 -> 1 | I15: ='[1]Tabel 4 NJ DATA'!Q14 -> 5
A16: ='[1]Tabel 4 NJ DATA'!I15 -> Landsk. Arkt. | C16: ='[1]Tabel 4 NJ DATA'!K15 -> 0 | D16: ='[1]Tabel 4 NJ DATA'!L15 -> 2 | E16: ='[1]Tabel 4 NJ DATA'!M15 -> 0 | F16: ='[1]Tabel 4 NJ DATA'!N15 -> 0 | G16: ='[1]Tabel 4 NJ DATA'!O15 -> 0 | I16: ='[1]Tabel 4 NJ DATA'!Q15 -> 2
A17: ='[1]Tabel 4 NJ DATA'!I16 -> Hortonom | C17: ='[1]Tabel 4 NJ DATA'!K16 -> 0 | D17: ='[1]Tabel 4 NJ DATA'!L16 -> 0 | E17: ='[1]Tabel 4 NJ DATA'!M16 -> 0 | F17: ='[1]Tabel 4 NJ DATA'!N16 -> 0 | G17: ='[1]Tabel 4 NJ DATA'!O16 -> 0 | I17: ='[1]Tabel 4 NJ DATA'!Q16 -> 0
A18: ='[1]Tabel 4 NJ DATA'!I17 -> Forstkand. | C18: ='[1]Tabel 4 NJ DATA'!K17 -> 0 | D18: ='[1]Tabel 4 NJ DATA'!L17 -> 0 | E18: ='[1]Tabel 4 NJ DATA'!M17 -> 0 | F18: ='[1]Tabel 4 NJ DATA'!N17 -> 0 | G18: ='[1]Tabel 4 NJ DATA'!O17 -> 0 | I18: ='[1]Tabel 4 NJ DATA'!Q17 -> 0
A19: ='[1]Tabel 4 NJ DATA'!I18 -> Jordbrugsakad. | C19: ='[1]Tabel 4 NJ DATA'!K18 -> 1 | D19: ='[1]Tabel 4 NJ DATA'!L18 -> 2 | E19: ='[1]Tabel 4 NJ DATA'!M18 -> 2 | F19: ='[1]Tabel 4 NJ DATA'!N18 -> 1 | G19: ='[1]Tabel 4 NJ DATA'!O18 -> 1 | I19: ='[1]Tabel 4 NJ DATA'!Q18 -> 7
A20: ='[1]Tabel 4 NJ DATA'!I19 -> Mejeriing. | C20: ='[1]Tabel 4 NJ DATA'!K19 -> 0 | D20: ='[1]Tabel 4 NJ DATA'!L19 -> 0 | E20: ='[1]Tabel 4 NJ DATA'!M19 -> 0 | F20: ='[1]Tabel 4 NJ DATA'!N19 -> 0 | G20: ='[1]Tabel 4 NJ DATA'!O19 -> 0 | I20: ='[1]Tabel 4 NJ DATA'!Q19 -> 0
A21: ='[1]Tabel 4 NJ DATA'!I20 -> Levn.m.kand. | C21: ='[1]Tabel 4 NJ DATA'!K20 -> 0 | D21: ='[1]Tabel 4 NJ DATA'!L20 -> 0 | E21: ='[1]Tabel 4 NJ DATA'!M20 -> 0 | F21: ='[1]Tabel 4 NJ DATA'!N20 -> 0 | G21: ='[1]Tabel 4 NJ DATA'!O20 -> 0 | I21: ='[1]Tabel 4 NJ DATA'!Q20 -> 0
A22: ='[1]Tabel 4 NJ DATA'!I21 -> Dyrlæge | C22: ='[1]Tabel 4 NJ DATA'!K21 -> 0 | D22: ='[1]Tabel 4 NJ DATA'!L21 -> 2 | E22: ='[1]Tabel 4 NJ DATA'!M21 -> 0 | F22: ='[1]Tabel 4 NJ DATA'!N21 -> 0 | G22: ='[1]Tabel 4 NJ DATA'!O21 -> 0 | I22: ='[1]Tabel 4 NJ DATA'!Q21 -> 2
A23: ='[1]Tabel 4 NJ DATA'!I22 -> Farmaceut | C23: ='[1]Tabel 4 NJ DATA'!K22 -> 0 | D23: ='[1]Tabel 4 NJ DATA'!L22 -> 1 | E23: ='[1]Tabel 4 NJ DATA'!M22 -> 0 | F23: ='[1]Tabel 4 NJ DATA'!N22 -> 0 | G23: ='[1]Tabel 4 NJ DATA'!O22 -> 0 | I23: ='[1]Tabel 4 NJ DATA'!Q22 -> 1
A24: ='[1]Tabel 4 NJ DATA'!I23 -> Læge | C24: ='[1]Tabel 4 NJ DATA'!K23 -> 6 | D24: ='[1]Tabel 4 NJ DATA'!L23 -> 2 | E24: ='[1]Tabel 4 NJ DATA'!M23 -> 3 | F24: ='[1]Tabel 4 NJ DATA'!N23 -> 0 | G24: ='[1]Tabel 4 NJ DATA'!O23 -> 0 | I24: ='[1]Tabel 4 NJ DATA'!Q23 -> 11
A25: ='[1]Tabel 4 NJ DATA'!I24 -> Tandlæge | C25: ='[1]Tabel 4 NJ DATA'!K24 -> 0 | D25: ='[1]Tabel 4 NJ DATA'!L24 -> 0 | E25: ='[1]Tabel 4 NJ DATA'!M24 -> 0 | F25: ='[1]Tabel 4 NJ DATA'!N24 -> 0 | G25: ='[1]Tabel 4 NJ DATA'!O24 -> 1 | I25: ='[1]Tabel 4 NJ DATA'!Q24 -> 1
A26: ='[1]Tabel 4 NJ DATA'!I25 -> Arkitekt | C26: ='[1]Tabel 4 NJ DATA'!K25 -> 2 | D26: ='[1]Tabel 4 NJ DATA'!L25 -> 4 | E26: ='[1]Tabel 4 NJ DATA'!M25 -> 1 | F26: ='[1]Tabel 4 NJ DATA'!N25 -> 3 | G26: ='[1]Tabel 4 NJ DATA'!O25 -> 1 | I26: ='[1]Tabel 4 NJ DATA'!Q25 -> 11
A27: ='[1]Tabel 4 NJ DATA'!I26 -> Landinspek. | C27: ='[1]Tabel 4 NJ DATA'!K26 -> 1 | D27: ='[1]Tabel 4 NJ DATA'!L26 -> 0 | E27: ='[1]Tabel 4 NJ DATA'!M26 -> 0 | F27: ='[1]Tabel 4 NJ DATA'!N26 -> 1 | G27: ='[1]Tabel 4 NJ DATA'!O26 -> 1 | I27: ='[1]Tabel 4 NJ DATA'!Q26 -> 3
A28: ='[1]Tabel 4 NJ DATA'!I27 -> Bibliotekar | C28: ='[1]Tabel 4 NJ DATA'!K27 -> 2 | D28: ='[1]Tabel 4 NJ DATA'!L27 -> 9 | E28: ='[1]Tabel 4 NJ DATA'!M27 -> 6 | F28: ='[1]Tabel 4 NJ DATA'!N27 -> 5 | G28: ='[1]Tabel 4 NJ DATA'!O27 -> 2 | I28: ='[1]Tabel 4 NJ DATA'!Q27 -> 24
A29: ='[1]Tabel 4 NJ DATA'!I28 -> Musikudd. | C29: ='[1]Tabel 4 NJ DATA'!K28 -> 0 | D29: ='[1]Tabel 4 NJ DATA'!L28 -> 1 | E29: ='[1]Tabel 4 NJ DATA'!M28 -> 0 | F29: ='[1]Tabel 4 NJ DATA'!N28 -> 0 | G29: ='[1]Tabel 4 NJ DATA'!O28 -> 2 | I29: ='[1]Tabel 4 NJ DATA'!Q28 -> 3
A30: ='[1]Tabel 4 NJ DATA'!I29 -> Teolog | C30: ='[1]Tabel 4 NJ DATA'!K29 -> 0 | D30: ='[1]Tabel 4 NJ DATA'!L29 -> 2 | E30: ='[1]Tabel 4 NJ DATA'!M29 -> 1 | F30: ='[1]Tabel 4 NJ DATA'!N29 -> 0 | G30: ='[1]Tabel 4 NJ DATA'!O29 -> 0 | I30: ='[1]Tabel 4 NJ DATA'!Q29 -> 3
A31: ='[1]Tabel 4 NJ DATA'!I30 -> Psykolog | C31: ='[1]Tabel 4 NJ DATA'!K30 -> 22 | D31: ='[1]Tabel 4 NJ DATA'!L30 -> 19 | E31: ='[1]Tabel 4 NJ DATA'!M30 -> 4 | F31: ='[1]Tabel 4 NJ DATA'!N30 -> 2 | G31: ='[1]Tabel 4 NJ DATA'!O30 -> 0 | I31: ='[1]Tabel 4 NJ DATA'!Q30 -> 47
A32: ='[1]Tabel 4 NJ DATA'!I31 -> Jurist | C32: ='[1]Tabel 4 NJ DATA'!K31 -> 9 | D32: ='[1]Tabel 4 NJ DATA'!L31 -> 5 | E32: ='[1]Tabel 4 NJ DATA'!M31 -> 3 | F32: ='[1]Tabel 4 NJ DATA'!N31 -> 0 | G32: ='[1]Tabel 4 NJ DATA'!O31 -> 0 | I32: ='[1]Tabel 4 NJ DATA'!Q31 -> 17
A33: ='[1]Tabel 4 NJ DATA'!I32 -> Økonom | C33: ='[1]Tabel 4 NJ DATA'!K32 -> 6 | D33: ='[1]Tabel 4 NJ DATA'!L32 -> 3 | E33: ='[1]Tabel 4 NJ DATA'!M32 -> 4 | F33: ='[1]Tabel 4 NJ DATA'!N32 -> 3 | G33: ='[1]Tabel 4 NJ DATA'!O32 -> 2 | I33: ='[1]Tabel 4 NJ DATA'!Q32 -> 18
A34: ='[1]Tabel 4 NJ DATA'!I33 -> Samf. Adm. | C34: ='[1]Tabel 4 NJ DATA'!K33 -> 75 | D34: ='[1]Tabel 4 NJ DATA'!L33 -> 60 | E34: ='[1]Tabel 4 NJ DATA'!M33 -> 10 | F34: ='[1]Tabel 4 NJ DATA'!N33 -> 7 | G34: ='[1]Tabel 4 NJ DATA'!O33 -> 6 | I34: ='[1]Tabel 4 NJ DATA'!Q33 -> 158
A35: ='[1]Tabel 4 NJ DATA'!I34 -> Cand. Merc. | C35: ='[1]Tabel 4 NJ DATA'!K34 -> 70 | D35: ='[1]Tabel 4 NJ DATA'!L34 -> 35 | E35: ='[1]Tabel 4 NJ DATA'!M34 -> 11 | F35: ='[1]Tabel 4 NJ DATA'!N34 -> 17 | G35: ='[1]Tabel 4 NJ DATA'!O34 -> 2 | I35: ='[1]Tabel 4 NJ DATA'!Q34 -> 135
A36: ='[1]Tabel 4 NJ DATA'!I35 -> HA | C36: ='[1]Tabel 4 NJ DATA'!K35 -> 28 | D36: ='[1]Tabel 4 NJ DATA'!L35 -> 7 | E36: ='[1]Tabel 4 NJ DATA'!M35 -> 1 | F36: ='[1]Tabel 4 NJ DATA'!N35 -> 5 | G36: ='[1]Tabel 4 NJ DATA'!O35 -> 2 | I36: ='[1]Tabel 4 NJ DATA'!Q35 -> 43
A37: ='[1]Tabel 4 NJ DATA'!I36 -> HD | C37: ='[1]Tabel 4 NJ DATA'!K36 -> 10 | D37: ='[1]Tabel 4 NJ DATA'!L36 -> 6 | E37: ='[1]Tabel 4 NJ DATA'!M36 -> 1 | F37: ='[1]Tabel 4 NJ DATA'!N36 -> 1 | G37: ='[1]Tabel 4 NJ DATA'!O36 -> 3 | I37: ='[1]Tabel 4 NJ DATA'!Q36 -> 21
A38: ='[1]Tabel 4 NJ DATA'!I37 -> Komm. og Sprog | C38: ='[1]Tabel 4 NJ DATA'!K37 -> 24 | D38: ='[1]Tabel 4 NJ DATA'!L37 -> 10 | E38: ='[1]Tabel 4 NJ DATA'!M37 -> 9 | F38: ='[1]Tabel 4 NJ DATA'!N37 -> 6 | G38: ='[1]Tabel 4 NJ DATA'!O37 -> 2 | I38: ='[1]Tabel 4 NJ DATA'!Q37 -> 51
A39: ='[1]Tabel 4 NJ DATA'!I38 -> Bygningskonst. | C39: ='[1]Tabel 4 NJ DATA'!K38 -> 25 | D39: ='[1]Tabel 4 NJ DATA'!L38 -> 12 | E39: ='[1]Tabel 4 NJ DATA'!M38 -> 2 | F39: ='[1]Tabel 4 NJ DATA'!N38 -> 4 | G39: ='[1]Tabel 4 NJ DATA'!O38 -> 0 | I39: ='[1]Tabel 4 NJ DATA'!Q38 -> 43
A40: ='[1]Tabel 4 NJ DATA'!I39 -> Cand. IT. | C40: ='[1]Tabel 4 NJ DATA'!K39 -> 29 | D40: ='[1]Tabel 4 NJ DATA'!L39 -> 35 | E40: ='[1]Tabel 4 NJ DATA'!M39 -> 5 | F40: ='[1]Tabel 4 NJ DATA'!N39 -> 1 | G40: ='[1]Tabel 4 NJ DATA'!O39 -> 0 | I40: ='[1]Tabel 4 NJ DATA'!Q39 -> 70
A41: ='[1]Tabel 4 NJ DATA'!I40 -> Bac. Samf. | C41: ='[1]Tabel 4 NJ DATA'!K40 -> 4 | D41: ='[1]Tabel 4 NJ DATA'!L40 -> 1 | E41: ='[1]Tabel 4 NJ DATA'!M40 -> 2 | F41: ='[1]Tabel 4 NJ DATA'!N40 -> 1 | G41: ='[1]Tabel 4 NJ DATA'!O40 -> 0 | I41: ='[1]Tabel 4 NJ DATA'!Q40 -> 8
A42: ='[1]Tabel 4 NJ DATA'!I41 -> Bac. Hum. | C42: ='[1]Tabel 4 NJ DATA'!K41 -> 42 | D42: ='[1]Tabel 4 NJ DATA'!L41 -> 12 | E42: ='[1]Tabel 4 NJ DATA'!M41 -> 5 | F42: ='[1]Tabel 4 NJ DATA'!N41 -> 4 | G42: ='[1]Tabel 4 NJ DATA'!O41 -> 0 | I42: ='[1]Tabel 4 NJ DATA'!Q41 -> 63
A43: ='[1]Tabel 4 NJ DATA'!I42 -> Bac. Nat. | C43: ='[1]Tabel 4 NJ DATA'!K42 -> 28 | D43: ='[1]Tabel 4 NJ DATA'!L42 -> 10 | E43: ='[1]Tabel 4 NJ DATA'!M42 -> 2 | F43: ='[1]Tabel 4 NJ DATA'!N42 -> 0 | G43: ='[1]Tabel 4 NJ DATA'!O42 -> 1 | I43: ='[1]Tabel 4 NJ DATA'!Q42 -> 41
A44: ='[1]Tabel 4 NJ DATA'!I43 -> Andre | C44: ='[1]Tabel 4 NJ DATA'!K43 -> 27 | D44: ='[1]Tabel 4 NJ DATA'!L43 -> 35 | E44: ='[1]Tabel 4 NJ DATA'!M43 -> 16 | F44: ='[1]Tabel 4 NJ DATA'!N43 -> 15 | G44: ='[1]Tabel 4 NJ DATA'!O43 -> 12 | I44: ='[1]Tabel 4 NJ DATA'!Q43 -> 105
A46: ='[1]Tabel 4 NJ DATA'!I45 -> Total | C46: ='[1]Tabel 4 NJ DATA'!K45 -> 827 | D46: ='[1]Tabel 4 NJ DATA'!L45 -> 546 | E46: ='[1]Tabel 4 NJ DATA'!M45 -> 169 | F46: ='[1]Tabel 4 NJ DATA'!N45 -> 155 | G46: ='[1]Tabel 4 NJ DATA'!O45 -> 86 | I46: ='[1]Tabel 4 NJ DATA'!Q45 -> 1783
A48: ='[1]Tabel 4 NJ DATA'!I47 -> Ingeniører i alt | C48: ='[1]Tabel 4 NJ DATA'!K47 -> 101 | D48: ='[1]Tabel 4 NJ DATA'!L47 -> 30 | E48: ='[1]Tabel 4 NJ DATA'!M47 -> 15 | F48: ='[1]Tabel 4 NJ DATA'!N47 -> 35 | G48: ='[1]Tabel 4 NJ DATA'!O47 -> 22 | I48: ='[1]Tabel 4 NJ DATA'!Q47 -> 203
A49: ='[1]Tabel 4 NJ DATA'!I48 -> Magistre i alt | C49: ='[1]Tabel 4 NJ DATA'!K48 -> 203 | D49: ='[1]Tabel 4 NJ DATA'!L48 -> 189 | E49: ='[1]Tabel 4 NJ DATA'!M48 -> 59 | F49: ='[1]Tabel 4 NJ DATA'!N48 -> 41 | G49: ='[1]Tabel 4 NJ DATA'!O48 -> 24 | I49: ='[1]Tabel 4 NJ DATA'!Q48 -> 516
A50: ='[1]Tabel 4 NJ DATA'!I49 -> DJØF'ere i alt | C50: ='[1]Tabel 4 NJ DATA'!K49 -> 188 | D50: ='[1]Tabel 4 NJ DATA'!L49 -> 110 | E50: ='[1]Tabel 4 NJ DATA'!M49 -> 29 | F50: ='[1]Tabel 4 NJ DATA'!N49 -> 32 | G50: ='[1]Tabel 4 NJ DATA'!O49 -> 12 | I50: ='[1]Tabel 4 NJ DATA'!Q49 -> 371
A57: ='[1]Tabel 4 NJ DATA'!I54 -> Morsø
C59: ='[1]Tabel 4 NJ DATA'!K56 -> Under 30 år | D59: ='[1]Tabel 4 NJ DATA'!L56 -> 30 - 39 år | E59: ='[1]Tabel 4 NJ DATA'!M56 -> 40 - 49 år | F59: ='[1]Tabel 4 NJ DATA'!N56 -> 50 - 59 år | G59: ='[1]Tabel 4 NJ DATA'!O56 -> Over 60 år | I59: ='[1]Tabel 4 NJ DATA'!Q56 -> I alt
A61: ='[1]Tabel 4 NJ DATA'!I58 -> Civ. ing. | C61: ='[1]Tabel 4 NJ DATA'!K58 -> 0 | D61: ='[1]Tabel 4 NJ DATA'!L58 -> 0 | E61: ='[1]Tabel 4 NJ DATA'!M58 -> 0 | F61: ='[1]Tabel 4 NJ DATA'!N58 -> 0 | G61: ='[1]Tabel 4 NJ DATA'!O58 -> 0 | I61: ='[1]Tabel 4 NJ DATA'!Q58 -> 0
A62: ='[1]Tabel 4 NJ DATA'!I59 -> Diplom ing. | C62: ='[1]Tabel 4 NJ DATA'!K59 -> 1 | D62: ='[1]Tabel 4 NJ DATA'!L59 -> 0 | E62: ='[1]Tabel 4 NJ DATA'!M59 -> 0 | F62: ='[1]Tabel 4 NJ DATA'!N59 -> 0 | G62: ='[1]Tabel 4 NJ DATA'!O59 -> 0 | I62: ='[1]Tabel 4 NJ DATA'!Q59 -> 1
A63: ='[1]Tabel 4 NJ DATA'!I60 -> Cand. Scient. Tek | C63: ='[1]Tabel 4 NJ DATA'!K60 -> 0 | D63: ='[1]Tabel 4 NJ DATA'!L60 -> 0 | E63: ='[1]Tabel 4 NJ DATA'!M60 -> 0 | F63: ='[1]Tabel 4 NJ DATA'!N60 -> 0 | G63: ='[1]Tabel 4 NJ DATA'!O60 -> 0 | I63: ='[1]Tabel 4 NJ DATA'!Q60 -> 0
A64: ='[1]Tabel 4 NJ DATA'!I61 -> MA. Hum. | C64: ='[1]Tabel 4 NJ DATA'!K61 -> 1 | D64: ='[1]Tabel 4 NJ DATA'!L61 -> 1 | E64: ='[1]Tabel 4 NJ DATA'!M61 -> 2 | F64: ='[1]Tabel 4 NJ DATA'!N61 -> 0 | G64: ='[1]Tabel 4 NJ DATA'!O61 -> 1 | I64: ='[1]Tabel 4 NJ DATA'!Q61 -> 5
A65: ='[1]Tabel 4 NJ DATA'!I62 -> MA. Nat. | C65: ='[1]Tabel 4 NJ DATA'!K62 -> 0 | D65: ='[1]Tabel 4 NJ DATA'!L62 -> 0 | E65: ='[1]Tabel 4 NJ DATA'!M62 -> 0 | F65: ='[1]Tabel 4 NJ DATA'!N62 -> 0 | G65: ='[1]Tabel 4 NJ DATA'!O62 -> 0 | I65: ='[1]Tabel 4 NJ DATA'!Q62 -> 0
A66: ='[1]Tabel 4 NJ DATA'!I63 -> MA. Ph.d. | C66: ='[1]Tabel 4 NJ DATA'!K63 -> 0 | D66: ='[1]Tabel 4 NJ DATA'!L63 -> 0 | E66: ='[1]Tabel 4 NJ DATA'!M63 -> 0 | F66: ='[1]Tabel 4 NJ DATA'!N63 -> 0 | G66: ='[1]Tabel 4 NJ DATA'!O63 -> 0 | I66: ='[1]Tabel 4 NJ DATA'!Q63 -> 0
A67: ='[1]Tabel 4 NJ DATA'!I64 -> MA. Samf. | C67: ='[1]Tabel 4 NJ DATA'!K64 -> 0 | D67: ='[1]Tabel 4 NJ DATA'!L64 -> 0 | E67: ='[1]Tabel 4 NJ DATA'!M64 -> 0 | F67: ='[1]Tabel 4 NJ DATA'!N64 -> 0 | G67: ='[1]Tabel 4 NJ DATA'!O64 -> 0 | I67: ='[1]Tabel 4 NJ DATA'!Q64 -> 0
